Workbook

Sheet WORKING (hidden)
C1: Products of agriculture, hunting and related services | D1: Products of forestry, logging and related services | E1: Fish and other fishing products; aquaculture products; support services to fishing | F1: Coal and lignite | G1: Extraction Of Crude Petroleum And Natural Gas & Mining Of Metal Ores | H1: Other mining and quarrying products | I1: Mining support services | J1: Preserved meat and meat products | K1: Processed and preserved fish, crustaceans, molluscs, fruit and vegetables | L1: Vegetable and animal oils and fats | M1: Dairy products | N1: Grain mill products, starches and starch products | O1: Bakery and farinaceous products | P1: Other food products | Q1: Prepared animal feeds | R1: Alcoholic beverages & Tobacco products | S1: Soft drinks | T1: Textiles | U1: Wearing apparel | V1: Leather and related products | W1: Wood and of products of wood and cork, except furniture; articles of straw and plaiting materials | X1: Paper and paper products | Y1: Printing and recording services | Z1: Coke and refined petroleum products | AA1: Industrial gases, inorganics and fertilisers (all inorganic chemicals) - 20.11/13/15 | AB1: Petrochemicals - 20.14/16/17/60 | AC1: Dyestuffs, agro-chemicals - 20.12/20 | AD1: Paints, varnishes and similar coatings, printing ink and mastics | AE1: Soap and detergents, cleaning and polishing preparations, perfumes and toilet preparations | AF1: Other chemical products | AG1: Basic pharmaceutical products and pharmaceutical preparations | AH1: Rubber and plastic products | AI1: Cement, lime, plaster and articles of concrete, cement and plaster | AJ1: Glass, refractory, clay, other porcelain and ceramic, stone and abrasive products - 23.1-4/7-9 | AK1: Basic iron and steel | AL1: Other basic metals and casting | AM1: Weapons and ammunition | AN1: Fabricated metal products, excl. machinery and equipment and weapons & ammunition - 25.1-3/25.5-9 | AO1: Computer, electronic and optical products | AP1: Electrical equipment | AQ1: Machinery and equipment n.e.c. | AR1: Motor vehicles, trailers and semi-trailers | AS1: Ships and boats | AT1: Air and spacecraft and related machinery | AU1: Other transport equipment - 30.2/4/9 | AV1: Furniture | AW1: Other manufactured goods | AX1: Repair and maintenance of ships and boats | AY1: Repair and maintenance of aircraft and spacecraft | AZ1: Rest of repair; Installation - 33.11-14/17/19/20 | BA1: Electricity, transmission and distribution | BB1: Gas; distribution of gaseous fuels through mains; steam and air conditioning supply | BC1: Natural water; water treatment and supply services | BD1: Sewerage services; sewage sludge | BE1: Waste collection, treatment and disposal services; materials recovery services | BF1: Remediation services and other waste management services | BG1: Construction | BH1: Wholesale and retail trade and repair services of motor vehicles and motorcycles | BI1: Wholesale trade services, except of motor vehicles and motorcycles | BJ1: Retail trade services, except of motor vehicles and motorcycles | BK1: Rail transport services | BL1: Land transport services and transport services via pipelines, excluding rail transport | BM1: Water transport services | BN1: Air transport services | BO1: Warehousing and support services for transportation | BP1: Postal and courier services | BQ1: Accommodation services | BR1: Food and beverage serving services | BS1: Publishing services | BT1: Motion Picture, Video & TV Programme Production, Sound Recording & Music Publishing services & Programming And Broadcasting services | BU1: Telecommunications services | BV1: Computer programming, consultancy and related services | BW1: Information services | BX1: Financial services, except insurance and pension funding | BY1: Insurance and reinsurance, except compulsory social security & Pension funding | BZ1: Services auxiliary to financial services and insurance services | CA1: Real estate services, excluding on a fee or contract basis and imputed rent | CB1: Owner-Occupiers' Housing Services | CC1: Real estate services on a fee or contract basis | CD1: Legal services | CE1: Accounting, bookkeeping and auditing services; tax consulting services | CF1: Services of head offices; management consulting services | CG1: Architectural and engineering services; technical testing and analysis services | CH1: Scientific research and development services | CI1: Advertising and market research services | CJ1: Other professional, scientific and technical services | CK1: Veterinary services | CL1: Rental and leasing services | CM1: Employment services | CN1: Travel agency, tour operator and other reservation services and related services | CO1: Security and investigation services | CP1: Services to buildings and landscape | CQ1: Office administrative, office support and other business support services | CR1: Public administration and defence services; compulsory social security services | CS1: Education services | CT1: Human health services | CU1: Residential Care & Social Work services | CV1: Creative, arts and entertainment services | CW1: Libraries, archives, museums and other cultural services | CX1: Gambling and betting services | CY1: Sports services and amusement and recreation services | CZ1: Services furnished by membership organisations | DA1: Repair services of computers and personal and household goods | DB1: Other personal services | DC1: Services of households as employers of domestic personnel | DD1: Households | DE1: Non-Profit Institutions Serving Households | DF1: Central Government | DG1: Local Authorities | DH1: Gross Fixed Capital Formation | DI1: Valuables | DJ1: Changes in Inventories | DK1: Exports of Goods - EU | DL1: Exports of Goods - Non EU | DM1: Exports of Services - EU | DN1: Exports of Services - Non EU | DO1: TOTAL OUTPUT
A2: 01 | B2: Products of agriculture, hunting and related services | C2: 2263.185547 | D2: 35.91355315 | E2: 0 | F2: 0 | G2: 0.02805996 | H2: 0.2000567003 | I2: 0 | J2: 3293.913481 | K2: 781.5379165 | L2: 66.5592399 | M2: 3006.122932 | N2: 950.3808603 | O2: 183.8716398 | P2: 772.4427786 | Q2: 646.7892704 | R2: 168.4221097 | S2: 79.21245614 | T2: 0.04705290282 | U2: 0.1736756455 | V2: 4.421238862 | W2: 2.932659865 | X2: 0.004617561211 | Y2: 0.3396871712 | Z2: 0.3600103746 | AA2: 1.69023478 | AB2: 0.8659167144 | AC2: 0.02602277684 | AD2: 0.03109263588 | AE2: 121.7938405 | AF2: 5.743328648 | AG2: 59.56352481 | AH2: 0.3270026043 | AI2: 0.009943484697 | AJ2: 0.01708529019 | AK2: 0.1851163529 | AL2: 0.0003997941316 | AM2: 6.380828617e-07 | AN2: 0.0009449786891 | AO2: 0.02816946342 | AP2: 0.001168177945 | AQ2: 0.01425765002 | AR2: 0.002466168522 | AS2: 1.522582614e-06 | AT2: 0.0004135867269 | AU2: 0 | AV2: 0 | AW2: 0.006418363753 | AX2: 0 | AY2: 7.834527719e-06 | AZ2: 0.4304804467 | BA2: 10.32622419 | BB2: 0 | BC2: 0 | BD2: 0 | BE2: 0 | BF2: 0 | BG2: 107.2134764 | BH2: 0.3439294146 | BI2: 262.4666486 | BJ2: 153.4891861 | BK2: 0 | BL2: 17.69135012 | BM2: 0 | BN2: 0 | BO2: 0 | BP2: 0.0005997207934 | BQ2: 205.9537858 | BR2: 407.911014 | BS2: 0.002743837871 | BT2: 6.921959414 | BU2: 1.077300123 | BV2: 12.65428456 | BW2: 0.1696360448 | BX2: 0 | BY2: 0 | BZ2: 0.01894495458 | CA2: 15.95651064 | CB2: 0 | CC2: 0 | CD2: 0.7369095616 | CE2: 1.090334107 | CF2: 0.02716784248 | CG2: 5.040621083 | CH2: 12.81973028 | CI2: 0.4520788318 | CJ2: 1.302451345 | CK2: 0 | CL2: 32.73830426 | CM2: 3.991760706 | CN2: 0 | CO2: 0.08202565058 | CP2: 0.08144778829 | CQ2: 2.068567422 | CR2: 0 | CS2: 35.66741483 | CT2: 25.79060899 | CU2: 32.01912905 | CV2: 2.121306039 | CW2: 1.382334314 | CX2: 2.63801942 | CY2: 4.568580492 | CZ2: 4.018696203 | DA2: 0.001958027459 | DB2: 4.250028816e-08 | DC2: 0 | DD2: 8668.963816 | DE2: 0 | DF2: 0 | DG2: 0 | DH2: 1428.891598 | DI2: 0 | DJ2: 94.90951765 | DK2: 1038.85259 | DL2: 394.8406525 | DM2: 56.49698379 | DN2: 56.49698379 | DO2: =SUM(C2:DN2) -> 25557.88586 | DQ2: 25555 | DR2: =DQ2/DO2 -> 0.9998870852 | DT2: =ABS(DO2-DQ2) -> 2.88586242
A3: 02 | B3: Products of forestry, logging and related services | C3: 1.947190773 | D3: 302.5231168 | E3: 0 | F3: 1.644992616 | G3: 0 | H3: 0 | I3: 0 | J3: 0 | K3: 0 | L3: 0 | M3: 0 | N3: 0 | O3: 0 | P3: 0 | Q3: 0.006443519466 | R3: 0 | S3: 0 | T3: 0.02410015518 | U3: 0 | V3: 0 | W3: 62.16197773 | X3: 0 | Y3: 0 | Z3: 0 | AA3: 0 | AB3: 0 | AC3: 0 | AD3: 0 | AE3: 0 | AF3: 0 | AG3: 0 | AH3: 0 | AI3: 0 | AJ3: 0 | AK3: 0 | AL3: 0 | AM3: 0 | AN3: 0 | AO3: 0 | AP3: 0 | AQ3: 0 | AR3: 0 | AS3: 0 | AT3: 0.0137627199 | AU3: 0 | AV3: 0.7472645255 | AW3: 0.4119918492 | AX3: 0 | AY3: 0 | AZ3: 0 | BA3: 0 | BB3: 0 | BC3: 0 | BD3: 0 | BE3: 0 | BF3: 0 | BG3: 78.83248035 | BH3: 0 | BI3: 16.21812907 | BJ3: 0 | BK3: 0 | BL3: 0.09450027883 | BM3: 0 | BN3: 0 | BO3: 0 | BP3: 0 | BQ3: 41.48662152 | BR3: 7.619489436 | BS3: 0.01536413217 | BT3: 0 | BU3: 0 | BV3: 7.124017051 | BW3: 0 | BX3: 0 | BY3: 0 | BZ3: 0 | CA3: 0.01381450319 | CB3: 0 | CC3: 0 | CD3: 0.01131223189 | CE3: 0.01413177564 | CF3: 0 | CG3: 0.02419936316 | CH3: 0.01468446814 | CI3: 0 | CJ3: 0.02111377196 | CK3: 0 | CL3: 5.456070291 | CM3: 0.01008432946 | CN3: 0 | CO3: 0.004526860131 | CP3: 0 | CQ3: 0.005413653788 | CR3: 0 | CS3: 0 | CT3: 0 | CU3: 0 | CV3: 0 | CW3: 0 | CX3: 0 | CY3: 38.40003223 | CZ3: 0 | DA3: 0 | DB3: 0 | DC3: 0 | DD3: 334.7855644 | DE3: 0 | DF3: 0 | DG3: 0 | DH3: 0 | DI3: 0 | DJ3: 11.43287095 | DK3: 123.2938553 | DL3: 33.7590318 | DM3: 0 | DN3: 0 | DO3: =SUM(C3:DN3) -> 1068.118148 | DQ3: 1068 | DR3: =DQ3/DO3 -> 0.9998893863 | DT3: 0.1181484482
A4: 03 | B4: Fish and other fishing products; aquaculture products; support services to fishing | C4: 0 | D4: 0 | E4: 75.67499047 | F4: 0 | G4: 0 | H4: 0 | I4: 0 | J4: 0.004825344987 | K4: 316.5616702 | L4: 0.7594285488 | M4: 0 | N4: 0.01012116434 | O4: 0 | P4: 0 | Q4: 0 | R4: 0 | S4: 6.703351133 | T4: 0 | U4: 0 | V4: 0 | W4: 0 | X4: 0 | Y4: 0 | Z4: 0 | AA4: 0 | AB4: 0 | AC4: 0 | AD4: 0 | AE4: 0 | AF4: 0 | AG4: 0 | AH4: 0 | AI4: 0 | AJ4: 0 | AK4: 0 | AL4: 0 | AM4: 0 | AN4: 0 | AO4: 0 | AP4: 0 | AQ4: 0 | AR4: 0 | AS4: 0 | AT4: 0 | AU4: 0 | AV4: 0 | AW4: 0 | AX4: 0 | AY4: 0 | AZ4: 0 | BA4: 0 | BB4: 0 | BC4: 0 | BD4: 0 | BE4: 0 | BF4: 0 | BG4: 0.1785951414 | BH4: 0 | BI4: 3.676123357 | BJ4: 0.8314516983 | BK4: 0 | BL4: 1.319607644 | BM4: 22.93678479 | BN4: 0 | BO4: 0.1263487432 | BP4: 0 | BQ4: 37.61027713 | BR4: 74.99670207 | BS4: 0 | BT4: 0 | BU4: 0 | BV4: 0.1837044994 | BW4: 0 | BX4: 0 | BY4: 0 | BZ4: 0 | CA4: 0.5596734782 | CB4: 0 | CC4: 0 | CD4: 0 | CE4: 0.1479293138 | CF4: 0 | CG4: 0.3799729714 | CH4: 0.7400407519 | CI4: 0 | CJ4: 0.1473438714 | CK4: 0 | CL4: 0.4910723807 | CM4: 0 | CN4: 0 | CO4: 0 | CP4: 0 | CQ4: 0.1511181818 | CR4: 0 | CS4: 0 | CT4: 0 | CU4: 0 | CV4: 0 | CW4: 0 | CX4: 0 | CY4: 0.1454401882 | CZ4: 0 | DA4: 0 | DB4: 0 | DC4: 0 | DD4: 455.9156528 | DE4: 0 | DF4: 0 | DG4: 0 | DH4: 0 | DI4: 0 | DJ4: -21.66908118 | DK4: 425.4973143 | DL4: 337.8662885 | DM4: 19.13351448 | DN4: 19.13351448 | DO4: 1780.213776 | DQ4: 1780 | DR4: 0.9998799153 | DT4: 0.2137764487
A5: 05 | B5: Coal and lignite | C5: 0 | D5: 0 | E5: 0 | F5: 31.74161514 | G5: 0 | H5: 0 | I5: 0 | J5: 0.1045614455 | K5: 0.07723593989 | L5: 0.001190531595 | M5: 0.02398959414 | N5: 0.03139602617 | O5: 0.02596785708 | P5: 3.524391303 | Q5: 0.0003571932727 | R5: 0.001697435151 | S5: 0.001215832304 | T5: 0.008751700009 | U5: 0.001423825189 | V5: 0.001000129293 | W5: 0.008119169503 | X5: 1.663854932 | Y5: 0.0008679429828 | Z5: 4.44743112 | AA5: 0.03629869941 | AB5: 0.01022363068 | AC5: 1.81403036 | AD5: 0.0002310495572 | AE5: 0.5597756252 | AF5: 0.05439062235 | AG5: 0.01369490102 | AH5: 0.007742193189 | AI5: 3.610535075 | AJ5: 0.1101030271 | AK5: 0.01213006964 | AL5: 0.9150979654 | AM5: 0.001899676368 | AN5: 0.89824934 | AO5: 0.00922388293 | AP5: 5.523415468e-06 | AQ5: 0.02777604364 | AR5: 0.004455371429 | AS5: 7.359308195e-05 | AT5: 0.002286250535 | AU5: 0.0007610682054 | AV5: 0.007067518172 | AW5: 0.03002632112 | AX5: 0.000298553399 | AY5: 0.0007584209841 | AZ5: 0.01525510505 | BA5: 446.3022529 | BB5: 0.889951554 | BC5: 0 | BD5: 0 | BE5: 0 | BF5: 0 | BG5: 5.357288525 | BH5: 0 | BI5: 0.2902773851 | BJ5: 0 | BK5: 0 | BL5: 3.63588144 | BM5: 0 | BN5: 0 | BO5: 0 | BP5: 0 | BQ5: 0 | BR5: 2.412949245 | BS5: 0.03917352988 | BT5: 0 | BU5: 0 | BV5: 0.8817565989 | BW5: 0.09117287394 | BX5: 0 | BY5: 0 | BZ5: 0 | CA5: 0.02730197476 | CB5: 0 | CC5: 0 | CD5: 1.160269929 | CE5: 1.444373695 | CF5: 0 | CG5: 3.854309412 | CH5: 0.1436493864 | CI5: 0.0002763694514 | CJ5: 0.8229832965 | CK5: 0 | CL5: 0.8406022432 | CM5: 1.81404721 | CN5: 0 | CO5: 0.1405173901 | CP5: 0 | CQ5: 1.629144185 | CR5: 0 | CS5: 0.9235262232 | CT5: 0 | CU5: 0 | CV5: 0 | CW5: 0 | CX5: 0 | CY5: 0 | CZ5: 0 | DA5: 0.07104481176 | DB5: 0 | DC5: 0 | DD5: 189.0862224 | DE5: 0 | DF5: 0 | DG5: 0 | DH5: 0 | DI5: 0 | DJ5: 19.46537199 | DK5: 57.47743633 | DL5: 17.4931328 | DM5: 0 | DN5: 0 | DO5: 806.1023707 | DQ5: 806 | DR5: 0.9998730053 | DT5: 0.1023707193
A6: 06&07 | B6: Extraction Of Crude Petroleum And Natural Gas & Mining Of Metal Ores | C6: 0 | D6: 0 | E6: 0 | F6: 0.2754371668 | G6: 1782.603224 | H6: 0 | I6: 52.54638563 | J6: 0 | K6: 0 | L6: 0 | M6: 0 | N6: 0 | O6: 0 | P6: 0 | Q6: 0 | R6: 0 | S6: 0 | T6: 0.004748552489 | U6: 0 | V6: 0 | W6: 0 | X6: 0.00212099058 | Y6: 0 | Z6: 486.5880492 | AA6: 4.49113754 | AB6: 0.7779611551 | AC6: 0 | AD6: 0.03773445916 | AE6: 0 | AF6: 0.09970574387 | AG6: 0.2772145077 | AH6: 0.1494503398 | AI6: 0 | AJ6: 0 | AK6: 0 | AL6: 0.1624869914 | AM6: 0 | AN6: 0 | AO6: 0 | AP6: 0.0124903269 | AQ6: 0.2774515909 | AR6: 0 | AS6: 0 | AT6: 0 | AU6: 0 | AV6: 0 | AW6: 0 | AX6: 0 | AY6: 0 | AZ6: 0.01441413993 | BA6: 3433.8659 | BB6: 5573.38042 | BC6: 0 | BD6: 0 | BE6: 0.105681834 | BF6: 0 | BG6: 99.96217061 | BH6: 0 | BI6: 1.191277257 | BJ6: 0 | BK6: 0 | BL6: 52.51437698 | BM6: 0.1556119299 | BN6: 0 | BO6: 0 | BP6: 0 | BQ6: 0 | BR6: 37.13080863 | BS6: 0.5577795793 | BT6: 0 | BU6: 0 | BV6: 24.053907 | BW6: 1.73369051 | BX6: 0 | BY6: 0 | BZ6: 0 | CA6: 2.123191211 | CB6: 0 | CC6: 0 | CD6: 19.08232691 | CE6: 21.13112848 | CF6: 0 | CG6: 66.703537 | CH6: 6.113352543 | CI6: 0 | CJ6: 12.46215824 | CK6: 0 | CL6: 31.70498536 | CM6: 28.12340329 | CN6: 0 | CO6: 2.196575384 | CP6: 0 | CQ6: 23.93089652 | CR6: 0 | CS6: 0 | CT6: 0 | CU6: 0 | CV6: 0 | CW6: 0 | CX6: 0 | CY6: 0 | CZ6: 0 | DA6: 1.028936419 | DB6: 0 | DC6: 0 | DD6: 0 | DE6: 0 | DF6: 0 | DG6: 0 | DH6: 733.4911985 | DI6: 0 | DJ6: 56.20744197 | DK6: 18638.03101 | DL6: 4640.699914 | DM6: 0 | DN6: 1.242313744 | DO6: 35837.24401 | DQ6: 35832 | DR6: 0.9998536716 | DT6: 5.24400713
A7: 08 | B7: Other mining and quarrying products | C7: 0 | D7: 0 | E7: 0 | F7: 0 | G7: 0.001616281605 | H7: 229.8632822 | I7: 0 | J7: 4.728888881e-05 | K7: 0.0008248305549 | L7: 0.003782378328 | M7: 0 | N7: 0.01397446655 | O7: 0 | P7: 3.413140351 | Q7: 0 | R7: 0 | S7: 0 | T7: 0.5356555474 | U7: 0.2116696906 | V7: 0.1718632994 | W7: 1.21425682 | X7: 2.741045068 | Y7: 0.1668235942 | Z7: 0.9980534352 | AA7: 26.7909128 | AB7: 9.879059456 | AC7: 0.1437968788 | AD7: 14.13423745 | AE7: 1.117339281 | AF7: 2.788491624 | AG7: 4.567375711 | AH7: 3.915127026 | AI7: 186.6153029 | AJ7: 75.14127386 | AK7: 0.06898555183 | AL7: 0.09165919617 | AM7: 2.483789949 | AN7: 2.816339127 | AO7: 13.49616371 | AP7: 1.894515567 | AQ7: 0.5224598136 | AR7: 0.3480641135 | AS7: 0.005948532099 | AT7: 0.2410589097 | AU7: 0.2591307751 | AV7: 0.0496906115 | AW7: 126.0820737 | AX7: 0 | AY7: 0.2442493956 | AZ7: 3.505865232 | BA7: 0 | BB7: 0 | BC7: 0 | BD7: 1.203675497 | BE7: 0 | BF7: 0 | BG7: 604.8012115 | BH7: 0.05063612666 | BI7: 21.97874 | BJ7: 24.88878885 | BK7: 2.535861185 | BL7: 13.52120849 | BM7: 0 | BN7: 0 | BO7: 6.450145678 | BP7: 2.031999575e-12 | BQ7: 1.358525985 | BR7: 9.465058359 | BS7: 0.1576740183 | BT7: 1.199572381 | BU7: 0.0002410149503 | BV7: 3.330017696 | BW7: 0.1447478982 | BX7: 0 | BY7: 0 | BZ7: 0.002826365471 | CA7: 0.7353776955 | CB7: 0 | CC7: 0 | CD7: 0.4463991266 | CE7: 1.500395474 | CF7: 0.01060156745 | CG7: 2.269244413 | CH7: 2.254445453 | CI7: 0.07508272284 | CJ7: 0.8411867548 | CK7: 0 | CL7: 1.541990718 | CM7: 1.482468456 | CN7: 3.805830401 | CO7: 1.347177843 | CP7: 1.144201348 | CQ7: 1.162070641 | CR7: 1.338735857 | CS7: 0.01396124336 | CT7: 0 | CU7: 0 | CV7: 1.282988047 | CW7: 0.230648904 | CX7: 1.297278968 | CY7: 0.007378039937 | CZ7: 2.390693823 | DA7: 0 | DB7: 4.666134118e-08 | DC7: 0 | DD7: 83.89944724 | DE7: 0 | DF7: 0 | DG7: 0 | DH7: 0 | DI7: 0 | DJ7: 81.26613147 | DK7: 1888.404413 | DL7: 2274.431834 | DM7: 0 | DN7: 0 | DO7: 5760.80786 | DQ7: 5760 | DR7: 0.9998597662 | DT7: 0.8078602278
A8: 09 | B8: Mining support services | C8: 0 | D8: 0 | E8: 0 | F8: 0.5276465836 | G8: 3414.878652 | H8: 0 | I8: 323.5492281 | J8: 0 | K8: 0 | L8: 0 | M8: 0 | N8: 0 | O8: 0 | P8: 0 | Q8: 0 | R8: 0 | S8: 0 | T8: 0 | U8: 0 | V8: 0 | W8: 0 | X8: 0 | Y8: 0 | Z8: 0 | AA8: 0 | AB8: 0 | AC8: 0 | AD8: 0 | AE8: 0 | AF8: 0 | AG8: 0 | AH8: 0 | AI8: 0 | AJ8: 0 | AK8: 0 | AL8: 0.3112713759 | AM8: 0 | AN8: 0 | AO8: 0 | AP8: 0 | AQ8: 0 | AR8: 0 | AS8: 0 | AT8: 0 | AU8: 0 | AV8: 0 | AW8: 0 | AX8: 0 | AY8: 0 | AZ8: 0 | BA8: 0 | BB8: 0 | BC8: 0 | BD8: 0 | BE8: 0.2024514675 | BF8: 0 | BG8: 9.669367319 | BH8: 0 | BI8: 9.855310966 | BJ8: 0 | BK8: 0 | BL8: 14.97530084 | BM8: 0.2981010301 | BN8: 0 | BO8: 0 | BP8: 0 | BQ8: 0 | BR8: 12.47591627 | BS8: 0 | BT8: 0 | BU8: 0 | BV8: 3.024143293 | BW8: 0 | BX8: 0 | BY8: 0 | BZ8: 0 | CA8: 0.150219988 | CB8: 0 | CC8: 0 | CD8: 0 | CE8: 0 | CF8: 0 | CG8: 39.17202342 | CH8: 6.587551756 | CI8: 0 | CJ8: 1.035020463 | CK8: 0 | CL8: 1.650223989 | CM8: 0 | CN8: 0 | CO8: 0 | CP8: 0 | CQ8: 0 | CR8: 0 | CS8: 0 | CT8: 0 | CU8: 0 | CV8: 0 | CW8: 0 | CX8: 0 | CY8: 0 | CZ8: 0 | DA8: 0 | DB8: 0 | DC8: 0 | DD8: 0 | DE8: 0 | DF8: 0 | DG8: 0 | DH8: 102.9009245 | DI8: 0 | DJ8: -5.451770129 | DK8: 0 | DL8: 0 | DM8: 186.8903178 | DN8: 185.9464273 | DO8: 4308.648328 | DQ8: 4308 | DR8: 0.9998495287 | DT8: 0.6483281302
A9: 10.1 | B9: Preserved meat and meat products | C9: 5.877323207 | D9: 0.9011503084 | E9: 1.024088822 | F9: 0.0004930320901 | G9: 3.216339588 | H9: 2.063474278 | I9: 0.09405794661 | J9: 3775.704029 | K9: 13.03701237 | L9: 0.7334347149 | M9: 5.247189803 | N9: 30.48844699 | O9: 159.6281378 | P9: 372.2133998 | Q9: 214.7953185 | R9: 12.10583372 | S9: 3.308426047 | T9: 0.2739144995 | U9: 1.049714667 | V9: 76.99228408 | W9: 0.6150016365 | X9: 2.074496922 | Y9: 0.3764273218 | Z9: 8.38844502 | AA9: 1.134374412 | AB9: 1.027394485 | AC9: 2.171264636 | AD9: 1.312489641 | AE9: 61.82800978 | AF9: 2.703682368 | AG9: 7.074224699 | AH9: 3.431331757 | AI9: 1.11103578 | AJ9: 4.27045687 | AK9: 37.4664574 | AL9: 5.303836341 | AM9: 4.238059861 | AN9: 0.4729713899 | AO9: 57.92090067 | AP9: 2.115310482 | AQ9: 6.873435452 | AR9: 5.268646783 | AS9: 0.01852166256 | AT9: 4.138775439 | AU9: 0.05711149244 | AV9: 1.213442598 | AW9: 1.175141618 | AX9: 0.06391551396 | AY9: 1.13896863 | AZ9: 5.126152536 | BA9: 8.711387268 | BB9: 3.082924004 | BC9: 2.041285477 | BD9: 0 | BE9: 5.709801039 | BF9: 0 | BG9: 11.03445044 | BH9: 5.907836671 | BI9: 103.1760404 | BJ9: 313.1576627 | BK9: 5.260355071 | BL9: 14.67815045 | BM9: 2.140559976 | BN9: 3.079334356 | BO9: 7.395600722 | BP9: 11.77644618 | BQ9: 242.5593607 | BR9: 477.8272054 | BS9: 2.014473584 | BT9: 6.951614101 | BU9: 14.02779592 | BV9: 7.095666961 | BW9: 0.767308919 | BX9: 14.17924871 | BY9: 5.288809505 | BZ9: 0.1354944037 | CA9: 2.75760892 | CB9: 0 | CC9: 0 | CD9: 4.302685572 | CE9: 4.785452857 | CF9: 1.691226738 | CG9: 7.863841099 | CH9: 9.823677949 | CI9: 3.875933042 | CJ9: 2.843784854 | CK9: 1.04419259 | CL9: 6.53196956 | CM9: 11.16422068 | CN9: 1.053163599 | CO9: 1.921832589 | CP9: 6.078248703 | CQ9: 82.0377712 | CR9: 75.25214365 | CS9: 129.9497629 | CT9: 235.1829294 | CU9: 123.1770775 | CV9: 3.211482111 | CW9: 4.449122052 | CX9: 1.367266441 | CY9: 36.23565287 | CZ9: 2.049829506 | DA9: 1.617788833 | DB9: 4.180774391 | DC9: 0 | DD9: 7861.326973 | DE9: 0 | DF9: 0 | DG9: 0 | DH9: 0 | DI9: 0 | DJ9: 3.210996754 | DK9: 1085.969027 | DL9: 383.7924198 | DM9: 76.719017 | DN9: 52.25788115 | DO9: 16404.58892 | DQ9: 16403 | DR9: 0.9999031417 | DT9: 1.588920434
A10: 10.2-3 | B10: Processed and preserved fish, crustaceans, molluscs, fruit and vegetables | C10: 17.84908641 | D10: 0 | E10: 0.983106357 | F10: 0.001104370637 | G10: 7.239437505 | H10: 1.0078834 | I10: 5.136683619 | J10: 56.61803871 | K10: 638.8559023 | L10: 5.467005977 | M10: 162.7968935 | N10: 86.13949675 | O10: 199.6860004 | P10: 278.9182318 | Q10: 97.43091768 | R10: 78.09128783 | S10: 97.78644914 | T10: 2.006054837 | U10: 1.432159974 | V10: 0.3469879388 | W10: 2.957501998 | X10: 4.029784042 | Y10: 3.937226083 | Z10: 8.160207904 | AA10: 2.219271296 | AB10: 2.136473102 | AC10: 2.094087566 | AD10: 1.32405786 | AE10: 46.0299334 | AF10: 3.633513683 | AG10: 2.741471972 | AH10: 7.119763298 | AI10: 2.062898364 | AJ10: 5.092857149 | AK10: 30.89396862 | AL10: 4.080907218 | AM10: 1.294355352 | AN10: 0.1776058439 | AO10: 7.581088361 | AP10: 3.131052507 | AQ10: 11.27846169 | AR10: 12.10998482 | AS10: 0.9109922076 | AT10: 3.830824685 | AU10: 1.085701652 | AV10: 2.109803034 | AW10: 2.063990985 | AX10: 0.06800186556 | AY10: 0.1584246826 | AZ10: 2.547385377 | BA10: 9.510226711 | BB10: 2.959550112 | BC10: 0 | BD10: 0.9587864181 | BE10: 7.30858634 | BF10: 0 | BG10: 26.96364242 | BH10: 21.8953373 | BI10: 168.5117954 | BJ10: 1031.452988 | BK10: 13.12959369 | BL10: 31.11997646 | BM10: 8.21002936 | BN10: 19.40749267 | BO10: 33.76092602 | BP10: 57.54133987 | BQ10: 442.5628365 | BR10: 1087.723899 | BS10: 5.657535379 | BT10: 36.21189136 | BU10: 46.68611155 | BV10: 33.37707714 | BW10: 3.518654755 | BX10: 63.87083322 | BY10: 24.3699091 | BZ10: 0.5246780739 | CA10: 8.278845104 | CB10: 0 | CC10: 0 | CD10: 14.82807591 | CE10: 3.469674036 | CF10: 13.16890196 | CG10: 22.00658718 | CH10: 13.61973059 | CI10: 12.69173959 | CJ10: 12.86800897 | CK10: 3.999876803 | CL10: 8.899124475 | CM10: 34.04079737 | CN10: 12.12853137 | CO10: 5.513661973 | CP10: 15.28635355 | CQ10: 35.90930251 | CR10: 42.51854572 | CS10: 171.9405643 | CT10: 128.8999999 | CU10: 186.0061902 | CV10: 6.148851751 | CW10: 13.20216568 | CX10: 31.13208724 | CY10: 19.04462986 | CZ10: 13.58410764 | DA10: 2.702600854 | DB10: 12.04172093 | DC10: 0 | DD10: 1534.052597 | DE10: 0 | DF10: 0 | DG10: 0 | DH10: 0 | DI10: 0 | DJ10: 73.97994207 | DK10: 713.7824567 | DL10: 221.6142168 | DM10: 34.15598356 | DN10: 23.4822387 | DO10: 8536.886133 | DQ10: 8536 | DR10: 0.9998961995 | DT10: 0.8861327135
A11: 10.4 | B11: Vegetable and animal oils and fats | C11: 1.183634337 | D11: 0 | E11: 0 | F11: 9.938983736e-05 | G11: 0.6460803231 | H11: 0.002913010489 | I11: 0.01896104575 | J11: 30.03145358 | K11: 32.83620649 | L11: 37.30880583 | M11: 1.895909152 | N11: 2.74658879 | O11: 43.83046601 | P11: 9.871678237 | Q11: 90.94248253 | R11: 0.06826170289 | S11: 0.6563350559 | T11: 0.01732866331 | U11: 0.01664944346 | V11: 0.2928277688 | W11: 0.007231155099 | X11: 0.1470956257 | Y11: 0.02326812077 | Z11: 6.624234723 | AA11: 1.595997703 | AB11: 2.670383694 | AC11: 0.09503819632 | AD11: 17.74946343 | AE11: 14.38487315 | AF11: 1.066389875 | AG11: 0.9368202627 | AH11: 0.3674956074 | AI11: 0.03942872768 | AJ11: 0.01606160315 | AK11: 0.01876495312 | AL11: 0.001058602122 | AM11: 0.002684023209 | AN11: 0.002005305851 | AO11: 0.0845330918 | AP11: 0.004955951403 | AQ11: 0.09139293065 | AR11: 0.6277956231 | AS11: 1.642897554e-05 | AT11: 0.001002666223 | AU11: 0.0005243892609 | AV11: 0 | AW11: 0.02306027254 | AX11: 0 | AY11: 9.079034486e-05 | AZ11: 0.0110923588 | BA11: 0.6964435811 | BB11: 0 | BC11: 0 | BD11: 0 | BE11: 3.813465121e-05 | BF11: 0 | BG11: 3.321766172 | BH11: 1.914728085 | BI11: 13.67588255 | BJ11: 40.22106996 | BK11: 0 | BL11: 0.6360318862 | BM11: 1.292361008 | BN11: 0 | BO11: 1.283025074 | BP11: 13.58787545 | BQ11: 9.472775229 | BR11: 28.12384866 | BS11: 0.5774829585 | BT11: 1.201495452 | BU11: 0.6540315051 | BV11: 1.233015896 | BW11: 0.0683865972 | BX11: 1.319252456 | BY11: 1.279470735 | BZ11: 0.03648764468 | CA11: 0.4527943386 | CB11: 0 | CC11: 0 | CD11: 1.262058 | CE11: 1.230432294 | CF11: 5.153918004 | CG11: 0.7922984941 | CH11: 1.568024197 | CI11: 0.6689306094 | CJ11: 2.89719425 | CK11: 0 | CL11: 0.8127623356 | CM11: 5.142118069 | CN11: 0.6365987749 | CO11: 0.606686012 | CP11: 2.327178387 | CQ11: 3.911065205 | CR11: 0 | CS11: 11.27054044 | CT11: 7.840784601 | CU11: 141.925717 | CV11: 0.6438137273 | CW11: 0.3422016309 | CX11: 0.7732482579 | CY11: 0.002202985489 | CZ11: 1.239669133 | DA11: 0.02127860092 | DB11: 0.000568339699 | DC11: 0 | DD11: 51.66992191 | DE11: 0 | DF11: 0 | DG11: 0 | DH11: 0 | DI11: 0 | DJ11: -3.236507842 | DK11: 211.1631683 | DL11: 43.04703707 | DM11: 2.017266336 | DN11: 1.344844224 | DO11: 917.0827233 | DQ11: 917 | DR11: 0.9999097973 | DT11: 0.08272333307
A12: 10.5 | B12: Dairy products | C12: 7.942155412 | D12: 0 | E12: 0 | F12: 0.00100035481 | G12: 6.550393892 | H12: 1.049718529 | I12: 5.396555202 | J12: 33.81990963 | K12: 57.92113643 | L12: 17.97701391 | M12: 829.4182233 | N12: 23.65133616 | O12: 285.8409524 | P12: 341.3996192 | Q12: 13.38313755 | R12: 0.4490515183 | S12: 19.01392965 | T12: 2.087068632 | U12: 1.38896104 | V12: 0.08768518995 | W12: 3.082334601 | X12: 3.166810059 | Y12: 2.890138149 | Z12: 9.720681526 | AA12: 0.9486365959 | AB12: 2.075664247 | AC12: 2.139146546 | AD12: 1.306637172 | AE12: 53.20457077 | AF12: 1.562264354 | AG12: 0.7438143517 | AH12: 4.376382574 | AI12: 2.152450603 | AJ12: 2.224608013 | AK12: 30.55875001 | AL12: 3.226608943 | AM12: 1.098190339 | AN12: 0.1161948265 | AO12: 3.247253656 | AP12: 2.154925192 | AQ12: 3.79067425 | AR12: 5.420227054 | AS12: 0.9575748931 | AT12: 2.028064799 | AU12: 1.092557614 | AV12: 3.195674115 | AW12: 1.308316617 | AX12: 0.04206223441 | AY12: 0.1418914131 | AZ12: 1.271629595 | BA12: 7.041809166 | BB12: 2.08506905 | BC12: 0 | BD12: 0 | BE12: 5.792742789 | BF12: 0 | BG12: 12.33070512 | BH12: 8.577118004 | BI12: 138.9321153 | BJ12: 571.7460314 | BK12: 8.538546032 | BL12: 10.37652975 | BM12: 3.25231457 | BN12: 9.231473089 | BO12: 14.99953447 | BP12: 31.4906641 | BQ12: 132.3638869 | BR12: 299.4585455 | BS12: 2.043157465 | BT12: 13.0927339 | BU12: 26.31315545 | BV12: 17.36446013 | BW12: 0.9212731137 | BX12: 11.06518679 | BY12: 18.24135197 | BZ12: 23.61112843 | CA12: 4.203228514 | CB12: 0 | CC12: 1.102083088 | CD12: 6.39942438 | CE12: 5.097899377 | CF12: 6.913495975 | CG12: 10.83857549 | CH12: 6.897360544 | CI12: 6.751555279 | CJ12: 4.461028593 | CK12: 1.059325651 | CL12: 5.577005074 | CM12: 18.95955044 | CN12: 3.204609526 | CO12: 3.910138244 | CP12: 9.083879353 | CQ12: 6.316832561 | CR12: 0 | CS12: 89.87989546 | CT12: 53.73369179 | CU12: 107.1400801 | CV12: 3.258024822 | CW12: 7.909089002 | CX12: 3.516019557 | CY12: 6.973050546 | CZ12: 10.2634857 | DA12: 1.827538219 | DB12: 0.002320694346 | DC12: 0 | DD12: 3468.108305 | DE12: 0 | DF12: 0 | DG12: 0 | DH12: 0 | DI12: 0 | DJ12: -8.686753151 | DK12: 882.1466906 | DL12: 228.3432805 | DM12: 25.9436249 | DN12: 19.17572275 | DO12: 8165.802174 | DQ12: 8165 | DR12: 0.9999017642 | DT12: 0.8021741882
A13: 10.6 | B13: Grain mill products, starches and starch products | C13: 2.83187694 | D13: 0 | E13: 4.939252631 | F13: 0 | G13: 0.02716686407 | H13: 0.1072876778 | I13: 0 | J13: 310.4703387 | K13: 84.78319645 | L13: 5.50181561 | M13: 24.58747934 | N13: 515.2648965 | O13: 739.3043894 | P13: 135.8877114 | Q13: 811.3675946 | R13: 318.6805084 | S13: 1.526925871 | T13: 0.2671219568 | U13: 0.2081046937 | V13: 2.492189036 | W13: 0.1706343304 | X13: 57.2709421 | Y13: 0.3281558737 | Z13: 0.04647358922 | AA13: 2.215068299 | AB13: 0.6821717337 | AC13: 0 | AD13: 0 | AE13: 19.40543847 | AF13: 2.927622992 | AG13: 8.135997414 | AH13: 0.3518335314 | AI13: 0 | AJ13: 0 | AK13: 0.1791916028 | AL13: 0 | AM13: 0 | AN13: 0.0003648604178 | AO13: 0 | AP13: 0 | AQ13: 0.2082003812 | AR13: 0 | AS13: 0 | AT13: 0 | AU13: 0 | AV13: 0.03859178652 | AW13: 0.7532184568 | AX13: 0 | AY13: 0 | AZ13: 0.2199700158 | BA13: 0 | BB13: 0 | BC13: 0 | BD13: 0 | BE13: 0 | BF13: 0 | BG13: 3.246713976 | BH13: 0.2298171634 | BI13: 141.7324634 | BJ13: 99.19617151 | BK13: 0 | BL13: 5.943818325 | BM13: 0.01466219873 | BN13: 0 | BO13: 0 | BP13: 1.562223056e-12 | BQ13: 37.30513587 | BR13: 109.7905374 | BS13: 0 | BT13: 1.923527132 | BU13: 0.01121099527 | BV13: 2.885186765 | BW13: 0.2231051705 | BX13: 0 | BY13: 0 | BZ13: 0.01777235328 | CA13: 0.9649523849 | CB13: 0 | CC13: 0 | CD13: 0.2256573948 | CE13: 0.2466966869 | CF13: 0.02235763485 | CG13: 1.845550496 | CH13: 4.55428229 | CI13: 0.4931222947 | CJ13: 0.4629589665 | CK13: 0 | CL13: 3.002142843 | CM13: 1.148255924 | CN13: 0.0003825174705 | CO13: 0.1237937946 | CP13: 0.07464936457 | CQ13: 0.2986491266 | CR13: 4.286058278 | CS13: 47.21082074 | CT13: 23.00619422 | CU13: 11.62500757 | CV13: 4.124735376 | CW13: 0.7991978607 | CX13: 2.348266135 | CY13: 2.850991894 | CZ13: 0 | DA13: 0.01791564446 | DB13: 3.587373931e-08 | DC13: 0 | DD13: 1327.78837 | DE13: 0 | DF13: 0 | DG13: 0 | DH13: 0 | DI13: 0 | DJ13: 27.87635495 | DK13: 509.3888698 | DL13: 178.1469272 | DM13: 8.58020246 | DN13: 6.435151845 | DO13: 5621.650369 | DQ13: 5621 | DR13: 0.9998843099 | DT13: 0.6503694751
A14: 10.7 | B14: Bakery and farinaceous products | C14: 8.070296232 | D14: 0 | E14: 0 | F14: 0.001505918217 | G14: 10.12097314 | H14: 1.890601793 | I14: 3.421929812 | J14: 6.857968938 | K14: 2.201538113 | L14: 0.1021210645 | M14: 4.619527108 | N14: 5.414849331 | O14: 61.24035957 | P14: 4.717069573 | Q14: 0.1601804003 | R14: 0.9852024135 | S14: 2.634456921 | T14: 0.9638911792 | U14: 3.037846423 | V14: 0.02845074365 | W14: 0.9508682592 | X14: 1.889029396 | Y14: 5.397273764 | Z14: 6.801151954 | AA14: 0.1569862245 | AB14: 1.121544128 | AC14: 0.04333996719 | AD14: 1.187719144 | AE14: 2.890786698 | AF14: 0.4524731419 | AG14: 4.674496604 | AH14: 3.957572529 | AI14: 2.927254103 | AJ14: 0.1835890008 | AK14: 37.49677658 | AL14: 2.924368118 | AM14: 0.2306230046 | AN14: 0.1761117518 | AO14: 3.826587847 | AP14: 1.973093936 | AQ14: 3.553971867 | AR14: 9.618592239 | AS14: 0.02037033481 | AT14: 2.735967306 | AU14: 0.05196311737 | AV14: 2.000587694 | AW14: 1.788952798 | AX14: 0.04657911168 | AY14: 0.1626827855 | AZ14: 1.095459681 | BA14: 7.96240234 | BB14: 2.824946802 | BC14: 2.805707928 | BD14: 0.9151798494 | BE14: 4.360440324 | BF14: 0 | BG14: 15.12007077 | BH14: 8.452816589 | BI14: 531.3937505 | BJ14: 1064.972645 | BK14: 7.712274822 | BL14: 6.284361154 | BM14: 5.875008983 | BN14: 9.272302482 | BO14: 6.798526842 | BP14: 29.41870767 | BQ14: 271.7009549 | BR14: 642.2756103 | BS14: 1.840415643 | BT14: 12.73914034 | BU14: 14.90045418 | BV14: 17.67428149 | BW14: 0.696218756 | BX14: 34.98044798 | BY14: 21.32173649 | BZ14: 8.211715374 | CA14: 6.804176289 | CB14: 0 | CC14: 0 | CD14: 3.835924672 | CE14: 8.027369711 | CF14: 11.9787629 | CG14: 7.65794132 | CH14: 8.567913747 | CI14: 6.67083931 | CJ14: 4.679597464 | CK14: 0.9568151902 | CL14: 6.71429603 | CM14: 22.25997265 | CN14: 1.930071022 | CO14: 3.957782576 | CP14: 16.06556374 | CQ14: 15.62814989 | CR14: 0 | CS14: 90.18556739 | CT14: 72.51682913 | CU14: 180.1183335 | CV14: 5.869195801 | CW14: 9.463280022 | CX14: 6.490665044 | CY14: 7.203856535 | CZ14: 3.695995922 | DA14: 2.949411999 | DB14: 0.001809442197 | DC14: 0 | DD14: 5283.981243 | DE14: 0 | DF14: 0 | DG14: 0 | DH14: 0 | DI14: 0 | DJ14: -20.59611751 | DK14: 467.139747 | DL14: 196.5512521 | DM14: 37.69668126 | DN14: 26.4895598 | DO14: 9442.808146 | DQ14: 9442 | DR14: 0.9999144167 | DT14: 0.8081463605
A15: 10.8 | B15: Other food products | C15: 18.161864 | D15: 0 | E15: 4.751585421 | F15: 0.004956421184 | G15: 32.12182707 | H15: 0.07193047746 | I15: 2.929601416 | J15: 376.9612355 | K15: 378.9827187 | L15: 4.780328241 | M15: 140.0847896 | N15: 358.4810449 | O15: 701.6925696 | P15: 1891.14672 | Q15: 138.7153059 | R15: 148.5576361 | S15: 772.1119612 | T15: 3.618087628 | U15: 2.410791572 | V15: 0.6921696583 | W15: 2.591915474 | X15: 5.2000142 | Y15: 6.213705334 | Z15: 4.810018388 | AA15: 3.326460051 | AB15: 0.6642271894 | AC15: 0.1829408542 | AD15: 1.550563308 | AE15: 301.3608327 | AF15: 12.98724843 | AG15: 10.02333607 | AH15: 4.650211012 | AI15: 67.71952294 | AJ15: 24.72908154 | AK15: 18.1583616 | AL15: 20.82841419 | AM15: 0.5569960386 | AN15: 0.6932296503 | AO15: 9.691020029 | AP15: 4.988745631 | AQ15: 8.244079927 | AR15: 14.71488223 | AS15: 0.0231758326 | AT15: 0.08626632709 | AU15: 0.04542403767 | AV15: 2.468346616 | AW15: 1.771054259 | AX15: 0.04487353917 | AY15: 0.1427619532 | AZ15: 1.917396525 | BA15: 17.84228432 | BB15: 28.6084106 | BC15: 1.183899056 | BD15: 1.158510352 | BE15: 4.4171614 | BF15: 0 | BG15: 181.6992529 | BH15: 36.93996662 | BI15: 189.0154938 | BJ15: 1337.868448 | BK15: 19.52567077 | BL15: 30.66938278 | BM15: 31.00076604 | BN15: 22.23015212 | BO15: 2.709864447 | BP15: 73.25632766 | BQ15: 273.677294 | BR15: 823.5004922 | BS15: 4.565215712 | BT15: 56.31711505 | BU15: 66.44233249 | BV15: 44.33091312 | BW15: 4.970831701 | BX15: 30.36421332 | BY15: 39.26216545 | BZ15: 0.4541878425 | CA15: 9.481108196 | CB15: 0 | CC15: 0 | CD15: 14.82743933 | CE15: 15.06163227 | CF15: 34.10289266 | CG15: 35.11798878 | CH15: 19.81571376 | CI15: 15.95193917 | CJ15: 25.84854334 | CK15: 9.666175062 | CL15: 14.40073663 | CM15: 82.829828 | CN15: 13.43477296 | CO15: 10.05722737 | CP15: 32.76950041 | CQ15: 3.00852558 | CR15: 0 | CS15: 191.875873 | CT15: 233.7162978 | CU15: 471.6515411 | CV15: 17.37038524 | CW15: 16.12191103 | CX15: 47.22054487 | CY15: 28.71827939 | CZ15: 30.52661314 | DA15: 3.391849806 | DB15: 6.07023353 | DC15: 0 | DD15: 2542.442889 | DE15: 0 | DF15: 0 | DG15: 0 | DH15: 0 | DI15: 0 | DJ15: -27.31380577 | DK15: 2754.771055 | DL15: 1198.308673 | DM15: 47.71957719 | DN15: 32.24295756 | DO15: 16759.88148 | DQ15: 16758 | DR15: 0.9998877391 | DT15: 1.881479713
A16: 10.9 | B16: Prepared animal feeds | C16: 2581.806194 | D16: 0 | E16: 104.0025399 | F16: 0 | G16: 0 | H16: 0 | I16: 0 | J16: 108.9194151 | K16: 0.8227162568 | L16: 0.1475729951 | M16: 0.3375200253 | N16: 0.8734557268 | O16: 3.74354663 | P16: 0.4852893988 | Q16: 26.83264616 | R16: 0.1929355736 | S16: 0.06449106934 | T16: 0 | U16: 0 | V16: 0.1617901702 | W16: 0 | X16: 0 | Y16: 0 | Z16: 0 | AA16: 0.06530852556 | AB16: 0.01402802589 | AC16: 0 | AD16: 0 | AE16: 0 | AF16: 0.07294117459 | AG16: 0 | AH16: 0.01019417725 | AI16: 0 | AJ16: 0 | AK16: 0 | AL16: 0 | AM16: 0 | AN16: 0 | AO16: 0 | AP16: 0 | AQ16: 0 | AR16: 0 | AS16: 0 | AT16: 0 | AU16: 0 | AV16: 0 | AW16: 0 | AX16: 0 | AY16: 0 | AZ16: 0.0726481507 | BA16: 0 | BB16: 0 | BC16: 0 | BD16: 0 | BE16: 0 | BF16: 0 | BG16: 0.5585557343 | BH16: 0.006808572449 | BI16: 61.42495804 | BJ16: 2.659576765 | BK16: 0 | BL16: 0.2409571951 | BM16: 0.3087321144 | BN16: 0 | BO16: 0 | BP16: 0 | BQ16: 8.448742094 | BR16: 20.34304693 | BS16: 0 | BT16: 18.26607121 | BU16: 0 | BV16: 11.56704966 | BW16: 0.0007363522781 | BX16: 0 | BY16: 0 | BZ16: 7.011737751e-05 | CA16: 14.95003819 | CB16: 0 | CC16: 0 | CD16: 4.935416839e-06 | CE16: 0.0003446696474 | CF16: 0.02694668554 | CG16: 0.07106512997 | CH16: 1.358637833 | CI16: 5.799747977 | CJ16: 0.03597634499 | CK16: 0 | CL16: 29.72205141 | CM16: 0.02138137252 | CN16: 0.008282908629 | CO16: 0.1776685281 | CP16: 7.303730975 | CQ16: 0.02172736922 | CR16: 0 | CS16: 3.042931501 | CT16: 0 | CU16: 63.64863828 | CV16: 54.26795902 | CW16: 4.208434749 | CX16: 0.08259722515 | CY16: 64.23250008 | CZ16: 0 | DA16: 0 | DB16: 0 | DC16: 0 | DD16: 1373.188798 | DE16: 0 | DF16: 0 | DG16: 0 | DH16: 0 | DI16: 0 | DJ16: 52.0366814 | DK16: 537.2698953 | DL16: 155.8810141 | DM16: 2.402494493 | DN16: 2.402494493 | DO16: 5324.612581 | DQ16: 5324 | DR16: 0.9998849529 | DT16: 0.6125814149
A17: 11.01-6 and 12 | B17: Alcoholic beverages & Tobacco products | C17: 1.110100196 | D17: 0 | E17: 0 | F17: 0 | G17: 0 | H17: 0.001752372407 | I17: 0 | J17: 0.2422300916 | K17: 0.6454459528 | L17: 0.09300620957 | M17: 0.2395883828 | N17: 8.30672402 | O17: 0.2097253391 | P17: 6.048553943 | Q17: 14.36146335 | R17: 0.006074553249 | S17: 0.001990772151 | T17: 0 | U17: 0 | V17: 0.0397783567 | W17: 0 | X17: 0 | Y17: 0.02208013125 | Z17: 0 | AA17: 0.0397086252 | AB17: 0.01185374102 | AC17: 0 | AD17: 0 | AE17: 0.8961830878 | AF17: 0.06757200186 | AG17: 0.008321309467 | AH17: 0.006049951561 | AI17: 0 | AJ17: 0 | AK17: 0 | AL17: 0 | AM17: 0 | AN17: 0 | AO17: 0 | AP17: 0 | AQ17: 0 | AR17: 0.0005980673261 | AS17: 0.0002804024136 | AT17: 0 | AU17: 0 | AV17: 0 | AW17: 0 | AX17: 0.0006669519416 | AY17: 0 | AZ17: 0.003643263703 | BA17: 0.01335788131 | BB17: 0 | BC17: 0 | BD17: 0 | BE17: 0 | BF17: 0 | BG17: 6.538237751 | BH17: 0.2659400979 | BI17: 1.145125404 | BJ17: 144.7259583 | BK17: 1.1934596 | BL17: 0.05703056563 | BM17: 6.060311342 | BN17: 8.009559215 | BO17: 2.42685999 | BP17: 8.49968782 | BQ17: 1061.115271 | BR17: 2474.02156 | BS17: 0 | BT17: 10.15230336 | BU17: 7.318984232 | BV17: 5.053973046 | BW17: 0.4910319248 | BX17: 0 | BY17: 3.599341475 | BZ17: 2.432060181 | CA17: 1.396258197 | CB17: 0 | CC17: 0 | CD17: 4.607994595 | CE17: 4.318063463 | CF17: 10.35304246 | CG17: 2.140173744 | CH17: 2.542981136 | CI17: 3.617876617 | CJ17: 3.299166197 | CK17: 0 | CL17: 1.503939204 | CM17: 6.329885969 | CN17: 3.583647214 | CO17: 1.080191044 | CP17: 5.783172629 | CQ17: 11.81301536 | CR17: 0 | CS17: 0.2413174114 | CT17: 0 | CU17: 36.16391432 | CV17: 10.90904904 | CW17: 2.741499008 | CX17: 7.289806297 | CY17: 10.07095673 | CZ17: 71.18418168 | DA17: 0.008251215518 | DB17: 2.370373925 | DC17: 0 | DD17: 2699.395385 | DE17: 0 | DF17: 0 | DG17: 0 | DH17: 0 | DI17: 0 | DJ17: 461.3864918 | DK17: 1254.827432 | DL17: 2616.587985 | DM17: 97.11969972 | DN17: 68.10991928 | DO17: 11176.25911 | DQ17: 11175 | DR17: 0.9998873402 | DT17: 1.259114816
A18: 11.07 | B18: Soft drinks | C18: 16.74121504 | D18: 0 | E18: 0 | F18: 0 | G18: 0.02294320405 | H18: 0 | I18: 0 | J18: 0 | K18: 0.2015183239 | L18: 0 | M18: 0 | N18: 0 | O18: 0 | P18: 0.1997851755 | Q18: 0 | R18: 0.04410731363 | S18: 16.40613646 | T18: 0.000467166798 | U18: 0.1336196154 | V18: 0 | W18: 6.435277021e-06 | X18: 0 | Y18: 0.3047722333 | Z18: 0 | AA18: 0 | AB18: 0 | AC18: 0 | AD18: 0 | AE18: 0.1792174354 | AF18: 0.09319471125 | AG18: 0 | AH18: 0 | AI18: 0 | AJ18: 0 | AK18: 0.1513325019 | AL18: 0 | AM18: 0 | AN18: 0 | AO18: 0 | AP18: 0 | AQ18: 0.01038371624 | AR18: 0.0007516118627 | AS18: 0.0003523913967 | AT18: 0 | AU18: 0 | AV18: 0 | AW18: 0 | AX18: 0.0008381815378 | AY18: 0 | AZ18: 0.004231167148 | BA18: 0.01678731075 | BB18: 0 | BC18: 0 | BD18: 0 | BE18: 0 | BF18: 0 | BG18: 11.50878717 | BH18: 1.028446176 | BI18: 33.13398763 | BJ18: 37.96750528 | BK18: 7.999263442 | BL18: 1.907847064 | BM18: 2.031184516 | BN18: 7.669249274 | BO18: 33.3166311 | BP18: 21.36197458 | BQ18: 69.28370052 | BR18: 200.2674 | BS18: 0.01088719969 | BT18: 57.88776054 | BU18: 15.36322245 | BV18: 6.661364489 | BW18: 2.172892924 | BX18: 40.42866796 | BY18: 8.041742685 | BZ18: 10.26477134 | CA18: 1.851797324 | CB18: 0 | CC18: 1.032477066 | CD18: 7.732086294 | CE18: 3.732801699 | CF18: 14.38962775 | CG18: 0.9769681283 | CH18: 3.461325976 | CI18: 6.917745953 | CJ18: 8.018913043 | CK18: 0 | CL18: 1.760048159 | CM18: 17.59618576 | CN18: 3.006231025 | CO18: 1.064739192 | CP18: 7.496147678 | CQ18: 14.02869264 | CR18: 3.167237879 | CS18: 35.95844671 | CT18: 2.039686767 | CU18: 39.00694071 | CV18: 31.48359232 | CW18: 5.232792326 | CX18: 30.30079513 | CY18: 38.64885741 | CZ18: 31.76806937 | DA18: 0.05513876594 | DB18: 2.979228508 | DC18: 0 | DD18: 2865.114091 | DE18: 0 | DF18: 0 | DG18: 0 | DH18: 0 | DI18: 0 | DJ18: 44.75960504 | DK18: 273.3440613 | DL18: 59.42262202 | DM18: 89.823055 | DN18: 62.34776759 | DO18: 4311.336722 | DQ18: 4311 | DR18: 0.9999218984 | DT18: 0.3367222885
A19: 13 | B19: Textiles | C19: 80.32435531 | D19: 0 | E19: 9.825103772 | F19: 0 | G19: 0.02216129455 | H19: 0 | I19: 0 | J19: 0 | K19: 0 | L19: 0.003835704607 | M19: 0 | N19: 0.002479949997 | O19: 0 | P19: 0.01786002449 | Q19: 0 | R19: 0 | S19: 0 | T19: 436.3531599 | U19: 704.314008 | V19: 26.3923979 | W19: 1.723397552 | X19: 4.482595716 | Y19: 0.4388338511 | Z19: 0 | AA19: 0.01984199752 | AB19: 1.721785823 | AC19: 0.08292913661 | AD19: 0.0009784058969 | AE19: 17.55164791 | AF19: 0.3026346148 | AG19: 0.4312415104 | AH19: 1.20495716 | AI19: 7.961907723 | AJ19: 5.399741099 | AK19: 0.1525414272 | AL19: 0.2104118245 | AM19: 1.089616445 | AN19: 2.344315725 | AO19: 1.999217356 | AP19: 0.1425022659 | AQ19: 3.250812301 | AR19: 194.8427595 | AS19: 0.9703428422 | AT19: 0.5278761359 | AU19: 0.1178707765 | AV19: 151.6998581 | AW19: 45.13716009 | AX19: 0.2661721275 | AY19: 2.180930654 | AZ19: 3.386496271 | BA19: 0.1004203917 | BB19: 0 | BC19: 0 | BD19: 0 | BE19: 0 | BF19: 0 | BG19: 162.301852 | BH19: 64.36433399 | BI19: 52.20962045 | BJ19: 126.5783145 | BK19: 2.243014402 | BL19: 7.181971877 | BM19: 1.169722336 | BN19: 5.397833913 | BO19: 1.130769567 | BP19: 13.68838881 | BQ19: 20.68340254 | BR19: 50.24325409 | BS19: 1.57208467 | BT19: 10.58321271 | BU19: 4.608553189 | BV19: 7.486727003 | BW19: 1.570766087 | BX19: 0 | BY19: 10.15348334 | BZ19: 0.02848134564 | CA19: 3.718611195 | CB19: 14.30285744 | CC19: 1.158037085 | CD19: 4.451778159 | CE19: 1.205239489 | CF19: 1.604356238 | CG19: 1.945210249 | CH19: 10.19075073 | CI19: 1.996389782 | CJ19: 0.3491493093 | CK19: 2.220806663 | CL19: 4.358728805 | CM19: 6.402633985 | CN19: 1.122812803 | CO19: 0.3522582349 | CP19: 11.33296269 | CQ19: 1.031032178 | CR19: 17.09434804 | CS19: 50.15536612 | CT19: 85.51793825 | CU19: 49.9543096 | CV19: 4.55826419 | CW19: 2.035201376 | CX19: 7.951477391 | CY19: 12.87684603 | CZ19: 4.299728562 | DA19: 0.03096544701 | DB19: 17.83686241 | DC19: 0 | DD19: 652.1533708 | DE19: 0 | DF19: 0 | DG19: 0 | DH19: 195.7395886 | DI19: 0 | DJ19: 115.2383408 | DK19: 1304.270343 | DL19: 861.3106041 | DM19: 78.22667756 | DN19: 54.52162376 | DO19: 5831.708417 | DQ19: 5831 | DR19: 0.9998785233 | DT19: 0.7084167117
A20: 14 | B20: Wearing apparel | C20: 0 | D20: 0 | E20: 0 | F20: 0.0004725808752 | G20: 3.058498609 | H20: 0 | I20: 0.09015637648 | J20: 0 | K20: 0 | L20: 0 | M20: 0 | N20: 0 | O20: 0 | P20: 0 | Q20: 0 | R20: 0 | S20: 0 | T20: 0 | U20: 0 | V20: 0 | W20: 0 | X20: 0 | Y20: 0 | Z20: 0.9844992286 | AA20: 0 | AB20: 0 | AC20: 0 | AD20: 0 | AE20: 0 | AF20: 0 | AG20: 0 | AH20: 0 | AI20: 0 | AJ20: 0 | AK20: 0 | AL20: 0.0002787867938 | AM20: 0 | AN20: 0 | AO20: 0 | AP20: 0 | AQ20: 0 | AR20: 0 | AS20: 0 | AT20: 0 | AU20: 0 | AV20: 0 | AW20: 0 | AX20: 0 | AY20: 0 | AZ20: 0 | BA20: 0 | BB20: 0 | BC20: 0 | BD20: 0 | BE20: 0.0001813234363 | BF20: 0 | BG20: 3.294753383 | BH20: 0.002322070215 | BI20: 0.01034169958 | BJ20: 1.06039768 | BK20: 0 | BL20: 0.004971957215 | BM20: 0.000266990918 | BN20: 0.9668272103 | BO20: 0 | BP20: 0.001154288114 | BQ20: 1.815979767 | BR20: 0.09694871418 | BS20: 0 | BT20: 1.90371964 | BU20: 2.071265979 | BV20: 0.8374796074 | BW20: 0.004571285309 | BX20: 0 | BY20: 1.013771515 | BZ20: 1.015251305 | CA20: 0.1404668607 | CB20: 0 | CC20: 0 | CD20: 0.002434213816 | CE20: 0.9019488801 | CF20: 2.174330303 | CG20: 0.8975392869 | CH20: 0.9310402707 | CI20: 0.09078082291 | CJ20: 0.9215055584 | CK20: 0 | CL20: 0.8017703434 | CM20: 0.9979052209 | CN20: 0 | CO20: 0.05472973067 | CP20: 2.845189237 | CQ20: 0.0688209413 | CR20: 1.393130411 | CS20: 0.8790471642 | CT20: 0 | CU20: 4.793393855 | CV20: 1.020406321 | CW20: 0.08458873307 | CX20: 0.004676204147 | CY20: 0.00289874643 | CZ20: 0 | DA20: 0.01841052129 | DB20: 9.053388226e-05 | DC20: 0 | DD20: 584.3775622 | DE20: 0 | DF20: 0 | DG20: 0 | DH20: 58.66801046 | DI20: 0 | DJ20: -219.5499489 | DK20: 1690.000827 | DL20: 1404.185084 | DM20: 475.3240103 | DN20: 702.3285265 | DO20: 4732.593286 | DQ20: 4732 | DR20: 0.9998746382 | DT20: 0.5932861834
A21: 15 | B21: Leather and related products | C21: 0 | D21: 0 | E21: 0.8628380014 | F21: 0 | G21: 0 | H21: 0 | I21: 0 | J21: 0 | K21: 0 | L21: 0 | M21: 0 | N21: 0 | O21: 0 | P21: 0.0002361102301 | Q21: 0 | R21: 0 | S21: 0 | T21: 0.001742470648 | U21: 0.00100188975 | V21: 0.000756484759 | W21: 0.002186876337 | X21: 0.0006166234499 | Y21: 0.00110245052 | Z21: 0 | AA21: 9.265958047e-05 | AB21: 0.001111424797 | AC21: 0.0009719063397 | AD21: 7.120179131e-06 | AE21: 0.001584965959 | AF21: 0.00372193416 | AG21: 0.01289815618 | AH21: 0.0196615423 | AI21: 2.731170224e-05 | AJ21: 0.002173733235 | AK21: 2.871611522e-05 | AL21: 0.003007389539 | AM21: 0.01741465751 | AN21: 0.01244284109 | AO21: 0.06528973647 | AP21: 0.009448427505 | AQ21: 0.01285958012 | AR21: 0.00327514229 | AS21: 0.001367025201 | AT21: 0.833476914 | AU21: 0.002506020753 | AV21: 0.004055198023 | AW21: 0.5798466771 | AX21: 0.001511915938 | AY21: 0.00101088241 | AZ21: 0.01617674686 | BA21: 0 | BB21: 0 | BC21: 0 | BD21: 0.8414932433 | BE21: 0 | BF21: 0 | BG21: 0.1207862699 | BH21: 0.05284625505 | BI21: 0.05051466222 | BJ21: 25.61564708 | BK21: 0 | BL21: 0.8421516224 | BM21: 0.002561339375 | BN21: 0.009095786254 | BO21: 0 | BP21: 0.0005071519646 | BQ21: 0.802954686 | BR21: 1.577223168 | BS21: 0.0006545500292 | BT21: 0.002855209594 | BU21: 0.9074831682 | BV21: 0.09378536353 | BW21: 0.001588704244 | BX21: 0 | BY21: 0 | BZ21: 0.001991111347 | CA21: 0.07140252339 | CB21: 0 | CC21: 0 | CD21: 2.045675752e-05 | CE21: 0.008813649517 | CF21: 0.8329481229 | CG21: 0.03659371647 | CH21: 0.5322525268 | CI21: 0.04993382609 | CJ21: 0.006457761377 | CK21: 0 | CL21: 0.7523504039 | CM21: 0.09800443752 | CN21: 0 | CO21: 0.7210701325 | CP21: 0.9159553512 | CQ21: 0.8423970013 | CR21: 0.8163778204 | CS21: 0.9112451616 | CT21: 0 | CU21: 1.674945147 | CV21: 1.808868163 | CW21: 0.7271137206 | CX21: 0.1096124014 | CY21: 0.003784756079 | CZ21: 0 | DA21: 0.000267248338 | DB21: 7.960006529e-05 | DC21: 0 | DD21: 183.0727047 | DE21: 0 | DF21: 0 | DG21: 0 | DH21: 26.29028027 | DI21: 0 | DJ21: 17.13420076 | DK21: 267.44167 | DL21: 356.5888933 | DM21: 207.9689752 | DN21: 143.3299694 | DO21: 1246.147777 | DQ21: 1246 | DR21: 0.9998814133 | DT21: 0.147776501
A22: 16 | B22: Wood and of products of wood and cork, except furniture; articles of straw and plaiting materials | C22: 14.93256961 | D22: 0.8591152628 | E22: 0 | F22: 7.195057827 | G22: 6.09681993 | H22: 3.931732236 | I22: 0.9946726701 | J22: 13.49911727 | K22: 0.2914733065 | L22: 0.1736139992 | M22: 7.702657104 | N22: 1.132403319 | O22: 2.321538133 | P22: 6.090227768 | Q22: 2.382551713 | R22: 2.051052474 | S22: 7.961475245 | T22: 1.301022669 | U22: 0.1397423762 | V22: 0.3421154463 | W22: 1184.335362 | X22: 9.724534685 | Y22: 2.047783012 | Z22: 1.497101877 | AA22: 1.560702538 | AB22: 8.441603358 | AC22: 0.09809587039 | AD22: 6.100626061 | AE22: 1.637572848 | AF22: 0.9434106997 | AG22: 3.792888816 | AH22: 2.191413113 | AI22: 47.81834102 | AJ22: 1.793060266 | AK22: 2.510795555 | AL22: 4.248975753 | AM22: 4.866873297 | AN22: 88.91599179 | AO22: 17.30404782 | AP22: 16.78181456 | AQ22: 23.94349642 | AR22: 127.289835 | AS22: 61.92193731 | AT22: 10.76853887 | AU22: 0.08464002614 | AV22: 450.0942508 | AW22: 30.79927512 | AX22: 7.565781555 | AY22: 0.6587532596 | AZ22: 6.089535128 | BA22: 4.391491868 | BB22: 0 | BC22: 0 | BD22: 0.952167149 | BE22: 3.629214951 | BF22: 0 | BG22: 2840.924741 | BH22: 18.67228675 | BI22: 45.19105935 | BJ22: 53.23188566 | BK22: 4.011984494 | BL22: 6.855486298 | BM22: 1.019125148 | BN22: 0.1125973546 | BO22: 11.06741208 | BP22: 5.106733579 | BQ22: 13.27352474 | BR22: 48.16761532 | BS22: 1.511278978 | BT22: 10.41737313 | BU22: 12.37342555 | BV22: 14.88586586 | BW22: 1.838655784 | BX22: 0 | BY22: 50.41688609 | BZ22: 9.044953456 | CA22: 5.679116008 | CB22: 18.69520565 | CC22: 3.106997545 | CD22: 12.17389323 | CE22: 6.211033559 | CF22: 1.774908874 | CG22: 5.295438582 | CH22: 9.633939835 | CI22: 2.349228278 | CJ22: 2.865654123 | CK22: 0 | CL22: 2.229127953 | CM22: 10.36845325 | CN22: 1.004289779 | CO22: 0.2520853684 | CP22: 0.08182135076 | CQ22: 1.4934309 | CR22: 7.874920514 | CS22: 106.7343308 | CT22: 2.045986294 | CU22: 24.71665618 | CV22: 4.076586676 | CW22: 2.008689907 | CX22: 10.6208511 | CY22: 5.724243189 | CZ22: 4.822477426 | DA22: 0.1443155954 | DB22: 0.003882226474 | DC22: 0 | DD22: 708.9376721 | DE22: 0 | DF22: 0 | DG22: 0 | DH22: 378.7149263 | DI22: 0 | DJ22: -24.48973313 | DK22: 196.2417777 | DL22: 72.44439459 | DM22: 18.0200943 | DN22: 12.72006656 | DO22: 6976.898524 | DQ22: 6976 | DR22: 0.9998712144 | DT22: 0.8985240242
A23: 17 | B23: Paper and paper products | C23: 274.9365473 | D23: 0.7911743068 | E23: 3.596437825 | F23: 1.89291119 | G23: 0.0270838136 | H23: 0.9830790059 | I23: 0 | J23: 249.8260943 | K23: 208.0557182 | L23: 9.670595266 | M23: 86.24157153 | N23: 295.5840889 | O23: 223.922405 | P23: 412.3762719 | Q23: 64.0136112 | R23: 261.7208953 | S23: 78.67575723 | T23: 51.05783772 | U23: 29.43380939 | V23: 14.16881015 | W23: 64.65991052 | X23: 716.3652717 | Y23: 957.6810582 | Z23: 11.40335636 | AA23: 6.427063064 | AB23: 11.86502051 | AC23: 46.95299902 | AD23: 1.284980975 | AE23: 442.7336443 | AF23: 33.90624064 | AG23: 102.4865894 | AH23: 299.9087634 | AI23: 65.92522501 | AJ23: 105.1129587 | AK23: 9.153172558 | AL23: 10.29653687 | AM23: 5.922011551 | AN23: 91.56098044 | AO23: 60.55506611 | AP23: 76.34276292 | AQ23: 6.105498621 | AR23: 38.32185882 | AS23: 3.417945382 | AT23: 16.54250116 | AU23: 0.4741888263 | AV23: 71.37812255 | AW23: 95.27904781 | AX23: 1.616363582 | AY23: 2.702081889 | AZ23: 10.15662736 | BA23: 60.88061172 | BB23: 3.608913688 | BC23: 13.44125897 | BD23: 12.27614388 | BE23: 24.31626864 | BF23: 0.9944300554 | BG23: 309.1350014 | BH23: 65.63974139 | BI23: 174.1837189 | BJ23: 203.7276035 | BK23: 2.771030141 | BL23: 68.63476569 | BM23: 0.01291135826 | BN23: 3.739620461 | BO23: 0 | BP23: 25.37729406 | BQ23: 36.99816587 | BR23: 100.9856107 | BS23: 262.6697432 | BT23: 19.97973507 | BU23: 28.9137412 | BV23: 123.618808 | BW23: 3.467457683 | BX23: 0 | BY23: 166.221424 | BZ23: 99.69889438 | CA23: 72.40898477 | CB23: 18.12288698 | CC23: 0 | CD23: 47.43154034 | CE23: 29.39476803 | CF23: 11.60235277 | CG23: 95.29593656 | CH23: 42.09489336 | CI23: 111.8294926 | CJ23: 17.54704113 | CK23: 8.233012037 | CL23: 24.32385512 | CM23: 44.34233055 | CN23: 2.772979468 | CO23: 5.265658128 | CP23: 82.70037265 | CQ23: 10.66052034 | CR23: 582.9125425 | CS23: 239.4848705 | CT23: 407.3682711 | CU23: 146.5967051 | CV23: 0 | CW23: 11.02492621 | CX23: 17.40424907 | CY23: 27.6361872 | CZ23: 13.38138097 | DA23: 4.719842441 | DB23: 24.78805205 | DC23: 0 | DD23: 263.9274358 | DE23: 0 | DF23: 0 | DG23: 0 | DH23: 0 | DI23: 0 | DJ23: 68.59878308 | DK23: 1107.980895 | DL23: 553.1459496 | DM23: 12.69030999 | DN23: 8.785599221 | DO23: 11559.27807 | DQ23: 11558 | DR23: 0.9998894338 | DT23: 1.278065997
A24: 18 | B24: Printing and recording services | C24: 12.48122965 | D24: 4.170492652 | E24: 0 | F24: 1.247255526 | G24: 0.221889402 | H24: 1.193801796 | I24: 0 | J24: 5.782009486 | K24: 1.376497339 | L24: 1.850198201 | M24: 1.230358711 | N24: 0.8237949411 | O24: 3.4509854 | P24: 8.45588654 | Q24: 1.303933596 | R24: 7.30352861 | S24: 1.104916871 | T24: 3.978695483 | U24: 2.396680868 | V24: 0.07541156436 | W24: 2.969758693 | X24: 113.4620302 | Y24: 1003.975271 | Z24: 8.887005149 | AA24: 1.774321066 | AB24: 9.194056743 | AC24: 2.52517377 | AD24: 3.056723458 | AE24: 7.922132095 | AF24: 1.592363225 | AG24: 32.30519413 | AH24: 22.9569289 | AI24: 0.06935298725 | AJ24: 8.397057244 | AK24: 1.55083252 | AL24: 4.961036512 | AM24: 0.4466947903 | AN24: 8.352043728 | AO24: 6.545150677 | AP24: 8.471872014 | AQ24: 24.0644908 | AR24: 16.03033397 | AS24: 3.250217518 | AT24: 17.35275102 | AU24: 1.479184769 | AV24: 3.532701607 | AW24: 65.94603373 | AX24: 0.0906749576 | AY24: 1.119241267 | AZ24: 4.423654346 | BA24: 21.39817856 | BB24: 4.755888774 | BC24: 0 | BD24: 0 | BE24: 29.74685999 | BF24: 0 | BG24: 56.46282396 | BH24: 130.6544206 | BI24: 331.0800587 | BJ24: 209.9268534 | BK24: 1.217237123 | BL24: 26.51815591 | BM24: 1.236275876 | BN24: 1.366119921 | BO24: 111.7860383 | BP24: 0.09893841152 | BQ24: 6.2210051 | BR24: 27.35032141 | BS24: 1252.820238 | BT24: 25.00533952 | BU24: 177.2709824 | BV24: 90.22384144 | BW24: 6.404740569 | BX24: 272.5798528 | BY24: 1275.094208 | BZ24: 147.0148834 | CA24: 236.4253498 | CB24: 26.27091874 | CC24: 1.256885135 | CD24: 184.6544833 | CE24: 10.68981788 | CF24: 21.75344674 | CG24: 23.36811882 | CH24: 21.2541713 | CI24: 285.2062379 | CJ24: 21.22779846 | CK24: 1.208121854 | CL24: 11.8609019 | CM24: 32.059549 | CN24: 180.2490217 | CO24: 9.435907462 | CP24: 53.07654428 | CQ24: 16.88180314 | CR24: 945.5314014 | CS24: 1138.766233 | CT24: 893.0558471 | CU24: 166.7608305 | CV24: 26.25655471 | CW24: 47.46770924 | CX24: 0.8866619687 | CY24: 245.2433134 | CZ24: 23.41025418 | DA24: 1.818780966 | DB24: 1.249863126 | DC24: 0 | DD24: 1278.957623 | DE24: 0 | DF24: 0 | DG24: 0 | DH24: 0 | DI24: 0 | DJ24: 113.9296 | DK24: 43.40284896 | DL24: 27.82233908 | DM24: 0 | DN24: 0 | DO24: 11742.82405 | DQ24: 11742 | DR24: 0.9999298253 | DT24: 0.8240489213
A25: 19 | B25: Coke and refined petroleum products | C25: 0.1227624929 | D25: 19.07285741 | E25: 123.1525714 | F25: 67.43529586 | G25: 153.67533 | H25: 69.44351591 | I25: 23.4480042 | J25: 70.94056761 | K25: 29.099586 | L25: 1.848641086 | M25: 68.60680679 | N25: 18.56752289 | O25: 86.92714445 | P25: 74.81616048 | Q25: 50.4089093 | R25: 39.60356554 | S25: 18.58605638 | T25: 12.52952997 | U25: 26.15587121 | V25: 2.28825861 | W25: 64.21427863 | X25: 52.57481239 | Y25: 18.82123213 | Z25: 547.3507936 | AA25: 58.87123089 | AB25: 83.81611173 | AC25: 89.53472227 | AD25: 5.242959118 | AE25: 64.74218224 | AF25: 26.14490459 | AG25: 21.45370719 | AH25: 6.275771005 | AI25: 128.3588055 | AJ25: 58.092849 | AK25: 214.3329732 | AL25: 32.8001357 | AM25: 5.685095143 | AN25: 84.01900438 | AO25: 46.72830974 | AP25: 34.95666994 | AQ25: 148.0509076 | AR25: 43.78623315 | AS25: 11.22304196 | AT25: 59.16007356 | AU25: 1.748969999 | AV25: 58.26980233 | AW25: 24.54347272 | AX25: 5.7532909 | AY25: 6.451884477 | AZ25: 22.77727545 | BA25: 310.5713032 | BB25: 73.15923067 | BC25: 40.2581165 | BD25: 73.98532151 | BE25: 22.15625363 | BF25: 2.17934077 | BG25: 570.3200418 | BH25: 181.3396144 | BI25: 319.3594357 | BJ25: 548.2621859 | BK25: 187.2460347 | BL25: 463.3227341 | BM25: 188.4856201 | BN25: 342.2673982 | BO25: 43.32744667 | BP25: 229.6750979 | BQ25: 91.98728719 | BR25: 395.834053 | BS25: 13.85232867 | BT25: 59.86959055 | BU25: 266.2841685 | BV25: 152.982323 | BW25: 25.06746724 | BX25: 207.7642899 | BY25: 31.56391799 | BZ25: 97.8356147 | CA25: 37.22400527 | CB25: 3.97171689 | CC25: 3.135324937 | CD25: 41.06506861 | CE25: 56.26227361 | CF25: 56.31192303 | CG25: 156.9026084 | CH25: 82.98032485 | CI25: 25.69006075 | CJ25: 53.22419109 | CK25: 5.013040039 | CL25: 90.58564262 | CM25: 102.3193913 | CN25: 58.73880359 | CO25: 9.014885202 | CP25: 26.74022233 | CQ25: 26.30774028 | CR25: 373.3026636 | CS25: 135.0732106 | CT25: 70.92073854 | CU25: 208.3703822 | CV25: 24.68252455 | CW25: 11.1056764 | CX25: 44.29126349 | CY25: 36.65976995 | CZ25: 48.66445342 | DA25: 10.12785425 | DB25: 49.31574198 | DC25: 0 | DD25: 8758.337993 | DE25: 0 | DF25: 0 | DG25: 0 | DH25: 0 | DI25: 0 | DJ25: -94.73321682 | DK25: 8718.914976 | DL25: 4904.505346 | DM25: 72.73755475 | DN25: 51.3441563 | DO25: 32180.57499 | DQ25: 32177 | DR25: 0.9998889086 | DT25: 3.574985497
A26: 20A | B26: Industrial gases, inorganics and fertilisers (all inorganic chemicals) - 20.11/13/15 | C26: 153.3894787 | D26: 1.054069597 | E26: 1.197869968 | F26: 1.2632553 | G26: 14.930866 | H26: 0.006323700325 | I26: 0.4400758493 | J26: 0.01759745153 | K26: 0.05148796717 | L26: 0.2154748976 | M26: 0 | N26: 0.257171668 | O26: 3.192158266 | P26: 0.5612889091 | Q26: 0.01929792046 | R26: 1.233327639 | S26: 2.125395751 | T26: 2.777899376 | U26: 0.05203763188 | V26: 2.145583613 | W26: 0.07595176714 | X26: 20.23030519 | Y26: 0.005049454927 | Z26: 69.99820696 | AA26: 47.34632362 | AB26: 396.7576738 | AC26: 98.20122488 | AD26: 68.99684413 | AE26: 42.41205096 | AF26: 14.15809857 | AG26: 23.30762016 | AH26: 28.78268492 | AI26: 10.02594266 | AJ26: 6.584623223 | AK26: 2.298290206 | AL26: 0.01212421423 | AM26: 0.2274049282 | AN26: 7.036075487 | AO26: 6.067065318 | AP26: 0.1211627782 | AQ26: 1.445265658 | AR26: 1.247221597 | AS26: 0.003428358896 | AT26: 1.410978352 | AU26: 0.0577643874 | AV26: 0.05459889245 | AW26: 1.303047088 | AX26: 0.00955222577 | AY26: 1.092965742 | AZ26: 1.088884883 | BA26: 6.105922563 | BB26: 1.202025319 | BC26: 15.51990839 | BD26: 1.168237239 | BE26: 1.113967668 | BF26: 0 | BG26: 19.47444693 | BH26: 0.06921264465 | BI26: 43.00965594 | BJ26: 1.300967651 | BK26: 1.230600555 | BL26: 8.681368518 | BM26: 1.254597159 | BN26: 1.204331527 | BO26: 1.240763907 | BP26: 1.251424155 | BQ26: 1.296991765 | BR26: 25.73747972 | BS26: 1.163458183 | BT26: 8.128983803 | BU26: 0.0005273921074 | BV26: 6.023481784 | BW26: 0.2654570169 | BX26: 0 | BY26: 3.711354465 | BZ26: 0.002759232457 | CA26: 1.793061142 | CB26: 0 | CC26: 0 | CD26: 0.1993373008 | CE26: 2.597753234 | CF26: 0.02220904689 | CG26: 1.291594266 | CH26: 6.335337033 | CI26: 0.9137933866 | CJ26: 1.19687382 | CK26: 0 | CL26: 3.44667057 | CM26: 1.330291899 | CN26: 0.0006184554957 | CO26: 0.2913809029 | CP26: 3.318001987 | CQ26: 3.576767937 | CR26: 3.16532725 | CS26: 5.826910748 | CT26: 45.65023769 | CU26: 3.500020149 | CV26: 3.735644075 | CW26: 1.811153368 | CX26: 0.01100980784 | CY26: 4.731630862 | CZ26: 1.121471667 | DA26: 0.8903355367 | DB26: 0.0001104604997 | DC26: 0 | DD26: 88.83196856 | DE26: 0 | DF26: 0 | DG26: 0 | DH26: 0 | DI26: 0 | DJ26: -17.52744846 | DK26: 1171.24103 | DL26: 941.7182919 | DM26: 0 | DN26: 0 | DO26: 3466.468398 | DQ26: 3466 | DR26: 0.9998648773 | DT26: 0.4683984062
A27: 20B | B27: Petrochemicals - 20.14/16/17/60 | C27: 1.137659653 | D27: 0 | E27: 0 | F27: 1.253251251 | G27: 0.005456918821 | H27: 0.0002565538538 | I27: 0 | J27: 0.005632318316 | K27: 0.04073900469 | L27: 0.0860800228 | M27: 0 | N27: 1.283839654 | O27: 1.081934687 | P27: 0.2893620988 | Q27: 0.005580477619 | R27: 0.6176413013 | S27: 2.640527005 | T27: 0.5582144937 | U27: 0.2025213016 | V27: 4.303307946 | W27: 5.341652938 | X27: 58.47811069 | Y27: 0.467349304 | Z27: 28.44244744 | AA27: 29.48637617 | AB27: 162.912395 | AC27: 24.44255715 | AD27: 44.60016845 | AE27: 30.62847983 | AF27: 0.8617933927 | AG27: 10.44481423 | AH27: 381.204797 | AI27: 32.90455116 | AJ27: 72.79680381 | AK27: 28.82400146 | AL27: 0.1989371275 | AM27: 2.693300908 | AN27: 12.69128382 | AO27: 11.97400056 | AP27: 101.6996975 | AQ27: 9.670731613 | AR27: 215.4818306 | AS27: 10.79111011 | AT27: 12.62710607 | AU27: 0.3136678781 | AV27: 23.03545986 | AW27: 15.16629435 | AX27: 1.075668214 | AY27: 0.9650876023 | AZ27: 4.431639055 | BA27: 4.692667824 | BB27: 0 | BC27: 4.152930259 | BD27: 4.644423669 | BE27: 2.967775972 | BF27: 0 | BG27: 16.45430952 | BH27: 11.4234201 | BI27: 38.87081523 | BJ27: 1.385852982 | BK27: 0 | BL27: 5.516865244 | BM27: 0 | BN27: 0.137680393 | BO27: 0 | BP27: 0.0003498894167 | BQ27: 8.831636777 | BR27: 28.71242885 | BS27: 1.168028074 | BT27: 0.0007021493971 | BU27: 0.6268915372 | BV27: 6.682636192 | BW27: 0.2722725267 | BX27: 0 | BY27: 0 | BZ27: 0.004798747599 | CA27: 0.7082256295 | CB27: 0 | CC27: 0 | CD27: 0.4036510256 | CE27: 1.516343809 | CF27: 0.01792442533 | CG27: 3.381208076 | CH27: 8.766314565 | CI27: 0.2384648005 | CJ27: 1.288846052 | CK27: 0 | CL27: 0.9473416487 | CM27: 3.874866503 | CN27: 0.611872027 | CO27: 0.1813418372 | CP27: 2.833152625 | CQ27: 1.844678837 | CR27: 3.510087035 | CS27: 8.069991727 | CT27: 0 | CU27: 0 | CV27: 0 | CW27: 0.00925375193 | CX27: 1.156018724 | CY27: 0.0003086401795 | CZ27: 0 | DA27: 0.005641423588 | DB27: 1.038385968e-08 | DC27: 0 | DD27: 0 | DE27: 0 | DF27: 0 | DG27: 0 | DH27: 0 | DI27: 0 | DJ27: 59.10511478 | DK27: 3561.046084 | DL27: 1789.74855 | DM27: 0 | DN27: 0 | DO27: 6933.975885 | DQ27: 6933 | DR27: 0.9998592603 | DT27: 0.9758853533
A28: 20C | B28: Dyestuffs, agro-chemicals - 20.12/20 | C28: 705.52528 | D28: 4.591300009 | E28: 0 | F28: 0 | G28: 0.01366579926 | H28: 0 | I28: 0 | J28: 7.542564693e-05 | K28: 5.005077104 | L28: 0.02244823325 | M28: 0 | N28: 0.1572460596 | O28: 0 | P28: 0.1760050851 | Q28: 0.08776019901 | R28: 0.01244458692 | S28: 4.733663957 | T28: 38.88771761 | U28: 0.09386195209 | V28: 0.3981850894 | W28: 0.3188449786 | X28: 13.31578277 | Y28: 0.1259017103 | Z28: 2.677749289 | AA28: 40.36161362 | AB28: 8.709142867 | AC28: 414.5223535 | AD28: 104.0807395 | AE28: 29.86344421 | AF28: 7.198362682 | AG28: 8.858864365 | AH28: 2.019372695 | AI28: 18.77957395 | AJ28: 1.024898717 | AK28: 0.09837305774 | AL28: 0.05381844239 | AM28: 2.40780993 | AN28: 0.3469761511 | AO28: 0.8086216817 | AP28: 0.1464105933 | AQ28: 10.43657478 | AR28: 5.310290452 | AS28: 0.02993796873 | AT28: 17.93394234 | AU28: 0.04624385588 | AV28: 0.09899279041 | AW28: 2.513626019 | AX28: 0.06948977721 | AY28: 2.381803203 | AZ28: 1.591610608 | BA28: 0.0893522051 | BB28: 5.235763252 | BC28: 5.200105876 | BD28: 5.088589656 | BE28: 4.848347861 | BF28: 0 | BG28: 47.48279073 | BH28: 2.892232221 | BI28: 51.93322339 | BJ28: 41.47550715 | BK28: 2.68011541 | BL28: 6.378497696 | BM28: 0 | BN28: 0.2183678277 | BO28: 8.061325864 | BP28: 0.003066806639 | BQ28: 3.173743879 | BR28: 6.829169987 | BS28: 2.53463841 | BT28: 10.86389393 | BU28: 5.489656142 | BV28: 6.817287159 | BW28: 0.6061688123 | BX28: 0 | BY28: 13.47185291 | BZ28: 0.01321834703 | CA28: 5.63826023 | CB28: 0 | CC28: 0 | CD28: 0.1683684872 | CE28: 0.153136641 | CF28: 0.06422008514 | CG28: 1.612353468 | CH28: 9.198647395 | CI28: 0.9536194479 | CJ28: 0.4165284456 | CK28: 0 | CL28: 8.949115795 | CM28: 7.94995245 | CN28: 2.681888537 | CO28: 2.49128005 | CP28: 9.634217852 | CQ28: 0.8219488533 | CR28: 33.59595424 | CS28: 27.15906642 | CT28: 73.49615633 | CU28: 5.064276283 | CV28: 2.711943425 | CW28: 0.5086966396 | CX28: 5.216962881 | CY28: 3.084751588 | CZ28: 0 | DA28: 0.01445883378 | DB28: 0.0007981004304 | DC28: 0 | DD28: 309.0089224 | DE28: 0 | DF28: 0 | DG28: 0 | DH28: 0 | DI28: 0 | DJ28: 10.90654118 | DK28: 2090.166913 | DL28: 1658.901524 | DM28: 0 | DN28: 0 | DO28: 5957.793317 | DQ28: 5957 | DR28: 0.9998668439 | DT28: 0.7933165926
A29: 20.3 | B29: Paints, varnishes and similar coatings, printing ink and mastics | C29: 28.76844715 | D29: 0 | E29: 0 | F29: 0 | G29: 0.01498414834 | H29: 0 | I29: 0 | J29: 0 | K29: 0 | L29: 0 | M29: 0 | N29: 0 | O29: 0 | P29: 0.0451855778 | Q29: 0.009335105784 | R29: 0 | S29: 0 | T29: 1.669484146 | U29: 0.2328661138 | V29: 0.3319447886 | W29: 57.29650584 | X29: 165.5244162 | Y29: 299.6642801 | Z29: 0 | AA29: 0.01596851393 | AB29: 0.07539453617 | AC29: 0.0651061234 | AD29: 37.56075974 | AE29: 1.939748304 | AF29: 0.2711063551 | AG29: 0.3127599713 | AH29: 7.370798923 | AI29: 9.900795443 | AJ29: 12.31109379 | AK29: 1.729501715 | AL29: 0.5553592767 | AM29: 2.406895621 | AN29: 240.3922819 | AO29: 24.26182294 | AP29: 36.96931256 | AQ29: 90.88334338 | AR29: 310.2019804 | AS29: 38.50519369 | AT29: 26.25379556 | AU29: 1.256421014 | AV29: 43.30043739 | AW29: 32.63645532 | AX29: 18.74174887 | AY29: 2.184831382 | AZ29: 19.59575031 | BA29: 0.08308125779 | BB29: 0 | BC29: 0 | BD29: 4.697814729 | BE29: 9.059312121 | BF29: 0 | BG29: 729.1224755 | BH29: 16.76886363 | BI29: 41.36551021 | BJ29: 55.30150395 | BK29: 13.60863732 | BL29: 11.20822239 | BM29: 0.001330631276 | BN29: 0.3031567293 | BO29: 3.721130799 | BP29: 2.524709589 | BQ29: 8.648598496 | BR29: 31.34800903 | BS29: 201.5630675 | BT29: 20.31060492 | BU29: 15.18593038 | BV29: 20.78898963 | BW29: 2.397205999 | BX29: 0 | BY29: 8.705907899 | BZ29: 11.09968369 | CA29: 23.81030681 | CB29: 6.068332241 | CC29: 0 | CD29: 2.727106499 | CE29: 4.833232006 | CF29: 2.124594104 | CG29: 13.68337136 | CH29: 14.60867074 | CI29: 62.96125184 | CJ29: 2.25995587 | CK29: 0 | CL29: 3.766360723 | CM29: 12.31785971 | CN29: 1.239055383 | CO29: 2.258580933 | CP29: 0.1045234049 | CQ29: 2.527195369 | CR29: 60.48968322 | CS29: 87.60436532 | CT29: 0 | CU29: 95.08822893 | CV29: 5.02827916 | CW29: 4.119761016 | CX29: 16.53822969 | CY29: 20.4624034 | CZ29: 27.33107208 | DA29: 0.1748851348 | DB29: 14.74299114 | DC29: 0 | DD29: 1.240342537 | DE29: 0 | DF29: 0 | DG29: 0 | DH29: 0 | DI29: 0 | DJ29: 2.517245115 | DK29: 279.3813101 | DL29: 303.134377 | DM29: 2.614934613 | DN29: 2.614934613 | DO29: 3799.443299 | DQ29: 3799 | DR29: 0.9998833254 | DT29: 0.443298683
A30: 20.4 | B30: Soap and detergents, cleaning and polishing preparations, perfumes and toilet preparations | C30: 48.36013094 | D30: 4.604073408 | E30: 0 | F30: 0 | G30: 0.008000385067 | H30: 0 | I30: 0 | J30: 16.07511785 | K30: 5.5372332 | L30: 1.436570658 | M30: 34.26009202 | N30: 1.004809359 | O30: 24.2262189 | P30: 22.48923073 | Q30: 0.3699214635 | R30: 5.409755559 | S30: 0.8196993125 | T30: 0.8281287514 | U30: 0.04655958766 | V30: 0.9215632714 | W30: 0.06367024974 | X30: 1.186142068 | Y30: 1.961919412 | Z30: 0 | AA30: 3.362304021 | AB30: 0.07782887681 | AC30: 9.990583592 | AD30: 0 | AE30: 1935.742831 | AF30: 0.09478636451 | AG30: 21.15815216 | AH30: 0 | AI30: 0 | AJ30: 0 | AK30: 0.05273735377 | AL30: 0 | AM30: 0 | AN30: 0 | AO30: 4.543077613 | AP30: 0 | AQ30: 0.006712991008 | AR30: 0.04534219462 | AS30: 0.02125857784 | AT30: 0 | AU30: 0 | AV30: 0 | AW30: 2.893867124 | AX30: 0.05056464953 | AY30: 0 | AZ30: 0.05245920945 | BA30: 1.012721524 | BB30: 0 | BC30: 0 | BD30: 44.22380351 | BE30: 91.82703236 | BF30: 7.715836969 | BG30: 158.7621601 | BH30: 94.74867275 | BI30: 141.3156115 | BJ30: 203.5060494 | BK30: 14.33371587 | BL30: 34.42079956 | BM30: 3.655375813 | BN30: 22.33135168 | BO30: 1.816634395 | BP30: 20.04958616 | BQ30: 70.22864819 | BR30: 155.0819857 | BS30: 0.5145947074 | BT30: 32.12334731 | BU30: 12.89428777 | BV30: 25.94011115 | BW30: 5.361590213 | BX30: 13.00264355 | BY30: 9.017352161 | BZ30: 18.02613553 | CA30: 25.3130559 | CB30: 0 | CC30: 3.7001489 | CD30: 5.468143602 | CE30: 7.940129978 | CF30: 5.347708751 | CG30: 8.724347645 | CH30: 29.92011847 | CI30: 17.1593269 | CJ30: 9.117558571 | CK30: 15.97009722 | CL30: 13.55173522 | CM30: 46.93312435 | CN30: 3.588501068 | CO30: 15.50759644 | CP30: 496.1422972 | CQ30: 12.30970493 | CR30: 168.7093206 | CS30: 452.0651157 | CT30: 70.1577798 | CU30: 479.2793377 | CV30: 12.75152949 | CW30: 10.4212189 | CX30: 27.88693877 | CY30: 56.4626862 | CZ30: 24.09860952 | DA30: 0.3513985676 | DB30: 179.7393003 | DC30: 0 | DD30: 1472.998621 | DE30: 0 | DF30: 0 | DG30: 0 | DH30: 0 | DI30: 0 | DJ30: -20.05095425 | DK30: 4268.955794 | DL30: 2350.7105 | DM30: 181.7811811 | DN30: 126.868116 | DO30: 13909.49148 | DQ30: 13908 | DR30: 0.9998927725 | DT30: 1.49147942
A31: 20.5 | B31: Other chemical products | C31: 0.003413648439 | D31: 0.5303576722 | E31: 0 | F31: 0.6344493013 | G31: 0.0007892929529 | H31: 0.0004895054069 | I31: 0 | J31: 0.005715114707 | K31: 0.04059368611 | L31: 0.008413424381 | M31: 0.01598802646 | N31: 0.02903785492 | O31: 5.579519339e-05 | P31: 0.02564672792 | Q31: 1.146488251 | R31: 0.6176767522 | S31: 0 | T31: 0.01579373009 | U31: 0.01217695737 | V31: 0.5242301905 | W31: 1.22145341 | X31: 0.8464035485 | Y31: 2.914134863 | Z31: 0 | AA31: 0.02425393714 | AB31: 0.1608134817 | AC31: 0.03142759565 | AD31: 0.03674549062 | AE31: 0.05818936177 | AF31: 0.9836185256 | AG31: 0.01511467375 | AH31: 0.03793801682 | AI31: 0.01176926121 | AJ31: 0.02249476443 | AK31: 0.5673728973 | AL31: 0.001014249992 | AM31: 1.028024788 | AN31: 0.004447540704 | AO31: 0.08813231376 | AP31: 0.006501285727 | AQ31: 0.01808055799 | AR31: 0.01799422805 | AS31: 0.00365981045 | AT31: 0.002281539393 | AU31: 0.0003214554113 | AV31: 0.5998701239 | AW31: 0.6094586164 | AX31: 0.0005339416786 | AY31: 0.002691509259 | AZ31: 0.08920203763 | BA31: 0 | BB31: 0 | BC31: 0 | BD31: 0.5878013982 | BE31: 0.5600501995 | BF31: 0 | BG31: 2.039306652 | BH31: 0.01865752505 | BI31: 1.539219255 | BJ31: 8.291454916 | BK31: 0.6191796517 | BL31: 0.06215662615 | BM31: 0 | BN31: 0 | BO31: 0 | BP31: 4.538807446e-14 | BQ31: 0.07439137754 | BR31: 0.718430987 | BS31: 0.570312659 | BT31: 1.184937332 | BU31: 0.00011769863 | BV31: 0.2374669902 | BW31: 0.04349643614 | BX31: 0 | BY31: 0 | BZ31: 0.001468754248 | CA31: 0.1478332383 | CB31: 0 | CC31: 0 | CD31: 0.01389453688 | CE31: 0.01221612788 | CF31: 0.009137393753 | CG31: 0.04013092078 | CH31: 0.9905760092 | CI31: 0.2671086173 | CJ31: 0.5467912608 | CK31: 0 | CL31: 0.1377562232 | CM31: 0.6327452545 | CN31: 7.779434539e-05 | CO31: 0.06768783309 | CP31: 2.217685799 | CQ31: 0.03647853245 | CR31: 0.2851288635 | CS31: 8.945009595 | CT31: 0 | CU31: 0.5849928726 | CV31: 0.62653279 | CW31: 0.4848882511 | CX31: 0.6200371182 | CY31: 0.6452330892 | CZ31: 0 | DA31: 0.001385818843 | DB31: 1.042258303e-09 | DC31: 0 | DD31: 3.103890297 | DE31: 0 | DF31: 0 | DG31: 0 | DH31: 4.944243937 | DI31: 0 | DJ31: 20.7875914 | DK31: 1470.168343 | DL31: 1188.249269 | DM31: 22.90306488 | DN31: 16.35933205 | DO31: 2773.39277 | DQ31: 2773 | DR31: 0.9998583791 | DT31: 0.3927704291
A32: 21 | B32: Basic pharmaceutical products and pharmaceutical preparations | C32: 50.41128136 | D32: 0 | E32: 0 | F32: 0 | G32: 0.004317922535 | H32: 0.001894709675 | I32: 0 | J32: 0.2274252877 | K32: 1.614141331 | L32: 0.4820432634 | M32: 0.641405834 | N32: 9.331044927 | O32: 0.1822702186 | P32: 0.9222192114 | Q32: 46.74471434 | R32: 0.003562872691 | S32: 0 | T32: 0.4756013647 | U32: 0.1392149298 | V32: 0.1616483812 | W32: 0.152311718 | X32: 0.0705563607 | Y32: 0.05377421902 | Z32: 5.109506616 | AA32: 0.1803942508 | AB32: 0.03113942008 | AC32: 0.0855123394 | AD32: 0 | AE32: 53.29862109 | AF32: 0.1386136863 | AG32: 648.3822455 | AH32: 1.147911832 | AI32: 0 | AJ32: 0 | AK32: 0.02848085292 | AL32: 0 | AM32: 0 | AN32: 0.03146022545 | AO32: 0.03888553569 | AP32: 0 | AQ32: 0.07316260255 | AR32: 0 | AS32: 0 | AT32: 0 | AU32: 0 | AV32: 0 | AW32: 0.0247694587 | AX32: 0 | AY32: 0 | AZ32: 0.3535211714 | BA32: 0 | BB32: 0 | BC32: 0 | BD32: 2.143759081 | BE32: 4.085096445 | BF32: 0 | BG32: 2.047154182 | BH32: 4.430644328 | BI32: 26.12028182 | BJ32: 83.93609513 | BK32: 0 | BL32: 1.387376172 | BM32: 0 | BN32: 0 | BO32: 0 | BP32: 1.148205244 | BQ32: 3.30611683 | BR32: 15.81278441 | BS32: 0.05292348965 | BT32: 2.132166278 | BU32: 0.000643884587 | BV32: 4.013285714 | BW32: 0.3546263263 | BX32: 0 | BY32: 0.0005101142008 | BZ32: 0.003820115699 | CA32: 1.171310832 | CB32: 0 | CC32: 0 | CD32: 0.1406137251 | CE32: 0.202173238 | CF32: 0.006485512981 | CG32: 0.4232335574 | CH32: 20.05688236 | CI32: 0.1978991477 | CJ32: 0.9245525844 | CK32: 6.707520093 | CL32: 1.453129039 | CM32: 1.337423986 | CN32: 0 | CO32: 0.00659793184 | CP32: 0.01705544763 | CQ32: 12.63346932 | CR32: 4.159551797 | CS32: 68.23963819 | CT32: 945.9017383 | CU32: 9.611882505 | CV32: 1.142507795 | CW32: 0.7012378802 | CX32: 1.434319442 | CY32: 0.002973646579 | CZ32: 1.099954527 | DA32: 0.01093177869 | DB32: 0.001344688602 | DC32: 0 | DD32: 2974.932296 | DE32: 0 | DF32: 1732.669385 | DG32: 0 | DH32: 0 | DI32: 0 | DJ32: 20.67655132 | DK32: 7272.629802 | DL32: 7701.038797 | DM32: 25.05879714 | DN32: 16.70586476 | DO32: 21792.81506 | DQ32: 21792 | DR32: 0.9999625995 | DT32: 0.8150630188
A33: 22 | B33: Rubber and plastic products | C33: 161.2064017 | D33: 0.8580627029 | E33: 35.10442921 | F33: 5.132359829 | G33: 0.2822283507 | H33: 5.92474719 | I33: 0 | J33: 316.2305478 | K33: 219.9995829 | L33: 5.811154649 | M33: 234.0908633 | N33: 41.2415919 | O33: 198.2076034 | P33: 162.4287936 | Q33: 34.42937099 | R33: 1.785723855 | S33: 410.843303 | T33: 2.261514029 | U33: 1.992885061 | V33: 7.082786276 | W33: 65.02651367 | X33: 2.303130838 | Y33: 4.720405781 | Z33: 9.848752775 | AA33: 2.760158499 | AB33: 10.15446905 | AC33: 5.982112214 | AD33: 57.15713776 | AE33: 802.1516183 | AF33: 58.55071563 | AG33: 22.46506671 | AH33: 506.4071023 | AI33: 53.57412679 | AJ33: 3.194345959 | AK33: 7.686955379 | AL33: 12.82631207 | AM33: 12.23573615 | AN33: 157.9737527 | AO33: 140.840076 | AP33: 76.4174052 | AQ33: 318.9677068 | AR33: 1395.502072 | AS33: 116.9876234 | AT33: 29.2753738 | AU33: 5.174549297 | AV33: 185.6034431 | AW33: 92.86634607 | AX33: 31.57919444 | AY33: 6.745665993 | AZ33: 74.67619849 | BA33: 9.029687746 | BB33: 15.65609099 | BC33: 9.718417213 | BD33: 15.21600936 | BE33: 10.21947525 | BF33: 1.07850234 | BG33: 4172.759154 | BH33: 75.34235642 | BI33: 531.3806733 | BJ33: 70.31951966 | BK33: 37.06538956 | BL33: 475.0511284 | BM33: 22.48582179 | BN33: 3.247074291 | BO33: 92.11702733 | BP33: 57.53200385 | BQ33: 11.22244539 | BR33: 56.14689371 | BS33: 6.958974528 | BT33: 17.01620876 | BU33: 866.3904039 | BV33: 119.4703363 | BW33: 8.208777366 | BX33: 0 | BY33: 33.2334064 | BZ33: 31.28667917 | CA33: 34.64281243 | CB33: 5.896516072 | CC33: 1.034396984 | CD33: 27.71472356 | CE33: 2.751941981 | CF33: 1.378276336 | CG33: 23.03070508 | CH33: 59.12728833 | CI33: 2.200556764 | CJ33: 8.728155648 | CK33: 7.934791539 | CL33: 18.86617896 | CM33: 26.73546493 | CN33: 33.07603786 | CO33: 6.053772728 | CP33: 49.30703362 | CQ33: 8.170480248 | CR33: 97.96167357 | CS33: 118.3915803 | CT33: 213.6784015 | CU33: 81.95458955 | CV33: 5.085256062 | CW33: 2.94395697 | CX33: 20.03014387 | CY33: 0.306462382 | CZ33: 12.56086659 | DA33: 12.91546017 | DB33: 0.0003646566509 | DC33: 0 | DD33: 8.034826721 | DE33: 0 | DF33: 0 | DG33: 0 | DH33: 565.6622776 | DI33: 0 | DJ33: 119.2411794 | DK33: 3820.194512 | DL33: 1941.695604 | DM33: 209.6239588 | DN33: 145.0428402 | DO33: 20554.69356 | DQ33: 20552 | DR33: 0.9998689563 | DT33: 2.693562173
A34: 23.5-6 | B34: Cement, lime, plaster and articles of concrete, cement and plaster | C34: 63.65908126 | D34: 0 | E34: 0 | F34: 5.260337682 | G34: 5.243274244 | H34: 112.336831 | I34: 0.1529665093 | J34: 0 | K34: 0 | L34: 0.002195689619 | M34: 0 | N34: 0.001135031804 | O34: 0 | P34: 2.418817738 | Q34: 0 | R34: 0 | S34: 0 | T34: 0.007449247064 | U34: 0.3165342027 | V34: 0.002819300383 | W34: 0.7378280028 | X34: 0.5830319008 | Y34: 0.6576905541 | Z34: 0.1645823906 | AA34: 1.378096444 | AB34: 0.5253869609 | AC34: 0.4177169162 | AD34: 1.05249152 | AE34: 5.166990719 | AF34: 1.778284177 | AG34: 0.1716674066 | AH34: 0.3916915497 | AI34: 588.4282819 | AJ34: 19.76789698 | AK34: 16.15868321 | AL34: 17.11603515 | AM34: 0.7494775132 | AN34: 6.114296073 | AO34: 0.1617876497 | AP34: 0.0007747621436 | AQ34: 1.145867308 | AR34: 0.09283701519 | AS34: 0.001849794008 | AT34: 0.1139711703 | AU34: 0.1058250679 | AV34: 0.2764125821 | AW34: 0.4547879723 | AX34: 0.02240402098 | AY34: 0.09420548924 | AZ34: 0.9464669222 | BA34: 6.568743011 | BB34: 0 | BC34: 8.299360263 | BD34: 15.43062307 | BE34: 21.82195726 | BF34: 0.9210223504 | BG34: 4473.626071 | BH34: 2.489255389 | BI34: 91.92790791 | BJ34: 23.89654679 | BK34: 41.06361315 | BL34: 10.9705532 | BM34: 0.0004529981164 | BN34: 0.8201981334 | BO34: 6.86179337 | BP34: 3.487704416 | BQ34: 0.00349490915 | BR34: 4.763840984 | BS34: 0.01753915226 | BT34: 14.51946118 | BU34: 14.0272527 | BV34: 3.382526293 | BW34: 0.174019482 | BX34: 0 | BY34: 0.0002898761987 | BZ34: 0.01901770002 | CA34: 9.48671328 | CB34: 0 | CC34: 0 | CD34: 0.3197856963 | CE34: 0.9965234322 | CF34: 0.07093527467 | CG34: 2.012392557 | CH34: 3.265615297 | CI34: 0.822771594 | CJ34: 0.4710034635 | CK34: 0 | CL34: 3.021818788 | CM34: 3.102932877 | CN34: 0.0004299394228 | CO34: 1.120571234 | CP34: 8.06369335 | CQ34: 0.9293402701 | CR34: 108.9490045 | CS34: 167.0887845 | CT34: 25.56450313 | CU34: 4.874685081 | CV34: 3.477069318 | CW34: 8.553170876 | CX34: 1.712359973 | CY34: 50.69852562 | CZ34: 6.5597138 | DA34: 0.02480289227 | DB34: 0.0007642985424 | DC34: 0 | DD34: 210.9942951 | DE34: 0 | DF34: 0 | DG34: 0 | DH34: 13.6624672 | DI34: 0 | DJ34: 71.36796794 | DK34: 836.9088142 | DL34: 524.0457061 | DM34: 8.137056196 | DN34: 5.424704131 | DO34: 7681.000927 | DQ34: 7680 | DR34: 0.9998696879 | DT34: 1.000927451
A35: 23OTHER | B35: Glass, refractory, clay, other porcelain and ceramic, stone and abrasive products - 23.1-4/7-9 | C35: 50.81048414 | D35: 0 | E35: 0 | F35: 3.998279564 | G35: 1.434267683 | H35: 21.66705844 | I35: 0.0387595538 | J35: 3.359238485 | K35: 36.88632177 | L35: 0.5845848181 | M35: 21.81510382 | N35: 1.210540451 | O35: 1.016816803 | P35: 114.4246502 | Q35: 0.008352356216 | R35: 331.0699727 | S35: 59.58589594 | T35: 0.1925102884 | U35: 0.7362095466 | V35: 0.2784714901 | W35: 49.55903282 | X35: 0.7108114399 | Y35: 1.83157098 | Z35: 2.585576957 | AA35: 2.158260053 | AB35: 14.77092578 | AC35: 1.058226946 | AD35: 4.771008262 | AE35: 97.76674692 | AF35: 1.968034954 | AG35: 3.892931465 | AH35: 116.7652133 | AI35: 102.5702513 | AJ35: 15.24343554 | AK35: 38.04964804 | AL35: 86.28375687 | AM35: 6.738504677 | AN35: 32.65055978 | AO35: 148.6975041 | AP35: 60.16758569 | AQ35: 2.527252875 | AR35: 61.51548975 | AS35: 8.462629539 | AT35: 0.4594099574 | AU35: 0.3952870622 | AV35: 2.692036134 | AW35: 12.22538139 | AX35: 2.219772237 | AY35: 0.5375083943 | AZ35: 14.15591322 | BA35: 1.423647346 | BB35: 0 | BC35: 0 | BD35: 6.173529521 | BE35: 35.29247212 | BF35: 0 | BG35: 3956.250199 | BH35: 73.1255256 | BI35: 222.6009353 | BJ35: 97.18306297 | BK35: 44.22099423 | BL35: 31.0142892 | BM35: 2.641802392 | BN35: 12.46959763 | BO35: 7.93513558 | BP35: 7.959569662 | BQ35: 10.353296 | BR35: 35.28507229 | BS35: 0.5725453858 | BT35: 8.589089389 | BU35: 42.68238593 | BV35: 13.19806214 | BW35: 1.646658077 | BX35: 0 | BY35: 0.008373361122 | BZ35: 0.09159385903 | CA35: 2.759745039 | CB35: 0 | CC35: 0 | CD35: 0.5914819879 | CE35: 0.9525666437 | CF35: 0.2199331607 | CG35: 3.503543292 | CH35: 10.45291155 | CI35: 1.025041687 | CJ35: 1.642751961 | CK35: 1.290877815 | CL35: 4.088841046 | CM35: 2.335707193 | CN35: 2.603282717 | CO35: 1.327184465 | CP35: 1.608848187 | CQ35: 1.427391778 | CR35: 66.33944167 | CS35: 118.4317967 | CT35: 21.44336826 | CU35: 22.15673575 | CV35: 2.65411543 | CW35: 4.195564967 | CX35: 10.21202642 | CY35: 4.857699609 | CZ35: 4.986416593 | DA35: 2.092600194 | DB35: 0.02207295838 | DC35: 0 | DD35: 28.68745026 | DE35: 0 | DF35: 0 | DG35: 0 | DH35: 0 | DI35: 0 | DJ35: 104.5322343 | DK35: 141.5060436 | DL35: 79.67146995 | DM35: 0 | DN35: 0 | DO35: 6800.884767 | DQ35: 6800 | DR35: 0.9998699041 | DT35: 0.8847669724
A36: 24.1-3 | B36: Basic iron and steel | C36: 1.89624576 | D36: 0 | E36: 0 | F36: 3.141331332 | G36: 51.52602863 | H36: 2.996842082 | I36: 1.518830667 | J36: 0.966064454 | K36: 0.942892273 | L36: 0.02296798927 | M36: 0.9701791999 | N36: 0.990552374 | O36: 0.06196975242 | P36: 0.1290204135 | Q36: 0.02488677417 | R36: 0.002391332017 | S36: 0.04034721884 | T36: 2.85411542 | U36: 0.005311002645 | V36: 1.667884711 | W36: 6.596607747 | X36: 0.1019829968 | Y36: 2.216916836 | Z36: 10.95225778 | AA36: 0.1376330171 | AB36: 0.3739483952 | AC36: 2.225600966 | AD36: 0.8371752162 | AE36: 0.8253118186 | AF36: 0.9936456108 | AG36: 3.447287594 | AH36: 10.08044642 | AI36: 4.212031655 | AJ36: 0.1905496173 | AK36: 974.7763508 | AL36: 1.735724074 | AM36: 11.25167155 | AN36: 1374.500134 | AO36: 78.50377676 | AP36: 93.6253598 | AQ36: 634.068381 | AR36: 659.1467236 | AS36: 24.44902703 | AT36: 12.41248442 | AU36: 2.295815096 | AV36: 180.0257283 | AW36: 31.50752774 | AX36: 15.20073624 | AY36: 5.496366617 | AZ36: 85.46731683 | BA36: 7.818420494 | BB36: 0 | BC36: 4.944346164 | BD36: 0 | BE36: 6.456899092 | BF36: 0 | BG36: 29.40781381 | BH36: 35.24544885 | BI36: 51.03251595 | BJ36: 1.097953396 | BK36: 6.115914712 | BL36: 27.83386612 | BM36: 0.004497895878 | BN36: 0.1347234745 | BO36: 0 | BP36: 0.002332641801 | BQ36: 0.006395492133 | BR36: 40.21757334 | BS36: 0.6982155465 | BT36: 0.0005851696568 | BU36: 4.174510584 | BV36: 14.56256979 | BW36: 0.05371713146 | BX36: 0 | BY36: 9.222459425 | BZ36: 0.001279457446 | CA36: 4.280737203 | CB36: 0 | CC36: 0 | CD36: 1.085909335 | CE36: 1.557803857 | CF36: 0.007903263741 | CG36: 16.44262625 | CH36: 26.61340782 | CI36: 0.001890893208 | CJ36: 1.681310173 | CK36: 0 | CL36: 4.329660129 | CM36: 1.396346526 | CN36: 0 | CO36: 0.08691906712 | CP36: 0.006225043814 | CQ36: 3.777506668 | CR36: 0 | CS36: 1.886622785 | CT36: 0 | CU36: 0 | CV36: 0 | CW36: 0.007712055103 | CX36: 0.9636351056 | CY36: 0.0005288976993 | CZ36: 0 | DA36: 0.8456155306 | DB36: 2.205418904e-08 | DC36: 0 | DD36: 0 | DE36: 0 | DF36: 0 | DG36: 0 | DH36: 77.90586372 | DI36: 0 | DJ36: 79.84991379 | DK36: 2578.681893 | DL36: 2389.497786 | DM36: 0 | DN36: 0 | DO36: 9727.352237 | DQ36: 9726 | DR36: 0.9998609861 | DT36: 1.352237368
A37: 24.4-5 | B37: Other basic metals and casting | C37: 39.19650737 | D37: 0 | E37: 0 | F37: 0.0005337296398 | G37: 3.466589893 | H37: 0 | I37: 0.101822001 | J37: 0.065400685 | K37: 3.202684532 | L37: 0.01194484116 | M37: 0.01499388715 | N37: 0.01992774638 | O37: 0.01623033371 | P37: 2.323587009 | Q37: 0.003699649062 | R37: 1.137211179 | S37: 0.06754993863 | T37: 0.8151918236 | U37: 0.1597122383 | V37: 0.3381684551 | W37: 1.391347877 | X37: 0.4402380562 | Y37: 0.3877563153 | Z37: 1.042653353 | AA37: 1.472722419 | AB37: 6.180991209 | AC37: 1.634303061 | AD37: 1.160463268 | AE37: 1.783678465 | AF37: 1.458674755 | AG37: 6.036372595 | AH37: 2.991240268 | AI37: 11.35675403 | AJ37: 13.83567188 | AK37: 2.259665752 | AL37: 219.1242284 | AM37: 15.37169693 | AN37: 107.8140001 | AO37: 82.90215919 | AP37: 116.8095851 | AQ37: 567.846018 | AR37: 316.2505927 | AS37: 10.55556574 | AT37: 39.18608524 | AU37: 1.159412125 | AV37: 12.65680754 | AW37: 74.18045814 | AX37: 2.598916342 | AY37: 15.19138913 | AZ37: 62.31925037 | BA37: 110.95356 | BB37: 0 | BC37: 1.10489214 | BD37: 1.081197739 | BE37: 1.030357166 | BF37: 0 | BG37: 193.784388 | BH37: 16.82352262 | BI37: 55.82822047 | BJ37: 16.63835894 | BK37: 1.138914677 | BL37: 9.706573582 | BM37: 0.0003015377345 | BN37: 0.5511815973 | BO37: 0 | BP37: 4.643828325 | BQ37: 0.03958918803 | BR37: 12.36239178 | BS37: 0.3719860059 | BT37: 0 | BU37: 19.86873527 | BV37: 14.41574486 | BW37: 1.013172223 | BX37: 0 | BY37: 5.724733415 | BZ37: 0.01383073932 | CA37: 2.588485736 | CB37: 0 | CC37: 0 | CD37: 0.7294441514 | CE37: 1.060733411 | CF37: 0.1334954792 | CG37: 8.437552055 | CH37: 18.30906324 | CI37: 0.6909418722 | CJ37: 1.144474961 | CK37: 0 | CL37: 3.017147549 | CM37: 2.683770739 | CN37: 0 | CO37: 0.2284150642 | CP37: 5.321618928 | CQ37: 2.268154008 | CR37: 0 | CS37: 0.9716128583 | CT37: 0 | CU37: 0 | CV37: 0 | CW37: 0.1206366252 | CX37: 0.07310280557 | CY37: 0.002834225403 | CZ37: 0 | DA37: 1.036379176 | DB37: 0.000102345544 | DC37: 0 | DD37: 0 | DE37: 0 | DF37: 0 | DG37: 0 | DH37: 7.795206314 | DI37: 0 | DJ37: 92.69466366 | DK37: 2398.07946 | DL37: 5188.723381 | DM37: 13.24014551 | DN37: 9.629196736 | DO37: 9974.415952 | DQ37: 9973 | DR37: 0.9998580416 | DT37: 1.415951929
A38: 25.4 | B38: Weapons and ammunition | C38: 0 | D38: 0 | E38: 0 | F38: 0.0008820685074 | G38: 5.708663733 | H38: 0.73779146 | I38: 0.1682761716 | J38: 0 | K38: 0 | L38: 0 | M38: 0 | N38: 0.001498333576 | O38: 0 | P38: 0.01080734907 | Q38: 0 | R38: 0 | S38: 0 | T38: 0.01011525913 | U38: 0.0012325903 | V38: 0.02256504685 | W38: 0.02632071549 | X38: 0.01765859349 | Y38: 0.02441949697 | Z38: 0 | AA38: 0.009580228569 | AB38: 0.02577139268 | AC38: 0.0005779274233 | AD38: 0.01464945365 | AE38: 0.01736197628 | AF38: 0.88894245 | AG38: 0.0004218395 | AH38: 6.778215967 | AI38: 0.03268005741 | AJ38: 0.001371144415 | AK38: 0.06620506756 | AL38: 0.01240748236 | AM38: 319.2305838 | AN38: 7.093282662 | AO38: 0.1135476532 | AP38: 0.008701722006 | AQ38: 7.583421609 | AR38: 0.007274976437 | AS38: 0.01063947256 | AT38: 0.009680523252 | AU38: 3.30555358 | AV38: 0.02432997564 | AW38: 0.1095192818 | AX38: 0.01977766152 | AY38: 0.0009118708481 | AZ38: 24.11100751 | BA38: 0 | BB38: 0 | BC38: 0 | BD38: 0 | BE38: 0.0003384387757 | BF38: 0 | BG38: 0.09170593511 | BH38: 0 | BI38: 1.0317268 | BJ38: 0 | BK38: 0 | BL38: 0.1336323315 | BM38: 0.0004983364602 | BN38: 0 | BO38: 0 | BP38: 0 | BQ38: 0 | BR38: 10.95803448 | BS38: 0.00412341945 | BT38: 0 | BU38: 0 | BV38: 5.170320003 | BW38: 0.0007469750913 | BX38: 0 | BY38: 0 | BZ38: 0 | CA38: 0.4795855325 | CB38: 0 | CC38: 0 | CD38: 0.009931616469 | CE38: 0.01737585543 | CF38: 0 | CG38: 0.3019067648 | CH38: 34.54285286 | CI38: 0 | CJ38: 0.01133883661 | CK38: 0 | CL38: 0.3130057866 | CM38: 0.2621268811 | CN38: 0 | CO38: 0.001506076022 | CP38: 0 | CQ38: 0.2973484726 | CR38: 720.0786649 | CS38: 0 | CT38: 0 | CU38: 0 | CV38: 0 | CW38: 0 | CX38: 0 | CY38: 0 | CZ38: 0 | DA38: 0.001171933442 | DB38: 0 | DC38: 0 | DD38: 62.27386319 | DE38: 0 | DF38: 0 | DG38: 0 | DH38: 1433.42075 | DI38: 0 | DJ38: 30.25539507 | DK38: 653.2461072 | DL38: 631.2188412 | DM38: 3.182739184 | DN38: 1.98921199 | DO38: 3965.501498 | DQ38: 3965 | DR38: 0.9998735347 | DT38: 0.5014983622
A39: 25OTHER | B39: Fabricated metal products, excl. machinery and equipment and weapons & ammunition - 25.1-3/25.5-9 | C39: 198.5921581 | D39: 2.203183719 | E39: 7.511252443 | F39: 51.50139505 | G39: 694.3189531 | H39: 23.95647443 | I39: 70.6479185 | J39: 81.9032897 | K39: 100.5027274 | L39: 2.496970916 | M39: 55.00945396 | N39: 10.94727488 | O39: 88.09193343 | P39: 222.5296726 | Q39: 155.4925661 | R39: 556.7615331 | S39: 370.5914208 | T39: 24.1460387 | U39: 13.07997667 | V39: 17.23505511 | W39: 162.922 | X39: 10.7789848 | Y39: 94.98984915 | Z39: 228.376438 | AA39: 4.076221012 | AB39: 16.91904786 | AC39: 43.29424029 | AD39: 72.61631135 | AE39: 449.5051838 | AF39: 31.24132273 | AG39: 92.40946728 | AH39: 487.8681769 | AI39: 137.3514449 | AJ39: 126.5916246 | AK39: 119.7053582 | AL39: 185.9845306 | AM39: 115.7638793 | AN39: 2585.637369 | AO39: 575.3945225 | AP39: 797.3181691 | AQ39: 2876.742378 | AR39: 3064.382496 | AS39: 262.0802029 | AT39: 2282.692641 | AU39: 13.30559582 | AV39: 191.9232109 | AW39: 246.1490846 | AX39: 50.54462451 | AY39: 185.6283531 | AZ39: 360.8908281 | BA39: 456.6819493 | BB39: 35.17410682 | BC39: 19.96260507 | BD39: 10.9881603 | BE39: 88.44933397 | BF39: 0 | BG39: 5337.021675 | BH39: 260.8143625 | BI39: 396.0278288 | BJ39: 218.4393139 | BK39: 73.30665337 | BL39: 80.86951517 | BM39: 35.34711812 | BN39: 26.60987871 | BO39: 11.89640878 | BP39: 14.41056865 | BQ39: 4.874578756 | BR39: 104.1013054 | BS39: 6.657827332 | BT39: 4.123589073 | BU39: 43.59230712 | BV39: 94.89774385 | BW39: 0.9979752209 | BX39: 0 | BY39: 36.21262702 | BZ39: 30.68604266 | CA39: 63.18149143 | CB39: 0 | CC39: 1.327972063 | CD39: 7.822056673 | CE39: 8.126448712 | CF39: 0.3634826956 | CG39: 175.6077841 | CH39: 211.0297928 | CI39: 3.078574447 | CJ39: 10.87151557 | CK39: 1.276450827 | CL39: 21.75437242 | CM39: 10.25684619 | CN39: 1.287094076 | CO39: 0.9688627159 | CP39: 8.420223526 | CQ39: 17.94801178 | CR39: 20.96074133 | CS39: 144.85575 | CT39: 62.28591251 | CU39: 135.6037761 | CV39: 1.301354647 | CW39: 1.742999788 | CX39: 3.389473671 | CY39: 12.897727 | CZ39: 0 | DA39: 15.85010011 | DB39: 0.03063301514 | DC39: 0 | DD39: 48.99726264 | DE39: 0 | DF39: 0 | DG39: 0 | DH39: 827.4329583 | DI39: 0 | DJ39: 5.233618782 | DK39: 117.5836614 | DL39: 572.6324309 | DM39: 0 | DN39: 0 | DO39: 28526.86566 | DQ39: 28523 | DR39: 0.9998644906 | DT39: 3.86565972
A40: 26 | B40: Computer, electronic and optical products | C40: 6.67973604 | D40: 3.503083783 | E40: 4.976235527 | F40: 7.333590248 | G40: 0.01110252146 | H40: 7.017211264 | I40: 0 | J40: 6.052546137 | K40: 0.269103088 | L40: 0.07063030813 | M40: 2.019814131 | N40: 2.238545726 | O40: 4.729056609 | P40: 7.160253467 | Q40: 2.041962681 | R40: 5.119549188 | S40: 1.811533176 | T40: 5.766990947 | U40: 3.908523358 | V40: 0.2365798359 | W40: 7.615231055 | X40: 7.057985461 | Y40: 3.705725995 | Z40: 2.321430562 | AA40: 5.251520493 | AB40: 14.90663525 | AC40: 15.52170697 | AD40: 0.3168910845 | AE40: 7.970915689 | AF40: 18.13346024 | AG40: 25.15277115 | AH40: 14.63357256 | AI40: 7.497436133 | AJ40: 3.850598689 | AK40: 37.64449528 | AL40: 26.05465714 | AM40: 92.41527053 | AN40: 19.66501942 | AO40: 2193.560884 | AP40: 210.6705054 | AQ40: 5.527188052 | AR40: 7.309224548 | AS40: 28.9978304 | AT40: 3.327696425 | AU40: 4.749518098 | AV40: 5.125023567 | AW40: 128.7892093 | AX40: 6.858323589 | AY40: 10.46509349 | AZ40: 188.1465008 | BA40: 63.53638583 | BB40: 18.97529179 | BC40: 6.943286526 | BD40: 4.853134153 | BE40: 29.26423169 | BF40: 0 | BG40: 135.48904 | BH40: 0.06407657352 | BI40: 120.212427 | BJ40: 40.30114066 | BK40: 3.067323681 | BL40: 45.8746248 | BM40: 1.053113527 | BN40: 0.08877814092 | BO40: 0.005776343881 | BP40: 10.05674943 | BQ40: 8.82287977 | BR40: 36.93776458 | BS40: 6.335756489 | BT40: 39.11943297 | BU40: 1250.949431 | BV40: 32.89855218 | BW40: 13.57611278 | BX40: 0 | BY40: 21.58498352 | BZ40: 10.34093713 | CA40: 32.63489652 | CB40: 7.02123945 | CC40: 1.055744321 | CD40: 6.604980788 | CE40: 2.585488165 | CF40: 1.094932173 | CG40: 18.48057321 | CH40: 96.09008573 | CI40: 3.163010056 | CJ40: 17.70196342 | CK40: 19.23651219 | CL40: 10.13282425 | CM40: 9.084615384 | CN40: 11.25403734 | CO40: 0.5432001604 | CP40: 6.057349717 | CQ40: 11.07090268 | CR40: 300.9355811 | CS40: 217.636315 | CT40: 382.1652504 | CU40: 81.79406691 | CV40: 0 | CW40: 6.534199555 | CX40: 15.52576088 | CY40: 21.92170466 | CZ40: 0.9960497758 | DA40: 0.4348821401 | DB40: 9.814431914e-05 | DC40: 0 | DD40: 494.0888741 | DE40: 0 | DF40: 0 | DG40: 0 | DH40: 3027.807184 | DI40: 0 | DJ40: 38.4869622 | DK40: 4524.412111 | DL40: 5701.320137 | DM40: 17.28889429 | DN40: 12.96667072 | DO40: 20172.6667 | DQ40: 20170 | DR40: 0.9998678064 | DT40: 2.666696614
A41: 27 | B41: Electrical equipment | C41: 56.38509944 | D41: 0 | E41: 0 | F41: 1.205063704 | G41: 68.3714431 | H41: 1.142373178 | I41: 2.014947462 | J41: 1.115584506 | K41: 1.097730608 | L41: 0.02616486735 | M41: 1.109553734 | N41: 0.0314690224 | O41: 2.063600909 | P41: 0.1156737619 | Q41: 0.02757400901 | R41: 3.493751892 | S41: 1.052841557 | T41: 1.018062906 | U41: 0.3624108643 | V41: 1.219575921 | W41: 3.112929221 | X41: 0.1863019838 | Y41: 0.4777547825 | Z41: 1.212845348 | AA41: 0.1145889207 | AB41: 0.6087359871 | AC41: 2.847094005 | AD41: 0.4582904844 | AE41: 2.673978809 | AF41: 2.926593227 | AG41: 6.431630747 | AH41: 5.90856879 | AI41: 2.416499529 | AJ41: 2.728725768 | AK41: 4.609019595 | AL41: 0.4405107162 | AM41: 39.77282329 | AN41: 13.45496964 | AO41: 523.6360342 | AP41: 614.7146399 | AQ41: 198.7244281 | AR41: 229.2946366 | AS41: 55.12630404 | AT41: 2.320574209 | AU41: 12.03150324 | AV41: 2.23033874 | AW41: 149.9507521 | AX41: 21.7921386 | AY41: 6.324586242 | AZ41: 165.4972433 | BA41: 1067.679302 | BB41: 59.2115463 | BC41: 5.65464375 | BD41: 0 | BE41: 29.52802974 | BF41: 0 | BG41: 1342.637779 | BH41: 11.3802423 | BI41: 65.50522128 | BJ41: 155.9948812 | BK41: 10.4917772 | BL41: 301.9745044 | BM41: 9.47702333 | BN41: 0.04498748609 | BO41: 2.390277572 | BP41: 36.88927169 | BQ41: 0.1683990374 | BR41: 24.87593986 | BS41: 2.232971829 | BT41: 54.93749885 | BU41: 250.4040211 | BV41: 124.1182487 | BW41: 5.587349283 | BX41: 0 | BY41: 22.26661626 | BZ41: 11.63955871 | CA41: 41.29891469 | CB41: 11.43625792 | CC41: 2.407448174 | CD41: 18.95885236 | CE41: 3.91204211 | CF41: 1.918210986 | CG41: 16.44645148 | CH41: 41.26019584 | CI41: 4.916853299 | CJ41: 13.83040403 | CK41: 0 | CL41: 153.640129 | CM41: 12.18388366 | CN41: 2.333634402 | CO41: 14.09385064 | CP41: 10.1414639 | CQ41: 8.816884054 | CR41: 374.0603169 | CS41: 91.53885437 | CT41: 9.609924437 | CU41: 61.02168883 | CV41: 3.558500259 | CW41: 8.986717189 | CX41: 10.4965812 | CY41: 40.90572156 | CZ41: 5.605024289 | DA41: 75.44454431 | DB41: 0.01737172092 | DC41: 0 | DD41: 2.33752481 | DE41: 0 | DF41: 0 | DG41: 0 | DH41: 1187.526153 | DI41: 0 | DJ41: 41.50956199 | DK41: 2284.058183 | DL41: 2812.706274 | DM41: 18.48020108 | DN41: 12.32013406 | DO41: 13206.74681 | DQ41: 13205 | DR41: 0.9998677338 | DT41: 1.746806062
A42: 28 | B42: Machinery and equipment n.e.c. | C42: 38.17453538 | D42: 3.29383243 | E42: 2.49546011 | F42: 44.66837569 | G42: 75.18139519 | H42: 32.66512041 | I42: 2.215568812 | J42: 122.8649919 | K42: 31.10160961 | L42: 0.8213478659 | M42: 31.23053946 | N42: 25.64365873 | O42: 57.53709166 | P42: 76.71527673 | Q42: 18.37932041 | R42: 46.35219142 | S42: 20.14059615 | T42: 1.195706892 | U42: 8.17100283 | V42: 0.4271437379 | W42: 50.36394883 | X42: 99.90030292 | Y42: 104.1331461 | Z42: 43.09508227 | AA42: 2.866215047 | AB42: 10.1306807 | AC42: 31.32295338 | AD42: 14.16789118 | AE42: 15.27366169 | AF42: 4.430763527 | AG42: 27.63987164 | AH42: 0.0557257344 | AI42: 51.71901539 | AJ42: 44.00005896 | AK42: 218.4264741 | AL42: 78.68785015 | AM42: 35.47597086 | AN42: 5.778969175 | AO42: 144.7234181 | AP42: 255.0274813 | AQ42: 822.5320426 | AR42: 11.44370752 | AS42: 163.4802627 | AT42: 7.373303747 | AU42: 5.610119062 | AV42: 46.24723454 | AW42: 40.29562639 | AX42: 29.11439147 | AY42: 50.78310378 | AZ42: 132.0576932 | BA42: 205.5943911 | BB42: 35.05763432 | BC42: 123.10961 | BD42: 6.084319473 | BE42: 91.59812122 | BF42: 0 | BG42: 788.4267167 | BH42: 161.4172129 | BI42: 94.07877101 | BJ42: 27.25132845 | BK42: 26.91828339 | BL42: 115.3816372 | BM42: 1.315726084 | BN42: 0.5317673956 | BO42: 0.007241737083 | BP42: 3.956012096 | BQ42: 4.102517568 | BR42: 32.13497435 | BS42: 11.97453505 | BT42: 42.83574128 | BU42: 81.38472431 | BV42: 22.29773949 | BW42: 1.964576492 | BX42: 1.328901767 | BY42: 11.61690745 | BZ42: 6.328458391 | CA42: 62.69813103 | CB42: 1.257492657 | CC42: 0 | CD42: 10.36228523 | CE42: 3.138949338 | CF42: 0.6763304603 | CG42: 10.21463445 | CH42: 24.2513741 | CI42: 7.62616392 | CJ42: 21.45876214 | CK42: 0 | CL42: 22.58717077 | CM42: 10.06612295 | CN42: 1.285569946 | CO42: 18.15821104 | CP42: 3.897000653 | CQ42: 5.378870561 | CR42: 67.56904049 | CS42: 1.267657978 | CT42: 0 | CU42: 24.32143989 | CV42: 0 | CW42: 1.905868377 | CX42: 3.663118234 | CY42: 24.55480811 | CZ42: 0 | DA42: 5.95038675 | DB42: 0.05309715709 | DC42: 0 | DD42: 39.83909309 | DE42: 0 | DF42: 0 | DG42: 0 | DH42: 2241.585946 | DI42: 0 | DJ42: -23.47329883 | DK42: 8344.234516 | DL42: 15036.02933 | DM42: 1.354680719 | DN42: 1.354680719 | DO42: 31055.39702 | DQ42: 31051 | DR42: 0.9998584138 | DT42: 4.397016694
A43: 29 | B43: Motor vehicles, trailers and semi-trailers | C43: 45.73945648 | D43: 11.86018239 | E43: 0 | F43: 18.05738203 | G43: 0.07383471285 | H43: 39.47410444 | I43: 2.046498985 | J43: 20.54759785 | K43: 4.189845928 | L43: 1.542683244 | M43: 26.54592377 | N43: 5.132136608 | O43: 19.59304476 | P43: 9.5264044 | Q43: 9.825693259 | R43: 39.00010176 | S43: 9.324235093 | T43: 14.27284808 | U43: 6.031369329 | V43: 0.3083058252 | W43: 24.9581638 | X43: 17.43924019 | Y43: 10.08822894 | Z43: 4.023600293 | AA43: 5.399213115 | AB43: 9.41361176 | AC43: 22.84687399 | AD43: 3.163595338 | AE43: 2.401773791 | AF43: 1.796300314 | AG43: 6.573641859 | AH43: 10.40700539 | AI43: 43.55984792 | AJ43: 7.427638555 | AK43: 52.10640479 | AL43: 52.68963635 | AM43: 16.75605226 | AN43: 14.85562092 | AO43: 107.8460687 | AP43: 112.3518388 | AQ43: 41.1649141 | AR43: 2096.322668 | AS43: 6.061729954 | AT43: 0.8852918762 | AU43: 7.532618442 | AV43: 61.44578345 | AW43: 28.64599586 | AX43: 6.341869117 | AY43: 1.975395695 | AZ43: 56.70417372 | BA43: 62.1010575 | BB43: 4.91816396 | BC43: 13.43284125 | BD43: 13.1447741 | BE43: 40.39539169 | BF43: 0 | BG43: 175.5259121 | BH43: 112.5268725 | BI43: 128.2633325 | BJ43: 270.6783972 | BK43: 3.776311032 | BL43: 428.1149128 | BM43: 5.11338357 | BN43: 0.01214427762 | BO43: 72.43193197 | BP43: 234.3113016 | BQ43: 14.29320994 | BR43: 64.54292257 | BS43: 9.60520728 | BT43: 43.95314116 | BU43: 105.3642995 | BV43: 116.9168039 | BW43: 12.74978727 | BX43: 0 | BY43: 94.90778542 | BZ43: 55.85369456 | CA43: 61.43566204 | CB43: 16.0534081 | CC43: 2.599542363 | CD43: 28.85786188 | CE43: 22.01873908 | CF43: 45.77003125 | CG43: 17.57393103 | CH43: 55.54382919 | CI43: 6.436337925 | CJ43: 22.97295326 | CK43: 1.249344054 | CL43: 629.2661576 | CM43: 47.37393295 | CN43: 42.82381778 | CO43: 262.1296203 | CP43: 25.51092276 | CQ43: 6.865120936 | CR43: 304.4964846 | CS43: 118.8269457 | CT43: 92.83509063 | CU43: 258.5961446 | CV43: 3.842438758 | CW43: 9.797304749 | CX43: 11.61280451 | CY43: 29.98571186 | CZ43: 10.87823779 | DA43: 24.0615308 | DB43: 0.07435730045 | DC43: 0 | DD43: 2848.378802 | DE43: 0 | DF43: 0 | DG43: 0 | DH43: 575.8058188 | DI43: 0 | DJ43: 217.7052891 | DK43: 14502.06862 | DL43: 20264.45713 | DM43: 91.7919248 | DN43: 65.18556978 | DO43: 45924.09145 | DQ43: 45918 | DR43: 0.9998673584 | DT43: 6.091445255
A44: 30.1 | B44: Ships and boats | C44: 0 | D44: 0 | E44: 12.07219829 | F44: 0 | G44: 0 | H44: 0 | I44: 6.204052441 | J44: 0 | K44: 0 | L44: 0 | M44: 0 | N44: 0 | O44: 0 | P44: 0 | Q44: 0 | R44: 0 | S44: 0 | T44: 0.1192081945 | U44: 0.1005499204 | V44: 0 | W44: 0.3277751308 | X44: 0 | Y44: 0 | Z44: 0 | AA44: 0 | AB44: 0 | AC44: 0 | AD44: 0 | AE44: 0 | AF44: 0 | AG44: 0 | AH44: 0.9663773895 | AI44: 0 | AJ44: 0.1670856141 | AK44: 0 | AL44: 0 | AM44: 0 | AN44: 0 | AO44: 0.3948609972 | AP44: 0.1254234272 | AQ44: 0 | AR44: 0 | AS44: 183.8098779 | AT44: 0 | AU44: 0 | AV44: 0 | AW44: 0.5210058862 | AX44: 0 | AY44: 0 | AZ44: 0.180927093 | BA44: 0 | BB44: 0 | BC44: 0 | BD44: 0 | BE44: 0 | BF44: 0 | BG44: 1.379504355 | BH44: 4.308745685e-05 | BI44: 0.7944149714 | BJ44: 0.006734132198 | BK44: 0 | BL44: 0.1947898853 | BM44: 2.942358091 | BN44: 0 | BO44: 0.01616911983 | BP44: 0 | BQ44: 0.06744540793 | BR44: 0.3739827299 | BS44: 0 | BT44: 0 | BU44: 0 | BV44: 2.843323809 | BW44: 0.007413067971 | BX44: 0 | BY44: 1.918114406 | BZ44: 3.92338856e-05 | CA44: 0.4270733578 | CB44: 0 | CC44: 0 | CD44: 2.76159187e-06 | CE44: 1.099729413e-06 | CF44: 0.01042881389 | CG44: 0.664604352 | CH44: 5.661893561 | CI44: 0 | CJ44: 0.01545589364 | CK44: 0 | CL44: 0.1738444828 | CM44: 0.008154201541 | CN44: 0 | CO44: 0.09941368253 | CP44: 4.395738269 | CQ44: 0.01215745866 | CR44: 223.4653926 | CS44: 3.006597358e-08 | CT44: 0 | CU44: 0 | CV44: 0 | CW44: 0 | CX44: 1.908426275e-06 | CY44: 0.02320162553 | CZ44: 0 | DA44: 0 | DB44: 0 | DC44: 0 | DD44: 79.38678486 | DE44: 0 | DF44: 0 | DG44: 0 | DH44: 2315.832985 | DI44: 0 | DJ44: -32.99916199 | DK44: 362.8458916 | DL44: 785.0031308 | DM44: 0 | DN44: 0 | DO44: 3960.560669 | DQ44: 3960 | DR44: 0.9998584369 | DT44: 0.5606692681
A45: 30.3 | B45: Air and spacecraft and related machinery | C45: 2.392564833 | D45: 0 | E45: 0 | F45: 0.00944247834 | G45: 61.11164644 | H45: 0 | I45: 12.25614955 | J45: 0 | K45: 0 | L45: 0.000220568904 | M45: 0 | N45: 0 | O45: 0 | P45: 0.0005541894338 | Q45: 0 | R45: 0 | S45: 0 | T45: 0.004362573223 | U45: 0.004778369996 | V45: 0.004046099106 | W45: 0.08316313964 | X45: 0.006968926279 | Y45: 0.06306170923 | Z45: 0.08247559388 | AA45: 0.05315558117 | AB45: 0.4627612721 | AC45: 0.0001095210272 | AD45: 0.0003339465174 | AE45: 0.00419794242 | AF45: 0.1647795022 | AG45: 0.02770243184 | AH45: 0.2700705928 | AI45: 4.291033913e-05 | AJ45: 0.003335636438 | AK45: 0.02122978336 | AL45: 0.8538010431 | AM45: 2.304956314 | AN45: 1.833725057 | AO45: 1.830803771 | AP45: 0.3814440595 | AQ45: 7.016595178 | AR45: 0.7499070846 | AS45: 0.5579630029 | AT45: 315.8549687 | AU45: 0.6867178645 | AV45: 9.864576005 | AW45: 0.2103708783 | AX45: 0.6508231637 | AY45: 22.57486874 | AZ45: 1.504135107 | BA45: 0 | BB45: 0 | BC45: 0 | BD45: 0 | BE45: 0.003622962142 | BF45: 0 | BG45: 6.995980528 | BH45: 3.6354212 | BI45: 8.856571079 | BJ45: 4.486784938 | BK45: 0 | BL45: 1.044666879 | BM45: 0.005334655066 | BN45: 163.9632717 | BO45: 0 | BP45: 1.315238385 | BQ45: 1.256408761 | BR45: 3.388868392 | BS45: 0.03272650783 | BT45: 6.064350453 | BU45: 13.19043293 | BV45: 5.879255428 | BW45: 1.325779468 | BX45: 0 | BY45: 24.56601096 | BZ45: 1.286796253 | CA45: 1.982312754 | CB45: 0 | CC45: 0 | CD45: 1.371409661 | CE45: 0.06480166096 | CF45: 0.1280739418 | CG45: 16.29687058 | CH45: 23.39403273 | CI45: 1.166635924 | CJ45: 1.45947905 | CK45: 0 | CL45: 1.022696376 | CM45: 2.542633923 | CN45: 2.573928544 | CO45: 0.01105490897 | CP45: 0.03130867056 | CQ45: 0.2356434343 | CR45: 19.54419152 | CS45: 0.03884017766 | CT45: 0 | CU45: 2.442804151 | CV45: 1.301386783 | CW45: 0.2745682977 | CX45: 1.231238122 | CY45: 2.399578125 | CZ45: 0 | DA45: 0.05022456048 | DB45: 0.001148825329 | DC45: 0 | DD45: 871.6570391 | DE45: 0 | DF45: 0 | DG45: 0 | DH45: 3588.565596 | DI45: 0 | DJ45: -32.71092516 | DK45: 4401.265131 | DL45: 12287.79605 | DM45: 315.3378706 | DN45: 217.4743935 | DO45: 22420.15035 | DQ45: 22417 | DR45: 0.9998594859 | DT45: 3.150348325
A46: 30OTHER | B46: Other transport equipment - 30.2/4/9 | C46: 1.193457773 | D46: 3.239451436 | E46: 0 | F46: 0 | G46: 0.004019817823 | H46: 0 | I46: 0 | J46: 0 | K46: 0 | L46: 0 | M46: 0 | N46: 0 | O46: 0 | P46: 0 | Q46: 0 | R46: 0 | S46: 0 | T46: 0.1593495177 | U46: 0.02355112826 | V46: 0.001533404899 | W46: 0.3891580451 | X46: 0.003140447059 | Y46: 0.03879177596 | Z46: 0 | AA46: 0.0003601461919 | AB46: 0.02786967726 | AC46: 0.0005882627875 | AD46: 0.009274805111 | AE46: 0.4222925745 | AF46: 0.02588548674 | AG46: 0.02342108989 | AH46: 0.1192264258 | AI46: 0.0004673630535 | AJ46: 0.001962079409 | AK46: 0.06833360113 | AL46: 0.01159145857 | AM46: 18.03913414 | AN46: 1.74223804 | AO46: 14.14088951 | AP46: 0.08380298152 | AQ46: 1.589603828 | AR46: 0.4830646569 | AS46: 0.001514342907 | AT46: 0.005043683056 | AU46: 221.4567147 | AV46: 0.003703521339 | AW46: 0.7168524739 | AX46: 0 | AY46: 0.001044834958 | AZ46: 38.97522022 | BA46: 0 | BB46: 0 | BC46: 0 | BD46: 0 | BE46: 0 | BF46: 0 | BG46: 9.098724814 | BH46: 3.556580869 | BI46: 10.40660942 | BJ46: 0.01076756673 | BK46: 34.03782514 | BL46: 0.1926468768 | BM46: 0 | BN46: 1.208650936 | BO46: 11.37554662 | BP46: 10.25594932 | BQ46: 1.630984889 | BR46: 2.211711515 | BS46: 0.03284354959 | BT46: 1.194141387 | BU46: 0.01472145767 | BV46: 5.590133917 | BW46: 1.374962035 | BX46: 1.306961671 | BY46: 0.0004271640286 | BZ46: 0.02006776633 | CA46: 0.5499207825 | CB46: 0 | CC46: 0 | CD46: 0.07746150817 | CE46: 0.07882539894 | CF46: 0.2077990955 | CG46: 2.562876396 | CH46: 3.415938845 | CI46: 2.211431731 | CJ46: 0.1938329562 | CK46: 2.496357177 | CL46: 4.122003334 | CM46: 1.419928889 | CN46: 3.784007504 | CO46: 0.1197524925 | CP46: 3.438164933 | CQ46: 4.026010759 | CR46: 6.655297264 | CS46: 0.051476887 | CT46: 159.7550488 | CU46: 0 | CV46: 1.275631304 | CW46: 0.04810406563 | CX46: 3.558956624 | CY46: 0.4151694159 | CZ46: 0 | DA46: 0.0518650976 | DB46: 0.001465514808 | DC46: 0 | DD46: 1998.248943 | DE46: 0 | DF46: 0 | DG46: 0 | DH46: 119.3606857 | DI46: 0 | DJ46: 14.10796197 | DK46: 290.4537722 | DL46: 373.4405642 | DM46: 0 | DN46: 2.664630028 | DO46: 3395.316694 | DQ46: 3395 | DR46: 0.9999067261 | DT46: 0.3166944656
A47: 31 | B47: Furniture | C47: 0.02229086029 | D47: 3.46319458 | E47: 0.9839143437 | F47: 0 | G47: 1.6052958e-06 | H47: 0.001011132279 | I47: 0 | J47: 2.041337106 | K47: 1.041158479 | L47: 0.0270643018 | M47: 0.988684109 | N47: 1.064759102 | O47: 1.871209133 | P47: 3.927284191 | Q47: 0.05131248844 | R47: 2.0249907 | S47: 0.9148124578 | T47: 0.1719074551 | U47: 0.8958332045 | V47: 0.1348762499 | W47: 3.752838464 | X47: 1.260336763 | Y47: 1.432752489 | Z47: 0.1543560971 | AA47: 1.813359859 | AB47: 1.297144618 | AC47: 2.073556993 | AD47: 1.308912928 | AE47: 2.915537293 | AF47: 2.02396013 | AG47: 4.016360345 | AH47: 2.883233536 | AI47: 4.034244074 | AJ47: 4.206118226 | AK47: 0.006070439437 | AL47: 0.01171537108 | AM47: 1.052920028 | AN47: 1.689144964 | AO47: 4.698479478 | AP47: 1.758675771 | AQ47: 2.728650542 | AR47: 5.998183971 | AS47: 2.624531154 | AT47: 4.307472852 | AU47: 0.06567857784 | AV47: 247.2643386 | AW47: 3.067825293 | AX47: 0.8560787997 | AY47: 0.7389929495 | AZ47: 2.32209981 | BA47: 14.96638266 | BB47: 0.9873274935 | BC47: 1.961206897 | BD47: 0 | BE47: 0.9142711218 | BF47: 0 | BG47: 58.00934065 | BH47: 0.03098129513 | BI47: 6.579894925 | BJ47: 15.89208094 | BK47: 1.010798809 | BL47: 3.813437844 | BM47: 1.029620023 | BN47: 1.020338194 | BO47: 5.072891976 | BP47: 4.11740208 | BQ47: 6.54958904 | BR47: 19.06506078 | BS47: 0.9609800866 | BT47: 5.733530599 | BU47: 10.38189671 | BV47: 6.48590291 | BW47: 0.8969112086 | BX47: 1.04792339 | BY47: 7.11306595 | BZ47: 3.058258629 | CA47: 8.235031733 | CB47: 1.983225549 | CC47: 1.043722684 | CD47: 17.59416588 | CE47: 3.855063309 | CF47: 5.202224828 | CG47: 9.431277372 | CH47: 11.56226038 | CI47: 1.333328155 | CJ47: 5.742084076 | CK47: 1.003229451 | CL47: 6.826340056 | CM47: 16.30509442 | CN47: 1.011721535 | CO47: 1.0859183 | CP47: 8.330037191 | CQ47: 10.35877195 | CR47: 385.6379082 | CS47: 223.3627559 | CT47: 83.32554145 | CU47: 91.36757258 | CV47: 5.131102649 | CW47: 2.17116571 | CX47: 1.020154046 | CY47: 28.47752034 | CZ47: 1.905869677 | DA47: 0.8278023435 | DB47: 2.008310531 | DC47: 0 | DD47: 2478.796406 | DE47: 0 | DF47: 0 | DG47: 0 | DH47: 2558.628293 | DI47: 440.6960027 | DJ47: -33.93534102 | DK47: 442.6685588 | DL47: 291.1077161 | DM47: 27.77454499 | DN47: 19.22853115 | DO47: 7669.792218 | DQ47: 7669 | DR47: 0.9998967094 | DT47: 0.7922177456
A48: 32 | B48: Other manufactured goods | C48: 24.89381591 | D48: 2.643261857 | E48: 2.002577443 | F48: 5.270077554 | G48: 0.02164321756 | H48: 4.035664484 | I48: 0 | J48: 1.308624395 | K48: 4.322173176 | L48: 0.9050587078 | M48: 5.036437866 | N48: 10.9948681 | O48: 7.512490639 | P48: 13.18840657 | Q48: 3.836274501 | R48: 12.33718023 | S48: 3.738822654 | T48: 0.5561808624 | U48: 5.598069656 | V48: 1.779154042 | W48: 12.5527292 | X48: 29.96616894 | Y48: 252.0276625 | Z48: 7.941601092 | AA48: 4.895834852 | AB48: 11.79246749 | AC48: 10.28267892 | AD48: 0.2143428076 | AE48: 2.272422543 | AF48: 2.819959654 | AG48: 0.9481811941 | AH48: 4.392261115 | AI48: 4.215610089 | AJ48: 15.30343903 | AK48: 0.1651826298 | AL48: 0.1716786573 | AM48: 0.8200716069 | AN48: 1.017453227 | AO48: 19.30465621 | AP48: 17.2911708 | AQ48: 37.47070083 | AR48: 97.04342172 | AS48: 16.54889531 | AT48: 29.55943368 | AU48: 1.748593819 | AV48: 10.85882888 | AW48: 16.52870204 | AX48: 6.124785876 | AY48: 3.693882127 | AZ48: 18.68085745 | BA48: 30.59979553 | BB48: 12.05714571 | BC48: 7.983354889 | BD48: 73.23892425 | BE48: 0 | BF48: 0 | BG48: 12.05434906 | BH48: 11.18565692 | BI48: 40.65195018 | BJ48: 88.06498925 | BK48: 9.257831319 | BL48: 25.19338783 | BM48: 4.184523718 | BN48: 7.259828552 | BO48: 28.09787004 | BP48: 10.50648317 | BQ48: 6.781522493 | BR48: 32.45008323 | BS48: 31.76163859 | BT48: 8.152171799 | BU48: 82.3160279 | BV48: 32.80362819 | BW48: 4.976988406 | BX48: 14.92999294 | BY48: 36.19405456 | BZ48: 36.08973084 | CA48: 10.21124887 | CB48: 2.018246189 | CC48: 2.124306366 | CD48: 24.79955972 | CE48: 8.654335537 | CF48: 3.46553448 | CG48: 27.45045443 | CH48: 15.25756332 | CI48: 18.62738437 | CJ48: 6.093190452 | CK48: 38.70161073 | CL48: 8.253597861 | CM48: 7.023473127 | CN48: 3.088243871 | CO48: 3.930158017 | CP48: 10.47216077 | CQ48: 2.632951234 | CR48: 1.421060331 | CS48: 108.5636129 | CT48: 0 | CU48: 71.23748028 | CV48: 1.04086375 | CW48: 2.144320294 | CX48: 13.92349808 | CY48: 5.144126774 | CZ48: 1.939524334 | DA48: 0.5331428347 | DB48: 0.002392345241 | DC48: 0 | DD48: 620.8446295 | DE48: 0 | DF48: 0 | DG48: 0 | DH48: 157.2377159 | DI48: 126.5643436 | DJ48: -48.13911946 | DK48: 2266.534 | DL48: 3240.861479 | DM48: 456.5884569 | DN48: 217.4230747 | DO48: 8830.095007 | DQ48: 8829 | DR48: 0.9998759914 | DT48: 1.095007384
A49: 33.15 | B49: Repair and maintenance of ships and boats | C49: 0 | D49: 0 | E49: 66.51955812 | F49: 0.03689410954 | G49: 238.7751783 | H49: 0 | I49: 81.10644468 | J49: 0 | K49: 0 | L49: 0 | M49: 0 | N49: 0.0002385933116 | O49: 0 | P49: 0.0002764552224 | Q49: 0 | R49: 0 | S49: 0 | T49: 0.07002509473 | U49: 0.05517826717 | V49: 0.002885478975 | W49: 0.2758089251 | X49: 0.004779270633 | Y49: 0.002106551609 | Z49: 0 | AA49: 0.0001342001208 | AB49: 0.0033032941 | AC49: 0.0007611851976 | AD49: 0.004262529307 | AE49: 0.002849976874 | AF49: 0.00150104026 | AG49: 0.003201542232 | AH49: 1.337572006 | AI49: 0.00235309887 | AJ49: 0.08974210441 | AK49: 0.003821835975 | AL49: 0.02358088758 | AM49: 0.009836418953 | AN49: 0.7617578092 | AO49: 0.2341257459 | AP49: 0.07035367653 | AQ49: 2.587480802 | AR49: 4.369358264e-06 | AS49: 108.5219437 | AT49: 0.001155919516 | AU49: 0 | AV49: 0 | AW49: 0.5292644902 | AX49: 41.75766375 | AY49: 0.002102498779 | AZ49: 0.3744122587 | BA49: 0 | BB49: 0 | BC49: 0 | BD49: 2.276280954 | BE49: 8.689409777 | BF49: 0 | BG49: 9.141246408 | BH49: 5.633920961 | BI49: 4.8769006 | BJ49: 3.619851703 | BK49: 0 | BL49: 3.378117762 | BM49: 442.185907 | BN49: 0 | BO49: 52.09707157 | BP49: 0 | BQ49: 0.3709691332 | BR49: 4.690429004 | BS49: 0.1131336351 | BT49: 0 | BU49: 0 | BV49: 5.100882847 | BW49: 0.05620882395 | BX49: 1.242930206 | BY49: 13.25839236 | BZ49: 17.94426424 | CA49: 2.319475462 | CB49: 0 | CC49: 0 | CD49: 0.03110988014 | CE49: 0.02496088223 | CF49: 0.03616076346 | CG49: 9.182854491 | CH49: 1.194719654 | CI49: 0.006386953616 | CJ49: 0.2735948651 | CK49: 0 | CL49: 2.79089859 | CM49: 0.04967447827 | CN49: 13.19493668 | CO49: 0.3813683403 | CP49: 14.26860445 | CQ49: 0.4011082044 | CR49: 0 | CS49: 1.039057203e-07 | CT49: 0 | CU49: 0 | CV49: 0 | CW49: 0 | CX49: 6.60512388e-06 | CY49: 0.1278443115 | CZ49: 0 | DA49: 0.02180582766 | DB49: 0.00178475983 | DC49: 0 | DD49: 0 | DE49: 0 | DF49: 0 | DG49: 0 | DH49: 0 | DI49: 0 | DJ49: 0 | DK49: 0 | DL49: 0 | DM49: 0 | DN49: 0 | DO49: 1162.155771 | DQ49: 1162 | DR49: 0.9998659636 | DT49: 0.1557711802
A50: 33.16 | B50: Repair and maintenance of aircraft and spacecraft | C50: 2.104919201 | D50: 0 | E50: 0 | F50: 0.01325626318 | G50: 85.79327818 | H50: 0 | I50: 18.16529071 | J50: 0 | K50: 0 | L50: 0 | M50: 0 | N50: 0 | O50: 0 | P50: 0 | Q50: 0 | R50: 0 | S50: 0 | T50: 0.02221751663 | U50: 0 | V50: 0 | W50: 0 | X50: 0 | Y50: 0.225300225 | Z50: 0 | AA50: 0 | AB50: 0 | AC50: 0 | AD50: 0 | AE50: 0 | AF50: 1.486622996 | AG50: 0 | AH50: 1.486636572 | AI50: 0 | AJ50: 0 | AK50: 0.08996972925 | AL50: 5.104645246 | AM50: 16.78317871 | AN50: 10.69744371 | AO50: 7.837040926 | AP50: 2.357564022 | AQ50: 73.99222853 | AR50: 6.739577941 | AS50: 3.034734088 | AT50: 2059.196586 | AU50: 3.85413862 | AV50: 9.157020418 | AW50: 1.083839492 | AX50: 8.515762617 | AY50: 1393.574484 | AZ50: 10.73417568 | BA50: 0 | BB50: 0 | BC50: 0 | BD50: 0 | BE50: 0.00508626421 | BF50: 0 | BG50: 14.15580591 | BH50: 3.190266723 | BI50: 64.79239632 | BJ50: 0.637221667 | BK50: 0 | BL50: 8.926573862 | BM50: 0.007489304075 | BN50: 241.9687104 | BO50: 46.763688 | BP50: 0.008415835384 | BQ50: 3.230322513 | BR50: 10.49915291 | BS50: 0 | BT50: 2.132388376 | BU50: 15.06693439 | BV50: 30.13606344 | BW50: 0.0007330153852 | BX50: 0 | BY50: 0.0003833960306 | BZ50: 0.002656781916 | CA50: 0.517191943 | CB50: 0 | CC50: 0 | CD50: 0.784376447 | CE50: 1.864172517 | CF50: 0.001496919896 | CG50: 142.9631748 | CH50: 74.28875657 | CI50: 0.2668846779 | CJ50: 10.93586031 | CK50: 0 | CL50: 3.029014383 | CM50: 0.3932294726 | CN50: 2.264478496 | CO50: 0.003220104589 | CP50: 0.02435306206 | CQ50: 1.054166375 | CR50: 0 | CS50: 0.0006538620497 | CT50: 0 | CU50: 0 | CV50: 0 | CW50: 0.08635047235 | CX50: 0.002477819426 | CY50: 2.112379851 | CZ50: 5.440288437 | DA50: 0.02440969193 | DB50: 0.001010724812 | DC50: 0 | DD50: 0 | DE50: 0 | DF50: 0 | DG50: 0 | DH50: 0 | DI50: 0 | DJ50: 0 | DK50: 0 | DL50: 0 | DM50: 0 | DN50: 0 | DO50: 4409.632147 | DQ50: 4409 | DR50: 0.9998566441 | DT50: 0.6321469129
A51: 33OTHER | B51: Rest of repair; Installation - 33.11-14/17/19/20 | C51: 27.48771036 | D51: 4.597331563 | E51: 5.22451784 | F51: 30.27356624 | G51: 165.5538473 | H51: 19.0675454 | I51: 23.4213572 | J51: 37.53756546 | K51: 16.91426946 | L51: 1.034739303 | M51: 22.05874758 | N51: 5.981623679 | O51: 25.6280422 | P51: 41.67085624 | Q51: 5.86974782 | R51: 38.96504567 | S51: 21.08561607 | T51: 11.34638395 | U51: 8.741202982 | V51: 1.398647755 | W51: 58.92400753 | X51: 16.55146726 | Y51: 9.193573934 | Z51: 31.66730519 | AA51: 8.212854145 | AB51: 17.89567839 | AC51: 31.32949299 | AD51: 10.41123881 | AE51: 24.32657009 | AF51: 3.350714719 | AG51: 11.74089704 | AH51: 143.2508922 | AI51: 34.11608841 | AJ51: 27.73138472 | AK51: 62.52404121 | AL51: 50.18344221 | AM51: 50.51088665 | AN51: 155.6351034 | AO51: 154.6709619 | AP51: 328.5234392 | AQ51: 752.9523357 | AR51: 734.7223344 | AS51: 81.43418652 | AT51: 230.1913952 | AU51: 408.9732329 | AV51: 36.66066762 | AW51: 71.30343805 | AX51: 21.3331236 | AY51: 6.022756281 | AZ51: 129.2631508 | BA51: 272.600087 | BB51: 26.86853734 | BC51: 35.79769334 | BD51: 5.095274495 | BE51: 25.49707637 | BF51: 0 | BG51: 2037.681484 | BH51: 178.4626495 | BI51: 155.6321993 | BJ51: 73.04578367 | BK51: 87.21817833 | BL51: 81.69078897 | BM51: 22.51492312 | BN51: 10.2562324 | BO51: 84.13143307 | BP51: 17.23161511 | BQ51: 4.036134044 | BR51: 38.78011474 | BS51: 12.48551689 | BT51: 14.59365258 | BU51: 313.6592518 | BV51: 77.90137932 | BW51: 7.602132011 | BX51: 13.21545356 | BY51: 14.85491922 | BZ51: 8.869980555 | CA51: 20.44962673 | CB51: 0 | CC51: 0 | CD51: 7.74063376 | CE51: 6.160571055 | CF51: 4.970219815 | CG51: 44.87048133 | CH51: 46.61842898 | CI51: 10.4911729 | CJ51: 6.063273208 | CK51: 17.93681389 | CL51: 25.70227422 | CM51: 16.3359426 | CN51: 5.373857997 | CO51: 1.364451953 | CP51: 17.18347803 | CQ51: 11.13987726 | CR51: 0 | CS51: 14.88109659 | CT51: 2.723045646 | CU51: 26.10680274 | CV51: 3.405725496 | CW51: 14.78963528 | CX51: 0.9720143059 | CY51: 29.63993182 | CZ51: 0.6535914291 | DA51: 12.44984187 | DB51: 7.374917987 | DC51: 0 | DD51: 0.6726410109 | DE51: 0 | DF51: 0 | DG51: 0 | DH51: 0 | DI51: 0 | DJ51: -33.44516137 | DK51: 0 | DL51: 0 | DM51: 147.4809334 | DN51: 102.8112276 | DO51: 8410.104863 | DQ51: 8409 | DR51: 0.9998686267 | DT51: 1.104863064
A52: 35.1 | B52: Electricity, transmission and distribution | C52: 449.5880292 | D52: 9.199045125 | E52: 110.3479413 | F52: 44.03706418 | G52: 123.5785454 | H52: 170.7677581 | I52: 20.11768074 | J52: 274.8420455 | K52: 114.4237891 | L52: 10.45468958 | M52: 122.9016233 | N52: 127.8582124 | O52: 154.8038862 | P52: 231.6810517 | Q52: 76.42375114 | R52: 238.8262861 | S52: 33.79286624 | T52: 83.64131198 | U52: 36.53604039 | V52: 6.775781361 | W52: 112.816908 | X52: 718.2784044 | Y52: 150.4100401 | Z52: 824.3968718 | AA52: 113.546263 | AB52: 132.7308243 | AC52: 456.2408572 | AD52: 32.29233613 | AE52: 188.7649602 | AF52: 41.33470178 | AG52: 224.9601193 | AH52: 461.3188122 | AI52: 408.7127459 | AJ52: 313.298161 | AK52: 353.2401137 | AL52: 412.3725592 | AM52: 37.86709248 | AN52: 362.6868512 | AO52: 181.0428669 | AP52: 100.8860698 | AQ52: 628.9610324 | AR52: 503.1110364 | AS52: 193.4299968 | AT52: 248.0515314 | AU52: 45.05349264 | AV52: 85.08679215 | AW52: 94.45320436 | AX52: 31.28519825 | AY52: 23.8407346 | AZ52: 95.05434975 | BA52: 36547.71916 | BB52: 3593.503676 | BC52: 513.9959823 | BD52: 35.11750821 | BE52: 98.34051282 | BF52: 2.569403445 | BG52: 1354.210036 | BH52: 306.1856521 | BI52: 949.8655672 | BJ52: 2020.820448 | BK52: 311.4501662 | BL52: 592.8481745 | BM52: 8.825452446 | BN52: 115.0057983 | BO52: 159.3879476 | BP52: 263.5981917 | BQ52: 171.5755264 | BR52: 668.3877482 | BS52: 102.2411154 | BT52: 77.5949749 | BU52: 487.2004357 | BV52: 416.1575509 | BW52: 45.38891275 | BX52: 583.922044 | BY52: 105.5992007 | BZ52: 331.4514312 | CA52: 114.4543466 | CB52: 1140.208851 | CC52: 2.464327686 | CD52: 156.6875098 | CE52: 195.5483256 | CF52: 102.3937579 | CG52: 522.4459904 | CH52: 132.1848733 | CI52: 71.44585105 | CJ52: 126.4694476 | CK52: 29.53990416 | CL52: 273.4696664 | CM52: 279.9912232 | CN52: 41.79252955 | CO52: 28.77066426 | CP52: 116.4679161 | CQ52: 265.5884429 | CR52: 697.3985484 | CS52: 657.6951787 | CT52: 807.5617774 | CU52: 255.6192903 | CV52: 139.6858438 | CW52: 57.88340286 | CX52: 48.20479146 | CY52: 137.3258594 | CZ52: 64.34947697 | DA52: 25.86920111 | DB52: 46.32044862 | DC52: 0 | DD52: 17610.65678 | DE52: 0 | DF52: 0 | DG52: 0 | DH52: 0 | DI52: 0 | DJ52: 0 | DK52: 139.6485629 | DL52: 0 | DM52: 76.92841385 | DN52: 0 | DO52: 84244.15615 | DQ52: 84234 | DR52: 0.9998794439 | DT52: 10.15614995
A53: 35.2-3 | B53: Gas; distribution of gaseous fuels through mains; steam and air conditioning supply | C53: 32.83011346 | D53: 2.962222265 | E53: 35.68320847 | F53: 17.74894232 | G53: 200.0199683 | H53: 33.23565087 | I53: 91.35729558 | J53: 134.3797165 | K53: 173.4914729 | L53: 12.08531169 | M53: 84.34381794 | N53: 91.60665622 | O53: 120.0748199 | P53: 355.9910414 | Q53: 24.89928153 | R53: 161.9411576 | S53: 17.88396896 | T53: 63.32392905 | U53: 18.75552295 | V53: 8.654454875 | W53: 43.08771326 | X53: 291.6211914 | Y53: 25.21042019 | Z53: 201.072881 | AA53: 64.85535578 | AB53: 86.45996173 | AC53: 303.0052742 | AD53: 31.98078922 | AE53: 97.11481824 | AF53: 18.1301811 | AG53: 53.8031174 | AH53: 251.0429407 | AI53: 352.3594226 | AJ53: 469.5393249 | AK53: 222.3383626 | AL53: 97.39419625 | AM53: 10.44481839 | AN53: 323.2408243 | AO53: 75.52679377 | AP53: 88.60134115 | AQ53: 293.6953998 | AR53: 182.5673282 | AS53: 10.58632615 | AT53: 25.22197632 | AU53: 4.013288078 | AV53: 17.59182645 | AW53: 28.41414733 | AX53: 12.53220649 | AY53: 5.790302224 | AZ53: 42.18488591 | BA53: 5301.61768 | BB53: 1991.679465 | BC53: 7.381027733 | BD53: 7.222741664 | BE53: 12.41552991 | BF53: 0 | BG53: 175.5226632 | BH53: 34.10297762 | BI53: 170.9731222 | BJ53: 166.6198843 | BK53: 22.824927 | BL53: 104.1846314 | BM53: 5.743431618 | BN53: 21.52235938 | BO53: 26.5880937 | BP53: 28.85555244 | BQ53: 31.14049529 | BR53: 124.9379299 | BS53: 33.61050637 | BT53: 5.368611526 | BU53: 31.23728371 | BV53: 48.79803859 | BW53: 3.480395868 | BX53: 38.72166557 | BY53: 15.9954276 | BZ53: 16.89932612 | CA53: 7.879075496 | CB53: 0 | CC53: 0 | CD53: 30.97792974 | CE53: 28.49607599 | CF53: 12.27367638 | CG53: 104.4920851 | CH53: 36.0864698 | CI53: 13.90300386 | CJ53: 22.04012577 | CK53: 8.217796701 | CL53: 39.16396514 | CM53: 41.07005585 | CN53: 1.384504804 | CO53: 3.693823712 | CP53: 7.154248922 | CQ53: 41.27290639 | CR53: 314.1404115 | CS53: 273.0008351 | CT53: 347.3132607 | CU53: 156.0864366 | CV53: 4.210964164 | CW53: 15.24440556 | CX53: 11.79477828 | CY53: 44.43702005 | CZ53: 7.324955863 | DA53: 3.882753039 | DB53: 7.564742648 | DC53: 0 | DD53: 11067.4617 | DE53: 0 | DF53: 0 | DG53: 0 | DH53: 0 | DI53: 0 | DJ53: 0 | DK53: 0 | DL53: 0 | DM53: 27.04618814 | DN53: 0 | DO53: 26515.75393 | DQ53: 26513 | DR53: 0.9998961398 | DT53: 2.753930893
A54: 36 | B54: Natural water; water treatment and supply services | C54: 74.49634367 | D54: 0.8908580869 | E54: 1.012392494 | F54: 1.066841266 | G54: 7.360297945 | H54: 9.176386292 | I54: 4.444245561 | J54: 6.387159128 | K54: 33.23337235 | L54: 16.7741058 | M54: 25.17814015 | N54: 6.146315916 | O54: 19.05322759 | P54: 56.9859319 | Q54: 4.050040339 | R54: 45.72069104 | S54: 8.385616674 | T54: 13.30793632 | U54: 1.880318055 | V54: 1.109598377 | W54: 8.398517589 | X54: 27.72631689 | Y54: 8.975667657 | Z54: 32.84845988 | AA54: 9.435734742 | AB54: 14.87713543 | AC54: 47.82315679 | AD54: 9.040163575 | AE54: 29.89208597 | AF54: 4.231594666 | AG54: 20.28427875 | AH54: 27.72514026 | AI54: 13.73173998 | AJ54: 21.07226119 | AK54: 13.51915012 | AL54: 32.43691672 | AM54: 1.819204597 | AN54: 16.26158861 | AO54: 12.48381058 | AP54: 7.466566212 | AQ54: 16.50573347 | AR54: 35.67873949 | AS54: 3.053673673 | AT54: 7.113362773 | AU54: 1.080694956 | AV54: 19.67729912 | AW54: 7.549585965 | AX54: 0.947536338 | AY54: 1.060084549 | AZ54: 3.003911432 | BA54: 39.5602078 | BB54: 15.2385665 | BC54: 12.10782924 | BD54: 2.962044238 | BE54: 65.77868265 | BF54: 0 | BG54: 4.843670437 | BH54: 1.958543449 | BI54: 20.8093148 | BJ54: 38.64214411 | BK54: 0 | BL54: 14.17072851 | BM54: 0.004113910119 | BN54: 1.081887625 | BO54: 0 | BP54: 8.464221498 | BQ54: 3.912046558 | BR54: 6.666772698 | BS54: 0.6844986611 | BT54: 3.971167815 | BU54: 5.335319819 | BV54: 8.82460352 | BW54: 1.687049744 | BX54: 7.547779412 | BY54: 337.7170154 | BZ54: 0.06160972104 | CA54: 26.47877821 | CB54: 0 | CC54: 0 | CD54: 5.456943947 | CE54: 1.544338977 | CF54: 1.490374896 | CG54: 3.206305605 | CH54: 13.4419989 | CI54: 3.913305405 | CJ54: 4.197099119 | CK54: 1.032266653 | CL54: 9.751227293 | CM54: 7.467029408 | CN54: 1.040612509 | CO54: 2.472691283 | CP54: 28.5069566 | CQ54: 2.150836113 | CR54: 327.9797922 | CS54: 168.7317816 | CT54: 86.78715918 | CU54: 73.34628741 | CV54: 0 | CW54: 14.3227457 | CX54: 6.033466148 | CY54: 42.54498027 | CZ54: 3.987450639 | DA54: 0.9580922271 | DB54: 5.165069109 | DC54: 0 | DD54: 4946.758518 | DE54: 0 | DF54: 0 | DG54: 0 | DH54: 0 | DI54: 0 | DJ54: -1.058107768 | DK54: 0 | DL54: 0 | DM54: 4.396683679 | DN54: 0 | DO54: 7186.514433 | DQ54: 7186 | DR54: 0.999928417 | DT54: 0.5144325653
A55: 37 | B55: Sewerage services; sewage sludge | C55: 1.925671439 | D55: 0 | E55: 3.022814949 | F55: 0.0006467949267 | G55: 4.195895424 | H55: 1.015002815 | I55: 0.1233919737 | J55: 16.78156998 | K55: 4.050043395 | L55: 0.9136103523 | M55: 5.979017352 | N55: 1.004380008 | O55: 5.165180082 | P55: 6.143077751 | Q55: 2.326312241 | R55: 3.134834167 | S55: 1.107742169 | T55: 3.058552062 | U55: 0.9807049785 | V55: 0.06467861929 | W55: 1.031114508 | X55: 9.575447645 | Y55: 1.275476144 | Z55: 3.308229692 | AA55: 3.272139081 | AB55: 7.702882778 | AC55: 8.258825168 | AD55: 1.309263883 | AE55: 3.305520484 | AF55: 1.055517921 | AG55: 4.48709198 | AH55: 4.660585078 | AI55: 2.097570662 | AJ55: 2.152060673 | AK55: 1.046096045 | AL55: 2.096641268 | AM55: 0.1723485662 | AN55: 4.000098964 | AO55: 3.450239519 | AP55: 1.084550108 | AQ55: 2.326841397 | AR55: 4.15874322 | AS55: 0.9225492206 | AT55: 3.908567171 | AU55: 0.09270397116 | AV55: 1.02620299 | AW55: 1.05804754 | AX55: 0.02283377548 | AY55: 0.01350695073 | AZ55: 1.201793866 | BA55: 2.423418398 | BB55: 0 | BC55: 4.016857474 | BD55: 866.7228788 | BE55: 193.7384658 | BF55: 11.14427918 | BG55: 48.79931229 | BH55: 11.95947492 | BI55: 21.3670919 | BJ55: 27.24334884 | BK55: 4.140547086 | BL55: 21.83717575 | BM55: 2.114219969 | BN55: 8.97437204 | BO55: 9.352235872 | BP55: 22.11167254 | BQ55: 11.22079291 | BR55: 27.89125893 | BS55: 5.153417577 | BT55: 17.86548393 | BU55: 10.63786691 | BV55: 14.66998602 | BW55: 4.170819523 | BX55: 8.585241891 | BY55: 6.245117837 | BZ55: 12.49096393 | CA55: 6.164126781 | CB55: 3.046466329 | CC55: 1.068853386 | CD55: 7.598120346 | CE55: 6.048847444 | CF55: 4.323929235 | CG55: 8.400609412 | CH55: 5.250478964 | CI55: 13.46006532 | CJ55: 2.487817971 | CK55: 3.077161244 | CL55: 10.9968325 | CM55: 9.228688089 | CN55: 2.072033374 | CO55: 0.2247333614 | CP55: 3.838911384 | CQ55: 7.056921586 | CR55: 14.68492204 | CS55: 73.88017227 | CT55: 548.7169491 | CU55: 45.12920373 | CV55: 2.094859312 | CW55: 2.066925576 | CX55: 10.83827168 | CY55: 9.528968116 | CZ55: 3.96859435 | DA55: 1.419416371 | DB55: 26.73172026 | DC55: 0 | DD55: 4889.118055 | DE55: 0 | DF55: 0 | DG55: 0 | DH55: 0 | DI55: 0 | DJ55: 0 | DK55: 0 | DL55: 0 | DM55: 0 | DN55: 0 | DO55: 7238.465571 | DQ55: 7238 | DR55: 0.9999356809 | DT55: 0.4655712729
A56: 38 | B56: Waste collection, treatment and disposal services; materials recovery services | C56: 10.63172345 | D56: 0 | E56: 14.46389088 | F56: 0.0021425913 | G56: 13.89287802 | H56: 3.360732041 | I56: 0.4087517673 | J56: 53.95725609 | K56: 24.14027128 | L56: 1.222892825 | M56: 13.33179076 | N56: 2.753904151 | O56: 18.01789701 | P56: 30.09134109 | Q56: 6.597685311 | R56: 10.38052762 | S56: 2.774517174 | T56: 7.912259283 | U56: 47.5619341 | V56: 2.268610794 | W56: 5.712394915 | X56: 27.00700029 | Y56: 9.476788898 | Z56: 10.54685795 | AA56: 7.815476634 | AB56: 16.02874483 | AC56: 22.73940462 | AD56: 7.007051387 | AE56: 18.69874001 | AF56: 0.7143148134 | AG56: 16.98930487 | AH56: 1.244670465 | AI56: 10.29252066 | AJ56: 24.1674385 | AK56: 313.6529142 | AL56: 0.03339597961 | AM56: 0.3783962165 | AN56: 16.41929053 | AO56: 6.582997199 | AP56: 7.992250367 | AQ56: 15.40704829 | AR56: 25.24732198 | AS56: 5.05054968 | AT56: 3.557568036 | AU56: 0.1379980536 | AV56: 9.161595348 | AW56: 9.911164997 | AX56: 0.3588920963 | AY56: 3.35212337 | AZ56: 4.275224228 | BA56: 10.50797943 | BB56: 2.232933138 | BC56: 17.74180867 | BD56: 485.0323176 | BE56: 2991.923101 | BF56: 0 | BG56: 220.8908613 | BH56: 72.51119747 | BI56: 60.27934206 | BJ56: 129.3526185 | BK56: 13.71609423 | BL56: 97.03095637 | BM56: 22.10599278 | BN56: 53.75400944 | BO56: 15.27464885 | BP56: 52.33526687 | BQ56: 41.80051805 | BR56: 116.4769749 | BS56: 12.87974948 | BT56: 60.01611261 | BU56: 52.94430079 | BV56: 67.63042358 | BW56: 4.178146197 | BX56: 0 | BY56: 29.88412055 | BZ56: 42.40932772 | CA56: 32.97592836 | CB56: 15.6983729 | CC56: 16.52333282 | CD56: 28.18814349 | CE56: 28.6722883 | CF56: 10.54095299 | CG56: 37.15095865 | CH56: 47.08176791 | CI56: 46.09452167 | CJ56: 18.53032669 | CK56: 20.37043996 | CL56: 56.35068792 | CM56: 25.4372127 | CN56: 9.158441708 | CO56: 9.425718062 | CP56: 139.9201053 | CQ56: 37.28968121 | CR56: 1395.870788 | CS56: 35.56148353 | CT56: 848.1474228 | CU56: 70.29419501 | CV56: 33.67614324 | CW56: 5.222060547 | CX56: 18.90126622 | CY56: 76.80772625 | CZ56: 7.650814824 | DA56: 4.13023759 | DB56: 77.21408133 | DC56: 0 | DD56: 17.18937779 | DE56: 0 | DF56: 0 | DG56: 6342.674218 | DH56: 57.37029258 | DI56: 0 | DJ56: 0 | DK56: 1557.090748 | DL56: 3091.190894 | DM56: 33.82331178 | DN56: 0 | DO56: 19788.86319 | DQ56: 19792 | DR56: 1.000158514 | DT56: 3.136810617
A57: 39 | B57: Remediation services and other waste management services | C57: 0 | D57: 0 | E57: 0 | F57: 0 | G57: 0 | H57: 0 | I57: 0 | J57: 0 | K57: 0 | L57: 0 | M57: 0 | N57: 0 | O57: 0 | P57: 0.0001066953608 | Q57: 0 | R57: 0 | S57: 0 | T57: 0.00429236276 | U57: 0.0007982568939 | V57: 6.750681098e-05 | W57: 0.001394515119 | X57: 0.9413656503 | Y57: 2.214448073e-06 | Z57: 0 | AA57: 0 | AB57: 0 | AC57: 0 | AD57: 0 | AE57: 0.004243194324 | AF57: 0 | AG57: 0 | AH57: 0 | AI57: 0 | AJ57: 0 | AK57: 0 | AL57: 0 | AM57: 0 | AN57: 0 | AO57: 0 | AP57: 0 | AQ57: 0 | AR57: 0 | AS57: 0 | AT57: 0 | AU57: 0 | AV57: 0.0006343430938 | AW57: 0.01238084497 | AX57: 0 | AY57: 0 | AZ57: 0.0005911721405 | BA57: 0 | BB57: 0 | BC57: 0 | BD57: 0 | BE57: 0 | BF57: 25.60953954 | BG57: 0.2744686719 | BH57: 0 | BI57: 0.0247009436 | BJ57: 0 | BK57: 0 | BL57: 0.002740975572 | BM57: 0 | BN57: 0 | BO57: 0 | BP57: 0 | BQ57: 0 | BR57: 0.001440768762 | BS57: 0 | BT57: 1.119335466 | BU57: 0 | BV57: 0.02533054238 | BW57: 0 | BX57: 0 | BY57: 0 | BZ57: 0 | CA57: 0.006771974329 | CB57: 0 | CC57: 0 | CD57: 0.0001742223351 | CE57: 0.0002176467894 | CF57: 0 | CG57: 0.0001863500324 | CH57: 0.286647176 | CI57: 0.000156859155 | CJ57: 8.129453785e-05 | CK57: 0 | CL57: 0.01676703979 | CM57: 0.0001553111219 | CN57: 0 | CO57: 0 | CP57: 0 | CQ57: 0.0001667539021 | CR57: 5.93621564 | CS57: 24.11164817 | CT57: 184.3695628 | CU57: 11.78637689 | CV57: 0 | CW57: 0 | CX57: 0 | CY57: 2.343732155 | CZ57: 0 | DA57: 0 | DB57: 0 | DC57: 0 | DD57: 0 | DE57: 0 | DF57: 0 | DG57: 0 | DH57: 27.13517939 | DI57: 0 | DJ57: 0 | DK57: 0 | DL57: 0 | DM57: 0 | DN57: 0 | DO57: 284.0174734 | DQ57: 284 | DR57: 0.9999384778 | DT57: 0.01747337082
A58: 41-43 | B58: Construction | C58: 463.362812 | D58: 8.321129448 | E58: 66.19431743 | F58: 18.22370124 | G58: 810.7216052 | H58: 26.83385855 | I58: 141.5827639 | J58: 3.106449988 | K58: 2.896983368 | L58: 1.586266226 | M58: 8.33660777 | N58: 18.34216893 | O58: 56.13573677 | P58: 100.7854989 | Q58: 6.599917416 | R58: 57.35995663 | S58: 13.91710362 | T58: 30.73586237 | U58: 28.71486759 | V58: 14.03634149 | W58: 36.57861148 | X58: 67.35218971 | Y58: 122.7088241 | Z58: 216.0137253 | AA58: 16.73841139 | AB58: 61.85981074 | AC58: 18.07246913 | AD58: 24.01958503 | AE58: 43.52892601 | AF58: 4.604956358 | AG58: 49.1321238 | AH58: 87.50426685 | AI58: 65.66681712 | AJ58: 50.34850399 | AK58: 43.67686056 | AL58: 36.29880254 | AM58: 9.435667329 | AN58: 38.03221159 | AO58: 18.35609941 | AP58: 27.14988943 | AQ58: 138.3122345 | AR58: 103.3180432 | AS58: 44.47618175 | AT58: 215.9488772 | AU58: 16.99698574 | AV58: 72.48052371 | AW58: 62.80653784 | AX58: 14.8249606 | AY58: 24.45417906 | AZ58: 24.84928637 | BA58: 371.1241962 | BB58: 256.2066343 | BC58: 291.3030451 | BD58: 44.43520843 | BE58: 422.9610163 | BF58: 1.901610888 | BG58: 43116.28964 | BH58: 422.5939444 | BI58: 2601.174712 | BJ58: 10091.01193 | BK58: 53.87251464 | BL58: 446.9227681 | BM58: 420.0244823 | BN58: 272.6880554 | BO58: 924.1178852 | BP58: 365.21819 | BQ58: 237.3113487 | BR58: 1175.989903 | BS58: 106.7920413 | BT58: 78.13673894 | BU58: 1056.212089 | BV58: 370.2848371 | BW58: 38.38430459 | BX58: 1266.264424 | BY58: 2531.260449 | BZ58: 59.43662296 | CA58: 9179.00224 | CB58: 6060.417214 | CC58: 35.56496788 | CD58: 317.2700723 | CE58: 101.4934132 | CF58: 214.2776012 | CG58: 218.4481159 | CH58: 124.6003444 | CI58: 99.97723137 | CJ58: 69.7730434 | CK58: 22.73897263 | CL58: 189.2175833 | CM58: 164.8258913 | CN58: 159.9406761 | CO58: 20.95153734 | CP58: 63.24823997 | CQ58: 90.06729648 | CR58: 4260.765597 | CS58: 540.1770753 | CT58: 576.836858 | CU58: 241.7116889 | CV58: 111.483764 | CW58: 132.5027926 | CX58: 85.28167419 | CY58: 150.6645722 | CZ58: 138.461956 | DA58: 20.01396426 | DB58: 141.340815 | DC58: 0 | DD58: 1360.914884 | DE58: 0 | DF58: 0 | DG58: 0 | DH58: 126387.3588 | DI58: 0 | DJ58: 531.0048039 | DK58: 0 | DL58: 0 | DM58: 419.0758526 | DN58: 1643.636028 | DO58: 224528.3047 | DQ58: 224498 | DR58: 0.9998650297 | DT58: 30.30465043
A59: 45 | B59: Wholesale and retail trade and repair services of motor vehicles and motorcycles | C59: 761.2813197 | D59: 30.29420812 | E59: 12.09599568 | F59: 9.801899566 | G59: 48.60345732 | H59: 17.82247192 | I59: 9.943213014 | J59: 148.0624326 | K59: 86.34534533 | L59: 5.009680938 | M59: 105.8226088 | N59: 60.37611821 | O59: 90.63032401 | P59: 128.6639393 | Q59: 27.45299204 | R59: 39.7032063 | S59: 92.31343127 | T59: 31.88596556 | U59: 13.51333644 | V59: 5.50997174 | W59: 43.89278816 | X59: 107.4226915 | Y59: 90.67582933 | Z59: 51.59145574 | AA59: 8.157982681 | AB59: 16.38945498 | AC59: 26.70659389 | AD59: 30.89684039 | AE59: 900.2028025 | AF59: 28.06586396 | AG59: 69.83604784 | AH59: 501.8277575 | AI59: 50.28431478 | AJ59: 33.47496878 | AK59: 66.85051 | AL59: 55.24091206 | AM59: 44.65143823 | AN59: 250.5520028 | AO59: 168.4373306 | AP59: 125.0531092 | AQ59: 557.8286292 | AR59: 2966.215893 | AS59: 41.50787203 | AT59: 32.60091032 | AU59: 152.2635287 | AV59: 91.48517556 | AW59: 90.22263717 | AX59: 14.98163723 | AY59: 5.554266007 | AZ59: 128.4920688 | BA59: 90.25920258 | BB59: 28.01066788 | BC59: 27.81990546 | BD59: 28.13075145 | BE59: 150.3326392 | BF59: 0 | BG59: 3025.942465 | BH59: 2327.089121 | BI59: 1925.302869 | BJ59: 1171.203474 | BK59: 309.7067784 | BL59: 1408.930318 | BM59: 155.3736415 | BN59: 161.6747226 | BO59: 298.9156371 | BP59: 369.6669501 | BQ59: 102.2909802 | BR59: 330.0820836 | BS59: 478.7744849 | BT59: 82.42617923 | BU59: 512.5039413 | BV59: 546.3595179 | BW59: 90.64732668 | BX59: 542.0730789 | BY59: 633.5246536 | BZ59: 74.61858969 | CA59: 221.8595414 | CB59: 7.501931232 | CC59: 5.922122025 | CD59: 166.8095456 | CE59: 84.24909762 | CF59: 57.48968275 | CG59: 67.65033858 | CH59: 131.5551818 | CI59: 142.4775162 | CJ59: 38.74459803 | CK59: 6.627253268 | CL59: 768.1986614 | CM59: 157.0801779 | CN59: 88.94844294 | CO59: 76.0247624 | CP59: 71.07771439 | CQ59: 98.88986948 | CR59: 439.0616669 | CS59: 331.327064 | CT59: 636.8427843 | CU59: 231.0841072 | CV59: 15.54043309 | CW59: 19.33376167 | CX59: 29.97819337 | CY59: 59.10119323 | CZ59: 49.8046774 | DA59: 40.72101044 | DB59: 150.7541069 | DC59: 0 | DD59: 16066.7835 | DE59: 0 | DF59: 0 | DG59: 0 | DH59: 3948.384145 | DI59: 0 | DJ59: 0 | DK59: 428.2330895 | DL59: 922.01206 | DM59: 178.8083725 | DN59: 195.9820579 | DO59: 49283.01387 | DQ59: 49278 | DR59: 0.9998982637 | DT59: 5.013870761
A60: 46 | B60: Wholesale trade services, except of motor vehicles and motorcycles | C60: 659.9934066 | D60: 37.34913391 | E60: 30.18272105 | F60: 21.86981497 | G60: 171.8124149 | H60: 94.11371179 | I60: 27.10848673 | J60: 569.2753627 | K60: 285.6424676 | L60: 36.40274809 | M60: 301.2020188 | N60: 265.0981577 | O60: 222.6572782 | P60: 524.3001992 | Q60: 265.0854156 | R60: 307.1446898 | S60: 111.6706521 | T60: 260.0880266 | U60: 116.0539032 | V60: 30.36460437 | W60: 127.1480265 | X60: 447.9985114 | Y60: 375.703868 | Z60: 265.0073443 | AA60: 207.8926013 | AB60: 597.5780438 | AC60: 285.144395 | AD60: 229.6975111 | AE60: 1078.055957 | AF60: 122.0685654 | AG60: 424.8766212 | AH60: 696.4395953 | AI60: 255.165819 | AJ60: 276.0212082 | AK60: 746.2730632 | AL60: 501.0039732 | AM60: 82.95244238 | AN60: 1336.099762 | AO60: 775.6001651 | AP60: 694.8589613 | AQ60: 1500.821114 | AR60: 2031.371134 | AS60: 105.5763483 | AT60: 536.5253816 | AU60: 26.52665942 | AV60: 184.6272451 | AW60: 290.8960417 | AX60: 27.53321517 | AY60: 46.00226996 | AZ60: 260.8006905 | BA60: 580.8857479 | BB60: 53.94947294 | BC60: 43.241661 | BD60: 25.75655721 | BE60: 71.10237277 | BF60: 0 | BG60: 2755.48255 | BH60: 632.107262 | BI60: 984.664905 | BJ60: 577.9461746 | BK60: 25.19353965 | BL60: 194.9748563 | BM60: 25.69536696 | BN60: 60.98848625 | BO60: 56.70534837 | BP60: 63.47182524 | BQ60: 614.075091 | BR60: 1391.432347 | BS60: 630.212518 | BT60: 71.18210297 | BU60: 730.0737969 | BV60: 220.1391324 | BW60: 13.23368528 | BX60: 118.5393827 | BY60: 82.86253554 | BZ60: 52.36527323 | CA60: 67.86114637 | CB60: 12.35766976 | CC60: 1.000544116 | CD60: 35.45538934 | CE60: 25.24677849 | CF60: 30.97239051 | CG60: 123.8753553 | CH60: 180.496915 | CI60: 161.0285921 | CJ60: 39.4360983 | CK60: 25.90582839 | CL60: 94.10199979 | CM60: 66.55985027 | CN60: 7.761126167 | CO60: 20.99168606 | CP60: 69.29070151 | CQ60: 63.68492978 | CR60: 1446.172862 | CS60: 417.6584513 | CT60: 1877.753691 | CU60: 347.8460152 | CV60: 22.6167891 | CW60: 17.79090113 | CX60: 48.00014597 | CY60: 90.06926635 | CZ60: 41.04737487 | DA60: 24.62537708 | DB60: 60.79529527 | DC60: 0 | DD60: 36860.03511 | DE60: 0 | DF60: 2056.992465 | DG60: 0 | DH60: 2155.438455 | DI60: 0 | DJ60: 0 | DK60: 18374.85728 | DL60: 13885.90295 | DM60: 1370.190141 | DN60: 547.8712447 | DO60: 109621.6546 | DQ60: 109612 | DR60: 0.9999119284 | DT60: 9.654552795
A61: 47 | B61: Retail trade services, except of motor vehicles and motorcycles | C61: 0 | D61: 0 | E61: 0 | F61: 0 | G61: 0 | H61: 0 | I61: 0 | J61: 0 | K61: 0 | L61: 0 | M61: 0 | N61: 0 | O61: 0 | P61: 0 | Q61: 0 | R61: 0 | S61: 0 | T61: 0 | U61: 0 | V61: 0 | W61: 0 | X61: 0 | Y61: 0 | Z61: 0 | AA61: 0 | AB61: 0 | AC61: 0 | AD61: 0 | AE61: 0 | AF61: 0 | AG61: 0 | AH61: 0 | AI61: 0 | AJ61: 0 | AK61: 0 | AL61: 0 | AM61: 0 | AN61: 0 | AO61: 0 | AP61: 0 | AQ61: 0 | AR61: 0 | AS61: 0 | AT61: 0 | AU61: 0 | AV61: 0 | AW61: 0 | AX61: 0 | AY61: 0 | AZ61: 0 | BA61: 0 | BB61: 0 | BC61: 0 | BD61: 0 | BE61: 0 | BF61: 0 | BG61: 0 | BH61: 0 | BI61: 0 | BJ61: 0 | BK61: 0 | BL61: 0 | BM61: 0 | BN61: 0 | BO61: 0 | BP61: 0 | BQ61: 0 | BR61: 0 | BS61: 0 | BT61: 0 | BU61: 0 | BV61: 0 | BW61: 0 | BX61: 0 | BY61: 0 | BZ61: 0 | CA61: 0 | CB61: 0 | CC61: 0 | CD61: 0 | CE61: 0 | CF61: 0 | CG61: 0 | CH61: 0 | CI61: 0 | CJ61: 0 | CK61: 0 | CL61: 0 | CM61: 0 | CN61: 0 | CO61: 0 | CP61: 0 | CQ61: 0 | CR61: 0 | CS61: 0 | CT61: 0 | CU61: 0 | CV61: 0 | CW61: 0 | CX61: 0 | CY61: 0 | CZ61: 0 | DA61: 0 | DB61: 0 | DC61: 0 | DD61: 141920.3801 | DE61: 0 | DF61: 0 | DG61: 0 | DH61: 0 | DI61: 181.5829541 | DJ61: 0 | DK61: 0 | DL61: 0 | DM61: 2538.158744 | DN61: 1855.984476 | DO61: 146496.1063 | DQ61: 146486 | DR61: 0.9999310135 | DT61: 10.10625741
A62: 49.1-2 | B62: Rail transport services | C62: 0.9502788622 | D62: 0 | E62: 12.92803546 | F62: 5.251234556 | G62: 110.545656 | H62: 6.008372601 | I62: 9.07108169 | J62: 3.801415101 | K62: 0.1240691841 | L62: 1.553659924 | M62: 1.971670512 | N62: 5.589493811 | O62: 4.718246567 | P62: 4.184458045 | Q62: 0.09675995464 | R62: 5.107528915 | S62: 0.04344747291 | T62: 3.982309192 | U62: 3.784705254 | V62: 0.07166720161 | W62: 0.1446203344 | X62: 2.161425927 | Y62: 2.057680568 | Z62: 4.591961689 | AA62: 1.656562543 | AB62: 3.632631876 | AC62: 4.089012697 | AD62: 2.514555306 | AE62: 4.709119978 | AF62: 0.5662154758 | AG62: 2.236965739 | AH62: 4.300575565 | AI62: 12.31429327 | AJ62: 4.519819343 | AK62: 0.2315269178 | AL62: 0.04455840076 | AM62: 2.013248566 | AN62: 5.242432343 | AO62: 0.6990563936 | AP62: 7.042829346 | AQ62: 7.21201238 | AR62: 15.48071905 | AS62: 3.55050606 | AT62: 7.100498281 | AU62: 4.056587799 | AV62: 4.784712195 | AW62: 1.282812668 | AX62: 4.277838796 | AY62: 2.713425905 | AZ62: 1.811975359 | BA62: 2.858979924 | BB62: 2.993742039 | BC62: 0 | BD62: 0.9698633569 | BE62: 11.09544352 | BF62: 0 | BG62: 12.40540669 | BH62: 8.498823841 | BI62: 47.24301721 | BJ62: 7.379707083 | BK62: 18.38946595 | BL62: 4.69973752 | BM62: 1.085823846 | BN62: 5.000396807 | BO62: 58.61813126 | BP62: 102.8559054 | BQ62: 1.99801767 | BR62: 5.075226815 | BS62: 9.476433624 | BT62: 14.46759676 | BU62: 4.222922503 | BV62: 8.461371775 | BW62: 2.730378461 | BX62: 18.00571393 | BY62: 79.08360902 | BZ62: 5.346402714 | CA62: 9.096711618 | CB62: 0 | CC62: 3.164741686 | CD62: 4.014647885 | CE62: 7.364585715 | CF62: 7.447664337 | CG62: 6.671503499 | CH62: 15.22640598 | CI62: 7.159458092 | CJ62: 6.761836562 | CK62: 4.051016811 | CL62: 10.49396594 | CM62: 4.566123215 | CN62: 13.2890408 | CO62: 6.892057344 | CP62: 3.132436148 | CQ62: 6.534890706 | CR62: 503.5627596 | CS62: 122.848473 | CT62: 203.1568527 | CU62: 15.48369797 | CV62: 6.219889943 | CW62: 6.233318597 | CX62: 0.9625765827 | CY62: 32.57934173 | CZ62: 4.912104087 | DA62: 3.135251317 | DB62: 3.047016803 | DC62: 0 | DD62: 9688.611037 | DE62: 0 | DF62: 0 | DG62: 0 | DH62: 0 | DI62: 0 | DJ62: 0 | DK62: 0 | DL62: 0 | DM62: 194.3470713 | DN62: 299.0785487 | DO62: 11929.83141 | DQ62: 11929 | DR62: 0.999930308 | DT62: 0.8314142924
A63: 49.3-5 | B63: Land transport services and transport services via pipelines, excluding rail transport | C63: 63.02134554 | D63: 22.01978193 | E63: 0 | F63: 8.781999039 | G63: 15.6167865 | H63: 389.1383734 | I63: 4.927649018 | J63: 329.1350601 | K63: 184.8847684 | L63: 19.41415824 | M63: 264.7042667 | N63: 226.314502 | O63: 220.8271427 | P63: 157.8804691 | Q63: 137.4783981 | R63: 278.5420902 | S63: 151.5311736 | T63: 28.95379884 | U63: 59.48963994 | V63: 13.5994779 | W63: 169.0017147 | X63: 200.9860128 | Y63: 249.4984228 | Z63: 91.22680075 | AA63: 50.51419149 | AB63: 79.57722312 | AC63: 66.25238246 | AD63: 99.74230985 | AE63: 229.8547461 | AF63: 33.42312306 | AG63: 25.20655583 | AH63: 111.1413454 | AI63: 482.0011307 | AJ63: 277.7850184 | AK63: 153.599288 | AL63: 24.91732427 | AM63: 6.768679562 | AN63: 227.306027 | AO63: 115.0041911 | AP63: 111.9427379 | AQ63: 81.19667897 | AR63: 64.00864692 | AS63: 8.522474068 | AT63: 29.56669324 | AU63: 10.26762056 | AV63: 115.1658664 | AW63: 22.10840585 | AX63: 1.203813692 | AY63: 6.633260476 | AZ63: 33.86741609 | BA63: 9.461074704 | BB63: 10.23025039 | BC63: 11.0842678 | BD63: 32.53969735 | BE63: 1107.035992 | BF63: 3.07519437 | BG63: 1404.036145 | BH63: 1156.143225 | BI63: 8605.655315 | BJ63: 2095.478816 | BK63: 93.30891619 | BL63: 1858.240791 | BM63: 23.21419651 | BN63: 34.14266476 | BO63: 646.0758756 | BP63: 416.472429 | BQ63: 150.0613581 | BR63: 522.705181 | BS63: 284.3914543 | BT63: 46.17948789 | BU63: 230.1213186 | BV63: 290.547333 | BW63: 21.25754794 | BX63: 600.1578088 | BY63: 406.9368359 | BZ63: 91.88675945 | CA63: 117.3416201 | CB63: 0 | CC63: 14.74717145 | CD63: 135.2878056 | CE63: 148.312354 | CF63: 112.5037876 | CG63: 219.1696477 | CH63: 90.8204092 | CI63: 135.9092744 | CJ63: 45.66621531 | CK63: 77.30639459 | CL63: 359.2162884 | CM63: 176.802715 | CN63: 218.1573111 | CO63: 17.15637589 | CP63: 56.68194946 | CQ63: 97.75503498 | CR63: 568.390223 | CS63: 938.4950348 | CT63: 1115.009186 | CU63: 502.1301321 | CV63: 6.776267538 | CW63: 17.94417632 | CX63: 30.46950572 | CY63: 45.70842183 | CZ63: 8.228281001 | DA63: 15.41933618 | DB63: 76.04174286 | DC63: 0 | DD63: 11816.86613 | DE63: 0 | DF63: 0 | DG63: 728.0629926 | DH63: 231.3459211 | DI63: 0 | DJ63: 0 | DK63: 0 | DL63: 0 | DM63: 750.6626025 | DN63: 1160.206408 | DO63: 45939.58164 | DQ63: 45936 | DR63: 0.9999220359 | DT63: 3.581636188
A64: 50 | B64: Water transport services | C64: 0 | D64: 0 | E64: 12.60431262 | F64: 0.02022718623 | G64: 130.9935017 | H64: 4.88080974 | I64: 15.19447822 | J64: 0.2618131482 | K64: 0.2015195711 | L64: 0.0422245818 | M64: 1.955081964 | N64: 2.017744351 | O64: 0.9812956805 | P64: 8.733125849 | Q64: 0.001469023825 | R64: 13.91642107 | S64: 0.04178282446 | T64: 0.07182448497 | U64: 0.5045857 | V64: 0.01562272065 | W64: 0.09473681346 | X64: 3.515031001 | Y64: 17.47174631 | Z64: 5.967954166 | AA64: 0.1786960676 | AB64: 0.7493736346 | AC64: 1.985314429 | AD64: 0.01025026607 | AE64: 1.442124938 | AF64: 0.116421928 | AG64: 1.147358595 | AH64: 2.416300796 | AI64: 0.1261229177 | AJ64: 3.007443665 | AK64: 6.029499024 | AL64: 1.032167434 | AM64: 0.5083315228 | AN64: 4.845234214 | AO64: 4.897337963 | AP64: 0.1507082014 | AQ64: 4.04622484 | AR64: 11.77889398 | AS64: 0.004350665125 | AT64: 0.01928019864 | AU64: 4.915477186 | AV64: 0.04532496212 | AW64: 5.702967227 | AX64: 0.01527297808 | AY64: 0.03680832551 | AZ64: 1.699982514 | BA64: 2.186124342 | BB64: 0 | BC64: 0 | BD64: 3.782310463 | BE64: 9.918047413 | BF64: 0 | BG64: 25.95783387 | BH64: 23.17174041 | BI64: 123.4196574 | BJ64: 31.18888112 | BK64: 5.97632895 | BL64: 6.449469832 | BM64: 2365.040672 | BN64: 13.36946822 | BO64: 145.938337 | BP64: 67.87236121 | BQ64: 2.260488727 | BR64: 26.74562486 | BS64: 17.27464564 | BT64: 5.728736187 | BU64: 13.26336624 | BV64: 12.93763748 | BW64: 0.1043899093 | BX64: 86.74158274 | BY64: 3.006690656 | BZ64: 14.47460368 | CA64: 5.309979765 | CB64: 0 | CC64: 0 | CD64: 0.07971105209 | CE64: 0.1728254968 | CF64: 3.868966408 | CG64: 2.341326314 | CH64: 2.608678617 | CI64: 5.36143917 | CJ64: 1.272489321 | CK64: 0 | CL64: 18.53660498 | CM64: 6.579028838 | CN64: 36.8739054 | CO64: 0.3301078086 | CP64: 4.917730265 | CQ64: 13.97192033 | CR64: 12.02713237 | CS64: 15.54140823 | CT64: 7.184635162 | CU64: 20.79112105 | CV64: 3.040490811 | CW64: 0.3109402245 | CX64: 0.0472308317 | CY64: 0.9652765109 | CZ64: 2.848414235 | DA64: 0.07800386252 | DB64: 0.9972515445 | DC64: 0 | DD64: 7164.14388 | DE64: 0 | DF64: 0 | DG64: 0 | DH64: 152.2555793 | DI64: 0 | DJ64: 0 | DK64: 0 | DL64: 0 | DM64: 2543.250022 | DN64: 3930.668701 | DO64: 17239.57838 | DQ64: 17238 | DR64: 0.9999084446 | DT64: 1.578376978
A65: 51 | B65: Air transport services | C65: 0 | D65: 0 | E65: 0 | F65: 0 | G65: 0 | H65: 0.9544550787 | I65: 0 | J65: 0.004499116389 | K65: 0.003450912988 | L65: 0.01891836532 | M65: 0.9270343676 | N65: 0.009958566007 | O65: 0.8502211707 | P65: 0.01383366583 | Q65: 0 | R65: 0.9718887892 | S65: 0.01896638765 | T65: 0.004165306081 | U65: 0.00104624838 | V65: 0.001037611409 | W65: 0.007514256927 | X65: 0.0002967502335 | Y65: 0.01022229334 | Z65: 2.852624907 | AA65: 0.01129578839 | AB65: 0.002454283036 | AC65: 0.0002964620264 | AD65: 0.001706738213 | AE65: 0.008633017295 | AF65: 0.004276330016 | AG65: 0.01567295054 | AH65: 0.01402702432 | AI65: 0.02372189399 | AJ65: 0.01705478955 | AK65: 0.0008800982617 | AL65: 0.00117635036 | AM65: 0.1290571938 | AN65: 0.03195276944 | AO65: 0.06997808326 | AP65: 0.01119007665 | AQ65: 0.9128035933 | AR65: 0.008669511037 | AS65: 0.1588117762 | AT65: 0.001130560736 | AU65: 2.851731086 | AV65: 0 | AW65: 0.650352746 | AX65: 0.8102039793 | AY65: 0.001851429212 | AZ65: 0.4276008133 | BA65: 1.071572665 | BB65: 0 | BC65: 0 | BD65: 0 | BE65: 2.642929515 | BF65: 0 | BG65: 3.223851099 | BH65: 5.500138777e-05 | BI65: 0.3131978832 | BJ65: 0.01024963514 | BK65: 1.947977971 | BL65: 2.962739256 | BM65: 8.729885991e-05 | BN65: 0 | BO65: 1.048700716 | BP65: 40.60928938 | BQ65: 0.000462468581 | BR65: 0.3965291535 | BS65: 0.03521699055 | BT65: 5.516101897 | BU65: 0.04061073938 | BV65: 5.339445594 | BW65: 0.1523384397 | BX65: 0 | BY65: 33.29101499 | BZ65: 1.997548638 | CA65: 3.974192475 | CB65: 0 | CC65: 0 | CD65: 0.9509302857 | CE65: 5.138573298 | CF65: 2.457458953 | CG65: 0.963488611 | CH65: 0.5999581415 | CI65: 0.2316827718 | CJ65: 0.1288318758 | CK65: 0 | CL65: 1.323862426 | CM65: 2.262607049 | CN65: 0 | CO65: 0.04559622543 | CP65: 0.1071497126 | CQ65: 0.2953620121 | CR65: 0.8970332656 | CS65: 0.03783860539 | CT65: 0 | CU65: 0.9297525507 | CV65: 3.958689797 | CW65: 0.2229918757 | CX65: 5.520713562e-05 | CY65: 0.01097004086 | CZ65: 6.580705407 | DA65: 0.1391351896 | DB65: 0.9673250324 | DC65: 0 | DD65: 14088.01355 | DE65: 0 | DF65: 0 | DG65: 0 | DH65: 0 | DI65: 0 | DJ65: 0 | DK65: 0 | DL65: 0 | DM65: 1456.529781 | DN65: 2250.158375 | DO65: 17940.34248 | DQ65: 17939 | DR65: 0.9999251697 | DT65: 1.342480616
A66: 52 | B66: Warehousing and support services for transportation | C66: 13.62485741 | D66: 0.8958139582 | E66: 18.32444038 | F66: 1.073919733 | G66: 19.58726127 | H66: 7.184329945 | I66: 4.687137951 | J66: 10.29007384 | K66: 6.762237819 | L66: 4.220808974 | M66: 12.21196005 | N66: 10.75836134 | O66: 16.24851179 | P66: 27.94902352 | Q66: 6.14942707 | R66: 30.30657814 | S66: 4.898080027 | T66: 5.527063108 | U66: 38.09968049 | V66: 4.632948369 | W66: 5.495353474 | X66: 8.510560202 | Y66: 64.28144207 | Z66: 13.37887419 | AA66: 3.336688631 | AB66: 6.528666758 | AC66: 9.063177577 | AD66: 17.18724669 | AE66: 43.41347242 | AF66: 16.28239694 | AG66: 85.54948525 | AH66: 24.41716954 | AI66: 12.88670341 | AJ66: 20.29678223 | AK66: 33.75994031 | AL66: 10.86299273 | AM66: 5.065956894 | AN66: 34.16266087 | AO66: 28.19297938 | AP66: 23.32022916 | AQ66: 55.45393689 | AR66: 87.74705193 | AS66: 4.983888179 | AT66: 87.24324311 | AU66: 3.7372532 | AV66: 9.384527847 | AW66: 12.49756124 | AX66: 1.207075599 | AY66: 4.735442858 | AZ66: 11.47115646 | BA66: 50.82500625 | BB66: 71.50891591 | BC66: 21.30657457 | BD66: 14.89261091 | BE66: 66.4820132 | BF66: 2.251904078 | BG66: 646.738035 | BH66: 578.0027895 | BI66: 6762.804925 | BJ66: 838.0090821 | BK66: 2798.670397 | BL66: 1440.113264 | BM66: 1105.714575 | BN66: 131.3450859 | BO66: 9671.099289 | BP66: 396.9524119 | BQ66: 41.68699181 | BR66: 379.6424472 | BS66: 9.921907466 | BT66: 112.1772798 | BU66: 454.8695881 | BV66: 442.5790807 | BW66: 7.993547466 | BX66: 1473.499234 | BY66: 623.5367448 | BZ66: 180.4433484 | CA66: 228.5621609 | CB66: 0 | CC66: 55.07521764 | CD66: 45.97415663 | CE66: 38.35285136 | CF66: 85.92387571 | CG66: 217.5407387 | CH66: 71.87663509 | CI66: 23.20523173 | CJ66: 51.07098262 | CK66: 1.038009185 | CL66: 268.7963504 | CM66: 277.7088604 | CN66: 1.048898078 | CO66: 26.89631546 | CP66: 180.1461154 | CQ66: 264.2542182 | CR66: 196.472898 | CS66: 19.96105687 | CT66: 34.02429036 | CU66: 86.31273613 | CV66: 32.94754389 | CW66: 13.23775543 | CX66: 10.23586716 | CY66: 20.09099437 | CZ66: 37.23704021 | DA66: 16.57282188 | DB66: 82.24095296 | DC66: 0 | DD66: 1095.725122 | DE66: 0 | DF66: 1362.1216 | DG66: 0 | DH66: 0 | DI66: 0 | DJ66: 0 | DK66: 0 | DL66: 0 | DM66: 1946.408015 | DN66: 3007.482231 | DO66: 39109.49502 | DQ66: 39107 | DR66: 0.9999362042 | DT66: =ABS(DO66-DQ66) -> 2.495023399
A67: 53 | B67: Postal and courier services | C67: 28.88423011 | D67: 2.658282803 | E67: 0 | F67: 2.132615058 | G67: 82.54809568 | H67: 3.048490752 | I67: 14.17774771 | J67: 15.89115081 | K67: 16.90914179 | L67: 1.349197789 | M67: 15.53240329 | N67: 26.21176814 | O67: 9.836071184 | P67: 239.8944111 | Q67: 9.083194375 | R67: 66.35711995 | S67: 62.23316308 | T67: 5.601859706 | U67: 8.505230988 | V67: 2.859769097 | W67: 9.49981903 | X67: 44.20518754 | Y67: 16.95386988 | Z67: 57.17421986 | AA67: 8.680404598 | AB67: 37.28708908 | AC67: 7.392727654 | AD67: 10.26921667 | AE67: 215.9843085 | AF67: 5.884866718 | AG67: 217.3809047 | AH67: 11.44949034 | AI67: 49.35851676 | AJ67: 13.8036812 | AK67: 22.88449483 | AL67: 34.43164861 | AM67: 1.678268856 | AN67: 45.04211743 | AO67: 4.210563739 | AP67: 12.33061552 | AQ67: 25.92295222 | AR67: 47.68760321 | AS67: 1.92747651 | AT67: 26.63602508 | AU67: 3.223125277 | AV67: 8.313393511 | AW67: 5.019390436 | AX67: 0.1669749619 | AY67: 1.965534735 | AZ67: 4.444199186 | BA67: 28.87253507 | BB67: 8.083775482 | BC67: 3.010770806 | BD67: 15.71309256 | BE67: 55.21131398 | BF67: 1.113735323 | BG67: 231.6993424 | BH67: 202.7114506 | BI67: 1413.141283 | BJ67: 634.0982079 | BK67: 17.58638872 | BL67: 173.5273755 | BM67: 39.93616089 | BN67: 33.03646312 | BO67: 141.3162597 | BP67: 533.5767224 | BQ67: 93.49173578 | BR67: 292.4813076 | BS67: 16.38185034 | BT67: 87.75278056 | BU67: 382.9338712 | BV67: 397.8487453 | BW67: 26.72030102 | BX67: 4471.203686 | BY67: 2940.025858 | BZ67: 1643.389988 | CA67: 330.3859293 | CB67: 0 | CC67: 22.4319714 | CD67: 382.4984255 | CE67: 198.3060507 | CF67: 192.6562229 | CG67: 221.5279277 | CH67: 70.49133329 | CI67: 71.51448847 | CJ67: 44.18667978 | CK67: 4.097004377 | CL67: 113.8926253 | CM67: 143.1952882 | CN67: 11.38955596 | CO67: 17.21013147 | CP67: 90.56379763 | CQ67: 108.9664036 | CR67: 1336.834598 | CS67: 223.9756477 | CT67: 216.1341969 | CU67: 292.0788123 | CV67: 24.1808496 | CW67: 10.67677331 | CX67: 11.48749951 | CY67: 31.53705444 | CZ67: 68.69210874 | DA67: 9.05614018 | DB67: 77.11872404 | DC67: 0 | DD67: 765.4270255 | DE67: 0 | DF67: 0 | DG67: 0 | DH67: 0 | DI67: 0 | DJ67: 0 | DK67: 0 | DL67: 0 | DM67: 752.1856928 | DN67: 874.6345265 | DO67: =SUM(C67:DN67) -> 22167.12112 | DQ67: 22165 | DR67: =DQ67/DO67 -> 0.9999043125 | DT67: 2.121116288
A68: 55 | B68: Accommodation services | C68: 1.633942999 | D68: 0 | E68: 0 | F68: 0 | G68: 0 | H68: 0 | I68: 0 | J68: 2.471826575e-05 | K68: 1.621615763 | L68: 0.003890241369 | M68: 0 | N68: 0.0004014364011 | O68: 0 | P68: 0.0005063319429 | Q68: 0 | R68: 0 | S68: 0.03433852195 | T68: 0.00425915892 | U68: 0.0001083199193 | V68: 0.003974704702 | W68: 0.006005785648 | X68: 0.00473540485 | Y68: 0.00438794105 | Z68: 8.574756948 | AA68: 0.0008761010084 | AB68: 0.005293503349 | AC68: 0.006743753181 | AD68: 0.007998969192 | AE68: 0.008002715625 | AF68: 0.0117964339 | AG68: 0.01418910213 | AH68: 1.733216377 | AI68: 0.003960183471 | AJ68: 0.001649081059 | AK68: 0.8043755022 | AL68: 0.8940230106 | AM68: 0.1139861211 | AN68: 0.06517609239 | AO68: 1.400790436 | AP68: 0.8956169407 | AQ68: 4.161220959 | AR68: 4.35935685 | AS68: 0.007514951662 | AT68: 2.482120368 | AU68: 0.00881158127 | AV68: 0.01824361522 | AW68: 0.05566115638 | AX68: 0.016027057 | AY68: 0.01158116218 | AZ68: 0.4550346408 | BA68: 0 | BB68: 0 | BC68: 0 | BD68: 0 | BE68: 0 | BF68: 0 | BG68: 14.22130369 | BH68: 1.884714268 | BI68: 0.4202208338 | BJ68: 0.000130173274 | BK68: 0 | BL68: 0.06182852396 | BM68: 0 | BN68: 1.711205732 | BO68: 0.8806111411 | BP68: 0.001007873694 | BQ68: 0.1000015977 | BR68: 2.884904767 | BS68: 0.001187106269 | BT68: 0 | BU68: 1.818128163 | BV68: 3.639507845 | BW68: 1.219086027 | BX68: 0 | BY68: 315.2209056 | BZ68: 1.782939314 | CA68: 25.7608606 | CB68: 0 | CC68: 0 | CD68: 5.944190712 | CE68: 2.461235356 | CF68: 10.75692132 | CG68: 7.079259213 | CH68: 3.959264028 | CI68: 0.1572537178 | CJ68: 4.133715829 | CK68: 0 | CL68: 2.339362627 | CM68: 17.28387832 | CN68: 0 | CO68: 0.2112218078 | CP68: 7.990944442 | CQ68: 0.2905765995 | CR68: 6.066919267 | CS68: 0.2820537572 | CT68: 16.25411925 | CU68: 3.336505398 | CV68: 0 | CW68: 0 | CX68: 0.0001556801105 | CY68: 0.01039056506 | CZ68: 13.52471558 | DA68: 0.06317312088 | DB68: 0.0007595868511 | DC68: 0 | DD68: 15905.15737 | DE68: 0 | DF68: 0 | DG68: 0 | DH68: 0 | DI68: 0 | DJ68: 0 | DK68: 0 | DL68: 0 | DM68: 2880.335706 | DN68: 3879.124368 | DO68: 23167.80882 | DQ68: 23166 | DR68: 0.9999219253 | DT68: 1.808818682
A69: 56 | B69: Food and beverage serving services | C69: 5.952913251 | D69: 0 | E69: 3.11485383 | F69: 0.82459337 | G69: 31.55639455 | H69: 0.00166836038 | I69: 0.9297772168 | J69: 50.73482118 | K69: 1.663919953 | L69: 3.076530074 | M69: 4.841767267 | N69: 6.781260913 | O69: 10.46734661 | P69: 35.85140521 | Q69: 3.43308464 | R69: 7.296173431 | S69: 1.532725754 | T69: 0.06012640105 | U69: 2.213963902 | V69: 0.7495901681 | W69: 0.04688783999 | X69: 3.859487027 | Y69: 1.617913577 | Z69: 16.65846743 | AA69: 1.101131611 | AB69: 1.687711001 | AC69: 1.692768177 | AD69: 1.984269789 | AE69: 14.49327556 | AF69: 1.003921718 | AG69: 1.091184192 | AH69: 6.105184124 | AI69: 0.8182418724 | AJ69: 0.9353466386 | AK69: 9.57131838 | AL69: 2.45658033 | AM69: 4.117000177 | AN69: 0.9363667765 | AO69: 92.01044264 | AP69: 8.806384731 | AQ69: 14.74509886 | AR69: 12.12301123 | AS69: 3.774471616 | AT69: 6.958712142 | AU69: 1.587031723 | AV69: 0.8297373771 | AW69: 1.591070202 | AX69: 1.387567362 | AY69: 0.8441089627 | AZ69: 7.613494267 | BA69: 37.27596849 | BB69: 3.907073878 | BC69: 0 | BD69: 0 | BE69: 18.09173803 | BF69: 0 | BG69: 56.17369731 | BH69: 11.55460323 | BI69: 29.64184893 | BJ69: 861.5200479 | BK69: 13.59984727 | BL69: 8.412822745 | BM69: 6.511455421 | BN69: 24.62518062 | BO69: 29.0888126 | BP69: 0.02564055233 | BQ69: 10.0036958 | BR69: 70.60613113 | BS69: 7.663287205 | BT69: 7.70473237 | BU69: 46.03779833 | BV69: 25.60288998 | BW69: 4.454002829 | BX69: 81.27855953 | BY69: 136.7198424 | BZ69: 0.4721336875 | CA69: 29.99842138 | CB69: 0 | CC69: 0 | CD69: 14.06928115 | CE69: 12.34268285 | CF69: 11.10248771 | CG69: 12.55081234 | CH69: 12.43203402 | CI69: 3.34204298 | CJ69: 4.110492697 | CK69: 1.584140857 | CL69: 5.364274552 | CM69: 3.262844517 | CN69: 0.8007213021 | CO69: 0.2701783419 | CP69: 8.164886686 | CQ69: 15.23426134 | CR69: 196.7701746 | CS69: 2.853755072 | CT69: 187.4462526 | CU69: 565.4026424 | CV69: 19.50894509 | CW69: 6.587640058 | CX69: 3.826635728 | CY69: 2.298602206 | CZ69: 23.85782719 | DA69: 12.48164627 | DB69: 0.002858544041 | DC69: 0 | DD69: 57578.8116 | DE69: 0 | DF69: 0 | DG69: 0 | DH69: 0 | DI69: 0 | DJ69: 0 | DK69: 0 | DL69: 0 | DM69: 1859.170512 | DN69: 2503.412409 | DO69: 64981.56398 | DQ69: 64977 | DR69: 0.999929765 | DT69: 4.563977382
A70: 58 | B70: Publishing services | C70: 0.04680649932 | D70: 7.272039422 | E70: 0 | F70: 1.449883281 | G70: 0.02796312228 | H70: 1.393127675 | I70: 0 | J70: 8.9310002 | K70: 0.9383296864 | L70: 1.250879465 | M70: 5.656126261 | N70: 7.225343471 | O70: 15.37846462 | P70: 31.69555106 | Q70: 4.262271953 | R70: 28.26810772 | S70: 1.347770056 | T70: 7.471661914 | U70: 8.964462705 | V70: 1.425188592 | W70: 5.260524478 | X70: 32.31699178 | Y70: 20.06101749 | Z70: 15.44456202 | AA70: 3.316577571 | AB70: 7.290690945 | AC70: 6.217177989 | AD70: 0.5174696101 | AE70: 48.63292951 | AF70: 10.49773083 | AG70: 117.9283555 | AH70: 20.3361004 | AI70: 10.01322934 | AJ70: 24.0843458 | AK70: 4.33601532 | AL70: 10.14011508 | AM70: 2.220193433 | AN70: 34.347668 | AO70: 7.950449255 | AP70: 19.75550959 | AQ70: 50.39545302 | AR70: 55.37332346 | AS70: 2.078829038 | AT70: 39.35159869 | AU70: 0.591762832 | AV70: 8.289186156 | AW70: 22.27810287 | AX70: 3.743881457 | AY70: 5.099536709 | AZ70: 9.418723599 | BA70: 108.7959627 | BB70: 22.11410084 | BC70: 21.9634961 | BD70: 0 | BE70: 38.75229952 | BF70: 0 | BG70: 61.43175488 | BH70: 79.03318447 | BI70: 72.79904223 | BJ70: 136.4606593 | BK70: 9.904916847 | BL70: 22.95133808 | BM70: 5.747972253 | BN70: 20.82485545 | BO70: 112.8416466 | BP70: 33.11659467 | BQ70: 15.08947792 | BR70: 56.5024485 | BS70: 3121.511668 | BT70: 14.00366845 | BU70: 37.59868171 | BV70: 62.68534745 | BW70: 4.041956273 | BX70: 149.6296907 | BY70: 190.6217363 | BZ70: 26.41591795 | CA70: 42.35463205 | CB70: 0 | CC70: 2.92215461 | CD70: 79.50589054 | CE70: 21.70758091 | CF70: 44.62803903 | CG70: 66.61025516 | CH70: 23.34338043 | CI70: 662.1441119 | CJ70: 14.5809813 | CK70: 1.404391995 | CL70: 13.02485281 | CM70: 13.27825505 | CN70: 1.416279818 | CO70: 3.804414734 | CP70: 2.876011108 | CQ70: 7.240158431 | CR70: 439.3959176 | CS70: 1006.782459 | CT70: 4.314733793 | CU70: 299.1396634 | CV70: 25.96363832 | CW70: 24.75287296 | CX70: 1.919521095 | CY70: 126.8265325 | CZ70: 81.64037462 | DA70: 0.3809135059 | DB70: 0.02464940757 | DC70: 0 | DD70: 6013.618786 | DE70: 0 | DF70: 0 | DG70: 0 | DH70: 2992.59329 | DI70: 0 | DJ70: 27.35142459 | DK70: 1683.094621 | DL70: 1724.492798 | DM70: 348.4316507 | DN70: 405.2574134 | DO70: 21361.9541 | DQ70: 21360 | DR70: 0.9999085244 | DT70: 1.954097261
A71: 59-60 | B71: Motion Picture, Video & TV Programme Production, Sound Recording & Music Publishing services & Programming And Broadcasting services | C71: 0 | D71: 0 | E71: 0 | F71: 0 | G71: 2.2293781e-05 | H71: 0 | I71: 0 | J71: 0 | K71: 0 | L71: 0 | M71: 0 | N71: 0 | O71: 0 | P71: 0 | Q71: 0 | R71: 0 | S71: 0 | T71: 0.01904406423 | U71: 0.000115411665 | V71: 3.636377912e-05 | W71: 0.01718763466 | X71: 1.318196269 | Y71: 13.84164337 | Z71: 0 | AA71: 0 | AB71: 0 | AC71: 0 | AD71: 0 | AE71: 0 | AF71: 0 | AG71: 0 | AH71: 0.1995394925 | AI71: 0 | AJ71: 0 | AK71: 3.411016212e-05 | AL71: 0 | AM71: 0 | AN71: 0 | AO71: 0.04087855189 | AP71: 0 | AQ71: 0.04381561506 | AR71: 0.002523162454 | AS71: 0.00118297859 | AT71: 0 | AU71: 0 | AV71: 0 | AW71: 0.801253377 | AX71: 0.002813777019 | AY71: 0 | AZ71: 0.002843526652 | BA71: 0.05635503414 | BB71: 0 | BC71: 0 | BD71: 0 | BE71: 15.55957622 | BF71: 0 | BG71: 0.09226460458 | BH71: 0.003144904886 | BI71: 0.1101659983 | BJ71: 1.145645313 | BK71: 0 | BL71: 0.03436378402 | BM71: 0.0009025834827 | BN71: 0 | BO71: 0 | BP71: 2.41264004e-05 | BQ71: 156.784416 | BR71: 44.66658628 | BS71: 0.3131867887 | BT71: 2957.040186 | BU71: 0.0677796315 | BV71: 27.22986658 | BW71: 12.1564087 | BX71: 0 | BY71: 0 | BZ71: 0.01274043 | CA71: 0.7148113806 | CB71: 0 | CC71: 0 | CD71: 0.003363595938 | CE71: 0.5530680969 | CF71: 16.15335624 | CG71: 0.01041218949 | CH71: 8.230102019 | CI71: 83.51023469 | CJ71: 0.3123652419 | CK71: 0 | CL71: 0.8057201086 | CM71: 1.675884472 | CN71: 0.01279272586 | CO71: 0.02607218425 | CP71: 0.3389220087 | CQ71: 0.5495534562 | CR71: 108.9630499 | CS71: 135.0944832 | CT71: 22.84761465 | CU71: 44.71687116 | CV71: 116.0882324 | CW71: 109.2117808 | CX71: 6.435155212 | CY71: 142.2473716 | CZ71: 235.8295736 | DA71: 0 | DB71: 10.00027587 | DC71: 0 | DD71: 10247.51543 | DE71: 0 | DF71: 3400.648735 | DG71: 0 | DH71: 4654.909942 | DI71: 0 | DJ71: 30.73460714 | DK71: 369.2971782 | DL71: 125.8270164 | DM71: 2298.769836 | DN71: 2599.123507 | DO71: 28002.72206 | DQ71: 28004 | DR71: 1.000045636 | DT71: 1.277941783
A72: 61 | B72: Telecommunications services | C72: 245.9912059 | D72: 3.790847514 | E72: 8.616020054 | F72: 2.270889316 | G72: 23.78481977 | H72: 7.594779527 | I72: 4.257104357 | J72: 14.41387416 | K72: 10.08060884 | L72: 0.9961120614 | M72: 4.458864272 | N72: 5.707125509 | O72: 10.38778275 | P72: 28.1814065 | Q72: 4.513531648 | R72: 21.02751944 | S72: 6.031331352 | T72: 12.16499953 | U72: 19.0628645 | V72: 4.966379121 | W72: 12.48310901 | X72: 18.48942273 | Y72: 45.42534503 | Z72: 19.29373573 | AA72: 4.594055333 | AB72: 4.939673155 | AC72: 18.00884629 | AD72: 11.17662396 | AE72: 25.76417679 | AF72: 8.842738722 | AG72: 71.18078245 | AH72: 7.080536088 | AI72: 21.15434711 | AJ72: 13.01975154 | AK72: 24.0069156 | AL72: 10.17291804 | AM72: 5.985632429 | AN72: 80.93808136 | AO72: 59.06531064 | AP72: 30.52263624 | AQ72: 71.72436109 | AR72: 34.43612112 | AS72: 4.259175595 | AT72: 21.30317216 | AU72: 6.039440081 | AV72: 20.16180668 | AW72: 18.31563419 | AX72: 1.206045299 | AY72: 2.148256759 | AZ72: 16.70820749 | BA72: 84.24908529 | BB72: 31.34141867 | BC72: 26.83445919 | BD72: 64.07194651 | BE72: 78.89756612 | BF72: 2.382365473 | BG72: 574.091044 | BH72: 285.3531682 | BI72: 2018.229399 | BJ72: 1023.542158 | BK72: 54.2150951 | BL72: 281.4882306 | BM72: 80.94158963 | BN72: 96.77977032 | BO72: 515.0428083 | BP72: 434.0277904 | BQ72: 163.1689921 | BR72: 616.9273766 | BS72: 79.02111278 | BT72: 1488.348106 | BU72: 1508.465842 | BV72: 469.3134498 | BW72: 59.44563627 | BX72: 3446.937691 | BY72: 2134.51916 | BZ72: 2301.093163 | CA72: 383.9002949 | CB72: 462.392876 | CC72: 60.55087375 | CD72: 416.2243907 | CE72: 204.7578713 | CF72: 762.8752505 | CG72: 253.3987378 | CH72: 82.79974187 | CI72: 471.7011147 | CJ72: 114.2483907 | CK72: 27.38956697 | CL72: 196.2344397 | CM72: 251.4132146 | CN72: 92.99887067 | CO72: 37.5880222 | CP72: 189.9138126 | CQ72: 234.4313846 | CR72: 2020.801083 | CS72: 164.0700436 | CT72: 764.5979696 | CU72: 267.4457665 | CV72: 48.32857374 | CW72: 78.28140235 | CX72: 105.318344 | CY72: 105.8229607 | CZ72: 60.67351361 | DA72: 17.34104489 | DB72: 135.251864 | DC72: 0 | DD72: 18384.20938 | DE72: 0 | DF72: 0 | DG72: 0 | DH72: 772.4328588 | DI72: 0 | DJ72: 0 | DK72: 0 | DL72: 0 | DM72: 3391.025262 | DN72: 3941.774538 | DO72: 53545.66681 | DQ72: 53541 | DR72: 0.9999128443 | DT72: 4.666808495
A73: 62 | B73: Computer programming, consultancy and related services | C73: 0.02023183337 | D73: 3.143296165 | E73: 2.857693716 | F73: 3.033399679 | G73: 164.1817777 | H73: 7.925420735 | I73: 16.74429165 | J73: 43.74312139 | K73: 18.00466 | L73: 1.222520924 | M73: 18.83895606 | N73: 14.93464447 | O73: 25.18357928 | P73: 64.04134367 | Q73: 19.01914059 | R73: 74.85365064 | S73: 22.29748281 | T73: 15.20722639 | U73: 32.26326011 | V73: 8.551104344 | W73: 24.96245058 | X73: 43.04175143 | Y73: 76.36262721 | Z73: 119.3768072 | AA73: 5.551863435 | AB73: 40.92420099 | AC73: 30.51568134 | AD73: 33.17974319 | AE73: 74.41247955 | AF73: 23.91498343 | AG73: 291.3671797 | AH73: 37.44804732 | AI73: 15.15507879 | AJ73: 21.50145021 | AK73: 92.00394328 | AL73: 60.08661629 | AM73: 27.87710532 | AN73: 16.6491878 | AO73: 61.26439609 | AP73: 42.13842883 | AQ73: 188.7005977 | AR73: 187.8243393 | AS73: 27.01528102 | AT73: 581.1642132 | AU73: 37.92988089 | AV73: 32.4681642 | AW73: 49.70759628 | AX73: 9.072522531 | AY73: 23.35307436 | AZ73: 28.22103461 | BA73: 204.8064384 | BB73: 242.3127841 | BC73: 84.0182865 | BD73: 0 | BE73: 88.85708454 | BF73: 3.160656915 | BG73: 1487.686417 | BH73: 835.8370306 | BI73: 1389.95783 | BJ73: 950.0316565 | BK73: 288.4401207 | BL73: 488.421174 | BM73: 582.1746053 | BN73: 672.2261375 | BO73: 173.1641638 | BP73: 615.807588 | BQ73: 362.4794665 | BR73: 516.8872534 | BS73: 67.90684558 | BT73: 292.6340125 | BU73: 1443.833308 | BV73: 1029.169531 | BW73: 257.9692007 | BX73: 2378.575299 | BY73: 2595.052361 | BZ73: 1698.921235 | CA73: 657.3852647 | CB73: 0 | CC73: 72.75364426 | CD73: 385.4331679 | CE73: 360.1266793 | CF73: 664.2481082 | CG73: 739.6621284 | CH73: 152.6871069 | CI73: 294.9084917 | CJ73: 275.6497773 | CK73: 37.78723822 | CL73: 281.6683743 | CM73: 274.5982817 | CN73: 231.326052 | CO73: 67.83081834 | CP73: 169.6385107 | CQ73: 255.7496513 | CR73: 1031.866662 | CS73: 536.1019795 | CT73: 660.6445041 | CU73: 269.1055418 | CV73: 152.8658058 | CW73: 35.02814363 | CX73: 100.6755432 | CY73: 101.8837312 | CZ73: 149.0192781 | DA73: 63.50652317 | DB73: 301.3041085 | DC73: 0 | DD73: 75.05557793 | DE73: 0 | DF73: 0 | DG73: 0 | DH73: 21538.75308 | DI73: 0 | DJ73: 250.8857254 | DK73: 0 | DL73: 0 | DM73: 2122.984381 | DN73: 2468.929223 | DO73: 56389.65112 | DQ73: 56383 | DR73: 0.9998820507 | DT73: 6.65112198
A74: 63 | B74: Information services | C74: 0.005326778809 | D74: 0.8275890325 | E74: 0 | F74: 0 | G74: 0.2427103081 | H74: 0.9487338352 | I74: 1.570824179 | J74: 10.50968091 | K74: 5.046640324 | L74: 0.1445736021 | M74: 3.84233006 | N74: 1.290938262 | O74: 4.671443642 | P74: 13.3201393 | Q74: 5.667747649 | R74: 47.27193261 | S74: 6.855083273 | T74: 2.996872933 | U74: 3.143332192 | V74: 0.0814372792 | W74: 5.770208038 | X74: 13.03456562 | Y74: 25.87784293 | Z74: 1.478393863 | AA74: 3.545177664 | AB74: 7.697338045 | AC74: 2.090930426 | AD74: 4.879577081 | AE74: 5.453399974 | AF74: 3.747560531 | AG74: 49.16950357 | AH74: 4.92489716 | AI74: 2.956965816 | AJ74: 4.024504294 | AK74: 13.9299058 | AL74: 7.912629738 | AM74: 1.867439901 | AN74: 0.7072791012 | AO74: 9.414084857 | AP74: 9.777008286 | AQ74: 23.98794051 | AR74: 25.35689928 | AS74: 3.808086987 | AT74: 42.95342804 | AU74: 3.018438841 | AV74: 6.670082213 | AW74: 7.234286981 | AX74: 1.761335184 | AY74: 1.817307519 | AZ74: 4.064746411 | BA74: 34.56935064 | BB74: 10.38129998 | BC74: 0 | BD74: 0 | BE74: 0 | BF74: 0 | BG74: 160.2486787 | BH74: 127.6804685 | BI74: 353.8050848 | BJ74: 468.7392367 | BK74: 40.57998076 | BL74: 153.4372938 | BM74: 43.1740906 | BN74: 126.4654042 | BO74: 244.064575 | BP74: 161.3076082 | BQ74: 58.66331238 | BR74: 134.407545 | BS74: 30.14170498 | BT74: 170.5647418 | BU74: 306.693999 | BV74: 166.1594594 | BW74: 40.32504941 | BX74: 541.9068293 | BY74: 536.176649 | BZ74: 123.1935277 | CA74: 102.6841072 | CB74: 0 | CC74: 6.983626228 | CD74: 55.2268318 | CE74: 44.55021011 | CF74: 198.435207 | CG74: 140.7769202 | CH74: 33.51536041 | CI74: 91.89759359 | CJ74: 72.05867666 | CK74: 4.785450394 | CL74: 42.56408911 | CM74: 18.96780007 | CN74: 15.47169564 | CO74: 28.06512791 | CP74: 54.0434473 | CQ74: 181.9139286 | CR74: 0 | CS74: 4.268455976 | CT74: 42.24254814 | CU74: 21.0521905 | CV74: 862.1951811 | CW74: 16.60530588 | CX74: 1.973207727 | CY74: 36.2273225 | CZ74: 23.22755514 | DA74: 14.2573169 | DB74: 6.759446548 | DC74: 0 | DD74: 0 | DE74: 0 | DF74: 0 | DG74: 0 | DH74: 0 | DI74: 0 | DJ74: 115.9893488 | DK74: 0 | DL74: 0 | DM74: 850.5824765 | DN74: 989.4530849 | DO74: 8516.828503 | DQ74: 8516 | DR74: 0.9999027216 | DT74: 0.8285034556
A75: 64 | B75: Financial services, except insurance and pension funding | C75: 923.7824853 | D75: 8.231938129 | E75: 30.14379837 | F75: 24.27406914 | G75: 1309.472475 | H75: 290.9828129 | I75: 215.6503369 | J75: 127.303049 | K75: 224.734371 | L75: 19.79950176 | M75: 124.5347994 | N75: 122.7262755 | O75: 241.2368367 | P75: 705.436281 | Q75: 65.82411958 | R75: 456.7010445 | S75: 68.86295118 | T75: 124.4426241 | U75: 168.7680294 | V75: 13.91273154 | W75: 188.3940697 | X75: 240.490813 | Y75: 125.0594519 | Z75: 671.0025356 | AA75: 92.28335777 | AB75: 172.2163594 | AC75: 149.5373778 | AD75: 117.8361974 | AE75: 383.4699249 | AF75: 112.4676848 | AG75: 788.8966686 | AH75: 453.1355112 | AI75: 298.4314551 | AJ75: 239.4070162 | AK75: 103.8334023 | AL75: 145.0407248 | AM75: 49.76796306 | AN75: 750.6150029 | AO75: 218.857561 | AP75: 290.8094949 | AQ75: 458.0529804 | AR75: 1259.829666 | AS75: 46.91092375 | AT75: 949.4573973 | AU75: 187.2066167 | AV75: 145.9570997 | AW75: 221.0508083 | AX75: 22.82129264 | AY75: 71.05215179 | AZ75: 148.9704781 | BA75: 1205.878527 | BB75: 288.9240448 | BC75: 157.4634239 | BD75: 42.57656668 | BE75: 730.2736288 | BF75: 2.299278882 | BG75: 3053.897123 | BH75: 816.5048124 | BI75: 1778.160911 | BJ75: 2415.75253 | BK75: 81.15606854 | BL75: 736.6289651 | BM75: 198.6980412 | BN75: 282.3115796 | BO75: 1039.953392 | BP75: 562.9651373 | BQ75: 419.8553792 | BR75: 1105.414458 | BS75: 128.3360271 | BT75: 242.7684212 | BU75: 829.9996463 | BV75: 816.1298202 | BW75: 89.97852634 | BX75: 2197.519471 | BY75: 1434.283499 | BZ75: 495.0787487 | CA75: 5661.842909 | CB75: 22161.43248 | CC75: 783.9663278 | CD75: 473.4398326 | CE75: 421.3381205 | CF75: 836.325635 | CG75: 899.3548714 | CH75: 249.8436478 | CI75: 315.7349505 | CJ75: 392.7777599 | CK75: 19.03086826 | CL75: 464.7921494 | CM75: 988.073148 | CN75: 355.7926297 | CO75: 48.68085344 | CP75: 253.2414516 | CQ75: 437.6917037 | CR75: 3327.101041 | CS75: 20.9166055 | CT75: 624.78198 | CU75: 103.1363 | CV75: 163.8091042 | CW75: 31.46932209 | CX75: 175.295736 | CY75: 96.3769772 | CZ75: 62.65147046 | DA75: 47.70438438 | DB75: 444.6057407 | DC75: 0 | DD75: 24741.55759 | DE75: 0 | DF75: 0 | DG75: 0 | DH75: 0 | DI75: 0 | DJ75: 0 | DK75: 0 | DL75: 0 | DM75: 12954.49081 | DN75: 19919.82902 | DO75: 132999.576 | DQ75: 132986 | DR75: 0.9998979248 | DT75: 13.5759595
A76: 65 | B76: Insurance and reinsurance, except compulsory social security & Pension funding | C76: 208.2821195 | D76: 5.558479526 | E76: 43.16472782 | F76: 5.555886083 | G76: 95.55230147 | H76: 14.84190208 | I76: 10.71694737 | J76: 23.61232941 | K76: 23.30134975 | L76: 2.822040463 | M76: 13.76476272 | N76: 3.512189795 | O76: 34.91653905 | P76: 40.37421349 | Q76: 8.594725712 | R76: 30.27955406 | S76: 2.633997072 | T76: 20.29515522 | U76: 23.53128295 | V76: 2.454318405 | W76: 26.84400574 | X76: 33.98637927 | Y76: 33.77916471 | Z76: 19.40954518 | AA76: 11.50897895 | AB76: 16.36675548 | AC76: 37.07921733 | AD76: 13.60494013 | AE76: 54.72972952 | AF76: 7.362342168 | AG76: 26.76947033 | AH76: 90.23841321 | AI76: 21.01078002 | AJ76: 25.56349222 | AK76: 30.19402832 | AL76: 24.21433904 | AM76: 4.901219166 | AN76: 110.3032624 | AO76: 47.83901916 | AP76: 51.88542719 | AQ76: 105.2319215 | AR76: 80.30651063 | AS76: 17.41626887 | AT76: 53.05715196 | AU76: 7.648011219 | AV76: 18.34497638 | AW76: 19.7180023 | AX76: 5.828622439 | AY76: 6.983500852 | AZ76: 24.27782234 | BA76: 97.41448845 | BB76: 28.52415929 | BC76: 35.67468864 | BD76: 97.54165595 | BE76: 164.3743196 | BF76: 0 | BG76: 666.722654 | BH76: 180.3096665 | BI76: 633.841756 | BJ76: 497.3468763 | BK76: 16.22347332 | BL76: 195.8532727 | BM76: 61.65286256 | BN76: 250.5426347 | BO76: 179.3837715 | BP76: 167.2269196 | BQ76: 90.3431701 | BR76: 243.279315 | BS76: 34.21806412 | BT76: 80.91924496 | BU76: 86.3937621 | BV76: 352.8745167 | BW76: 90.934575 | BX76: 645.8622122 | BY76: 16134.36412 | BZ76: 70.93339329 | CA76: 1992.94094 | CB76: 1334.782832 | CC76: 21.21908154 | CD76: 95.84965393 | CE76: 63.14390663 | CF76: 82.10504167 | CG76: 61.94459247 | CH76: 37.42530274 | CI76: 48.48662224 | CJ76: 28.72059493 | CK76: 16.06545633 | CL76: 135.8882066 | CM76: 53.36577149 | CN76: 47.61925207 | CO76: 8.761210726 | CP76: 33.67302032 | CQ76: 53.69624192 | CR76: 508.3549745 | CS76: 155.5593231 | CT76: 773.0727599 | CU76: 219.3805637 | CV76: 19.79079316 | CW76: 9.79614446 | CX76: 27.63493581 | CY76: 54.26585652 | CZ76: 9.346836055 | DA76: 17.60074536 | DB76: 76.32682465 | DC76: 0 | DD76: 39297.09549 | DE76: 0 | DF76: 0 | DG76: 0 | DH76: 0 | DI76: 0 | DJ76: 0 | DK76: 0 | DL76: 0 | DM76: 3576.572445 | DN76: 15551.06044 | DO76: 87154.46955 | DQ76: 87147 | DR76: 0.9999142953 | DT76: 7.469551752
A77: 66 | B77: Services auxiliary to financial services and insurance services | C77: 0 | D77: 0 | E77: 0 | F77: 4.081825434 | G77: 0.2291989371 | H77: 3.908280204 | I77: 4.047801695 | J77: 5.805252055 | K77: 0.1266635677 | L77: 0.1432822809 | M77: 5.713536365 | N77: 5.042703932 | O77: 5.538489063 | P77: 4.011331337 | Q77: 0.1413901297 | R77: 15.9111477 | S77: 0.1210436752 | T77: 3.980075617 | U77: 4.858557874 | V77: 0.08521774148 | W77: 0.1841070392 | X77: 4.201270065 | Y77: 6.121143196 | Z77: 37.77404612 | AA77: 5.812632905 | AB77: 17.2676157 | AC77: 0.4247426558 | AD77: 5.159080878 | AE77: 27.19022157 | AF77: 7.388278482 | AG77: 5.387929076 | AH77: 1.271699917 | AI77: 41.63258751 | AJ77: 8.400806915 | AK77: 19.663196 | AL77: 4.062063944 | AM77: 2.949704936 | AN77: 7.465665581 | AO77: 17.78675812 | AP77: 17.88430073 | AQ77: 14.8453798 | AR77: 3.833677298 | AS77: 3.538792154 | AT77: 19.02781295 | AU77: 14.26724828 | AV77: 3.915595076 | AW77: 6.326530552 | AX77: 0.1053834693 | AY77: 1.899300203 | AZ77: 9.969131009 | BA77: 0.8324210559 | BB77: 6.80939829 | BC77: 5.796877637 | BD77: 4.727136377 | BE77: 107.1942353 | BF77: 0 | BG77: 295.6656289 | BH77: 34.45692802 | BI77: 336.3070528 | BJ77: 239.9653576 | BK77: 14.93844689 | BL77: 50.49976358 | BM77: 169.9152741 | BN77: 101.4334801 | BO77: 41.10641409 | BP77: 39.56868275 | BQ77: 9.006058894 | BR77: 50.41226375 | BS77: 26.04478279 | BT77: 8.486628336 | BU77: 129.9896982 | BV77: 399.8533145 | BW77: 34.70828491 | BX77: 1553.87293 | BY77: 1974.313264 | BZ77: 1711.708886 | CA77: 203.6781572 | CB77: 0 | CC77: 13.36835413 | CD77: 101.0931695 | CE77: 28.86977212 | CF77: 77.89683418 | CG77: 461.0483895 | CH77: 31.87253327 | CI77: 22.51012141 | CJ77: 72.1177818 | CK77: 0 | CL77: 89.57982636 | CM77: 86.64681755 | CN77: 2.990416743 | CO77: 14.31399873 | CP77: 66.69110656 | CQ77: 150.6656633 | CR77: 16.23126203 | CS77: 29.05448917 | CT77: 6.073588947 | CU77: 0 | CV77: 7.087738129 | CW77: 2.082559761 | CX77: 8.519533943 | CY77: 8.393106399 | CZ77: 0 | DA77: 17.83567204 | DB77: 30.67688862 | DC77: 0 | DD77: 1675.428227 | DE77: 0 | DF77: 0 | DG77: 0 | DH77: 28.40137532 | DI77: 0 | DJ77: 0 | DK77: 0 | DL77: 0 | DM77: 9060.992677 | DN77: 14156.15652 | DO77: 34197.39229 | DQ77: 34194 | DR77: 0.9999008026 | DT77: 3.392293451
A78: 68.1-2 | B78: Real estate services, excluding on a fee or contract basis and imputed rent | C78: 63.22544426 | D78: 0 | E78: 0 | F78: 0.002093707442 | G78: 15.65975331 | H78: 1.87982274 | I78: 1.955908018 | J78: 15.12015235 | K78: 5.722203713 | L78: 0.1472091164 | M78: 4.908251344 | N78: 7.315365445 | O78: 24.16086387 | P78: 46.3982165 | Q78: 3.017282779 | R78: 11.52646434 | S78: 5.998040817 | T78: 11.4426529 | U78: 20.96836324 | V78: 18.03967147 | W78: 15.9493589 | X78: 21.97093055 | Y78: 67.97914269 | Z78: 10.42012625 | AA78: 2.301817452 | AB78: 1.247615052 | AC78: 4.004069859 | AD78: 10.67711221 | AE78: 11.2367336 | AF78: 4.7235607 | AG78: 22.63717003 | AH78: 51.66749724 | AI78: 9.705911144 | AJ78: 9.901249907 | AK78: 17.07704269 | AL78: 6.955182955 | AM78: 1.939855667 | AN78: 78.13065852 | AO78: 28.59553109 | AP78: 29.59934113 | AQ78: 41.59380856 | AR78: 28.42126131 | AS78: 4.48940131 | AT78: 53.94176354 | AU78: 7.066357034 | AV78: 31.00132027 | AW78: 4.878303735 | AX78: 4.268794097 | AY78: 5.118562099 | AZ78: 10.67094559 | BA78: 84.18828087 | BB78: 96.31918912 | BC78: 41.79461147 | BD78: 5.453110191 | BE78: 237.3679464 | BF78: 2.061405006 | BG78: 1548.812958 | BH78: 218.6884847 | BI78: 2992.163587 | BJ78: 7100.016845 | BK78: 13.40315746 | BL78: 410.16407 | BM78: 198.3642969 | BN78: 327.3973207 | BO78: 363.2523959 | BP78: 293.2858406 | BQ78: 107.6690856 | BR78: 787.3020796 | BS78: 51.37288394 | BT78: 71.63457204 | BU78: 434.9919646 | BV78: 420.6453461 | BW78: 20.22777694 | BX78: 2065.456138 | BY78: 1556.287777 | BZ78: 63.93280788 | CA78: 659.1878285 | CB78: 127.7307269 | CC78: 17.7939346 | CD78: 151.9438313 | CE78: 60.15185579 | CF78: 59.53701565 | CG78: 75.06976279 | CH78: 121.8527176 | CI78: 58.33121607 | CJ78: 21.66726764 | CK78: 6.637536946 | CL78: 91.54954121 | CM78: 104.5343308 | CN78: 159.9696965 | CO78: 11.14718053 | CP78: 90.99496705 | CQ78: 62.67180266 | CR78: 2684.20342 | CS78: 333.2754918 | CT78: 1210.934316 | CU78: 177.2940443 | CV78: 35.14971996 | CW78: 68.84504365 | CX78: 52.98236202 | CY78: 88.91187255 | CZ78: 5.475565564 | DA78: 26.49381718 | DB78: 252.0119032 | DC78: 0 | DD78: 59501.00426 | DE78: 199.6677049 | DF78: 0 | DG78: 0 | DH78: 0 | DI78: 0 | DJ78: 0 | DK78: 0 | DL78: 0 | DM78: 292.4056837 | DN78: 291.3938994 | DO78: 87468.73243 | DQ78: 87462 | DR78: 0.9999230304 | DT78: 6.732434932
A79: 68.2IMP | B79: Owner-Occupiers' Housing Services | C79: 0 | D79: 0 | E79: 0 | F79: 0 | G79: 0 | H79: 0 | I79: 0 | J79: 0 | K79: 0 | L79: 0 | M79: 0 | N79: 0 | O79: 0 | P79: 0 | Q79: 0 | R79: 0 | S79: 0 | T79: 0 | U79: 0 | V79: 0 | W79: 0 | X79: 0 | Y79: 0 | Z79: 0 | AA79: 0 | AB79: 0 | AC79: 0 | AD79: 0 | AE79: 0 | AF79: 0 | AG79: 0 | AH79: 0 | AI79: 0 | AJ79: 0 | AK79: 0 | AL79: 0 | AM79: 0 | AN79: 0 | AO79: 0 | AP79: 0 | AQ79: 0 | AR79: 0 | AS79: 0 | AT79: 0 | AU79: 0 | AV79: 0 | AW79: 0 | AX79: 0 | AY79: 0 | AZ79: 0 | BA79: 0 | BB79: 0 | BC79: 0 | BD79: 0 | BE79: 0 | BF79: 0 | BG79: 0 | BH79: 0 | BI79: 0 | BJ79: 0 | BK79: 0 | BL79: 0 | BM79: 0 | BN79: 0 | BO79: 0 | BP79: 0 | BQ79: 0 | BR79: 0 | BS79: 0 | BT79: 0 | BU79: 0 | BV79: 0 | BW79: 0 | BX79: 0 | BY79: 0 | BZ79: 0 | CA79: 0 | CB79: 0 | CC79: 0 | CD79: 0 | CE79: 0 | CF79: 0 | CG79: 0 | CH79: 0 | CI79: 0 | CJ79: 0 | CK79: 0 | CL79: 0 | CM79: 0 | CN79: 0 | CO79: 0 | CP79: 0 | CQ79: 0 | CR79: 0 | CS79: 0 | CT79: 0 | CU79: 0 | CV79: 0 | CW79: 0 | CX79: 0 | CY79: 0 | CZ79: 0 | DA79: 0 | DB79: 0 | DC79: 0 | DD79: 178254.5422 | DE79: 0 | DF79: 0 | DG79: 0 | DH79: 0 | DI79: 0 | DJ79: 0 | DK79: 0 | DL79: 0 | DM79: 208.3489593 | DN79: 207.258127 | DO79: 178670.1493 | DQ79: 178658 | DR79: 0.9999320016 | DT79: 12.14928531
A80: 68.3 | B80: Real estate services on a fee or contract basis | C80: 0 | D80: 0 | E80: 0 | F80: 0 | G80: 0 | H80: 0 | I80: 0 | J80: 0 | K80: 0 | L80: 0 | M80: 0 | N80: 0 | O80: 0 | P80: 0 | Q80: 0 | R80: 0 | S80: 0 | T80: 0 | U80: 0 | V80: 0 | W80: 0 | X80: 0 | Y80: 0.007143831545 | Z80: 0 | AA80: 0 | AB80: 0 | AC80: 0 | AD80: 0 | AE80: 0 | AF80: 0 | AG80: 0 | AH80: 0 | AI80: 0 | AJ80: 0 | AK80: 0 | AL80: 0 | AM80: 0 | AN80: 0 | AO80: 0 | AP80: 0 | AQ80: 0 | AR80: 0.0001934994037 | AS80: 9.072172556e-05 | AT80: 0 | AU80: 0 | AV80: 0 | AW80: 0 | AX80: 0.000215786413 | AY80: 0 | AZ80: 0.0002180678896 | BA80: 0.004321824575 | BB80: 0 | BC80: 0 | BD80: 0 | BE80: 0 | BF80: 0 | BG80: 6.287281483 | BH80: 0.005302228222 | BI80: 0.007347111594 | BJ80: 2.381235984 | BK80: 0.7722666361 | BL80: 0.000410362623 | BM80: 6.921843871e-05 | BN80: 0 | BO80: 0 | BP80: 0 | BQ80: 8.664956975e-07 | BR80: 0.1468345766 | BS80: 0.003665285112 | BT80: 4.179052766 | BU80: 0 | BV80: 1.034987453 | BW80: 0.6420109702 | BX80: 13.61071708 | BY80: 164.5876359 | BZ80: 0.06729404376 | CA80: 13.33346866 | CB80: 20.45542128 | CC80: 7.176789083 | CD80: 1.476028264 | CE80: 0.02124302507 | CF80: 0.7403454575 | CG80: 0 | CH80: 0.02622176805 | CI80: 0.1233968674 | CJ80: 0.007472451009 | CK80: 0 | CL80: 0.2730120313 | CM80: 0.03293146382 | CN80: 0 | CO80: 0.06074917233 | CP80: 2.072213952 | CQ80: 0.0214462749 | CR80: 0 | CS80: 1.572478098 | CT80: 0 | CU80: 0 | CV80: 0 | CW80: 0.01752865048 | CX80: 0.01061059004 | CY80: 0 | CZ80: 0 | DA80: 0 | DB80: 0.7669135273 | DC80: 0 | DD80: 17.80798545 | DE80: 0 | DF80: 0 | DG80: 0 | DH80: 7840.476426 | DI80: 0 | DJ80: 0 | DK80: 0 | DL80: 0 | DM80: 71.00605895 | DN80: 71.00605895 | DO80: 8242.223096 | DQ80: 8241 | DR80: 0.9998516061 | DT80: 1.223095806
A81: 69.1 | B81: Legal services | C81: 0 | D81: 0 | E81: 3.841032538 | F81: 0.1254378803 | G81: 812.3763993 | H81: 0.005312103263 | I81: 133.7932399 | J81: 0.8089711217 | K81: 0.7687843172 | L81: 0.1991888623 | M81: 5.85341185 | N81: 4.344659621 | O81: 10.54632773 | P81: 24.94660793 | Q81: 3.745424977 | R81: 25.60862297 | S81: 2.679513591 | T81: 8.836958485 | U81: 5.887261714 | V81: 1.057058466 | W81: 3.078439314 | X81: 12.4108878 | Y81: 24.19546415 | Z81: 27.07548332 | AA81: 4.821033975 | AB81: 21.61453 | AC81: 8.347786057 | AD81: 12.39011435 | AE81: 38.59023595 | AF81: 9.458492312 | AG81: 79.72593423 | AH81: 33.95321204 | AI81: 6.062616931 | AJ81: 6.266080768 | AK81: 4.830322061 | AL81: 9.13986732 | AM81: 4.020047425 | AN81: 30.63285009 | AO81: 24.33335298 | AP81: 13.16131392 | AQ81: 48.32814025 | AR81: 26.12796015 | AS81: 2.08272216 | AT81: 30.94389197 | AU81: 1.362660725 | AV81: 5.816240814 | AW81: 11.07909743 | AX81: 1.168189649 | AY81: 1.831662739 | AZ81: 9.281178753 | BA81: 86.14920067 | BB81: 24.08973055 | BC81: 15.31242949 | BD81: 20.60307506 | BE81: 79.46188036 | BF81: 1.062061514 | BG81: 1171.336089 | BH81: 178.4657693 | BI81: 805.9628545 | BJ81: 383.7683757 | BK81: 71.02772769 | BL81: 218.6844188 | BM81: 229.5534666 | BN81: 101.5534458 | BO81: 309.0188095 | BP81: 117.4727599 | BQ81: 89.37924761 | BR81: 245.5917036 | BS81: 35.88650587 | BT81: 92.043286 | BU81: 181.5153613 | BV81: 787.2993085 | BW81: 203.0790169 | BX81: 2274.547549 | BY81: 1454.875839 | BZ81: 285.4626422 | CA81: 349.3117413 | CB81: 484.8535077 | CC81: 83.52753748 | CD81: 1347.626114 | CE81: 494.7231896 | CF81: 648.4594048 | CG81: 884.7894066 | CH81: 92.42136319 | CI81: 305.2815968 | CJ81: 234.4548194 | CK81: 23.44149772 | CL81: 530.3321462 | CM81: 351.9411844 | CN81: 22.70553951 | CO81: 51.7402631 | CP81: 200.6482856 | CQ81: 519.7273522 | CR81: 2368.250498 | CS81: 153.9265496 | CT81: 1161.620778 | CU81: 196.3831248 | CV81: 35.08750731 | CW81: 8.614671249 | CX81: 47.99541009 | CY81: 31.88152612 | CZ81: 60.76186668 | DA81: 38.60746369 | DB81: 558.5209008 | DC81: 0 | DD81: 440.5636432 | DE81: 79.13175882 | DF81: 0 | DG81: 0 | DH81: 3695.589692 | DI81: 0 | DJ81: 100.3619246 | DK81: 0 | DL81: 0 | DM81: 1303.209751 | DN81: 3079.745285 | DO81: 31006.99388 | DQ81: 31004 | DR81: 0.999903445 | DT81: 2.993879126
A82: 69.2 | B82: Accounting, bookkeeping and auditing services; tax consulting services | C82: 26.59626536 | D82: 0 | E82: 10.1210618 | F82: 1.352461944 | G82: 134.6154438 | H82: 1.286185485 | I82: 45.15504825 | J82: 25.69947796 | K82: 12.03779181 | L82: 1.411514406 | M82: 13.93916282 | N82: 18.41752949 | O82: 30.79743362 | P82: 34.28289689 | Q82: 8.010558992 | R82: 23.42098824 | S82: 5.022847284 | T82: 21.79534846 | U82: 35.66650034 | V82: 4.946108624 | W82: 8.048646653 | X82: 16.13591351 | Y82: 24.38916558 | Z82: 56.55214774 | AA82: 8.118261909 | AB82: 16.91784524 | AC82: 24.18793023 | AD82: 29.23351582 | AE82: 69.68873026 | AF82: 18.43215315 | AG82: 165.0001277 | AH82: 41.77736058 | AI82: 6.823420161 | AJ82: 12.27710369 | AK82: 5.554564113 | AL82: 17.49251979 | AM82: 8.793804741 | AN82: 47.29949933 | AO82: 16.85601469 | AP82: 18.54363203 | AQ82: 107.8434376 | AR82: 56.78111392 | AS82: 14.3236275 | AT82: 138.6605675 | AU82: 3.938934734 | AV82: 25.10067118 | AW82: 30.29637513 | AX82: 1.748869668 | AY82: 3.600019256 | AZ82: 21.21656507 | BA82: 144.7661621 | BB82: 52.05037771 | BC82: 15.13050628 | BD82: 14.80603272 | BE82: 68.19183866 | BF82: 0 | BG82: 916.6938875 | BH82: 249.6715075 | BI82: 868.54203 | BJ82: 1032.786833 | BK82: 50.68834676 | BL82: 301.1084637 | BM82: 116.232322 | BN82: 91.26251264 | BO82: 429.742859 | BP82: 87.33384812 | BQ82: 150.7663444 | BR82: 422.4585177 | BS82: 15.67195838 | BT82: 131.4385952 | BU82: 184.9720455 | BV82: 668.4447037 | BW82: 79.35199602 | BX82: 3072.155394 | BY82: 1446.418706 | BZ82: 149.0014358 | CA82: 391.0173312 | CB82: 0 | CC82: 52.33937443 | CD82: 833.3461538 | CE82: 31.85438163 | CF82: 471.1734433 | CG82: 1748.136455 | CH82: 91.2244025 | CI82: 56.00975936 | CJ82: 321.7963632 | CK82: 11.58463287 | CL82: 244.8692572 | CM82: 321.4142031 | CN82: 85.83343766 | CO82: 46.42989256 | CP82: 154.0370162 | CQ82: 459.1929505 | CR82: 419.11422 | CS82: 151.5104316 | CT82: 226.199486 | CU82: 129.4430153 | CV82: 43.57527608 | CW82: 15.15443342 | CX82: 42.32711428 | CY82: 56.43693332 | CZ82: 90.01910058 | DA82: 26.35777623 | DB82: 423.4492611 | DC82: 0 | DD82: 29.97029647 | DE82: 0 | DF82: 0 | DG82: 0 | DH82: 17.79139245 | DI82: 0 | DJ82: 0 | DK82: 0 | DL82: 0 | DM82: 673.0517891 | DN82: 1593.347092 | DO82: 21487.90106 | DQ82: 21486 | DR82: 0.9999115288 | DT82: 1.901060978
A83: 70 | B83: Services of head offices; management consulting services | C83: 5.508879551 | D83: 0 | E83: 0 | F83: 1.734284428 | G83: 2.856416095 | H83: 1.663308682 | I83: 0.07564168902 | J83: 18.94114291 | K83: 6.724830957 | L83: 1.510525565 | M83: 2.593444622 | N83: 6.15944414 | O83: 6.78281922 | P83: 22.32985195 | Q83: 2.891614768 | R83: 418.8042085 | S83: 45.48315496 | T83: 26.07027598 | U83: 10.1542691 | V83: 16.95500404 | W83: 12.08379098 | X83: 15.40701295 | Y83: 37.40724809 | Z83: 8.610814231 | AA83: 4.271097276 | AB83: 14.96854921 | AC83: 3.959795456 | AD83: 21.8866342 | AE83: 383.8259169 | AF83: 8.405612984 | AG83: 86.13181884 | AH83: 41.71858922 | AI83: 8.665337305 | AJ83: 14.03743084 | AK83: 9.81314032 | AL83: 8.952337367 | AM83: 3.946771122 | AN83: 27.70276765 | AO83: 31.04959831 | AP83: 24.19272574 | AQ83: 38.19633076 | AR83: 346.7025206 | AS83: 2.839958675 | AT83: 25.06192445 | AU83: 4.02646701 | AV83: 16.9476311 | AW83: 23.97479538 | AX83: 2.290863209 | AY83: 1.695436994 | AZ83: 10.35708848 | BA83: 73.63447599 | BB83: 20.6608078 | BC83: 3.283216077 | BD83: 12.85123016 | BE83: 36.20234164 | BF83: 0 | BG83: 952.5008481 | BH83: 372.4665631 | BI83: 484.2574297 | BJ83: 4388.78363 | BK83: 52.45688157 | BL83: 130.3374872 | BM83: 61.01578972 | BN83: 94.38156401 | BO83: 384.8894204 | BP83: 157.5933514 | BQ83: 105.9078006 | BR83: 518.3192279 | BS83: 103.4142342 | BT83: 409.4441828 | BU83: 251.3010914 | BV83: 844.9435677 | BW83: 112.4097117 | BX83: 6649.700558 | BY83: 1594.841006 | BZ83: 125.6708254 | CA83: 498.5971407 | CB83: 0 | CC83: 11.35728523 | CD83: 150.1445257 | CE83: 112.4093444 | CF83: 3071.425135 | CG83: 515.4237114 | CH83: 64.4077063 | CI83: 846.5280735 | CJ83: 236.7197718 | CK83: 0.8397428821 | CL83: 124.8732547 | CM83: 1218.274171 | CN83: 56.73115689 | CO83: 74.82412216 | CP83: 203.9244424 | CQ83: 1006.270556 | CR83: 1069.737675 | CS83: 176.0370443 | CT83: 32.95197198 | CU83: 26.51161816 | CV83: 128.2637571 | CW83: 82.8470344 | CX83: 126.7301419 | CY83: 193.5009539 | CZ83: 17.09626898 | DA83: 37.69821946 | DB83: 108.5035228 | DC83: 0 | DD83: 10.17915457 | DE83: 0 | DF83: 0 | DG83: 0 | DH83: 315.6048777 | DI83: 0 | DJ83: 0 | DK83: 0 | DL83: 0 | DM83: 1591.621018 | DN83: 3759.981113 | DO83: 35647.65088 | DQ83: 35644 | DR83: 0.9998975844 | DT83: 3.650875418
A84: 71 | B84: Architectural and engineering services; technical testing and analysis services | C84: 26.28863213 | D84: 0 | E84: 0 | F84: 3.393461864 | G84: 336.8096518 | H84: 5.339830662 | I84: 55.86193771 | J84: 15.80115352 | K84: 183.2694265 | L84: 1.810444341 | M84: 21.10497616 | N84: 31.45071044 | O84: 38.2708412 | P84: 42.62910925 | Q84: 9.609606871 | R84: 74.91721991 | S84: 15.55704012 | T84: 35.30215177 | U84: 54.05807318 | V84: 6.379013072 | W84: 16.4429422 | X84: 45.82105479 | Y84: 97.22677694 | Z84: 28.63637092 | AA84: 11.9729905 | AB84: 34.18193349 | AC84: 22.36095011 | AD84: 36.54923812 | AE84: 19.89867175 | AF84: 17.19506384 | AG84: 174.7229158 | AH84: 122.4034186 | AI84: 18.94495065 | AJ84: 22.95216799 | AK84: 51.46019322 | AL84: 28.84807514 | AM84: 26.37999381 | AN84: 46.15587185 | AO84: 296.5027534 | AP84: 52.88276164 | AQ84: 232.7281845 | AR84: 88.93837335 | AS84: 18.43806657 | AT84: 898.1791611 | AU84: 16.10313859 | AV84: 39.31612223 | AW84: 43.1355777 | AX84: 9.719812869 | AY84: 71.38265612 | AZ84: 46.71929439 | BA84: 391.616633 | BB84: 57.33640419 | BC84: 50.61859846 | BD84: 0 | BE84: 190.238616 | BF84: 3.510877574 | BG84: 4773.273327 | BH84: 633.1804752 | BI84: 824.6930549 | BJ84: 1057.039217 | BK84: 54.35133157 | BL84: 279.1263195 | BM84: 135.8189508 | BN84: 70.92681809 | BO84: 670.1629326 | BP84: 273.2395554 | BQ84: 139.6276898 | BR84: 407.0935517 | BS84: 107.4253487 | BT84: 294.0198555 | BU84: 362.0695872 | BV84: 1347.602689 | BW84: 248.250327 | BX84: 1765.932069 | BY84: 1209.786956 | BZ84: 119.2923621 | CA84: 777.185063 | CB84: 804.0608587 | CC84: 186.323946 | CD84: 335.4977335 | CE84: 322.7703889 | CF84: 820.9929771 | CG84: 4217.804263 | CH84: 198.6178658 | CI84: 343.2682738 | CJ84: 637.3442718 | CK84: 32.28792447 | CL84: 491.8363436 | CM84: 810.4338967 | CN84: 131.612734 | CO84: 70.12861198 | CP84: 509.5341185 | CQ84: 860.2767756 | CR84: 895.3007438 | CS84: 269.0592769 | CT84: 1329.533913 | CU84: 117.5900693 | CV84: 69.57162291 | CW84: 32.59739915 | CX84: 135.5440182 | CY84: 122.7436875 | CZ84: 134.9667643 | DA84: 64.09220018 | DB84: 67.18116694 | DC84: 0 | DD84: 563.4435486 | DE84: 0 | DF84: 0 | DG84: 0 | DH84: 4890.601362 | DI84: 0 | DJ84: 130.4955637 | DK84: 0.9938449282 | DL84: 9.938449282 | DM84: 2420.547464 | DN84: 5721.085132 | DO84: 47585.54858 | DQ84: 47581 | DR84: 0.9999044125 | DT84: 4.548582963
A85: 72 | B85: Scientific research and development services | C85: 0 | D85: 0 | E85: 0 | F85: 0 | G85: 0 | H85: 0 | I85: 0 | J85: 0 | K85: 0 | L85: 0 | M85: 0 | N85: 0 | O85: 0 | P85: 0 | Q85: 0 | R85: 0 | S85: 0 | T85: 0 | U85: 0 | V85: 0 | W85: 0 | X85: 0 | Y85: 0 | Z85: 0 | AA85: 0 | AB85: 0 | AC85: 0 | AD85: 0 | AE85: 0 | AF85: 0 | AG85: 0 | AH85: 0 | AI85: 0 | AJ85: 0 | AK85: 0 | AL85: 0 | AM85: 0 | AN85: 0 | AO85: 0 | AP85: 0 | AQ85: 0 | AR85: 0 | AS85: 0 | AT85: 0 | AU85: 0 | AV85: 0 | AW85: 0 | AX85: 0 | AY85: 0 | AZ85: 0 | BA85: 0 | BB85: 0 | BC85: 0 | BD85: 0 | BE85: 0 | BF85: 0 | BG85: 1.807815362 | BH85: 0 | BI85: 0 | BJ85: 0 | BK85: 0 | BL85: 0.0003902761692 | BM85: 0 | BN85: 0 | BO85: 0 | BP85: 0 | BQ85: 0.01060393215 | BR85: 0.07490014382 | BS85: 0 | BT85: 4.906144471 | BU85: 0 | BV85: 35.70703893 | BW85: 0 | BX85: 0 | BY85: 0 | BZ85: 0.002161933301 | CA85: 11.3552252 | CB85: 0 | CC85: 0 | CD85: 2.606285195 | CE85: 0 | CF85: 0 | CG85: 0 | CH85: 460.3686503 | CI85: 0 | CJ85: 0 | CK85: 0 | CL85: 0.1053683359 | CM85: 0 | CN85: 0 | CO85: 0 | CP85: 0 | CQ85: 82.62001039 | CR85: 37.2533776 | CS85: 32.2285251 | CT85: 784.0330585 | CU85: 0 | CV85: 0 | CW85: 0 | CX85: 0 | CY85: 0 | CZ85: 0 | DA85: 0 | DB85: 0 | DC85: 0 | DD85: 0 | DE85: 217.3979007 | DF85: 0 | DG85: 0 | DH85: 11251.42503 | DI85: 0 | DJ85: 0 | DK85: 0 | DL85: 0 | DM85: 902.4137506 | DN85: 1397.608941 | DO85: 15221.92517 | DQ85: 15220 | DR85: 0.9998735262 | DT85: 1.925173963
A86: 73 | B86: Advertising and market research services | C86: 30.36537909 | D86: 0.5177677593 | E86: 2.353614795 | F86: 1.241892871 | G86: 20.56998165 | H86: 2.399457857 | I86: 5.016888433 | J86: 35.43294153 | K86: 66.50491525 | L86: 2.647337837 | M86: 23.55904082 | N86: 119.8668572 | O86: 50.2225009 | P86: 228.4586398 | Q86: 11.48864102 | R86: 175.2807927 | S86: 73.32189703 | T86: 39.01931581 | U86: 30.81995901 | V86: 11.96408611 | W86: 20.63699111 | X86: 28.51846049 | Y86: 19.55617306 | Z86: 22.83625901 | AA86: 2.864112881 | AB86: 3.145662841 | AC86: 6.328897361 | AD86: 45.82557727 | AE86: 260.7940585 | AF86: 11.04716887 | AG86: 140.6758084 | AH86: 54.49732319 | AI86: 17.14165255 | AJ86: 23.75470262 | AK86: 17.14097557 | AL86: 9.319975485 | AM86: 6.357755398 | AN86: 25.72828333 | AO86: 52.58557877 | AP86: 32.12466309 | AQ86: 43.11696998 | AR86: 84.37632137 | AS86: 5.683354935 | AT86: 31.62303852 | AU86: 5.223050814 | AV86: 15.29551238 | AW86: 30.40159417 | AX86: 1.223287039 | AY86: 1.333816397 | AZ86: 12.20057819 | BA86: 133.814436 | BB86: 31.88402146 | BC86: 4.691389651 | BD86: 2.295391422 | BE86: 79.63769121 | BF86: 1.301568611 | BG86: 387.3523898 | BH86: 294.9603287 | BI86: 631.6997995 | BJ86: 1073.591334 | BK86: 68.3063796 | BL86: 277.7141073 | BM86: 112.3542491 | BN86: 102.9319308 | BO86: 269.5540095 | BP86: 254.7231492 | BQ86: 121.8308513 | BR86: 351.3546291 | BS86: 361.0401527 | BT86: 197.5468701 | BU86: 421.259996 | BV86: 601.6814933 | BW86: 81.40110247 | BX86: 1509.678383 | BY86: 1194.131189 | BZ86: 120.1733922 | CA86: 256.032385 | CB86: 160.7050433 | CC86: 33.08103543 | CD86: 131.5595691 | CE86: 54.20843266 | CF86: 408.1261278 | CG86: 383.921947 | CH86: 46.42505049 | CI86: 158.1481286 | CJ86: 93.79592526 | CK86: 4.190932745 | CL86: 234.8130597 | CM86: 91.26043899 | CN86: 22.98859762 | CO86: 22.98959757 | CP86: 68.49280282 | CQ86: 191.7949661 | CR86: 695.7861964 | CS86: 85.72087266 | CT86: 67.76721817 | CU86: 118.5742038 | CV86: 54.04068032 | CW86: 23.88162526 | CX86: 78.64290768 | CY86: 75.00078889 | CZ86: 211.1786661 | DA86: 35.85800812 | DB86: 57.14360131 | DC86: 0 | DD86: 55.75583633 | DE86: 0 | DF86: 0 | DG86: 0 | DH86: 8.964196135 | DI86: 0 | DJ86: 141.4438979 | DK86: 0 | DL86: 0 | DM86: 845.8233931 | DN86: 1998.289708 | DO86: 17565.72559 | DQ86: 17564 | DR86: 0.999901764 | DT86: 1.725586019
A87: 74 | B87: Other professional, scientific and technical services | C87: 1.653894763 | D87: 0 | E87: 2.596194612 | F87: 0.004166328899 | G87: 27.02762284 | H87: 0.9037640618 | I87: 3.685631942 | J87: 15.48515535 | K87: 6.954968558 | L87: 0.8302446409 | M87: 3.478373734 | N87: 4.331989432 | O87: 0.7232996726 | P87: 13.96539345 | Q87: 0.3931198769 | R87: 6.250283098 | S87: 2.525246116 | T87: 3.042368158 | U87: 1.157425451 | V87: 0.1347632445 | W87: 1.983875013 | X87: 0.2793128366 | Y87: 4.452092881 | Z87: 24.77780524 | AA87: 2.652230879 | AB87: 12.49698573 | AC87: 5.643454465 | AD87: 4.556882193 | AE87: 16.72250584 | AF87: 64.24072917 | AG87: 23.25805948 | AH87: 0.447647822 | AI87: 0.8026183136 | AJ87: 4.061335408 | AK87: 5.897553986 | AL87: 2.880567369 | AM87: 7.523561255 | AN87: 84.47036542 | AO87: 159.8561792 | AP87: 4.747951934 | AQ87: 13.94904765 | AR87: 24.81352739 | AS87: 2.194530778 | AT87: 27.25537674 | AU87: 0.3811492491 | AV87: 0.4526443749 | AW87: 1.221513761 | AX87: 3.07092826 | AY87: 2.433143985 | AZ87: 14.7224429 | BA87: 23.96596639 | BB87: 5.210401364 | BC87: 1.724972237 | BD87: 2.531970336 | BE87: 73.73287548 | BF87: 0.9571448484 | BG87: 319.0796973 | BH87: 96.09296847 | BI87: 116.4624377 | BJ87: 133.0613821 | BK87: 20.44801972 | BL87: 79.98903706 | BM87: 18.97878052 | BN87: 27.59338236 | BO87: 110.5337763 | BP87: 85.00529297 | BQ87: 30.15507791 | BR87: 92.34966764 | BS87: 6.310103126 | BT87: 47.86524203 | BU87: 39.55040409 | BV87: 253.4286196 | BW87: 39.83290846 | BX87: 363.1486665 | BY87: 410.2439555 | BZ87: 45.99903555 | CA87: 90.70037324 | CB87: 0 | CC87: 8.26202167 | CD87: 75.54499972 | CE87: 22.29269636 | CF87: 278.6008928 | CG87: 215.6554984 | CH87: 123.1675234 | CI87: 11.44710289 | CJ87: 570.7993732 | CK87: 5.281452272 | CL87: 54.72803579 | CM87: 57.69946134 | CN87: 7.120746234 | CO87: 0.8810609306 | CP87: 23.27842012 | CQ87: 703.5927806 | CR87: 268.2552433 | CS87: 455.8547301 | CT87: 248.9199895 | CU87: 60.92106866 | CV87: 40.73762718 | CW87: 11.57321638 | CX87: 34.12955905 | CY87: 65.38110017 | CZ87: 116.3917837 | DA87: 10.43899649 | DB87: 93.62080587 | DC87: 0 | DD87: 627.5029356 | DE87: 0 | DF87: 0 | DG87: 0 | DH87: 0 | DI87: 0 | DJ87: 82.3073024 | DK87: 25.19785398 | DL87: 4.877003995 | DM87: 2518.065929 | DN87: 6567.642106 | DO87: 16542.5114 | DQ87: 16541 | DR87: 0.9999086354 | DT87: 1.511400153
A88: 75 | B88: Veterinary services | C88: 175.2511037 | D88: 0 | E88: 0 | F88: 0 | G88: 0 | H88: 0 | I88: 0 | J88: 0 | K88: 0 | L88: 0.0002695732559 | M88: 0 | N88: 0 | O88: 0 | P88: 0 | Q88: 0.001108757492 | R88: 0 | S88: 0 | T88: 0.0006851826147 | U88: 0.0001668504167 | V88: 3.876308744e-05 | W88: 0.0002266263072 | X88: 8.835460132e-05 | Y88: 0 | Z88: 0.005861463222 | AA88: 4.028603969e-05 | AB88: 0 | AC88: 0 | AD88: 0 | AE88: 0.05377001088 | AF88: 0 | AG88: 0.9481450332 | AH88: 0.001650750555 | AI88: 0 | AJ88: 0 | AK88: 0 | AL88: 0 | AM88: 0 | AN88: 4.601787717e-05 | AO88: 0 | AP88: 0 | AQ88: 0.0001070172769 | AR88: 0 | AS88: 0 | AT88: 0 | AU88: 0 | AV88: 0 | AW88: 0 | AX88: 0 | AY88: 0 | AZ88: 0.005441688207 | BA88: 3.362502172 | BB88: 0 | BC88: 0 | BD88: 0 | BE88: 0 | BF88: 0 | BG88: 0.254459085 | BH88: 0.003774301914 | BI88: 3.929977396 | BJ88: 1.218852968 | BK88: 0 | BL88: 0.02472042034 | BM88: 0 | BN88: 0 | BO88: 0 | BP88: 0 | BQ88: 0.9258587997 | BR88: 0.187035698 | BS88: 0.000289846663 | BT88: 2.216455698 | BU88: 0 | BV88: 1.339283239 | BW88: 0.001081003568 | BX88: 0 | BY88: 0 | BZ88: 0 | CA88: 1.021878713 | CB88: 0 | CC88: 0 | CD88: 0.008891074859 | CE88: 0.01111798457 | CF88: 0.007275147223 | CG88: 0.0293010526 | CH88: 0.6250130232 | CI88: 5.251871774 | CJ88: 0.007495007515 | CK88: 62.86269465 | CL88: 2.0897853 | CM88: 0.01648052513 | CN88: 0.007590525586 | CO88: 0.001053265395 | CP88: 0.03039764204 | CQ88: 0.03064067183 | CR88: 3.243464521 | CS88: 4.63744177 | CT88: 8.333592994 | CU88: 4.847211566 | CV88: 0 | CW88: 0.00774726543 | CX88: 0.07083896365 | CY88: 58.55184559 | CZ88: 0 | DA88: 0.0005346803623 | DB88: 0 | DC88: 0 | DD88: 2647.643497 | DE88: 986.6217657 | DF88: 0 | DG88: 0 | DH88: 0 | DI88: 0 | DJ88: 0 | DK88: 0 | DL88: 0 | DM88: 0 | DN88: 0 | DO88: 3975.692467 | DQ88: 3976 | DR88: 1.000077353 | DT88: 0.3075334159
A89: 77 | B89: Rental and leasing services | C89: 50.96066226 | D89: 5.944163826 | E89: 54.79128818 | F89: 31.64863091 | G89: 291.7383004 | H89: 37.03000751 | I89: 77.54236791 | J89: 50.70043852 | K89: 27.06421756 | L89: 1.371645812 | M89: 29.91046121 | N89: 9.488738337 | O89: 39.82959267 | P89: 53.41819107 | Q89: 15.49061669 | R89: 53.27024193 | S89: 27.80993953 | T89: 14.01018689 | U89: 19.55259413 | V89: 1.973350795 | W89: 25.85287898 | X89: 24.54919417 | Y89: 87.03242171 | Z89: 26.48415984 | AA89: 4.258260363 | AB89: 14.61655842 | AC89: 20.54055472 | AD89: 28.44883964 | AE89: 60.95807707 | AF89: 8.070791814 | AG89: 22.00762298 | AH89: 67.92027488 | AI89: 41.67503518 | AJ89: 32.30605928 | AK89: 44.71127524 | AL89: 19.66110847 | AM89: 6.806215255 | AN89: 194.6833853 | AO89: 69.37890514 | AP89: 48.29637777 | AQ89: 95.08488122 | AR89: 63.27859306 | AS89: 21.15164934 | AT89: 21.89129655 | AU89: 37.52255969 | AV89: 21.45500058 | AW89: 34.62382637 | AX89: 17.64565834 | AY89: 3.724962689 | AZ89: 30.22319593 | BA89: 61.24261263 | BB89: 31.63310918 | BC89: 26.92943714 | BD89: 0 | BE89: 679.0548765 | BF89: 3.320552254 | BG89: 6131.289055 | BH89: 479.8176732 | BI89: 321.8951482 | BJ89: 162.394197 | BK89: 1113.430911 | BL89: 904.4197823 | BM89: 8.0313297 | BN89: 32.79421997 | BO89: 746.175221 | BP89: 216.4517001 | BQ89: 14.03784733 | BR89: 71.51382542 | BS89: 81.37820682 | BT89: 40.61927111 | BU89: 62.29955655 | BV89: 196.1304398 | BW89: 20.13787184 | BX89: 89.53212988 | BY89: 291.5165735 | BZ89: 64.0573878 | CA89: 62.33350438 | CB89: 33.2832823 | CC89: 10.35046435 | CD89: 62.48753873 | CE89: 30.76754273 | CF89: 57.76524718 | CG89: 73.95817419 | CH89: 30.83007949 | CI89: 39.81114327 | CJ89: 28.60729131 | CK89: 9.926576897 | CL89: 527.8306418 | CM89: 106.5997412 | CN89: 117.2681027 | CO89: 6.632094354 | CP89: 37.06058619 | CQ89: 63.95887388 | CR89: 105.7764691 | CS89: 692.3464695 | CT89: 432.7040517 | CU89: 82.31715252 | CV89: 23.49818495 | CW89: 7.16731517 | CX89: 10.87287012 | CY89: 30.03429398 | CZ89: 38.57613561 | DA89: 12.91232503 | DB89: 139.5711985 | DC89: 0 | DD89: 5556.788058 | DE89: 0 | DF89: 0 | DG89: 0 | DH89: 0 | DI89: 0 | DJ89: 0 | DK89: 0 | DL89: 0 | DM89: 251.8044748 | DN89: 594.8778853 | DO89: 23217.22596 | DQ89: 23215 | DR89: 0.9999041247 | DT89: 2.225959625
A90: 78 | B90: Employment services | C90: 11.22661676 | D90: 0.7381332293 | E90: 8.388323036 | F90: 0.03823048378 | G90: 248.2015428 | H90: 4.231274465 | I90: 14.29855392 | J90: 272.8272647 | K90: 114.3811026 | L90: 1.912678601 | M90: 46.46424526 | N90: 22.00034121 | O90: 85.14527726 | P90: 73.61033798 | Q90: 9.037561061 | R90: 18.62848437 | S90: 18.38397377 | T90: 6.493254953 | U90: 9.889375739 | V90: 0.4897259721 | W90: 4.36559473 | X90: 12.5147833 | Y90: 20.62528132 | Z90: 41.74487808 | AA90: 3.842560888 | AB90: 1.068904989 | AC90: 12.5316305 | AD90: 7.109187489 | AE90: 41.13606334 | AF90: 10.82139301 | AG90: 86.26397811 | AH90: 25.63599748 | AI90: 8.844556143 | AJ90: 22.61869013 | AK90: 31.35517156 | AL90: 8.993255174 | AM90: 10.87294726 | AN90: 68.38960138 | AO90: 589.6780457 | AP90: 48.57281473 | AQ90: 84.01712375 | AR90: 107.4102773 | AS90: 18.78181101 | AT90: 53.50328334 | AU90: 74.9286154 | AV90: 12.67091972 | AW90: 13.72449827 | AX90: 6.798443624 | AY90: 3.375732225 | AZ90: 437.6590335 | BA90: 138.8979808 | BB90: 132.1535208 | BC90: 57.68466329 | BD90: 40.90406974 | BE90: 263.5604251 | BF90: 2.783287558 | BG90: 982.205097 | BH90: 44.30901426 | BI90: 1135.371369 | BJ90: 907.0396456 | BK90: 52.56690548 | BL90: 404.2121628 | BM90: 79.69292348 | BN90: 86.53288047 | BO90: 519.5721016 | BP90: 256.8919182 | BQ90: 143.2409502 | BR90: 403.4855821 | BS90: 506.5876047 | BT90: 275.6069581 | BU90: 234.9515662 | BV90: 1112.928384 | BW90: 145.7904248 | BX90: 1867.212196 | BY90: 1121.884413 | BZ90: 217.4587041 | CA90: 227.799199 | CB90: 0 | CC90: 39.15215344 | CD90: 287.0585518 | CE90: 79.26335929 | CF90: 1302.855116 | CG90: 639.020357 | CH90: 233.2585934 | CI90: 269.7666318 | CJ90: 179.5931158 | CK90: 22.18373223 | CL90: 205.8217499 | CM90: 3706.488115 | CN90: 82.88799984 | CO90: 57.0838981 | CP90: 126.9446548 | CQ90: 367.4065799 | CR90: 648.6336299 | CS90: 755.7660044 | CT90: 1457.151064 | CU90: 940.077018 | CV90: 155.9711879 | CW90: 38.15172051 | CX90: 34.78113012 | CY90: 957.2375495 | CZ90: 68.02708435 | DA90: 71.38322731 | DB90: 82.18661954 | DC90: 0 | DD90: 25.9193147 | DE90: 0 | DF90: 0 | DG90: 0 | DH90: 0 | DI90: 0 | DJ90: 340.1636153 | DK90: 0 | DL90: 0 | DM90: 555.5476247 | DN90: 1314.188889 | DO90: 29241.53561 | DQ90: 29239 | DR90: 0.9999132875 | DT90: 2.535605885
A91: 79 | B91: Travel agency, tour operator and other reservation services and related services | C91: 18.93974524 | D91: 0 | E91: 7.92815692 | F91: 0 | G91: 0.2842462822 | H91: 3.991786505 | I91: 0 | J91: 13.1374292 | K91: 8.132611818 | L91: 0.1712415479 | M91: 5.987051188 | N91: 5.414655059 | O91: 20.06652572 | P91: 15.91352235 | Q91: 5.016786713 | R91: 34.56481328 | S91: 0.2910345811 | T91: 8.084000996 | U91: 5.314381293 | V91: 3.56967002 | W91: 7.07564554 | X91: 12.24082677 | Y91: 13.7111192 | Z91: 0 | AA91: 0.06720293738 | AB91: 0.05466761717 | AC91: 0.03555265148 | AD91: 0.1387764859 | AE91: 2.690799099 | AF91: 0.2671919378 | AG91: 0.3759727786 | AH91: 0.8174422159 | AI91: 0.11611671 | AJ91: 0.2189903476 | AK91: 1.904444078 | AL91: 0.3973887555 | AM91: 1.756091564 | AN91: 1.778026695 | AO91: 14.91748053 | AP91: 23.37782422 | AQ91: 72.81405635 | AR91: 111.4539638 | AS91: 0.2579308607 | AT91: 95.39010757 | AU91: 1.418972783 | AV91: 10.97673288 | AW91: 14.53455056 | AX91: 0.3727456669 | AY91: 4.6148765 | AZ91: 17.53483916 | BA91: 81.26933949 | BB91: 30.82817979 | BC91: 0 | BD91: 17.39707055 | BE91: 0 | BF91: 0 | BG91: 133.9604396 | BH91: 800.9097149 | BI91: 411.8823832 | BJ91: 1187.613621 | BK91: 29.52484852 | BL91: 1723.625208 | BM91: 1227.299635 | BN91: 1081.621644 | BO91: 342.9527966 | BP91: 338.7520297 | BQ91: 290.9061842 | BR91: 842.4308479 | BS91: 9.865023892 | BT91: 137.311 | BU91: 359.180959 | BV91: 171.5783426 | BW91: 13.35904033 | BX91: 911.9441366 | BY91: 0.09521281322 | BZ91: 291.8320828 | CA91: 87.93065588 | CB91: 0 | CC91: 25.23023658 | CD91: 51.00680205 | CE91: 93.3883144 | CF91: 29.42085187 | CG91: 6.982923428 | CH91: 34.02530546 | CI91: 9.705992373 | CJ91: 3.54289152 | CK91: 0 | CL91: 69.46251202 | CM91: 275.2778696 | CN91: 4114.302589 | CO91: 1.353101792 | CP91: 2.567918472 | CQ91: 8.954130088 | CR91: 14.96897886 | CS91: 426.4037582 | CT91: 46.61019543 | CU91: 15.41012014 | CV91: 12.41390339 | CW91: 13.76385414 | CX91: 5.149466519 | CY91: 0.1097486151 | CZ91: 0 | DA91: 1.596797694 | DB91: 0.2509872515 | DC91: 0 | DD91: 794.1251687 | DE91: 0 | DF91: 0 | DG91: 0 | DH91: 0 | DI91: 0 | DJ91: 0 | DK91: 0 | DL91: 0 | DM91: 63.48199628 | DN91: 86.07728308 | DO91: 17297.77209 | DQ91: 17296 | DR91: 0.9998975539 | DT91: 1.772088587
A92: 80 | B92: Security and investigation services | C92: 0 | D92: 0 | E92: 0 | F92: 0 | G92: 0.09520497974 | H92: 0 | I92: 0 | J92: 0 | K92: 0 | L92: 0 | M92: 0 | N92: 0 | O92: 0 | P92: 0 | Q92: 0 | R92: 0 | S92: 0 | T92: 0.002003798796 | U92: 0.5542381868 | V92: 1.288240039e-06 | W92: 5.088119149e-05 | X92: 0.005658864986 | Y92: 1.291930955 | Z92: 0 | AA92: 0 | AB92: 0 | AC92: 0 | AD92: 0 | AE92: 0 | AF92: 0 | AG92: 0 | AH92: 0 | AI92: 0 | AJ92: 0 | AK92: 0.6277342951 | AL92: 0 | AM92: 0 | AN92: 0 | AO92: 0 | AP92: 0 | AQ92: 0 | AR92: 0.005110442539 | AS92: 0.002396018575 | AT92: 0 | AU92: 0 | AV92: 0 | AW92: 0 | AX92: 0.005699056653 | AY92: 0 | AZ92: 0.03056138368 | BA92: 0.1141421407 | BB92: 0 | BC92: 0 | BD92: 6.970478486 | BE92: 92.97568998 | BF92: 0 | BG92: 766.116867 | BH92: 44.25398474 | BI92: 136.1420099 | BJ92: 89.48679109 | BK92: 7.342579406 | BL92: 34.30920254 | BM92: 9.94418311 | BN92: 7.039657111 | BO92: 50.19334445 | BP92: 34.85876016 | BQ92: 13.30090858 | BR92: 29.05823192 | BS92: 2.51366717 | BT92: 53.77975683 | BU92: 25.70173472 | BV92: 181.7446869 | BW92: 25.63472788 | BX92: 1204.42828 | BY92: 118.9289913 | BZ92: 23.46431469 | CA92: 29.20048353 | CB92: 9.604279271 | CC92: 0.8424158769 | CD92: 18.19019967 | CE92: 7.214305738 | CF92: 4.765981192 | CG92: 4.778012116 | CH92: 31.46168915 | CI92: 4.715361768 | CJ92: 460.8149505 | CK92: 0 | CL92: 29.39631515 | CM92: 2.304641869 | CN92: 63.67317602 | CO92: 107.5656568 | CP92: 47.45574646 | CQ92: 11.83856361 | CR92: 391.9644995 | CS92: 309.7720495 | CT92: 220.2404433 | CU92: 123.0485676 | CV92: 29.92600675 | CW92: 28.01314323 | CX92: 27.48694161 | CY92: 65.7589956 | CZ92: 9.43482237 | DA92: 11.44036173 | DB92: 20.27096503 | DC92: 0 | DD92: 60.52817026 | DE92: 0 | DF92: 0 | DG92: 0 | DH92: 0 | DI92: 0 | DJ92: -15.77005833 | DK92: 0 | DL92: 0 | DM92: 43.97290949 | DN92: 102.6034555 | DO92: 5223.436632 | DQ92: 5223 | DR92: 0.999916409 | DT92: 0.4366324954
A93: 81 | B93: Services to buildings and landscape | C93: 0 | D93: 0 | E93: 1.098156914 | F93: 0 | G93: 0.4165160529 | H93: 0.002229731948 | I93: 0.9170792466 | J93: 0.0002103804904 | K93: 0.03977882635 | L93: 0.02686006796 | M93: 0 | N93: 0.1014138228 | O93: 0 | P93: 0.09132271488 | Q93: 0.03689987907 | R93: 47.27307233 | S93: 1.948473626 | T93: 5.636032069 | U93: 3.446712365 | V93: 0.1382639285 | W93: 10.88037994 | X93: 12.64253537 | Y93: 17.49939118 | Z93: 25.12277087 | AA93: 5.703205903 | AB93: 11.78553463 | AC93: 4.794954319 | AD93: 3.009024454 | AE93: 25.08545542 | AF93: 4.769673124 | AG93: 30.71129618 | AH93: 33.06837665 | AI93: 2.362130611 | AJ93: 9.073764033 | AK93: 12.01626987 | AL93: 6.893417494 | AM93: 2.198727544 | AN93: 0.6712693315 | AO93: 20.80345861 | AP93: 13.68378388 | AQ93: 31.51514643 | AR93: 32.98018623 | AS93: 2.467418862 | AT93: 20.37222889 | AU93: 3.896228177 | AV93: 7.69562044 | AW93: 7.086939287 | AX93: 2.034853115 | AY93: 1.121427038 | AZ93: 9.417466355 | BA93: 24.89830713 | BB93: 12.12163003 | BC93: 0 | BD93: 0 | BE93: 175.2611701 | BF93: 2.429159729 | BG93: 807.2152516 | BH93: 140.755187 | BI93: 610.7460208 | BJ93: 543.7579072 | BK93: 23.6914218 | BL93: 181.564338 | BM93: 43.55025181 | BN93: 136.514949 | BO93: 243.8873119 | BP93: 80.35773004 | BQ93: 143.0757404 | BR93: 414.437628 | BS93: 15.26569452 | BT93: 205.6790921 | BU93: 96.10160251 | BV93: 749.6893822 | BW93: 97.85102673 | BX93: 915.7952885 | BY93: 780.3035124 | BZ93: 114.9223446 | CA93: 721.5138911 | CB93: 0 | CC93: 79.21385405 | CD93: 125.9004812 | CE93: 48.1893205 | CF93: 1065.864892 | CG93: 280.2324881 | CH93: 82.81858912 | CI93: 63.91387072 | CJ93: 266.8609772 | CK93: 17.87189082 | CL93: 121.2301786 | CM93: 86.49972485 | CN93: 13.55768434 | CO93: 154.379536 | CP93: 3407.04505 | CQ93: 80.52253699 | CR93: 579.8293393 | CS93: 804.492439 | CT93: 769.2946663 | CU93: 238.3920495 | CV93: 305.1809971 | CW93: 125.6014054 | CX93: 73.35651258 | CY93: 237.4308923 | CZ93: 78.2090484 | DA93: 42.83600156 | DB93: 112.0879845 | DC93: 0 | DD93: 16.96612931 | DE93: 1280.778197 | DF93: 0 | DG93: 0 | DH93: 12.86936162 | DI93: 0 | DJ93: 56.23950203 | DK93: 0 | DL93: 0 | DM93: 87.03693194 | DN93: 205.0733191 | DO93: 18633.69765 | DQ93: 18633 | DR93: 0.9999625599 | DT93: 0.6976472695
A94: 82 | B94: Office administrative, office support and other business support services | C94: 8.820656788 | D94: 0 | E94: 7.552467438 | F94: 0.003232018966 | G94: 21.30264514 | H94: 2.538229344 | I94: 5.522127182 | J94: 0.3229023043 | K94: 37.07743362 | L94: 0.9549753914 | M94: 9.150039549 | N94: 5.885534419 | O94: 1.042475915 | P94: 13.5708158 | Q94: 2.450161096 | R94: 12.92738345 | S94: 6.920208341 | T94: 5.111993541 | U94: 4.536270637 | V94: 0.1058746205 | W94: 0.128942857 | X94: 0.9729628402 | Y94: 13.37104347 | Z94: 38.41275401 | AA94: 3.016110161 | AB94: 12.09514195 | AC94: 10.52380217 | AD94: 1.278045743 | AE94: 11.62463477 | AF94: 5.564730791 | AG94: 47.45986904 | AH94: 23.65122522 | AI94: 7.008009495 | AJ94: 12.22646861 | AK94: 15.91960097 | AL94: 10.47291059 | AM94: 1.581999626 | AN94: 0.5641129208 | AO94: 36.1298483 | AP94: 6.515999088 | AQ94: 5.599066712 | AR94: 29.1820945 | AS94: 6.644227824 | AT94: 21.33280661 | AU94: 1.508644582 | AV94: 0.9953810961 | AW94: 1.280177691 | AX94: 2.959984235 | AY94: 1.63493882 | AZ94: 8.388331843 | BA94: 34.65843611 | BB94: 8.420740634 | BC94: 1.67267849 | BD94: 4.09201979 | BE94: 50.8425772 | BF94: 2.784384987 | BG94: 558.8345172 | BH94: 276.3038116 | BI94: 554.0570984 | BJ94: 668.7913396 | BK94: 42.24252423 | BL94: 305.8360511 | BM94: 19.29410974 | BN94: 52.31778791 | BO94: 327.4631846 | BP94: 78.08835801 | BQ94: 76.58448201 | BR94: 289.8770802 | BS94: 15.89733164 | BT94: 307.8570333 | BU94: 116.1412645 | BV94: 197.7140388 | BW94: 80.70452006 | BX94: 711.4291603 | BY94: 441.1618429 | BZ94: 92.15983725 | CA94: 194.1116312 | CB94: 0 | CC94: 9.791897708 | CD94: 179.1622878 | CE94: 44.54128227 | CF94: 861.330221 | CG94: 235.4993267 | CH94: 27.31820455 | CI94: 31.03984562 | CJ94: 234.400789 | CK94: 14.51254678 | CL94: 139.8951058 | CM94: 32.973652 | CN94: 35.37382737 | CO94: 0.9235616769 | CP94: 10.20473394 | CQ94: 2491.034748 | CR94: 16.67353094 | CS94: 69.49673858 | CT94: 124.4584533 | CU94: 148.0482279 | CV94: 122.6655106 | CW94: 25.1326263 | CX94: 106.9201412 | CY94: 74.76410325 | CZ94: 0 | DA94: 4.750498466 | DB94: 98.55468838 | DC94: 0 | DD94: 304.2398713 | DE94: 0 | DF94: 0 | DG94: 0 | DH94: 736.5814436 | DI94: 0 | DJ94: 0 | DK94: 0 | DL94: 0 | DM94: 6807.686195 | DN94: 16627.44554 | DO94: 35608.59673 | DQ94: 35605 | DR94: 0.9998989926 | DT94: 3.596732455
A95: 84 | B95: Public administration and defence services; compulsory social security services | C95: 15.0200482 | D95: 3.682577426 | E95: 0 | F95: 3.306863256 | G95: 18.528852 | H95: 4.221361821 | I95: 4.039424899 | J95: 8.487838284 | K95: 10.62953493 | L95: 1.77014315 | M95: 3.244551804 | N95: 15.68313647 | O95: 14.68387037 | P95: 16.00161045 | Q95: 5.313583264 | R95: 47.22188802 | S95: 5.852188189 | T95: 15.93137662 | U95: 4.240408788 | V95: 5.776379099 | W95: 6.936616454 | X95: 14.768601 | Y95: 6.638289464 | Z95: 17.93318264 | AA95: 5.662728325 | AB95: 5.046360994 | AC95: 17.69061902 | AD95: 16.12078938 | AE95: 48.17110842 | AF95: 10.44297727 | AG95: 118.9099558 | AH95: 30.83420078 | AI95: 2.449528521 | AJ95: 7.886999499 | AK95: 17.53263071 | AL95: 17.49308213 | AM95: 4.465356424 | AN95: 68.11641103 | AO95: 17.33840684 | AP95: 17.39342108 | AQ95: 55.81893615 | AR95: 58.33698493 | AS95: 3.37655316 | AT95: 35.13535536 | AU95: 7.722952933 | AV95: 16.56398398 | AW95: 15.02814614 | AX95: 2.036762384 | AY95: 4.885568324 | AZ95: 10.03952451 | BA95: 33.18642605 | BB95: 6.299230127 | BC95: 19.81171221 | BD95: 0 | BE95: 115.6913978 | BF95: 0 | BG95: 1405.831486 | BH95: 32.31498204 | BI95: 104.8398409 | BJ95: 433.2786575 | BK95: 130.0544106 | BL95: 1830.487327 | BM95: 27.29206472 | BN95: 86.98775883 | BO95: 24.93739884 | BP95: 191.292983 | BQ95: 25.85857864 | BR95: 102.9525716 | BS95: 16.32960474 | BT95: 31.47692404 | BU95: 21.97631589 | BV95: 104.5436519 | BW95: 5.18310882 | BX95: 142.6311873 | BY95: 68.0763126 | BZ95: 14.87988662 | CA95: 3157.009135 | CB95: 8.435427429 | CC95: 1.109839343 | CD95: 11.84819304 | CE95: 9.779195499 | CF95: 176.1991417 | CG95: 3275.35155 | CH95: 69.03801375 | CI95: 9.409319771 | CJ95: 127.2612898 | CK95: 2.128376232 | CL95: 24.94008353 | CM95: 88.75018233 | CN95: 2.152702377 | CO95: 8.991885981 | CP95: 29.27764972 | CQ95: 56.80462367 | CR95: 314.6191147 | CS95: 7.847974099 | CT95: 116.2937814 | CU95: 0 | CV95: 15.28083309 | CW95: 7.016248121 | CX95: 17.05975449 | CY95: 15.73638217 | CZ95: 6.214945221 | DA95: 2.333145837 | DB95: 20.2897752 | DC95: 0 | DD95: 3810.409531 | DE95: 0 | DF95: 84352.37327 | DG95: 38142.22138 | DH95: 2840.867137 | DI95: 0 | DJ95: 0 | DK95: 0 | DL95: 0 | DM95: 270.3494906 | DN95: 1031.417384 | DO95: 143869.4423 | DQ95: 143978 | DR95: 1.000754557 | DT95: 108.5577483
A96: 85 | B96: Education services | C96: 10.31136882 | D96: 0 | E96: 0 | F96: 0.002770707777 | G96: 18.09639445 | H96: 0.004873930371 | I96: 1.42972998 | J96: 0.9897247661 | K96: 1.031902069 | L96: 0.9983063079 | M96: 5.552068488 | N96: 4.659292083 | O96: 13.80659717 | P96: 34.52890644 | Q96: 3.157204286 | R96: 11.09912334 | S96: 7.778284509 | T96: 12.01477322 | U96: 5.892240879 | V96: 1.166308116 | W96: 3.503459598 | X96: 11.00384729 | Y96: 9.598292109 | Z96: 8.458460627 | AA96: 2.710824673 | AB96: 10.49915079 | AC96: 13.63518469 | AD96: 13.81780403 | AE96: 34.77146596 | AF96: 8.544117608 | AG96: 66.08818625 | AH96: 13.28276392 | AI96: 6.742716322 | AJ96: 7.021794336 | AK96: 8.430289323 | AL96: 5.781952534 | AM96: 3.803501098 | AN96: 35.5945173 | AO96: 29.7956329 | AP96: 11.56204904 | AQ96: 48.7698804 | AR96: 40.08272502 | AS96: 3.271450407 | AT96: 48.29430134 | AU96: 2.730944627 | AV96: 9.703622967 | AW96: 11.08552559 | AX96: 1.195006521 | AY96: 2.06338132 | AZ96: 10.78661579 | BA96: 83.62117131 | BB96: 12.99390296 | BC96: 8.603606632 | BD96: 24.20491931 | BE96: 108.2929448 | BF96: 0 | BG96: 272.1130206 | BH96: 40.14501311 | BI96: 250.5440017 | BJ96: 211.1930117 | BK96: 41.01697123 | BL96: 89.84975967 | BM96: 23.6578093 | BN96: 98.32522289 | BO96: 267.4131542 | BP96: 351.9633211 | BQ96: 49.23891702 | BR96: 201.5267249 | BS96: 11.04891766 | BT96: 108.5015219 | BU96: 426.275987 | BV96: 405.0383482 | BW96: 9.400589948 | BX96: 1507.858233 | BY96: 731.0758786 | BZ96: 98.97511633 | CA96: 234.4687792 | CB96: 0 | CC96: 9.157401416 | CD96: 779.8313115 | CE96: 401.025152 | CF96: 205.5300311 | CG96: 485.4675787 | CH96: 342.2424899 | CI96: 128.2487122 | CJ96: 49.30068865 | CK96: 27.4424503 | CL96: 41.29077637 | CM96: 186.5488124 | CN96: 48.80851249 | CO96: 8.716273719 | CP96: 55.57058967 | CQ96: 49.79642379 | CR96: 5777.245827 | CS96: 10839.11329 | CT96: 360.6261775 | CU96: 583.0771862 | CV96: 45.05669065 | CW96: 9.32953495 | CX96: 36.3762561 | CY96: 42.96631747 | CZ96: 75.77060759 | DA96: 19.40483289 | DB96: 158.5399714 | DC96: 0 | DD96: 15835.63394 | DE96: 26462.63071 | DF96: 13369.51644 | DG96: 45767.78787 | DH96: 0 | DI96: 0 | DJ96: 51.87919781 | DK96: 0 | DL96: 0 | DM96: 883.3688755 | DN96: 3362.425295 | DO96: 132782.2224 | DQ96: 132839 | DR96: 1.000427599 | DT96: 56.77759836
A97: 86 | B97: Human health services | C97: 0 | D97: 0 | E97: 1.038997415 | F97: 0.003668203784 | G97: 23.75727504 | H97: 0.0008567778418 | I97: 4.170498496 | J97: 0.04565529964 | K97: 13.83386856 | L97: 0.05976229289 | M97: 1.022955878 | N97: 1.092073163 | O97: 2.806486837 | P97: 1.037521305 | Q97: 0.01463038486 | R97: 2.130799708 | S97: 0.3132530014 | T97: 2.087703871 | U97: 2.927700802 | V97: 0.04650182145 | W97: 2.057980537 | X97: 1.144425429 | Y97: 1.481358687 | Z97: 5.284155297 | AA97: 0.6605475185 | AB97: 0.3421632586 | AC97: 2.190765978 | AD97: 3.936633033 | AE97: 3.067377846 | AF97: 1.348060247 | AG97: 11.98785098 | AH97: 4.321206122 | AI97: 1.088914299 | AJ97: 0.09448600974 | AK97: 1.134245739 | AL97: 3.244083086 | AM97: 1.999770499 | AN97: 5.185544399 | AO97: 4.864337344 | AP97: 3.22585693 | AQ97: 4.208164197 | AR97: 4.383766102 | AS97: 1.886474843 | AT97: 6.040411983 | AU97: 0.1384337671 | AV97: 1.087485844 | AW97: 1.085322291 | AX97: 0.03263386699 | AY97: 0.02080675974 | AZ97: 1.973011898 | BA97: 21.79961117 | BB97: 1.042601645 | BC97: 1.035501164 | BD97: 0 | BE97: 20.10839812 | BF97: 0 | BG97: 17.63534309 | BH97: 6.275649057 | BI97: 26.56107597 | BJ97: 9.047301061 | BK97: 1.06738697 | BL97: 6.077062929 | BM97: 3.259794193 | BN97: 3.135770781 | BO97: 4.29877919 | BP97: 1.089118079 | BQ97: 1.403774276 | BR97: 8.176353007 | BS97: 1.099605766 | BT97: 6.787270367 | BU97: 6.550124514 | BV97: 4.544206527 | BW97: 1.357710369 | BX97: 33.19769756 | BY97: 343.3735699 | BZ97: 1.288463556 | CA97: 25.74268796 | CB97: 0 | CC97: 1.102154042 | CD97: 4.221537318 | CE97: 5.798567225 | CF97: 4.954134544 | CG97: 5.013737853 | CH97: 7.40483937 | CI97: 1.588655337 | CJ97: 3.08652688 | CK97: 60.24125428 | CL97: 3.662447484 | CM97: 4.401945755 | CN97: 1.06795903 | CO97: 0.3407190504 | CP97: 12.7668747 | CQ97: 3.834866004 | CR97: 200.0290314 | CS97: 14.67089044 | CT97: 662.1780256 | CU97: 34.45469725 | CV97: 0 | CW97: 0.1053350266 | CX97: 0.03836144232 | CY97: 0.003950605367 | CZ97: 0 | DA97: 0.02834408272 | DB97: 29.68186332 | DC97: 0 | DD97: 13809.1178 | DE97: 4456.290389 | DF97: 111774.9334 | DG97: 2069.391669 | DH97: 0 | DI97: 0 | DJ97: 0 | DK97: 0 | DL97: 0 | DM97: 91.37256131 | DN97: 349.6974568 | DO97: 134303.3414 | DQ97: 134417 | DR97: 1.000846283 | DT97: 113.6586499
A98: 87-88 | B98: Residential Care & Social Work services | C98: 0 | D98: 0 | E98: 0 | F98: 0.000820446564 | G98: 5.309852358 | H98: 0 | I98: 0.1565202766 | J98: 0 | K98: 0.001889523589 | L98: 0 | M98: 0 | N98: 0.003974732004 | O98: 0 | P98: 0.005406199674 | Q98: 0 | R98: 7.335235128 | S98: 0 | T98: 0.1117451814 | U98: 0.001182099612 | V98: 0.0004360235229 | W98: 0.09491766954 | X98: 7.874548765 | Y98: 61.84007588 | Z98: 0 | AA98: 0.0001257702866 | AB98: 0.0003015269512 | AC98: 0.002369302418 | AD98: 6.238920785e-07 | AE98: 0.003195241019 | AF98: 0.03588676141 | AG98: 0.06891149369 | AH98: 1.056528696 | AI98: 0.0004837148933 | AJ98: 0.007764674463 | AK98: 0.001918454204 | AL98: 0.00126862741 | AM98: 0.3036028348 | AN98: 0.05371815763 | AO98: 7.427904573 | AP98: 0.1340591233 | AQ98: 0.2405271507 | AR98: 0.009223984771 | AS98: 0.004302255223 | AT98: 0.005923333375 | AU98: 0 | AV98: 0 | AW98: 4.108335884 | AX98: 0.01027297631 | AY98: 0.005259138948 | AZ98: 0.481649883 | BA98: 0.2057497545 | BB98: 0 | BC98: 0 | BD98: 0.9972070918 | BE98: 0.0003147951982 | BF98: 0 | BG98: 13.89888419 | BH98: 14.9277869 | BI98: 2.5770383 | BJ98: 53.64784734 | BK98: 0 | BL98: 9.135661019 | BM98: 0.003758814968 | BN98: 0 | BO98: 13.6913571 | BP98: 0 | BQ98: 19.26189958 | BR98: 32.23807874 | BS98: 290.6803725 | BT98: 0.4849557776 | BU98: 0 | BV98: 12.71192383 | BW98: 0.6900037882 | BX98: 3.267062829 | BY98: 2.113787322 | BZ98: 0.01512749878 | CA98: 4.226861656 | CB98: 0 | CC98: 0 | CD98: 0.01739026762 | CE98: 0.01326492287 | CF98: 0.2227180492 | CG98: 0.1971481176 | CH98: 9.915290652 | CI98: 64.8906973 | CJ98: 0.2322486035 | CK98: 295.3156563 | CL98: 5.12383913 | CM98: 0.9348252868 | CN98: 0.006994853837 | CO98: 0.09487832635 | CP98: 1.983575581 | CQ98: 10.18761244 | CR98: 16.63650495 | CS98: 132.4354239 | CT98: 1374.104005 | CU98: 7628.1084 | CV98: 42.69419658 | CW98: 0.3894282501 | CX98: 9.191207923 | CY98: 54.31112448 | CZ98: 50.50592949 | DA98: 0 | DB98: 36.51525925 | DC98: 0 | DD98: 10147.12059 | DE98: 6547.578432 | DF98: 461.2603827 | DG98: 28731.36573 | DH98: 0 | DI98: 0 | DJ98: 0 | DK98: 0 | DL98: 0 | DM98: 4.440586087 | DN98: 3.330439565 | DO98: 56200.5996 | DQ98: 56224 | DR98: 1.000416373 | DT98: 23.40040028
A99: 90 | B99: Creative, arts and entertainment services | C99: 0 | D99: 0 | E99: 0 | F99: 0 | G99: 0 | H99: 0 | I99: 0 | J99: 0 | K99: 0 | L99: 0 | M99: 0 | N99: 0 | O99: 0 | P99: 0 | Q99: 0 | R99: 0 | S99: 0 | T99: 0.003048798352 | U99: 2.967402331e-05 | V99: 1.104633157e-05 | W99: 0.002262787359 | X99: 0.2156745136 | Y99: 1.797327435 | Z99: 0 | AA99: 0 | AB99: 0 | AC99: 0 | AD99: 0 | AE99: 0 | AF99: 0 | AG99: 0.005276246595 | AH99: 0.02879101648 | AI99: 0 | AJ99: 0.002850268937 | AK99: 2.857956494 | AL99: 0 | AM99: 0 | AN99: 0 | AO99: 0.02578498791 | AP99: 0 | AQ99: 0.05949634677 | AR99: 0.0005258649089 | AS99: 0.0002465504856 | AT99: 0 | AU99: 0 | AV99: 0.01419331552 | AW99: 0.1382339315 | AX99: 0.003301185826 | AY99: 0.01195191472 | AZ99: 0.01808216015 | BA99: 0.01174523457 | BB99: 0 | BC99: 0 | BD99: 0 | BE99: 0 | BF99: 0 | BG99: 0.1632888852 | BH99: 0.0001453587602 | BI99: 0.04155427178 | BJ99: 0.06105117684 | BK99: 0 | BL99: 0.01160497566 | BM99: 0.0001881119387 | BN99: 5.030425199 | BO99: 0 | BP99: 4.269143395 | BQ99: 3.83928759 | BR99: 1.825007579 | BS99: 6.643975676 | BT99: 41.87205862 | BU99: 1.068205557 | BV99: 0.9504521465 | BW99: 0.01909963254 | BX99: 4.351676884 | BY99: 0 | BZ99: 2.133576061 | CA99: 0.06483289202 | CB99: 0 | CC99: 0 | CD99: 4.022990494 | CE99: 2.799820809 | CF99: 1.875651742 | CG99: 0.007147177841 | CH99: 1.06660833 | CI99: 4.010987217 | CJ99: 0.03110278503 | CK99: 0 | CL99: 0.1640036091 | CM99: 3.006444843 | CN99: 0.0002636897133 | CO99: 0.01067942011 | CP99: 0.01774499169 | CQ99: 0.09139300619 | CR99: 2.557676493 | CS99: 1.79787733 | CT99: 2.140598924 | CU99: 11.96921304 | CV99: 14.91898077 | CW99: 2.24016457 | CX99: 0.002298324181 | CY99: 1.988547512 | CZ99: 5.045483451 | DA99: 0.003377405036 | DB99: 2.084207525 | DC99: 0 | DD99: 3745.428566 | DE99: 1612.214066 | DF99: 0 | DG99: 215.7777902 | DH99: 441.7162509 | DI99: 0 | DJ99: -21.35184407 | DK99: 118.0090707 | DL99: 3288.903205 | DM99: 96.4850382 | DN99: 257.2934352 | DO99: 9893.871206 | DQ99: 9894 | DR99: 1.000013018 | DT99: 0.1287941125
A100: 91 | B100: Libraries, archives, museums and other cultural services | C100: 0 | D100: 0 | E100: 0 | F100: 0 | G100: 0 | H100: 0 | I100: 0 | J100: 0 | K100: 0 | L100: 0 | M100: 0 | N100: 0 | O100: 0 | P100: 0 | Q100: 0 | R100: 0 | S100: 0 | T100: 0.01247961822 | U100: 0.0002469313029 | V100: 9.192164536e-05 | W100: 0.009147262838 | X100: 0.9246388295 | Y100: 3.521437805 | Z100: 0 | AA100: 0 | AB100: 0 | AC100: 0 | AD100: 0 | AE100: 0 | AF100: 0 | AG100: 0 | AH100: 0.08971463495 | AI100: 0 | AJ100: 0 | AK100: 0 | AL100: 0 | AM100: 0 | AN100: 0 | AO100: 0.01837934092 | AP100: 0 | AQ100: 0.01969986924 | AR100: 0.0005958648862 | AS100: 0.000279369805 | AT100: 0 | AU100: 0 | AV100: 0 | AW100: 0.3602502608 | AX100: 0.0006644958276 | AY100: 0 | AZ100: 0.0006715214401 | BA100: 0.01330868964 | BB100: 0 | BC100: 0 | BD100: 0 | BE100: 6.359742183 | BF100: 0 | BG100: 0.4600162151 | BH100: 0.001422142244 | BI100: 0.4138293163 | BJ100: 0.1181096576 | BK100: 0 | BL100: 0.01644925383 | BM100: 0.0002131522698 | BN100: 1.710013554 | BO100: 0 | BP100: 0 | BQ100: 0.001350272413 | BR100: 0.3721883854 | BS100: 86.56112016 | BT100: 76.24259858 | BU100: 0 | BV100: 3.536119141 | BW100: 0.05218231657 | BX100: 0 | BY100: 2.988405465 | BZ100: 0.02596507486 | CA100: 0.02455436803 | CB100: 0 | CC100: 0 | CD100: 1.771038562 | CE100: 3.208471137 | CF100: 7.695928486 | CG100: 0.02582973491 | CH100: 3.376438159 | CI100: 24.41983758 | CJ100: 1.603370306 | CK100: 0 | CL100: 0.2296713801 | CM100: 15.05026919 | CN100: 0.006274600577 | CO100: 0.00392954617 | CP100: 0.06214575688 | CQ100: 11.80732742 | CR100: 111.6093515 | CS100: 54.6496551 | CT100: 29.98144147 | CU100: 31.64773432 | CV100: 16.41388083 | CW100: 112.4358851 | CX100: 0.05468709502 | CY100: 108.4924259 | CZ100: 17.18870025 | DA100: 0 | DB100: 2.361644702 | DC100: 0 | DD100: 1745.880438 | DE100: 1059.287633 | DF100: 0 | DG100: 878.6748696 | DH100: 0 | DI100: -44.52667447 | DJ100: 446.9855037 | DK100: 0 | DL100: 0 | DM100: 54.03594843 | DN100: 145.7713958 | DO100: 5024.060938 | DQ100: 5025 | DR100: 1.000186913 | DT100: 0.9390615139
A101: 92 | B101: Gambling and betting services | C101: 0 | D101: 0 | E101: 0 | F101: 0 | G101: 0 | H101: 0 | I101: 0 | J101: 0 | K101: 0 | L101: 0 | M101: 0 | N101: 0 | O101: 0 | P101: 0 | Q101: 0 | R101: 0 | S101: 0 | T101: 0 | U101: 0 | V101: 0 | W101: 0 | X101: 0 | Y101: 0 | Z101: 0 | AA101: 0 | AB101: 0 | AC101: 0 | AD101: 0 | AE101: 0 | AF101: 0 | AG101: 0 | AH101: 0 | AI101: 0 | AJ101: 0 | AK101: 0 | AL101: 0 | AM101: 0 | AN101: 0 | AO101: 0 | AP101: 0 | AQ101: 0 | AR101: 0 | AS101: 0 | AT101: 0 | AU101: 0 | AV101: 0 | AW101: 0 | AX101: 0 | AY101: 0 | AZ101: 0 | BA101: 0 | BB101: 0 | BC101: 0 | BD101: 0 | BE101: 0 | BF101: 0 | BG101: 18.57658514 | BH101: 0.003595231334 | BI101: 0.06612897179 | BJ101: 0.4592725427 | BK101: 0 | BL101: 0.0001112857979 | BM101: 0 | BN101: 0 | BO101: 0 | BP101: 0 | BQ101: 86.97569592 | BR101: 60.37225415 | BS101: 0.08562843175 | BT101: 0.4985081051 | BU101: 0 | BV101: 70.44596934 | BW101: 57.03561433 | BX101: 317.9737246 | BY101: 0 | BZ101: 1.709934538 | CA101: 9.611864629 | CB101: 0 | CC101: 0 | CD101: 0 | CE101: 0 | CF101: 0.5288538433 | CG101: 0 | CH101: 2.775493428 | CI101: 12.93366434 | CJ101: 0.7258308629 | CK101: 0 | CL101: 3.798162541 | CM101: 2.29103847 | CN101: 0.01869852162 | CO101: 0 | CP101: 1.289503454 | CQ101: 0.5178598255 | CR101: 0 | CS101: 0.1386032845 | CT101: 0 | CU101: 0 | CV101: 0 | CW101: 0 | CX101: 817.1410627 | CY101: 146.7954663 | CZ101: 1383.906946 | DA101: 0 | DB101: 0 | DC101: 0 | DD101: 11871.86236 | DE101: 0 | DF101: 0 | DG101: 0 | DH101: 0 | DI101: 0 | DJ101: 168.5239389 | DK101: 0 | DL101: 0 | DM101: 42.39832041 | DN101: 113.5180837 | DO101: 15192.97877 | DQ101: 15192 | DR101: 0.9999355773 | DT101: 0.9787727198
A102: 93 | B102: Sports services and amusement and recreation services | C102: 2.170856487 | D102: 3.951307515 | E102: 0 | F102: 0.008286962387 | G102: 53.63684504 | H102: 3.391129017 | I102: 19.39313007 | J102: 2.919403181 | K102: 0.01047086887 | L102: 2.555007815 | M102: 0 | N102: 2.603794221 | O102: 0.1817418796 | P102: 0.278330356 | Q102: 0.08061724584 | R102: 0.007179238035 | S102: 0.001943589733 | T102: 1.149240745 | U102: 0.03009788225 | V102: 0.0192681417 | W102: 0.3866467342 | X102: 2.490504565 | Y102: 2.937108323 | Z102: 0.00660155463 | AA102: 0.034969182 | AB102: 0.007485169843 | AC102: 0.02050171365 | AD102: 0.007480749017 | AE102: 0.1208942424 | AF102: 0.04191648153 | AG102: 1.12162166 | AH102: 0.02948922419 | AI102: 8.082253128 | AJ102: 5.93221767 | AK102: 0.06824361895 | AL102: 2.335920026 | AM102: 0.399072896 | AN102: 3.368051069 | AO102: 0.295251666 | AP102: 0.04260713523 | AQ102: 0.1724634173 | AR102: 0.03722625329 | AS102: 0.009187482929 | AT102: 5.431393003 | AU102: 7.896900678 | AV102: 0.04594110171 | AW102: 2.548204084 | AX102: 0.01123594386 | AY102: 0.007794779588 | AZ102: 1.065542316 | BA102: 8.836484826 | BB102: 0 | BC102: 0 | BD102: 0 | BE102: 11.57761744 | BF102: 0 | BG102: 24.29400966 | BH102: 3.270957622 | BI102: 8.732608033 | BJ102: 9.580908497 | BK102: 0 | BL102: 1.224828965 | BM102: 0.004681830795 | BN102: 0.05917008804 | BO102: 4.625092009 | BP102: 0.00331145244 | BQ102: 0.6216427548 | BR102: 3.621801013 | BS102: 12.57686965 | BT102: 134.6176118 | BU102: 5.955300638 | BV102: 11.67838568 | BW102: 0.7401103193 | BX102: 0 | BY102: 71.88144238 | BZ102: 1.180639686 | CA102: 17.02271748 | CB102: 0 | CC102: 0 | CD102: 5.691399158 | CE102: 5.234135387 | CF102: 9.395792563 | CG102: 9.729204585 | CH102: 12.25865722 | CI102: 6.711180612 | CJ102: 7.396917095 | CK102: 0 | CL102: 3.219216278 | CM102: 19.49294048 | CN102: 129.2353505 | CO102: 1.378075772 | CP102: 15.66321297 | CQ102: 7.517501096 | CR102: 78.68170392 | CS102: 36.61818291 | CT102: 0 | CU102: 26.35346343 | CV102: 0 | CW102: 10.99126614 | CX102: 6.55201019 | CY102: 34.85343158 | CZ102: 0 | DA102: 0.1967018714 | DB102: 0.001237260999 | DC102: 0 | DD102: 7942.21901 | DE102: 371.1243981 | DF102: 0 | DG102: 2726.043477 | DH102: 0 | DI102: 0 | DJ102: 0 | DK102: 0 | DL102: 0 | DM102: 104.8180301 | DN102: 282.7649185 | DO102: 12323.59098 | DQ102: 12325 | DR102: 1.000114335 | DT102: 1.409017486
A103: 94 | B103: Services furnished by membership organisations | C103: 0.04628122016 | D103: 7.190430013 | E103: 0 | F103: 0 | G103: 0.0267574914 | H103: 0.0004147854544 | I103: 0 | J103: 1.12346541 | K103: 0.1324417725 | L103: 0.01705393897 | M103: 0.03426933115 | N103: 0.1371447217 | O103: 6.40789944 | P103: 3.072878849 | Q103: 1.019345885 | R103: 9.424290088 | S103: 0.001639691644 | T103: 0.078340072 | U103: 1.093554118 | V103: 0.039493853 | W103: 0.6683361074 | X103: 3.602627119 | Y103: 7.33391077 | Z103: 11.59181803 | AA103: 1.43707631 | AB103: 1.538489906 | AC103: 6.323085637 | AD103: 3.871755388 | AE103: 9.502721358 | AF103: 1.029012413 | AG103: 19.82332433 | AH103: 5.613872754 | AI103: 0.0284240285 | AJ103: 0.02876057437 | AK103: 0.2514102035 | AL103: 1.100267973 | AM103: 1.369739444 | AN103: 9.169675769 | AO103: 7.144921699 | AP103: 2.242423432 | AQ103: 12.06816447 | AR103: 11.51740081 | AS103: 0.9534513314 | AT103: 8.035857627 | AU103: 1.133110821 | AV103: 2.015059158 | AW103: 4.092655401 | AX103: 0.05426248338 | AY103: 0.9404331551 | AZ103: 2.501742019 | BA103: 17.41706683 | BB103: 4.099861603 | BC103: 1.017985029 | BD103: 0 | BE103: 12.33861262 | BF103: 0 | BG103: 50.41184565 | BH103: 5.593046725 | BI103: 43.06001278 | BJ103: 53.66944457 | BK103: 8.394651731 | BL103: 30.95720928 | BM103: 3.198924976 | BN103: 15.18687443 | BO103: 134.485892 | BP103: 48.1121819 | BQ103: 24.62953102 | BR103: 169.0889476 | BS103: 6.056090174 | BT103: 1218.500484 | BU103: 166.3123681 | BV103: 75.94973875 | BW103: 36.3970458 | BX103: 405.7759851 | BY103: 73.84282367 | BZ103: 23.53374787 | CA103: 12.76050198 | CB103: 0 | CC103: 1.083510432 | CD103: 14.53416344 | CE103: 19.61585734 | CF103: 22.59607807 | CG103: 36.60380201 | CH103: 17.94503613 | CI103: 153.1471902 | CJ103: 82.81925131 | CK103: 0 | CL103: 14.8038386 | CM103: 333.651587 | CN103: 14.79225147 | CO103: 23.51175694 | CP103: 81.65142652 | CQ103: 109.8285482 | CR103: 203.2929948 | CS103: 159.1052223 | CT103: 15.99867119 | CU103: 438.5001483 | CV103: 479.758301 | CW103: 107.7767887 | CX103: 475.7800343 | CY103: 765.1321841 | CZ103: 1506.65376 | DA103: 2.569617777 | DB103: 21.88543796 | DC103: 0 | DD103: 2442.837595 | DE103: 11155.27705 | DF103: 0 | DG103: 0 | DH103: 0 | DI103: 0 | DJ103: 0 | DK103: 0 | DL103: 0 | DM103: 0 | DN103: 0 | DO103: 21508.77247 | DQ103: 21514 | DR103: 1.000243042 | DT103: 5.227534797
A104: 95 | B104: Repair services of computers and personal and household goods | C104: 0.6629357083 | D104: 0 | E104: 0 | F104: 0.0004453339695 | G104: 2.898968182 | H104: 0.0001408632752 | I104: 0.6643230088 | J104: 1.329078364e-05 | K104: 0.0002318228388 | L104: 0.0003296697048 | M104: 0 | N104: 0.003927595174 | O104: 0 | P104: 0.0005683252788 | Q104: 0 | R104: 0 | S104: 0 | T104: 0.00451888983 | U104: 1.354289417 | V104: 0.004809972612 | W104: 0.006214256616 | X104: 0.1293396769 | Y104: 1.561797664 | Z104: 0 | AA104: 0.005285822755 | AB104: 0.04625696885 | AC104: 0.009166534849 | AD104: 0.01147557971 | AE104: 0.01655869694 | AF104: 0.2804280379 | AG104: 0.001087102433 | AH104: 0.002253054162 | AI104: 0.003476081512 | AJ104: 0.7037951435 | AK104: 0.1081626363 | AL104: 0.0004771343614 | AM104: 0.005707453457 | AN104: 0.01143079809 | AO104: 0.01703790197 | AP104: 1.397439921 | AQ104: 0.02020300637 | AR104: 0.7561660499 | AS104: 0.0002423699349 | AT104: 0.003538902027 | AU104: 0.001153679708 | AV104: 0 | AW104: 0.1491369442 | AX104: 0.0003982940093 | AY104: 0.003834047692 | AZ104: 0.06681434282 | BA104: 0.007977132638 | BB104: 0 | BC104: 0 | BD104: 0 | BE104: 13.66151532 | BF104: 0 | BG104: 2.007660192 | BH104: 0.1263501455 | BI104: 24.0466204 | BJ104: 37.58836629 | BK104: 0 | BL104: 16.43227442 | BM104: 2.171780632 | BN104: 15.71620357 | BO104: 10.01614951 | BP104: 6.523001677 | BQ104: 4.620533018 | BR104: 6.02914623 | BS104: 0.151021201 | BT104: 11.42854565 | BU104: 0.01367255846 | BV104: 5.00610899 | BW104: 0.9434017317 | BX104: 70.93376326 | BY104: 22.92772729 | BZ104: 26.01838809 | CA104: 3.050652312 | CB104: 6.991886132 | CC104: 1.471862878 | CD104: 2.101724513 | CE104: 4.376317521 | CF104: 3.892348795 | CG104: 12.5968925 | CH104: 13.25772883 | CI104: 1.523504714 | CJ104: 1.185324072 | CK104: 0 | CL104: 4.56700194 | CM104: 10.92760231 | CN104: 1.42646606 | CO104: 0.6967964942 | CP104: 1.364883662 | CQ104: 2.68730151 | CR104: 493.6020606 | CS104: 96.71828371 | CT104: 223.8911697 | CU104: 51.6714438 | CV104: 0.7211806821 | CW104: 3.339216277 | CX104: 3.519280581 | CY104: 16.53259147 | CZ104: 2.038153361 | DA104: 12.8386711 | DB104: 1.415936796 | DC104: 0 | DD104: 1897.14779 | DE104: 0 | DF104: 0 | DG104: 0 | DH104: 0 | DI104: 0 | DJ104: 0 | DK104: 0 | DL104: 0 | DM104: 217.6825828 | DN104: 583.7508707 | DO104: 3964.272113 | DQ104: 3964 | DR104: 0.9999313585 | DT104: 0.2721134148
A105: 96 | B105: Other personal services | C105: 0.02342153916 | D105: 3.638861239 | E105: 29.98084654 | F105: 0.002156778535 | G105: 13.97607768 | H105: 0 | I105: 5.591575808 | J105: 0.1218863425 | K105: 0.09167076792 | L105: 0.003332242831 | M105: 0.02796445548 | N105: 0.04025406351 | O105: 0.03027049891 | P105: 4.115172648 | Q105: 0.006166424256 | R105: 6.358933933 | S105: 0.00141728485 | T105: 0.04331596778 | U105: 0.1122375146 | V105: 0.01806889231 | W105: 0.3848590269 | X105: 0.476386388 | Y105: 7.574622344 | Z105: 3.345871132 | AA105: 0.7549817693 | AB105: 1.275496953 | AC105: 2.147699078 | AD105: 1.301100659 | AE105: 1.007803278 | AF105: 0.1769230433 | AG105: 5.260207872 | AH105: 1.411261171 | AI105: 3.161956654 | AJ105: 3.225708467 | AK105: 0.190684168 | AL105: 4.337083682 | AM105: 0.7750894086 | AN105: 6.319324114 | AO105: 12.6421168 | AP105: 0.3049462368 | AQ105: 3.465912493 | AR105: 0.2466271835 | AS105: 0.1047854248 | AT105: 22.10580754 | AU105: 1.212123064 | AV105: 3.089117993 | AW105: 5.863205621 | AX105: 0.1656313385 | AY105: 0.9531614146 | AZ105: 2.570543728 | BA105: 22.6628032 | BB105: 3.112225718 | BC105: 0 | BD105: 0 | BE105: 46.11185945 | BF105: 2.286849404 | BG105: 30.07383955 | BH105: 0.4110010903 | BI105: 29.6599296 | BJ105: 209.5882892 | BK105: 10.62070444 | BL105: 22.19111954 | BM105: 51.89875911 | BN105: 129.5682818 | BO105: 43.19646683 | BP105: 229.0268739 | BQ105: 43.33558112 | BR105: 294.5055668 | BS105: 15.28229635 | BT105: 122.0552378 | BU105: 103.3969836 | BV105: 61.15768594 | BW105: 7.237750207 | BX105: 382.0741105 | BY105: 26.69238656 | BZ105: 15.33037217 | CA105: 10.45032536 | CB105: 0 | CC105: 9.869979116 | CD105: 15.56345093 | CE105: 43.6629695 | CF105: 39.88794303 | CG105: 90.63921918 | CH105: 17.58527232 | CI105: 50.0056057 | CJ105: 33.42384105 | CK105: 12.61866059 | CL105: 172.559316 | CM105: 113.9913464 | CN105: 4.254561811 | CO105: 13.75855965 | CP105: 22.21396467 | CQ105: 4.012384713 | CR105: 387.8297791 | CS105: 108.8161973 | CT105: 362.5381001 | CU105: 434.626255 | CV105: 26.97481652 | CW105: 8.395956193 | CX105: 18.85750423 | CY105: 31.46854687 | CZ105: 7.175823158 | DA105: 1.883231482 | DB105: 402.9182897 | DC105: 0 | DD105: 18818.42551 | DE105: 0 | DF105: 0 | DG105: 0 | DH105: 0 | DI105: 0 | DJ105: -14.0465682 | DK105: 0 | DL105: 0 | DM105: 61.73406804 | DN105: 164.9983273 | DO105: 23538.60488 | DQ105: 23537 | DR105: 0.9999318194 | DT105: 1.60487539
A106: 97 | B106: Services of households as employers of domestic personnel | C106: 0 | D106: 0 | E106: 0 | F106: 0 | G106: 0 | H106: 0 | I106: 0 | J106: 0 | K106: 0 | L106: 0 | M106: 0 | N106: 0 | O106: 0 | P106: 0 | Q106: 0 | R106: 0 | S106: 0 | T106: 0 | U106: 0 | V106: 0 | W106: 0 | X106: 0 | Y106: 0 | Z106: 0 | AA106: 0 | AB106: 0 | AC106: 0 | AD106: 0 | AE106: 0 | AF106: 0 | AG106: 0 | AH106: 0 | AI106: 0 | AJ106: 0 | AK106: 0 | AL106: 0 | AM106: 0 | AN106: 0 | AO106: 0 | AP106: 0 | AQ106: 0 | AR106: 0 | AS106: 0 | AT106: 0 | AU106: 0 | AV106: 0 | AW106: 0 | AX106: 0 | AY106: 0 | AZ106: 0 | BA106: 0 | BB106: 0 | BC106: 0 | BD106: 0 | BE106: 0 | BF106: 0 | BG106: 0 | BH106: 0 | BI106: 0 | BJ106: 0 | BK106: 0 | BL106: 0 | BM106: 0 | BN106: 0 | BO106: 0 | BP106: 0 | BQ106: 0 | BR106: 0 | BS106: 0 | BT106: 0 | BU106: 0 | BV106: 0 | BW106: 0 | BX106: 0 | BY106: 0 | BZ106: 0 | CA106: 0 | CB106: 0 | CC106: 0 | CD106: 0 | CE106: 0 | CF106: 0 | CG106: 0 | CH106: 0 | CI106: 0 | CJ106: 0 | CK106: 0 | CL106: 0 | CM106: 0 | CN106: 0 | CO106: 0 | CP106: 0 | CQ106: 0 | CR106: 0 | CS106: 0 | CT106: 0 | CU106: 0 | CV106: 0 | CW106: 0 | CX106: 0 | CY106: 0 | CZ106: 0 | DA106: 0 | DB106: 0 | DC106: 0 | DD106: 6418.5335 | DE106: 0 | DF106: 0 | DG106: 0 | DH106: 0 | DI106: 0 | DJ106: 0 | DK106: 0 | DL106: 0 | DM106: 8.452081497 | DN106: 8.452081497 | DO106: 6435.437663 | DQ106: 6435 | DR106: 0.9999319918 | DT106: =ABS(DO106-DQ106) -> 0.4376627351
B107: Imports of goods and services | C107: 3036.075852 | D107: 268.2517913 | E107: 177.0168199 | F107: 148.0143533 | G107: 1313.356168 | H107: 1091.297974 | I107: 261.1079228 | J107: 1520.871133 | K107: 950.3085495 | L107: 306.8839441 | M107: 939.173326 | N107: 723.7805487 | O107: 748.084347 | P107: 2315.651222 | Q107: 1242.006907 | R107: 1143.447512 | S107: 180.8950193 | T107: 1539.363572 | U107: 579.1225848 | V107: 220.8145451 | W107: 1537.845677 | X107: 3289.517134 | Y107: 2018.103336 | Z107: 23635.02732 | AA107: 1082.846988 | AB107: 2378.248504 | AC107: 1754.427335 | AD107: 1238.906663 | AE107: 2684.232633 | AF107: 1064.424549 | AG107: 4301.802832 | AH107: 6785.744481 | AI107: 1638.185397 | AJ107: 1657.965715 | AK107: 3253.997048 | AL107: 5803.15421 | AM107: 870.0375063 | AN107: 5324.141628 | AO107: 4480.532016 | AP107: 3367.759688 | AQ107: 7477.390631 | AR107: 15762.12953 | AS107: 507.238242 | AT107: 5869.849831 | AU107: 647.1592485 | AV107: 1092.173428 | AW107: 1353.651071 | AX107: 125.4589767 | AY107: 409.3017126 | AZ107: 1611.438203 | BA107: 13484.7575 | BB107: 6163.926042 | BC107: 242.6534509 | BD107: 139.8752835 | BE107: 2163.393552 | BF107: 10.63693036 | BG107: 15975.38974 | BH107: 7330.210266 | BI107: 12029.89134 | BJ107: 7480.759857 | BK107: 473.6653378 | BL107: 4274.125186 | BM107: 2191.786553 | BN107: 3870.84865 | BO107: 2174.948122 | BP107: 1966.659501 | BQ107: 2978.370639 | BR107: 7285.705748 | BS107: 1144.208986 | BT107: 2371.638444 | BU107: 9514.112078 | BV107: 5930.303913 | BW107: 709.0255107 | BX107: 12964.07575 | BY107: 5972.5708 | BZ107: 1652.735128 | CA107: 1643.824196 | CB107: 2078.014531 | CC107: 186.8440978 | CD107: 847.5130385 | CE107: 795.0015815 | CF107: 3727.777871 | CG107: 2571.25058 | CH107: 1866.358465 | CI107: 1097.701664 | CJ107: 1799.043104 | CK107: 212.4018113 | CL107: 1173.41345 | CM107: 1827.174413 | CN107: 597.7235846 | CO107: 391.788621 | CP107: 1180.412337 | CQ107: 5648.132539 | CR107: 13501.6492 | CS107: 4011.096362 | CT107: 15214.45588 | CU107: 5062.367215 | CV107: 1373.958645 | CW107: 304.5134803 | CX107: 1398.718546 | CY107: 1632.04388 | CZ107: 834.943856 | DA107: 436.8314434 | DB107: 1687.388282 | DC107: 0 | DD107: 134607.1306 | DE107: 0 | DF107: 3963.484303 | DG107: 0 | DH107: 44912.64253 | DI107: 4010.977265 | DJ107: 672.7943567 | DK107: 9982.55716 | DL107: 17052.51818 | DM107: 1874.178542 | DN107: 2930.95183 | DO107: 555334.0673 | DQ107: 555280 | DR107: 0.99990264 | DT107: =ABS(DO107-DQ107) -> 54.06734748
B108: Taxes less subsidies on products | C108: 398.0126884 | D108: -11.00254281 | E108: 85.6353475 | F108: 45.5915804 | G108: 168.521086 | H108: 65.83214162 | I108: 23.4362482 | J108: 6.914807229 | K108: 12.60659749 | L108: 2.619991737 | M108: 1.984004685 | N108: 8.433539735 | O108: 64.92295312 | P108: 69.37950659 | Q108: 42.24352311 | R108: 130.2525573 | S108: 15.61305812 | T108: 14.33220499 | U108: 22.56224386 | V108: 3.243867863 | W108: 38.01313857 | X108: 62.57348382 | Y108: 38.63238065 | Z108: 1631.917672 | AA108: 63.45030165 | AB108: 102.8115176 | AC108: 83.86460253 | AD108: 17.34859321 | AE108: 72.00196826 | AF108: 31.06689804 | AG108: 37.59784032 | AH108: 128.2652151 | AI108: 114.8145701 | AJ108: 63.33591877 | AK108: 299.8164422 | AL108: 62.8939253 | AM108: 10.99729593 | AN108: 109.9060562 | AO108: 65.67213802 | AP108: 47.24412612 | AQ108: 164.4665328 | AR108: 140.5028457 | AS108: 18.41200705 | AT108: 91.02716898 | AU108: 17.48813789 | AV108: 47.13925758 | AW108: 34.0058929 | AX108: 3.570383311 | AY108: 11.99442441 | AZ108: 30.04774176 | BA108: 959.4776375 | BB108: 161.1667058 | BC108: 52.75880943 | BD108: 55.39531923 | BE108: 992.58427 | BF108: 24.46867758 | BG108: 7934.76115 | BH108: 227.5662025 | BI108: 864.9034533 | BJ108: 1223.42489 | BK108: 131.5388615 | BL108: 986.6489735 | BM108: 221.1759924 | BN108: 857.9181908 | BO108: 84.40559261 | BP108: 1262.354763 | BQ108: 1046.052274 | BR108: 2420.377695 | BS108: 27.36335924 | BT108: 73.4394099 | BU108: 248.9166247 | BV108: 387.7643214 | BW108: 71.04268599 | BX108: 4968.81902 | BY108: 2687.693699 | BZ108: 899.7575673 | CA108: 858.3621995 | CB108: 589.9280401 | CC108: 5.105809941 | CD108: 54.46955586 | CE108: 54.83125694 | CF108: 85.09040039 | CG108: 168.3674515 | CH108: 141.9530878 | CI108: 50.05653706 | CJ108: 57.76978176 | CK108: 0.9764977706 | CL108: 151.8837153 | CM108: 125.2485751 | CN108: 55.43059205 | CO108: 16.13626911 | CP108: 65.87634989 | CQ108: 739.8572739 | CR108: 9408.030982 | CS108: 3969.035555 | CT108: 7499.696455 | CU108: 2703.064537 | CV108: 141.9054837 | CW108: 106.3947415 | CX108: 550.8986239 | CY108: 627.7517156 | CZ108: 955.0772627 | DA108: 10.63249304 | DB108: 749.6288284 | DC108: 0 | DD108: 97646.9004 | DE108: 0 | DF108: 0 | DG108: 0 | DH108: 15669.62073 | DI108: 45.70610937 | DJ108: 114.6640877 | DK108: 4500.65758 | DL108: 3401.260308 | DM108: 1128.024319 | DN108: 2005.144248 | DO108: 188139.2279 | DQ108: 188124 | DR108: 0.9999190605 | DT108: =ABS(DO108-DQ108) -> 15.22788769
B109: Taxes less subsidies on production | C109: -2269 | D109: 2 | E109: 13 | F109: 4 | G109: 67 | H109: 65 | I109: 23 | J109: 20 | K109: 20 | L109: -3 | M109: 16 | N109: 4 | O109: 51 | P109: 60 | Q109: 5 | R109: 37 | S109: 1 | T109: 31 | U109: 9 | V109: -2 | W109: 47 | X109: 69 | Y109: 103 | Z109: 59 | AA109: 7 | AB109: 24 | AC109: 19 | AD109: 27 | AE109: 47 | AF109: -1 | AG109: 21 | AH109: 146 | AI109: 62 | AJ109: 60 | AK109: 76 | AL109: 16 | AM109: -3 | AN109: 267 | AO109: 88 | AP109: 67 | AQ109: 241 | AR109: 115 | AS109: 18 | AT109: 32 | AU109: -2 | AV109: 77 | AW109: 52 | AX109: -6 | AY109: 3 | AZ109: 59 | BA109: 957 | BB109: 397 | BC109: 565 | BD109: 155 | BE109: 154 | BF109: 7 | BG109: 1181 | BH109: 821 | BI109: 1568 | BJ109: 6680 | BK109: 154 | BL109: 550 | BM109: 100 | BN109: -1 | BO109: 823 | BP109: 258 | BQ109: 779 | BR109: 1691 | BS109: 105 | BT109: -153 | BU109: 385 | BV109: 403 | BW109: 18 | BX109: 1907 | BY109: 506 | BZ109: 269 | CA109: -79 | CB109: 0 | CC109: 286 | CD109: 542 | CE109: 173 | CF109: 406 | CG109: 360 | CH109: 66 | CI109: 146 | CJ109: 126 | CK109: 0 | CL109: 294 | CM109: 139 | CN109: 83 | CO109: 26 | CP109: 61 | CQ109: 347 | CR109: 0 | CS109: 305 | CT109: 125 | CU109: 221 | CV109: 62 | CW109: 15 | CX109: 165 | CY109: 371 | CZ109: 153 | DA109: 48 | DB109: 300 | DC109: 0 | DD109: 0 | DE109: 0 | DF109: 0 | DG109: 0 | DH109: 0 | DI109: 0 | DJ109: 0 | DK109: 0 | DL109: 0 | DM109: 0 | DN109: 0 | DO109: 24964
B110: Compensation of employees | C110: 4476 | D110: 128 | E110: 114 | F110: 179 | G110: 3822 | H110: 1806 | I110: 561 | J110: 2899 | K110: 2227 | L110: 128 | M110: 761 | N110: 896 | O110: 3091 | P110: 4445 | Q110: 492 | R110: 2000 | S110: 553 | T110: 1902 | U110: 1278 | V110: 299 | W110: 1699 | X110: 2914 | Y110: 3352 | Z110: 2092 | AA110: 974 | AB110: 1373 | AC110: 1109 | AD110: 499 | AE110: 1866 | AF110: 504 | AG110: 4744 | AH110: 6142 | AI110: 1503 | AJ110: 1724 | AK110: 1248 | AL110: 1274 | AM110: 820 | AN110: 11020 | AO110: 6274 | AP110: 3718 | AQ110: 9267 | AR110: 8341 | AS110: 1270 | AT110: 4425 | AU110: 777 | AV110: 2334 | AW110: 2222 | AX110: 464 | AY110: 1273 | AZ110: 2666 | BA110: 4639 | BB110: 2858 | BC110: 1342 | BD110: 1866 | BE110: 3979 | BF110: 149 | BG110: 49183 | BH110: 19580 | BI110: 37424 | BJ110: 52541 | BK110: 4200 | BL110: 13098 | BM110: 4079 | BN110: 3442 | BO110: 12511 | BP110: 8450 | BQ110: 7149 | BR110: 22875 | BS110: 7353 | BT110: 6663 | BU110: 14814 | BV110: 26967 | BW110: 3694 | BX110: 40157 | BY110: 7411 | BZ110: 14822 | CA110: 8450 | CB110: 0 | CC110: 3303 | CD110: 9274 | CE110: 9067 | CF110: 12693 | CG110: 17897 | CH110: 4299 | CI110: 6021 | CJ110: 6067 | CK110: 1792 | CL110: 7663 | CM110: 9500 | CN110: 6481 | CO110: 1650 | CP110: 5648 | CQ110: 13021 | CR110: 58813 | CS110: 86068 | CT110: 65523 | CU110: 23765 | CV110: 2099 | CW110: 2767 | CX110: 3610 | CY110: 2351 | CZ110: 11155 | DA110: 1914 | DB110: 4984 | DC110: 6435 | DD110: 0 | DE110: 0 | DF110: 0 | DG110: 0 | DH110: 0 | DI110: 0 | DJ110: 0 | DK110: 0 | DL110: 0 | DM110: 0 | DN110: 0 | DO110: 883501 | DT110: =SUM(DT2:DT108) -> 629.6421811
B111: Gross operating surplus | C111: 8503 | D111: 101 | E111: 389 | F111: -76 | G111: 18156 | H111: 985 | I111: 1825 | J111: 683 | K111: 633 | L111: 155 | M111: 349 | N111: 303 | O111: 723 | P111: 1440 | Q111: 333 | R111: 2853 | S111: 715 | T111: 778 | U111: 1165 | V111: 360 | W111: 779 | X111: 1207 | Y111: 1420 | Z111: 156 | AA111: 375 | AB111: 741 | AC111: 457 | AD111: 615 | AE111: 43 | AF111: 283 | AG111: 7854 | AH111: 1889 | AI111: 453 | AJ111: 586 | AK111: 373 | AL111: 351 | AM111: 1076 | AN111: 2362 | AO111: 1455 | AP111: 993 | AQ111: 1993 | AR111: 3014 | AS111: 300 | AT111: 2323 | AU111: 543 | AV111: 1227 | AW111: 2575 | AX111: 81 | AY111: 630 | AZ111: 1064 | BA111: 11249 | BB111: 3824 | BC111: 3126 | BD111: 2788 | BE111: 3030 | BF111: 2 | BG111: 40685 | BH111: 7605 | BI111: 12022 | BJ111: 26893 | BK111: 308 | BL111: 8967 | BM111: 2120 | BN111: 3784 | BO111: 3041 | BP111: 1413 | BQ111: 3558 | BR111: 8900 | BS111: 3920 | BT111: 8400 | BU111: 12882 | BV111: 6777 | BW111: 1755 | BX111: 25773 | BY111: 22138 | BZ111: 5052 | CA111: 48446 | CB111: 143003 | CC111: 2726 | CD111: 12215 | CE111: 7209 | CF111: 5368 | CG111: 7926 | CH111: 4032 | CI111: 4161 | CJ111: 3119 | CK111: 902 | CL111: 6100 | CM111: 5956 | CN111: 3201 | CO111: 1645 | CP111: 3978 | CQ111: 5857 | CR111: 20267 | CS111: 11948 | CT111: 19764 | CU111: 5260 | CV111: 2436 | CW111: 239 | CX111: 6195 | CY111: 1724 | CZ111: 3056 | DA111: 589 | DB111: 11040 | DC111: 0 | DD111: 0 | DE111: 0 | DF111: 0 | DG111: 0 | DH111: 0 | DI111: 0 | DJ111: 0 | DK111: 0 | DL111: 0 | DM111: 0 | DN111: 0 | DO111: 655965
B112: Total Output | C112: =SUM(C2:C111) -> 25555 | D112: =SUM(D2:D111) -> 1068 | E112: 1780 | F112: 806 | G112: 35832 | H112: 5760 | I112: 4308 | J112: 16403 | K112: 8536 | L112: 917 | M112: 8165 | N112: 5621 | O112: 9442 | P112: 16758 | Q112: 5324 | R112: 11175 | S112: 4311 | T112: 5831 | U112: 4732 | V112: 1246 | W112: 6976 | X112: 11558 | Y112: 11742 | Z112: 32177 | AA112: 3466 | AB112: 6933 | AC112: 5957 | AD112: 3799 | AE112: 13908 | AF112: 2773 | AG112: 21792 | AH112: 20552 | AI112: 7680 | AJ112: 6800 | AK112: 9726 | AL112: 9973 | AM112: 3965 | AN112: 28523 | AO112: 20170 | AP112: 13205 | AQ112: 31051 | AR112: 45918 | AS112: 3960 | AT112: 22417 | AU112: 3395 | AV112: 7669 | AW112: 8829 | AX112: 1162 | AY112: 4409 | AZ112: 8409 | BA112: 84234 | BB112: 26513 | BC112: 7186 | BD112: 7238 | BE112: 19792 | BF112: 284 | BG112: 224498 | BH112: 49278 | BI112: 109612 | BJ112: 146486 | BK112: 11929 | BL112: 45936 | BM112: 17238 | BN112: 17939 | BO112: 39107 | BP112: =SUM(BP2:BP111) -> 22165 | BQ112: 23166 | BR112: 64977 | BS112: 21360 | BT112: 28004 | BU112: 53541 | BV112: 56383 | BW112: 8516 | BX112: 132986 | BY112: 87147 | BZ112: 34194 | CA112: 87462 | CB112: 178658 | CC112: 8241 | CD112: 31004 | CE112: 21486 | CF112: 35644 | CG112: 47581 | CH112: 15220 | CI112: 17564 | CJ112: 16541 | CK112: 3976 | CL112: 23215 | CM112: 29239 | CN112: 17296 | CO112: 5223 | CP112: 18633 | CQ112: 35605 | CR112: 143978 | CS112: 132839 | CT112: 134417 | CU112: 56224 | CV112: 9894 | CW112: 5025 | CX112: 15192 | CY112: 12325 | CZ112: 21514 | DA112: 3964 | DB112: 23537 | DC112: 6435 | DD112: =SUM(DD2:DD111) -> 1098735 | DE112: =SUM(DE2:DE111) -> 54428 | DF112: 222474 | DG112: 125602 | DH112: 277209 | DI112: 4761 | DJ112: 4712 | DK112: 149447.5799 | DL112: 152721.4201 | DM112: 78200.83645 | DN112: 139543.1636 | DO112: 5357939
DD113: 1098735 | DE113: 54428 | DF113: 222474 | DG113: 125602 | DH113: 277209 | DI113: 4761 | DJ113: 4712 | DK113: 302169 | DM113: 217744
DD114: household extra leakages
A115: DORGVA | C115: 137.5768431 | D115: 3.973067911 | E115: 8.280992751 | F115: 0 | G115: 22.05937722 | H115: 98.40387554 | I115: 56.90134268 | J115: 13.89441022 | K115: 4.033142385 | L115: 0 | M115: 4.037376128 | N115: 12.06125838 | O115: 22.98321359 | P115: 63.40144109 | Q115: 5.179025118 | R115: 46.4201518 | S115: 0 | T115: 25.25043574 | U115: 2.821673058 | V115: 3.04064909 | W115: 33.41240168 | X115: 17.33875855 | Y115: 45.7980459 | Z115: 0.9203431371 | AA115: 1.639127341 | AB115: 0.8934751446 | AC115: 0 | AD115: 13.98893936 | AE115: 44.39247905 | AF115: 1.092429833 | AG115: 6.714974 | AH115: 72.62896557 | AI115: 9.434333786 | AJ115: 9.931721236 | AK115: 6.369882208 | AL115: 8.541163184 | AM115: 19.06728746 | AN115: 200.8430742 | AO115: 105.3902023 | AP115: 85.36772816 | AQ115: 122.7751677 | AR115: 30.84731195 | AS115: 98.94680539 | AT115: 52.50686059 | AU115: 57.9084729 | AV115: 17.49336617 | AW115: 45.70241764 | AX115: 47.10248012 | AY115: 50.87144977 | AZ115: 22.95755903 | BA115: 6.029325614 | BB115: 48.10504717 | BC115: 84.91384497 | BD115: 31.7549761 | BE115: 101.3452279 | BF115: 3.656079011 | BG115: 1019 | BH115: 292.664868 | BI115: 391.2672412 | BJ115: 966.4409975 | BK115: 34.04411534 | BL115: 159.7135361 | BM115: 93.99683321 | BN115: 12.38613572 | BO115: 55.53570554 | BP115: 65.0943775 | BQ115: 183.8505685 | BR115: 382.0056214 | BS115: 51.57668007 | BT115: 26.56687581 | BU115: 90.28632408 | BV115: 254.558565 | BW115: 17.01155503 | BX115: 783.0197633 | BY115: 180.7382691 | BZ115: 270.2419676 | CA115: 609.4289885 | CB115: 2009.277837 | CC115: 119.2931745 | CD115: 118.5818276 | CE115: 123.1695369 | CF115: 101.8607339 | CG115: 176.0220744 | CH115: 40.34659418 | CI115: 56.23915363 | CJ115: 83.16097827 | CK115: 23.48008919 | CL115: 121.1239587 | CM115: 109.9052711 | CN115: 71.44660609 | CO115: 14.69015537 | CP115: 60.05968436 | CQ115: 132.9133363 | CR115: 965.8460535 | CS115: 907.3665639 | CT115: 938.3681269 | CU115: 398.4192557 | CV115: 53.76354663 | CW115: 32.65245369 | CX115: 60.47904046 | CY115: 45.03270322 | CZ115: 96.71852431 | DA115: 24.66400334 | DB115: 216.4929067 | DC115: 108.1968217 | DD115: 359 | DE115: property
A116: UK IND GVA | C116: 10710 | D116: 231 | E116: 516 | F116: 107 | G116: 22045 | H116: 2856 | I116: 2409 | J116: 3602 | K116: 2880 | L116: 280 | M116: 1126 | N116: 1203 | O116: 3865 | P116: 5945 | Q116: 830 | R116: 4890 | S116: 1269 | T116: 2711 | U116: 2452 | V116: 657 | W116: 2525 | X116: 4190 | Y116: 4875 | Z116: 2307 | AA116: 1356 | AB116: 2138 | AC116: 1585 | AD116: 1141 | AE116: 1956 | AF116: 786 | AG116: 12619 | AH116: 8177 | AI116: 2018 | AJ116: 2370 | AK116: 1697 | AL116: 1641 | AM116: 1893 | AN116: 13649 | AO116: 7817 | AP116: 4778 | AQ116: 11501 | AR116: 11470 | AS116: 1588 | AT116: 6780 | AU116: 1318 | AV116: 3638 | AW116: 4849 | AX116: 539 | AY116: 1906 | AZ116: 3789 | BA116: 16845 | BB116: 7079 | BC116: 5033 | BD116: 4809 | BE116: 7163 | BF116: 158 | BG116: 91049 | BH116: 28006 | BI116: 51014 | BJ116: 86114 | BK116: 4662 | BL116: 22615 | BM116: 6299 | BN116: 7225 | BO116: 16375 | BP116: 10121 | BQ116: 11486 | BR116: 33466 | BS116: 11378 | BT116: 14910 | BU116: 28081 | BV116: 34147 | BW116: 5467 | BX116: 67837 | BY116: 30055 | BZ116: 20143 | CA116: 56817 | CB116: 143003 | CC116: 6315 | CD116: 22031 | CE116: 16449 | CF116: 18467 | CG116: 26183 | CH116: 8397 | CI116: 10328 | CJ116: 9312 | CK116: 2694 | CL116: 14057 | CM116: 15595 | CN116: 9765 | CO116: 3321 | CP116: 9687 | CQ116: 19225 | CR116: 79080 | CS116: 98321 | CT116: 85412 | CU116: 29246 | CV116: 4597 | CW116: 3021 | CX116: 9970 | CY116: 4446 | CZ116: 14364 | DA116: 2551 | DB116: 16324 | DC116: 6435 | DD116: 1981 | DE116: income tax
A117: Total intermediate consumption at purchasers' prices | C117: 14845 | D117: 837 | E117: 1264 | F117: 699 | G117: 13787 | H117: 2904 | I117: 1899 | J117: 12801 | K117: 5656 | L117: 637 | M117: 7039 | N117: 4418 | O117: 5577 | P117: 10813 | Q117: 4494 | R117: 6285 | S117: 3042 | T117: 3120 | U117: 2280 | V117: 589 | W117: 4451 | X117: 7368 | Y117: 6867 | Z117: 29870 | AA117: 2110 | AB117: 4795 | AC117: 4372 | AD117: 2658 | AE117: 11952 | AF117: 1987 | AG117: 9173 | AH117: 12375 | AI117: 5662 | AJ117: 4430 | AK117: 8029 | AL117: 8332 | AM117: 2072 | AN117: 14874 | AO117: 12353 | AP117: 8427 | AQ117: 19550 | AR117: 34448 | AS117: 2372 | AT117: 15637 | AU117: 2077 | AV117: 4031 | AW117: 3980 | AX117: 623 | AY117: 2503 | AZ117: 4620 | BA117: 67389 | BB117: 19434 | BC117: 2153 | BD117: 2429 | BE117: 12629 | BF117: 126 | BG117: 133449 | BH117: 21272 | BI117: 58598 | BJ117: 60372 | BK117: 7267 | BL117: 23321 | BM117: 10939 | BN117: 10714 | BO117: 22732 | BP117: 12044 | BQ117: 11680 | BR117: 31511 | BS117: 9982 | BT117: 13094 | BU117: 25460 | BV117: 22236 | BW117: 3049 | BX117: 65149 | BY117: 57092 | BZ117: 14051 | CA117: 30645 | CB117: 35655 | CC117: 1926 | CD117: 8973 | CE117: 5037 | CF117: 17177 | CG117: 21398 | CH117: 6823 | CI117: 7236 | CJ117: 7229 | CK117: 1282 | CL117: 9158 | CM117: 13644 | CN117: 7531 | CO117: 1902 | CP117: 8946 | CQ117: 16380 | CR117: 64898 | CS117: 34518 | CT117: 49005 | CU117: 26978 | CV117: 5297 | CW117: 2004 | CX117: 5222 | CY117: 7879 | CZ117: 7150 | DA117: 1413 | DB117: 7213 | DC117: 0 | DD117: 3150 | DE117: NICs
A118: Taxes less subsidies on production | C118: -2269 | D118: 2 | E118: 13 | F118: 4 | G118: 67 | H118: 65 | I118: 23 | J118: 20 | K118: 20 | L118: -3 | M118: 16 | N118: 4 | O118: 51 | P118: 60 | Q118: 5 | R118: 37 | S118: 1 | T118: 31 | U118: 9 | V118: -2 | W118: 47 | X118: 69 | Y118: 103 | Z118: 59 | AA118: 7 | AB118: 24 | AC118: 19 | AD118: 27 | AE118: 47 | AF118: -1 | AG118: 21 | AH118: 146 | AI118: 62 | AJ118: 60 | AK118: 76 | AL118: 16 | AM118: -3 | AN118: 267 | AO118: 88 | AP118: 67 | AQ118: 241 | AR118: 115 | AS118: 18 | AT118: 32 | AU118: -2 | AV118: 77 | AW118: 52 | AX118: -6 | AY118: 3 | AZ118: 59 | BA118: 957 | BB118: 397 | BC118: 565 | BD118: 155 | BE118: 154 | BF118: 7 | BG118: 1181 | BH118: 821 | BI118: 1568 | BJ118: 6680 | BK118: 154 | BL118: 550 | BM118: 100 | BN118: -1 | BO118: 823 | BP118: 258 | BQ118: 779 | BR118: 1691 | BS118: 105 | BT118: -153 | BU118: 385 | BV118: 403 | BW118: 18 | BX118: 1907 | BY118: 506 | BZ118: 269 | CA118: -79 | CB118: 0 | CC118: 286 | CD118: 542 | CE118: 173 | CF118: 406 | CG118: 360 | CH118: 66 | CI118: 146 | CJ118: 126 | CK118: 0 | CL118: 294 | CM118: 139 | CN118: 83 | CO118: 26 | CP118: 61 | CQ118: 347 | CR118: 0 | CS118: 305 | CT118: 125 | CU118: 221 | CV118: 62 | CW118: 15 | CX118: 165 | CY118: 371 | CZ118: 153 | DA118: 48 | DB118: 300 | DC118: 0 | DD118: 643 | DE118: Other transfers
A119: Compensation of employees | C119: 4476 | D119: 128 | E119: 114 | F119: 179 | G119: 3822 | H119: 1806 | I119: 561 | J119: 2899 | K119: 2227 | L119: 128 | M119: 761 | N119: 896 | O119: 3091 | P119: 4445 | Q119: 492 | R119: 2000 | S119: 553 | T119: 1902 | U119: 1278 | V119: 299 | W119: 1699 | X119: 2914 | Y119: 3352 | Z119: 2092 | AA119: 974 | AB119: 1373 | AC119: 1109 | AD119: 499 | AE119: 1866 | AF119: 504 | AG119: 4744 | AH119: 6142 | AI119: 1503 | AJ119: 1724 | AK119: 1248 | AL119: 1274 | AM119: 820 | AN119: 11020 | AO119: 6274 | AP119: 3718 | AQ119: 9267 | AR119: 8341 | AS119: 1270 | AT119: 4425 | AU119: 777 | AV119: 2334 | AW119: 2222 | AX119: 464 | AY119: 1273 | AZ119: 2666 | BA119: 4639 | BB119: 2858 | BC119: 1342 | BD119: 1866 | BE119: 3979 | BF119: 149 | BG119: 49183 | BH119: 19580 | BI119: 37424 | BJ119: 52541 | BK119: 4200 | BL119: 13098 | BM119: 4079 | BN119: 3442 | BO119: 12511 | BP119: 8450 | BQ119: 7149 | BR119: 22875 | BS119: 7353 | BT119: 6663 | BU119: 14814 | BV119: 26967 | BW119: 3694 | BX119: 40157 | BY119: 7411 | BZ119: 14822 | CA119: 8450 | CB119: 0 | CC119: 3303 | CD119: 9274 | CE119: 9067 | CF119: 12693 | CG119: 17897 | CH119: 4299 | CI119: 6021 | CJ119: 6067 | CK119: 1792 | CL119: 7663 | CM119: 9500 | CN119: 6481 | CO119: 1650 | CP119: 5648 | CQ119: 13021 | CR119: 58813 | CS119: 86068 | CT119: 65523 | CU119: 23765 | CV119: 2099 | CW119: 2767 | CX119: 3610 | CY119: 2351 | CZ119: 11155 | DA119: 1914 | DB119: 4984 | DC119: 6435
A120: Gross operating surplus and mixed income | C120: 8503 | D120: 101 | E120: 389 | F120: -76 | G120: 18156 | H120: 985 | I120: 1825 | J120: 683 | K120: 633 | L120: 155 | M120: 349 | N120: 303 | O120: 723 | P120: 1440 | Q120: 333 | R120: 2853 | S120: 715 | T120: 778 | U120: 1165 | V120: 360 | W120: 779 | X120: 1207 | Y120: 1420 | Z120: 156 | AA120: 375 | AB120: 741 | AC120: 457 | AD120: 615 | AE120: 43 | AF120: 283 | AG120: 7854 | AH120: 1889 | AI120: 453 | AJ120: 586 | AK120: 373 | AL120: 351 | AM120: 1076 | AN120: 2362 | AO120: 1455 | AP120: 993 | AQ120: 1993 | AR120: 3014 | AS120: 300 | AT120: 2323 | AU120: 543 | AV120: 1227 | AW120: 2575 | AX120: 81 | AY120: 630 | AZ120: 1064 | BA120: 11249 | BB120: 3824 | BC120: 3126 | BD120: 2788 | BE120: 3030 | BF120: 2 | BG120: 40685 | BH120: 7605 | BI120: 12022 | BJ120: 26893 | BK120: 308 | BL120: 8967 | BM120: 2120 | BN120: 3784 | BO120: 3041 | BP120: 1413 | BQ120: 3558 | BR120: 8900 | BS120: 3920 | BT120: 8400 | BU120: 12882 | BV120: 6777 | BW120: 1755 | BX120: 25773 | BY120: 22138 | BZ120: 5052 | CA120: 48446 | CB120: 143003 | CC120: 2726 | CD120: 12215 | CE120: 7209 | CF120: 5368 | CG120: 7926 | CH120: 4032 | CI120: 4161 | CJ120: 3119 | CK120: 902 | CL120: 6100 | CM120: 5956 | CN120: 3201 | CO120: 1645 | CP120: 3978 | CQ120: 5857 | CR120: 20267 | CS120: 11948 | CT120: 19764 | CU120: 5260 | CV120: 2436 | CW120: 239 | CX120: 6195 | CY120: 1724 | CZ120: 3056 | DA120: 589 | DB120: 11040 | DC120: 0
A121: UK IND OUTP | C121: 25555 | D121: 1068 | E121: 1780 | F121: 806 | G121: 35832 | H121: 5760 | I121: 4308 | J121: 16403 | K121: 8536 | L121: 917 | M121: 8165 | N121: 5621 | O121: 9442 | P121: 16758 | Q121: 5324 | R121: 11175 | S121: 4311 | T121: 5831 | U121: 4732 | V121: 1246 | W121: 6976 | X121: 11558 | Y121: 11742 | Z121: 32177 | AA121: 3466 | AB121: 6933 | AC121: 5957 | AD121: 3799 | AE121: 13908 | AF121: 2773 | AG121: 21792 | AH121: 20552 | AI121: 7680 | AJ121: 6800 | AK121: 9726 | AL121: 9973 | AM121: 3965 | AN121: 28523 | AO121: 20170 | AP121: 13205 | AQ121: 31051 | AR121: 45918 | AS121: 3960 | AT121: 22417 | AU121: 3395 | AV121: 7669 | AW121: 8829 | AX121: 1162 | AY121: 4409 | AZ121: 8409 | BA121: 84234 | BB121: 26513 | BC121: 7186 | BD121: 7238 | BE121: 19792 | BF121: 284 | BG121: 224498 | BH121: 49278 | BI121: 109612 | BJ121: 146486 | BK121: 11929 | BL121: 45936 | BM121: 17238 | BN121: 17939 | BO121: 39107 | BP121: 22165 | BQ121: 23166 | BR121: 64977 | BS121: 21360 | BT121: 28004 | BU121: 53541 | BV121: 56383 | BW121: 8516 | BX121: 132986 | BY121: 87147 | BZ121: 34194 | CA121: 87462 | CB121: 178658 | CC121: 8241 | CD121: 31004 | CE121: 21486 | CF121: 35644 | CG121: 47581 | CH121: 15220 | CI121: 17564 | CJ121: 16541 | CK121: 3976 | CL121: 23215 | CM121: 29239 | CN121: 17296 | CO121: 5223 | CP121: 18633 | CQ121: 35605 | CR121: 143978 | CS121: 132839 | CT121: 134417 | CU121: 56224 | CV121: 9894 | CW121: 5025 | CX121: 15192 | CY121: 12325 | CZ121: 21514 | DA121: 3964 | DB121: 23537 | DC121: 6435
DD122: (Share of GDHI) | DH122: (Share of GFCF) | DK122: Share of Exports
A123: DOR GVA Shares | C123: =C115/C116 -> 0.01284564362 | D123: =D115/D116 -> 0.01719942819 | E123: 0.01604843556 | F123: 0 | G123: 0.001000652176 | H123: 0.0344551385 | I123: 0.0236203166 | J123: 0.003857415386 | K123: 0.001400396661 | L123: 0 | M123: 0.003585591588 | N123: 0.01002598369 | O123: 0.005946497694 | P123: 0.01066466629 | Q123: 0.006239789299 | R123: 0.00949287358 | S123: 0 | T123: 0.00931406704 | U123: 0.00115076389 | V123: 0.004628080807 | W123: 0.01323263433 | X123: 0.004138128531 | Y123: 0.009394470954 | Z123: 0.0003989350399 | AA123: 0.001208795974 | AB123: 0.0004179023127 | AC123: 0 | AD123: 0.01226024484 | AE123: 0.02269554144 | AF123: 0.001389859838 | AG123: 0.0005321320232 | AH123: 0.008882104142 | AI123: 0.004675091073 | AJ123: 0.004190599678 | AK123: 0.003753613558 | AL123: 0.005204852641 | AM123: 0.01007252375 | AN123: 0.01471485634 | AO123: 0.01348218015 | AP123: 0.01786683302 | AQ123: 0.01067517327 | AR123: 0.002689390754 | AS123: 0.0623090714 | AT123: 0.007744374719 | AU123: 0.04393662587 | AV123: 0.004808511867 | AW123: 0.009425122219 | AX123: 0.08738864586 | AY123: 0.02669016252 | AZ123: 0.006059002119 | BA123: 0.0003579296892 | BB123: 0.006795457998 | BC123: 0.01687141764 | BD123: 0.006603238948 | BE123: 0.01414843332 | BF123: 0.02313974057 | BG123: 0.01119177586 | BH123: 0.01045007741 | BI123: 0.007669801254 | BJ123: 0.01122280927 | BK123: 0.007302470042 | BL123: 0.007062283269 | BM123: 0.01492250091 | BN123: 0.001714344045 | BO123: 0.003391493468 | BP123: =BP115/BP116 -> 0.006431615206 | BQ123: 0.01600649212 | BR123: 0.01141473798 | BS123: 0.004533018111 | BT123: 0.00178181595 | BU123: 0.00321521043 | BV123: 0.007454785633 | BW123: 0.003111680086 | BX123: 0.01154266497 | BY123: 0.006013584065 | BZ123: 0.01341617275 | CA123: 0.0107261733 | CB123: 0.0140505992 | CC123: 0.01889044727 | CD123: 0.005382498643 | CE123: 0.007487965037 | CF123: 0.005515824656 | CG123: 0.006722761885 | CH123: 0.004804882003 | CI123: 0.005445309221 | CJ123: 0.008930517426 | CK123: 0.008715697548 | CL123: 0.008616629344 | CM123: 0.007047468491 | CN123: 0.007316600726 | CO123: 0.004423413239 | CP123: 0.006200029355 | CQ123: 0.006913567555 | CR123: 0.01221353128 | CS123: 0.009228614069 | CT123: 0.01098637342 | CU123: 0.01362303411 | CV123: 0.01169535493 | CW123: 0.01080849179 | CX123: 0.006066102353 | CY123: 0.01012881314 | CZ123: 0.006733397682 | DA123: 0.009668366657 | DB123: 0.01326224618 | DC123: 0.01681380291 | DD123: 0.01222943294 | DH123: 0.0096373883 | DK123: =SUM(DK132:DK236)/SUM(DK2:DK106) -> 0.006457574588 | DL123: =SUM(DL132:DL236)/SUM(DL2:DL106) -> 0.007798848349 | DM123: =SUM(DM132:DM236)/SUM(DM2:DM106) -> 0.007110033319 | DN123: =SUM(DN132:DN236)/SUM(DN2:DN106) -> 0.006423894632
C125: =C117/SUM(C2:C108) -> 1 | D125: =D117/SUM(D2:D108) -> 1 | E125: 1 | F125: 1 | G125: 1 | H125: 1 | I125: 1 | J125: 1 | K125: 1 | L125: 1 | M125: 1 | N125: 1 | O125: 1 | P125: 1 | Q125: 1 | R125: 1 | S125: 1 | T125: 1 | U125: 1 | V125: 1 | W125: 1 | X125: 1 | Y125: 1 | Z125: 1 | AA125: 1 | AB125: 1 | AC125: 1 | AD125: 1 | AE125: 1 | AF125: 1 | AG125: 1 | AH125: 1 | AI125: 1 | AJ125: 1 | AK125: 1 | AL125: 1 | AM125: 1 | AN125: 1 | AO125: 1 | AP125: 1 | AQ125: 1 | AR125: 1 | AS125: 1 | AT125: 1 | AU125: 1 | AV125: 1 | AW125: 1 | AX125: 1 | AY125: 1 | AZ125: 1 | BA125: 1 | BB125: 1 | BC125: 1 | BD125: 1 | BE125: 1 | BF125: 1 | BG125: 1 | BH125: 1 | BI125: 1 | BJ125: 1 | BK125: 1 | BL125: 1 | BM125: 1 | BN125: 1 | BO125: 1 | BP125: =BP117/SUM(BP2:BP108) -> 1 | BQ125: 1 | BR125: 1 | BS125: 1 | BT125: 1 | BU125: 1 | BV125: 1 | BW125: 1 | BX125: 1 | BY125: 1 | BZ125: 1 | CA125: 1 | CB125: 1 | CC125: 1 | CD125: 1 | CE125: 1 | CF125: 1 | CG125: 1 | CH125: 1 | CI125: 1 | CJ125: 1 | CK125: 1 | CL125: 1 | CM125: 1 | CN125: 1 | CO125: 1 | CP125: 1 | CQ125: 1 | CR125: 1 | CS125: 1 | CT125: 1 | CU125: 1 | CV125: 1 | CW125: 1 | CX125: 1 | CY125: 1 | CZ125: 1 | DA125: 1 | DB125: 1 | DC125: 1 | DD125: =DD113/DD112 -> 1 | DE125: 1 | DF125: 1 | DG125: 1 | DH125: 1 | DI125: 1 | DJ125: 1 | DK125: =DK113/(DK112+DL112) -> 1 | DL125: =DK125 -> 1 | DM125: =DM113/(DM112+DN112) -> 1 | DN125: =DM125 -> 1
C126: =C118/C109 -> 1 | D126: =D118/D109 -> 1 | E126: 1 | F126: 1 | G126: 1 | H126: 1 | I126: 1 | J126: 1 | K126: 1 | L126: 1 | M126: 1 | N126: 1 | O126: 1 | P126: 1 | Q126: 1 | R126: 1 | S126: 1 | T126: 1 | U126: 1 | V126: 1 | W126: 1 | X126: 1 | Y126: 1 | Z126: 1 | AA126: 1 | AB126: 1 | AC126: 1 | AD126: 1 | AE126: 1 | AF126: 1 | AG126: 1 | AH126: 1 | AI126: 1 | AJ126: 1 | AK126: 1 | AL126: 1 | AM126: 1 | AN126: 1 | AO126: 1 | AP126: 1 | AQ126: 1 | AR126: 1 | AS126: 1 | AT126: 1 | AU126: 1 | AV126: 1 | AW126: 1 | AX126: 1 | AY126: 1 | AZ126: 1 | BA126: 1 | BB126: 1 | BC126: 1 | BD126: 1 | BE126: 1 | BF126: 1 | BG126: 1 | BH126: 1 | BI126: 1 | BJ126: 1 | BK126: 1 | BL126: 1 | BM126: 1 | BN126: 1 | BO126: 1 | BP126: =BP118/BP109 -> 1 | BQ126: 1 | BR126: 1 | BS126: 1 | BT126: 1 | BU126: 1 | BV126: 1 | BW126: 1 | BX126: 1 | BY126: 1 | BZ126: 1 | CA126: 1 | CB126: 1 | CC126: 1 | CD126: 1 | CE126: 1 | CF126: 1 | CG126: 1 | CH126: 1 | CI126: 1 | CJ126: 1 | CL126: 1 | CM126: 1 | CN126: 1 | CO126: 1 | CP126: 1 | CQ126: 1 | CS126: 1 | CT126: 1 | CU126: 1 | CV126: 1 | CW126: 1 | CX126: 1 | CY126: 1 | CZ126: 1 | DA126: 1 | DB126: 1 | DC126: 1
C127: =C119/C110 -> 1 | D127: =D119/D110 -> 1 | E127: 1 | F127: 1 | G127: 1 | H127: 1 | I127: 1 | J127: 1 | K127: 1 | L127: 1 | M127: 1 | N127: 1 | O127: 1 | P127: 1 | Q127: 1 | R127: 1 | S127: 1 | T127: 1 | U127: 1 | V127: 1 | W127: 1 | X127: 1 | Y127: 1 | Z127: 1 | AA127: 1 | AB127: 1 | AC127: 1 | AD127: 1 | AE127: 1 | AF127: 1 | AG127: 1 | AH127: 1 | AI127: 1 | AJ127: 1 | AK127: 1 | AL127: 1 | AM127: 1 | AN127: 1 | AO127: 1 | AP127: 1 | AQ127: 1 | AR127: 1 | AS127: 1 | AT127: 1 | AU127: 1 | AV127: 1 | AW127: 1 | AX127: 1 | AY127: 1 | AZ127: 1 | BA127: 1 | BB127: 1 | BC127: 1 | BD127: 1 | BE127: 1 | BF127: 1 | BG127: 1 | BH127: 1 | BI127: 1 | BJ127: 1 | BK127: 1 | BL127: 1 | BM127: 1 | BN127: 1 | BO127: 1 | BP127: =BP119/BP110 -> 1 | BQ127: 1 | BR127: 1 | BS127: 1 | BT127: 1 | BU127: 1 | BV127: 1 | BW127: 1 | BX127: 1 | BY127: 1 | BZ127: 1 | CA127: 1 | CB127: 1 | CC127: 1 | CD127: 1 | CE127: 1 | CF127: 1 | CG127: 1 | CH127: 1 | CI127: 1 | CJ127: 1 | CK127: 1 | CL127: 1 | CM127: 1 | CN127: 1 | CO127: 1 | CP127: 1 | CQ127: 1 | CR127: 1 | CS127: 1 | CT127: 1 | CU127: 1 | CV127: 1 | CW127: 1 | CX127: 1 | CY127: 1 | CZ127: 1 | DA127: 1 | DB127: 1 | DC127: 1
C128: =C120/C111 -> 1 | D128: =D120/D111 -> 1 | E128: 1 | F128: 1 | G128: 1 | H128: 1 | I128: 1 | J128: 1 | K128: 1 | L128: 1 | M128: 1 | N128: 1 | O128: 1 | P128: 1 | Q128: 1 | R128: 1 | S128: 1 | T128: 1 | U128: 1 | V128: 1 | W128: 1 | X128: 1 | Y128: 1 | Z128: 1 | AA128: 1 | AB128: 1 | AC128: 1 | AD128: 1 | AE128: 1 | AF128: 1 | AG128: 1 | AH128: 1 | AI128: 1 | AJ128: 1 | AK128: 1 | AL128: 1 | AM128: 1 | AN128: 1 | AO128: 1 | AP128: 1 | AQ128: 1 | AR128: 1 | AS128: 1 | AT128: 1 | AU128: 1 | AV128: 1 | AW128: 1 | AX128: 1 | AY128: 1 | AZ128: 1 | BA128: 1 | BB128: 1 | BC128: 1 | BD128: 1 | BE128: 1 | BF128: 1 | BG128: 1 | BH128: 1 | BI128: 1 | BJ128: 1 | BK128: 1 | BL128: 1 | BM128: 1 | BN128: 1 | BO128: 1 | BP128: =BP120/BP111 -> 1 | BQ128: 1 | BR128: 1 | BS128: 1 | BT128: 1 | BU128: 1 | BV128: 1 | BW128: 1 | BX128: 1 | BY128: 1 | BZ128: 1 | CA128: 1 | CB128: 1 | CC128: 1 | CD128: 1 | CE128: 1 | CF128: 1 | CG128: 1 | CH128: 1 | CI128: 1 | CJ128: 1 | CK128: 1 | CL128: 1 | CM128: 1 | CN128: 1 | CO128: 1 | CP128: 1 | CQ128: 1 | CR128: 1 | CS128: 1 | CT128: 1 | CU128: 1 | CV128: 1 | CW128: 1 | CX128: 1 | CY128: 1 | CZ128: 1 | DA128: 1 | DB128: 1
A130: 1st Est DOR - UK Use | DS130: LOCAL CONSUMPTION %
DD131: hh | DE131: npish | DF131: cgov | DG131: lgov | DH131: gfcf | DI131: valuable | DJ131: inventory | DK131: ExpEU | DL131: ExpNonEU | DM131: Serv EU | DN131: Serv NON | DO131: UK Exp | DP131: TOTAL | DR131: GVA share | DS131: Intermediate | DT131: HH | DU131: GFCF | EB131: International export % output | EC131: UK export % output | EE131: ukgva% | EF131: rukx%o | EG131: rowx%out | EJ131: Int Tour | EK131: Dom tour | EN131: Net Int Serv
B132: Products of agriculture, hunting and related services | C132: =C$123*C2*'TRADE ASSUMPTIONS'!$C3 -> 23.25765998 | D132: =D$123*D2*'TRADE ASSUMPTIONS'!$C3 -> 0.4941540627 | E132: =E$123*E2*'TRADE ASSUMPTIONS'!$C3 -> 0 | F132: =F$123*F2*'TRADE ASSUMPTIONS'!$C3 -> 0 | G132: =G$123*G2*'TRADE ASSUMPTIONS'!$C3 -> 2.246260803e-05 | H132: =H$123*H2*'TRADE ASSUMPTIONS'!$C3 -> 0.005514385052 | I132: =I$123*I2*'TRADE ASSUMPTIONS'!$C3 -> 0 | J132: =J$123*J2*'TRADE ASSUMPTIONS'!$C3 -> 10.16479403 | K132: =K$123*K2*'TRADE ASSUMPTIONS'!$C3 -> 0.8755704712 | L132: =L$123*L2*'TRADE ASSUMPTIONS'!$C3 -> 0 | M132: =M$123*M2*'TRADE ASSUMPTIONS'!$C3 -> 8.622983277 | N132: =N$123*N2*'TRADE ASSUMPTIONS'!$C3 -> 7.622802407 | O132: =O$123*O2*'TRADE ASSUMPTIONS'!$C3 -> 0.8747138257 | P132: =P$123*P2*'TRADE ASSUMPTIONS'!$C3 -> 6.590275569 | Q132: =Q$123*Q2*'TRADE ASSUMPTIONS'!$C3 -> 3.228663015 | R132: =R$123*R2*'TRADE ASSUMPTIONS'!$C3 -> 1.279047836 | S132: =S$123*S2*'TRADE ASSUMPTIONS'!$C3 -> 0 | T132: =T$123*T2*'TRADE ASSUMPTIONS'!$C3 -> 0.000350603113 | U132: =U$123*U2*'TRADE ASSUMPTIONS'!$C3 -> 0.0001598877291 | V132: =V$123*V2*'TRADE ASSUMPTIONS'!$C3 -> 0.01636948057 | W132: =W$123*W2*'TRADE ASSUMPTIONS'!$C3 -> 0.03104545248 | X132: =X$123*X2*'TRADE ASSUMPTIONS'!$C3 -> 1.528644943e-05 | Y132: =Y$123*Y2*'TRADE ASSUMPTIONS'!$C3 -> 0.002552945011 | Z132: =Z$123*Z2*'TRADE ASSUMPTIONS'!$C3 -> 0.0001148966025 | AA132: =AA$123*AA2*'TRADE ASSUMPTIONS'!$C3 -> 0.001634519199 | AB132: =AB$123*AB2*'TRADE ASSUMPTIONS'!$C3 -> 0.0002894948781 | AC132: =AC$123*AC2*'TRADE ASSUMPTIONS'!$C3 -> 0 | AD132: =AD$123*AD2*'TRADE ASSUMPTIONS'!$C3 -> 0.0003049626628 | AE132: =AE$123*AE2*'TRADE ASSUMPTIONS'!$C3 -> 2.211341723 | AF132: =AF$123*AF2*'TRADE ASSUMPTIONS'!$C3 -> 0.00638593746 | AG132: =AG$123*AG2*'TRADE ASSUMPTIONS'!$C3 -> 0.02535652717 | AH132: =AH$123*AH2*'TRADE ASSUMPTIONS'!$C3 -> 0.002323576949 | AI132: =AI$123*AI2*'TRADE ASSUMPTIONS'!$C3 -> 3.718935724e-05 | AJ132: =AJ$123*AJ2*'TRADE ASSUMPTIONS'!$C3 -> 5.727808926e-05 | AK132: =AK$123*AK2*'TRADE ASSUMPTIONS'!$C3 -> 0.0005558842016 | AL132: =AL$123*AL2*'TRADE ASSUMPTIONS'!$C3 -> 1.664695634e-06 | AM132: =AM$123*AM2*'TRADE ASSUMPTIONS'!$C3 -> 5.141683823e-09 | AN132: =AN$123*AN2*'TRADE ASSUMPTIONS'!$C3 -> 1.112418053e-05 | AO132: =AO$123*AO2*'TRADE ASSUMPTIONS'!$C3 -> 0.0003038286245 | AP132: =AP$123*AP2*'TRADE ASSUMPTIONS'!$C3 -> 1.669731222e-05 | AQ132: =AQ$123*AQ2*'TRADE ASSUMPTIONS'!$C3 -> 0.0001217623075 | AR132: =AR$123*AR2*'TRADE ASSUMPTIONS'!$C3 -> 5.305992658e-06 | AS132: =AS$123*AS2*'TRADE ASSUMPTIONS'!$C3 -> 7.589656704e-08 | AT132: =AT$123*AT2*'TRADE ASSUMPTIONS'!$C3 -> 2.562376473e-06 | AU132: =AU$123*AU2*'TRADE ASSUMPTIONS'!$C3 -> 0 | AV132: =AV$123*AV2*'TRADE ASSUMPTIONS'!$C3 -> 0 | AW132: =AW$123*AW2*'TRADE ASSUMPTIONS'!$C3 -> 4.839509025e-05 | AX132: =AX$123*AX2*'TRADE ASSUMPTIONS'!$C3 -> 0 | AY132: =AY$123*AY2*'TRADE ASSUMPTIONS'!$C3 -> 1.672838545e-07 | AZ132: =AZ$123*AZ2*'TRADE ASSUMPTIONS'!$C3 -> 0.002086625551 | BA132: =BA$123*BA2*'TRADE ASSUMPTIONS'!$C3 -> 0.002956849772 | BB132: =BB$123*BB2*'TRADE ASSUMPTIONS'!$C3 -> 0 | BC132: =BC$123*BC2*'TRADE ASSUMPTIONS'!$C3 -> 0 | BD132: =BD$123*BD2*'TRADE ASSUMPTIONS'!$C3 -> 0 | BE132: =BE$123*BE2*'TRADE ASSUMPTIONS'!$C3 -> 0 | BF132: =BF$123*BF2*'TRADE ASSUMPTIONS'!$C3 -> 0 | BG132: =BG$123*BG2*'TRADE ASSUMPTIONS'!$C3 -> 0.9599273574 | BH132: =BH$123*BH2*'TRADE ASSUMPTIONS'!$C3 -> 0.002875271205 | BI132: =BI$123*BI2*'TRADE ASSUMPTIONS'!$C3 -> 1.610453624 | BJ132: =BJ$123*BJ2*'TRADE ASSUMPTIONS'!$C3 -> 1.378063888 | BK132: =BK$123*BK2*'TRADE ASSUMPTIONS'!$C3 -> 0 | BL132: =BL$123*BL2*'TRADE ASSUMPTIONS'!$C3 -> 0.09995306075 | BM132: =BM$123*BM2*'TRADE ASSUMPTIONS'!$C3 -> 0 | BN132: =BN$123*BN2*'TRADE ASSUMPTIONS'!$C3 -> 0 | BO132: =BO$123*BO2*'TRADE ASSUMPTIONS'!$C3 -> 0 | BP132: =BP$123*BP2*'TRADE ASSUMPTIONS'!$C3 -> 3.085738699e-06 | BQ132: =BQ$123*BQ2*'TRADE ASSUMPTIONS'!$C3 -> 2.637278119 | BR132: =BR$123*BR2*'TRADE ASSUMPTIONS'!$C3 -> 3.724957877 | BS132: =BS$123*BS2*'TRADE ASSUMPTIONS'!$C3 -> 9.950293411e-06 | BT132: =BT$123*BT2*'TRADE ASSUMPTIONS'!$C3 -> 0.00986692615 | BU132: =BU$123*BU2*'TRADE ASSUMPTIONS'!$C3 -> 0.002770997274 | BV132: =BV$123*BV2*'TRADE ASSUMPTIONS'!$C3 -> 0.07546798301 | BW132: =BW$123*BW2*'TRADE ASSUMPTIONS'!$C3 -> 0.0004222824819 | BX132: =BX$123*BX2*'TRADE ASSUMPTIONS'!$C3 -> 0 | BY132: =BY$123*BY2*'TRADE ASSUMPTIONS'!$C3 -> 0 | BZ132: =BZ$123*BZ2*'TRADE ASSUMPTIONS'!$C3 -> 0.0002033350267 | CA132: =CA$123*CA2*'TRADE ASSUMPTIONS'!$C3 -> 0.1369218387 | CB132: =CB$123*CB2*'TRADE ASSUMPTIONS'!$C3 -> 0 | CC132: =CC$123*CC2*'TRADE ASSUMPTIONS'!$C3 -> 0 | CD132: =CD$123*CD2*'TRADE ASSUMPTIONS'!$C3 -> 0.003173131772 | CE132: =CE$123*CE2*'TRADE ASSUMPTIONS'!$C3 -> 0.00653150694 | CF132: =CF$123*CF2*'TRADE ASSUMPTIONS'!$C3 -> 0.0001198824443 | CG132: =CG$123*CG2*'TRADE ASSUMPTIONS'!$C3 -> 0.02710951624 | CH132: =CH$123*CH2*'TRADE ASSUMPTIONS'!$C3 -> 0.04927783303 | CI132: =CI$123*CI2*'TRADE ASSUMPTIONS'!$C3 -> 0.001969367225 | CJ132: =CJ$123*CJ2*'TRADE ASSUMPTIONS'!$C3 -> 0.009305251543 | CK132: =CK$123*CK2*'TRADE ASSUMPTIONS'!$C3 -> 0 | CL132: =CL$123*CL2*'TRADE ASSUMPTIONS'!$C3 -> 0.2256750665 | CM132: =CM$123*CM2*'TRADE ASSUMPTIONS'!$C3 -> 0.02250544624 | CN132: =CN$123*CN2*'TRADE ASSUMPTIONS'!$C3 -> 0 | CO132: =CO$123*CO2*'TRADE ASSUMPTIONS'!$C3 -> 0.0002902666789 | CP132: =CP$123*CP2*'TRADE ASSUMPTIONS'!$C3 -> 0.0004039829426 | CQ132: =CQ$123*CQ2*'TRADE ASSUMPTIONS'!$C3 -> 0.01144094449 | CR132: =CR$123*CR2*'TRADE ASSUMPTIONS'!$C3 -> 0 | CS132: =CS$123*CS2*'TRADE ASSUMPTIONS'!$C3 -> 0.2633286451 | CT132: =CT$123*CT2*'TRADE ASSUMPTIONS'!$C3 -> 0.226676209 | CU132: =CU$123*CU2*'TRADE ASSUMPTIONS'!$C3 -> 0.3489581498 | CV132: =CV$123*CV2*'TRADE ASSUMPTIONS'!$C3 -> 0.01984754164 | CW132: =CW$123*CW2*'TRADE ASSUMPTIONS'!$C3 -> 0.01195275926 | CX132: =CX$123*CX2*'TRADE ASSUMPTIONS'!$C3 -> 0.01280199665 | CY132: =CY$123*CY2*'TRADE ASSUMPTIONS'!$C3 -> 0.03701943849 | CZ132: =CZ$123*CZ2*'TRADE ASSUMPTIONS'!$C3 -> 0.02164758376 | DA132: =DA$123*DA2*'TRADE ASSUMPTIONS'!$C3 -> 1.514474192e-05 | DB132: =DB$123*DB2*'TRADE ASSUMPTIONS'!$C3 -> 4.509194275e-10 | DC132: =DC$123*DC2*'TRADE ASSUMPTIONS'!$C3 -> 0 | DD132: =DD$123*DD2*'TRADE ASSUMPTIONS'!D3 -> 10.60165117 | DE132: =DE2*$DR132 -> 0 | DF132: =DF2*$DR132 -> 0 | DG132: =DG2*$DR132 -> 0 | DH132: =DH$123*DH2*DU132 -> 11.01662654 | DI132: =DI2*$DR132*DU132 -> 0 | DJ132: =DJ2*$DR132*DU132 -> 0.9753390716 | DK132: =DK2*$DR132 -> 13.34473015 | DL132: 5.071982307 | DM132: =DM2*$DR132 -> 0.7257401191 | DN132: 0.7257401191 | DO132: =DP132-SUM(C132:DL132,EN132,EK132,EJ132) -> 207.4367387 | DP132: 328.2704226 | DR132: 0.01284564362 | DU132: ='TRADE ASSUMPTIONS'!C3 -> 0.8 | DV132: Products of agriculture, hunting and related services | EB132: =SUM(DK132:DN132)/DP132 -> 0.06052385875 | EC132: =DO132/DP132 -> 0.631908099 | EE132: 0.1067535137 | EF132: 0.2229241782 | EG132: 0.05280025114 | EJ132: 0.3607544799 | EK132: 1.111997157 | EM132: 01 | EN132: =DM132+DN132-EJ132 -> 1.090725758
B133: Products of forestry, logging and related services | C133: =C$123*C3*'TRADE ASSUMPTIONS'!$C4 -> 0.0175090431 | D133: =D$123*D3*'TRADE ASSUMPTIONS'!$C4 -> 3.642257235 | E133: =E$123*E3*'TRADE ASSUMPTIONS'!$C4 -> 0 | F133: =F$123*F3*'TRADE ASSUMPTIONS'!$C4 -> 0 | G133: =G$123*G3*'TRADE ASSUMPTIONS'!$C4 -> 0 | H133: =H$123*H3*'TRADE ASSUMPTIONS'!$C4 -> 0 | I133: =I$123*I3*'TRADE ASSUMPTIONS'!$C4 -> 0 | J133: =J$123*J3*'TRADE ASSUMPTIONS'!$C4 -> 0 | K133: =K$123*K3*'TRADE ASSUMPTIONS'!$C4 -> 0 | L133: =L$123*L3*'TRADE ASSUMPTIONS'!$C4 -> 0 | M133: =M$123*M3*'TRADE ASSUMPTIONS'!$C4 -> 0 | N133: =N$123*N3*'TRADE ASSUMPTIONS'!$C4 -> 0 | O133: =O$123*O3*'TRADE ASSUMPTIONS'!$C4 -> 0 | P133: =P$123*P3*'TRADE ASSUMPTIONS'!$C4 -> 0 | Q133: =Q$123*Q3*'TRADE ASSUMPTIONS'!$C4 -> 2.814434267e-05 | R133: =R$123*R3*'TRADE ASSUMPTIONS'!$C4 -> 0 | S133: =S$123*S3*'TRADE ASSUMPTIONS'!$C4 -> 0 | T133: =T$123*T3*'TRADE ASSUMPTIONS'!$C4 -> 0.0001571293227 | U133: =U$123*U3*'TRADE ASSUMPTIONS'!$C4 -> 0 | V133: =V$123*V3*'TRADE ASSUMPTIONS'!$C4 -> 0 | W133: =W$123*W3*'TRADE ASSUMPTIONS'!$C4 -> 0.5757967043 | X133: =X$123*X3*'TRADE ASSUMPTIONS'!$C4 -> 0 | Y133: =Y$123*Y3*'TRADE ASSUMPTIONS'!$C4 -> 0 | Z133: =Z$123*Z3*'TRADE ASSUMPTIONS'!$C4 -> 0 | AA133: =AA$123*AA3*'TRADE ASSUMPTIONS'!$C4 -> 0 | AB133: =AB$123*AB3*'TRADE ASSUMPTIONS'!$C4 -> 0 | AC133: =AC$123*AC3*'TRADE ASSUMPTIONS'!$C4 -> 0 | AD133: =AD$123*AD3*'TRADE ASSUMPTIONS'!$C4 -> 0 | AE133: =AE$123*AE3*'TRADE ASSUMPTIONS'!$C4 -> 0 | AF133: =AF$123*AF3*'TRADE ASSUMPTIONS'!$C4 -> 0 | AG133: =AG$123*AG3*'TRADE ASSUMPTIONS'!$C4 -> 0 | AH133: =AH$123*AH3*'TRADE ASSUMPTIONS'!$C4 -> 0 | AI133: =AI$123*AI3*'TRADE ASSUMPTIONS'!$C4 -> 0 | AJ133: =AJ$123*AJ3*'TRADE ASSUMPTIONS'!$C4 -> 0 | AK133: =AK$123*AK3*'TRADE ASSUMPTIONS'!$C4 -> 0 | AL133: =AL$123*AL3*'TRADE ASSUMPTIONS'!$C4 -> 0 | AM133: =AM$123*AM3*'TRADE ASSUMPTIONS'!$C4 -> 0 | AN133: =AN$123*AN3*'TRADE ASSUMPTIONS'!$C4 -> 0 | AO133: =AO$123*AO3*'TRADE ASSUMPTIONS'!$C4 -> 0 | AP133: =AP$123*AP3*'TRADE ASSUMPTIONS'!$C4 -> 0 | AQ133: =AQ$123*AQ3*'TRADE ASSUMPTIONS'!$C4 -> 0 | AR133: =AR$123*AR3*'TRADE ASSUMPTIONS'!$C4 -> 0 | AS133: =AS$123*AS3*'TRADE ASSUMPTIONS'!$C4 -> 0 | AT133: =AT$123*AT3*'TRADE ASSUMPTIONS'!$C4 -> 7.460856206e-05 | AU133: =AU$123*AU3*'TRADE ASSUMPTIONS'!$C4 -> 0 | AV133: =AV$123*AV3*'TRADE ASSUMPTIONS'!$C4 -> 0.002515261237 | AW133: =AW$123*AW3*'TRADE ASSUMPTIONS'!$C4 -> 0.002718151472 | AX133: =AX$123*AX3*'TRADE ASSUMPTIONS'!$C4 -> 0 | AY133: =AY$123*AY3*'TRADE ASSUMPTIONS'!$C4 -> 0 | AZ133: =AZ$123*AZ3*'TRADE ASSUMPTIONS'!$C4 -> 0 | BA133: =BA$123*BA3*'TRADE ASSUMPTIONS'!$C4 -> 0 | BB133: =BB$123*BB3*'TRADE ASSUMPTIONS'!$C4 -> 0 | BC133: =BC$123*BC3*'TRADE ASSUMPTIONS'!$C4 -> 0 | BD133: =BD$123*BD3*'TRADE ASSUMPTIONS'!$C4 -> 0 | BE133: =BE$123*BE3*'TRADE ASSUMPTIONS'!$C4 -> 0 | BF133: =BF$123*BF3*'TRADE ASSUMPTIONS'!$C4 -> 0 | BG133: =BG$123*BG3*'TRADE ASSUMPTIONS'!$C4 -> 0.6175928152 | BH133: =BH$123*BH3*'TRADE ASSUMPTIONS'!$C4 -> 0 | BI133: =BI$123*BI3*'TRADE ASSUMPTIONS'!$C4 -> 0.08707287869 | BJ133: =BJ$123*BJ3*'TRADE ASSUMPTIONS'!$C4 -> 0 | BK133: =BK$123*BK3*'TRADE ASSUMPTIONS'!$C4 -> 0 | BL133: =BL$123*BL3*'TRADE ASSUMPTIONS'!$C4 -> 0.0004671714167 | BM133: =BM$123*BM3*'TRADE ASSUMPTIONS'!$C4 -> 0 | BN133: =BN$123*BN3*'TRADE ASSUMPTIONS'!$C4 -> 0 | BO133: =BO$123*BO3*'TRADE ASSUMPTIONS'!$C4 -> 0 | BP133: =BP$123*BP3*'TRADE ASSUMPTIONS'!$C4 -> 0 | BQ133: =BQ$123*BQ3*'TRADE ASSUMPTIONS'!$C4 -> 0.4648386963 | BR133: =BR$123*BR3*'TRADE ASSUMPTIONS'!$C4 -> 0.06088213284 | BS133: =BS$123*BS3*'TRADE ASSUMPTIONS'!$C4 -> 4.875212258e-05 | BT133: =BT$123*BT3*'TRADE ASSUMPTIONS'!$C4 -> 0 | BU133: =BU$123*BU3*'TRADE ASSUMPTIONS'!$C4 -> 0 | BV133: =BV$123*BV3*'TRADE ASSUMPTIONS'!$C4 -> 0.03717561397 | BW133: =BW$123*BW3*'TRADE ASSUMPTIONS'!$C4 -> 0 | BX133: =BX$123*BX3*'TRADE ASSUMPTIONS'!$C4 -> 0 | BY133: =BY$123*BY3*'TRADE ASSUMPTIONS'!$C4 -> 0 | BZ133: =BZ$123*BZ3*'TRADE ASSUMPTIONS'!$C4 -> 0 | CA133: =CA$123*CA3*'TRADE ASSUMPTIONS'!$C4 -> 0.0001037237287 | CB133: =CB$123*CB3*'TRADE ASSUMPTIONS'!$C4 -> 0 | CC133: =CC$123*CC3*'TRADE ASSUMPTIONS'!$C4 -> 0 | CD133: =CD$123*CD3*'TRADE ASSUMPTIONS'!$C4 -> 4.262165096e-05 | CE133: =CE$123*CE3*'TRADE ASSUMPTIONS'!$C4 -> 7.407276933e-05 | CF133: =CF$123*CF3*'TRADE ASSUMPTIONS'!$C4 -> 0 | CG133: =CG$123*CG3*'TRADE ASSUMPTIONS'!$C4 -> 0.0001138805894 | CH133: =CH$123*CH3*'TRADE ASSUMPTIONS'!$C4 -> 4.938999568e-05 | CI133: =CI$123*CI3*'TRADE ASSUMPTIONS'!$C4 -> 0 | CJ133: =CJ$123*CJ3*'TRADE ASSUMPTIONS'!$C4 -> 0.0001319898359 | CK133: =CK$123*CK3*'TRADE ASSUMPTIONS'!$C4 -> 0 | CL133: =CL$123*CL3*'TRADE ASSUMPTIONS'!$C4 -> 0.03290905476 | CM133: =CM$123*CM3*'TRADE ASSUMPTIONS'!$C4 -> 4.974829586e-05 | CN133: =CN$123*CN3*'TRADE ASSUMPTIONS'!$C4 -> 0 | CO133: =CO$123*CO3*'TRADE ASSUMPTIONS'!$C4 -> 1.401692112e-05 | CP133: =CP$123*CP3*'TRADE ASSUMPTIONS'!$C4 -> 0 | CQ133: =CQ$123*CQ3*'TRADE ASSUMPTIONS'!$C4 -> 2.619936283e-05 | CR133: =CR$123*CR3*'TRADE ASSUMPTIONS'!$C4 -> 0 | CS133: =CS$123*CS3*'TRADE ASSUMPTIONS'!$C4 -> 0 | CT133: =CT$123*CT3*'TRADE ASSUMPTIONS'!$C4 -> 0 | CU133: =CU$123*CU3*'TRADE ASSUMPTIONS'!$C4 -> 0 | CV133: =CV$123*CV3*'TRADE ASSUMPTIONS'!$C4 -> 0 | CW133: =CW$123*CW3*'TRADE ASSUMPTIONS'!$C4 -> 0 | CX133: =CX$123*CX3*'TRADE ASSUMPTIONS'!$C4 -> 0 | CY133: =CY$123*CY3*'TRADE ASSUMPTIONS'!$C4 -> 0.2722627257 | CZ133: =CZ$123*CZ3*'TRADE ASSUMPTIONS'!$C4 -> 0 | DA133: =DA$123*DA3*'TRADE ASSUMPTIONS'!$C4 -> 0 | DB133: =DB$123*DB3*'TRADE ASSUMPTIONS'!$C4 -> 0 | DC133: =DC$123*DC3*'TRADE ASSUMPTIONS'!$C4 -> 0 | DD133: =DD$123*DD3*'TRADE ASSUMPTIONS'!D4 -> 0.4094237611 | DE133: =DE3*DR133 -> 0 | DF133: =DF3*$DR133 -> 0 | DG133: 0 | DH133: =DH$123*DH3*DU133 -> 0 | DI133: =DI3*$DR133*DU133 -> 0 | DJ133: =DJ3*$DR133*DU133 -> 0.1376471901 | DK133: 2.12058381 | DL133: 0.5806360432 | DM133: =DM3*$DR133 -> 0 | DN133: 0 | DO133: 9.301689817 | DP133: 18.3689893 | DR133: 0.01719942819 | DU133: ='TRADE ASSUMPTIONS'!C4 -> 0.7 | DV133: Products of forestry, logging and related services | EB133: =SUM(DK133:DN133)/DP133 -> 0.1470532651 | EC133: =DO133/DP133 -> 0.5063800552 | EE133: 0.5185733402 | EF133: 0.2178260703 | EG133: 0.05022446597 | EJ133: 0.004096920672 | EK133: 0 | EM133: 02 | EN133: 0
B134: Fish and other fishing products; aquaculture products; support services to fishing | C134: =C$123*C4*'TRADE ASSUMPTIONS'!$C5 -> 0 | D134: =D$123*D4*'TRADE ASSUMPTIONS'!$C5 -> 0 | E134: =E$123*E4*'TRADE ASSUMPTIONS'!$C5 -> 0.9715721666 | F134: =F$123*F4*'TRADE ASSUMPTIONS'!$C5 -> 0 | G134: =G$123*G4*'TRADE ASSUMPTIONS'!$C5 -> 0 | H134: =H$123*H4*'TRADE ASSUMPTIONS'!$C5 -> 0 | I134: =I$123*I4*'TRADE ASSUMPTIONS'!$C5 -> 0 | J134: =J$123*J4*'TRADE ASSUMPTIONS'!$C5 -> 1.4890688e-05 | K134: =K$123*K4*'TRADE ASSUMPTIONS'!$C5 -> 0.3546495249 | L134: =L$123*L4*'TRADE ASSUMPTIONS'!$C5 -> 0 | M134: =M$123*M4*'TRADE ASSUMPTIONS'!$C5 -> 0 | N134: =N$123*N4*'TRADE ASSUMPTIONS'!$C5 -> 8.11797029e-05 | O134: =O$123*O4*'TRADE ASSUMPTIONS'!$C5 -> 0 | P134: =P$123*P4*'TRADE ASSUMPTIONS'!$C5 -> 0 | Q134: =Q$123*Q4*'TRADE ASSUMPTIONS'!$C5 -> 0 | R134: =R$123*R4*'TRADE ASSUMPTIONS'!$C5 -> 0 | S134: =S$123*S4*'TRADE ASSUMPTIONS'!$C5 -> 0 | T134: =T$123*T4*'TRADE ASSUMPTIONS'!$C5 -> 0 | U134: =U$123*U4*'TRADE ASSUMPTIONS'!$C5 -> 0 | V134: =V$123*V4*'TRADE ASSUMPTIONS'!$C5 -> 0 | W134: =W$123*W4*'TRADE ASSUMPTIONS'!$C5 -> 0 | X134: =X$123*X4*'TRADE ASSUMPTIONS'!$C5 -> 0 | Y134: =Y$123*Y4*'TRADE ASSUMPTIONS'!$C5 -> 0 | Z134: =Z$123*Z4*'TRADE ASSUMPTIONS'!$C5 -> 0 | AA134: =AA$123*AA4*'TRADE ASSUMPTIONS'!$C5 -> 0 | AB134: =AB$123*AB4*'TRADE ASSUMPTIONS'!$C5 -> 0 | AC134: =AC$123*AC4*'TRADE ASSUMPTIONS'!$C5 -> 0 | AD134: =AD$123*AD4*'TRADE ASSUMPTIONS'!$C5 -> 0 | AE134: =AE$123*AE4*'TRADE ASSUMPTIONS'!$C5 -> 0 | AF134: =AF$123*AF4*'TRADE ASSUMPTIONS'!$C5 -> 0 | AG134: =AG$123*AG4*'TRADE ASSUMPTIONS'!$C5 -> 0 | AH134: =AH$123*AH4*'TRADE ASSUMPTIONS'!$C5 -> 0 | AI134: =AI$123*AI4*'TRADE ASSUMPTIONS'!$C5 -> 0 | AJ134: =AJ$123*AJ4*'TRADE ASSUMPTIONS'!$C5 -> 0 | AK134: =AK$123*AK4*'TRADE ASSUMPTIONS'!$C5 -> 0 | AL134: =AL$123*AL4*'TRADE ASSUMPTIONS'!$C5 -> 0 | AM134: =AM$123*AM4*'TRADE ASSUMPTIONS'!$C5 -> 0 | AN134: =AN$123*AN4*'TRADE ASSUMPTIONS'!$C5 -> 0 | AO134: =AO$123*AO4*'TRADE ASSUMPTIONS'!$C5 -> 0 | AP134: =AP$123*AP4*'TRADE ASSUMPTIONS'!$C5 -> 0 | AQ134: =AQ$123*AQ4*'TRADE ASSUMPTIONS'!$C5 -> 0 | AR134: =AR$123*AR4*'TRADE ASSUMPTIONS'!$C5 -> 0 | AS134: =AS$123*AS4*'TRADE ASSUMPTIONS'!$C5 -> 0 | AT134: =AT$123*AT4*'TRADE ASSUMPTIONS'!$C5 -> 0 | AU134: =AU$123*AU4*'TRADE ASSUMPTIONS'!$C5 -> 0 | AV134: =AV$123*AV4*'TRADE ASSUMPTIONS'!$C5 -> 0 | AW134: =AW$123*AW4*'TRADE ASSUMPTIONS'!$C5 -> 0 | AX134: =AX$123*AX4*'TRADE ASSUMPTIONS'!$C5 -> 0 | AY134: =AY$123*AY4*'TRADE ASSUMPTIONS'!$C5 -> 0 | AZ134: =AZ$123*AZ4*'TRADE ASSUMPTIONS'!$C5 -> 0 | BA134: =BA$123*BA4*'TRADE ASSUMPTIONS'!$C5 -> 0 | BB134: =BB$123*BB4*'TRADE ASSUMPTIONS'!$C5 -> 0 | BC134: =BC$123*BC4*'TRADE ASSUMPTIONS'!$C5 -> 0 | BD134: =BD$123*BD4*'TRADE ASSUMPTIONS'!$C5 -> 0 | BE134: =BE$123*BE4*'TRADE ASSUMPTIONS'!$C5 -> 0 | BF134: =BF$123*BF4*'TRADE ASSUMPTIONS'!$C5 -> 0 | BG134: =BG$123*BG4*'TRADE ASSUMPTIONS'!$C5 -> 0.001599037434 | BH134: =BH$123*BH4*'TRADE ASSUMPTIONS'!$C5 -> 0 | BI134: =BI$123*BI4*'TRADE ASSUMPTIONS'!$C5 -> 0.02255610843 | BJ134: =BJ$123*BJ4*'TRADE ASSUMPTIONS'!$C5 -> 0.007464979063 | BK134: =BK$123*BK4*'TRADE ASSUMPTIONS'!$C5 -> 0 | BL134: =BL$123*BL4*'TRADE ASSUMPTIONS'!$C5 -> 0.007455554387 | BM134: =BM$123*BM4*'TRADE ASSUMPTIONS'!$C5 -> 0.2738193535 | BN134: =BN$123*BN4*'TRADE ASSUMPTIONS'!$C5 -> 0 | BO134: =BO$123*BO4*'TRADE ASSUMPTIONS'!$C5 -> 0.0003428087499 | BP134: =BP$123*BP4*'TRADE ASSUMPTIONS'!$C5 -> 0 | BQ134: =BQ$123*BQ4*'TRADE ASSUMPTIONS'!$C5 -> 0.4816068835 | BR134: =BR$123*BR4*'TRADE ASSUMPTIONS'!$C5 -> 0.6848541631 | BS134: =BS$123*BS4*'TRADE ASSUMPTIONS'!$C5 -> 0 | BT134: =BT$123*BT4*'TRADE ASSUMPTIONS'!$C5 -> 0 | BU134: =BU$123*BU4*'TRADE ASSUMPTIONS'!$C5 -> 0 | BV134: =BV$123*BV4*'TRADE ASSUMPTIONS'!$C5 -> 0.00109558213 | BW134: =BW$123*BW4*'TRADE ASSUMPTIONS'!$C5 -> 0 | BX134: =BX$123*BX4*'TRADE ASSUMPTIONS'!$C5 -> 0 | BY134: =BY$123*BY4*'TRADE ASSUMPTIONS'!$C5 -> 0 | BZ134: =BZ$123*BZ4*'TRADE ASSUMPTIONS'!$C5 -> 0 | CA134: =CA$123*CA4*'TRADE ASSUMPTIONS'!$C5 -> 0.004802523776 | CB134: =CB$123*CB4*'TRADE ASSUMPTIONS'!$C5 -> 0 | CC134: =CC$123*CC4*'TRADE ASSUMPTIONS'!$C5 -> 0 | CD134: =CD$123*CD4*'TRADE ASSUMPTIONS'!$C5 -> 0 | CE134: =CE$123*CE4*'TRADE ASSUMPTIONS'!$C5 -> 0.0008861516238 | CF134: =CF$123*CF4*'TRADE ASSUMPTIONS'!$C5 -> 0 | CG134: =CG$123*CG4*'TRADE ASSUMPTIONS'!$C5 -> 0.002043574247 | CH134: =CH$123*CH4*'TRADE ASSUMPTIONS'!$C5 -> 0.002844646792 | CI134: =CI$123*CI4*'TRADE ASSUMPTIONS'!$C5 -> 0 | CJ134: =CJ$123*CJ4*'TRADE ASSUMPTIONS'!$C5 -> 0.001052685609 | CK134: =CK$123*CK4*'TRADE ASSUMPTIONS'!$C5 -> 0 | CL134: =CL$123*CL4*'TRADE ASSUMPTIONS'!$C5 -> 0.003385110948 | CM134: =CM$123*CM4*'TRADE ASSUMPTIONS'!$C5 -> 0 | CN134: =CN$123*CN4*'TRADE ASSUMPTIONS'!$C5 -> 0 | CO134: =CO$123*CO4*'TRADE ASSUMPTIONS'!$C5 -> 0 | CP134: =CP$123*CP4*'TRADE ASSUMPTIONS'!$C5 -> 0 | CQ134: =CQ$123*CQ4*'TRADE ASSUMPTIONS'!$C5 -> 0.0008358126069 | CR134: =CR$123*CR4*'TRADE ASSUMPTIONS'!$C5 -> 0 | CS134: =CS$123*CS4*'TRADE ASSUMPTIONS'!$C5 -> 0 | CT134: =CT$123*CT4*'TRADE ASSUMPTIONS'!$C5 -> 0 | CU134: =CU$123*CU4*'TRADE ASSUMPTIONS'!$C5 -> 0 | CV134: =CV$123*CV4*'TRADE ASSUMPTIONS'!$C5 -> 0 | CW134: =CW$123*CW4*'TRADE ASSUMPTIONS'!$C5 -> 0 | CX134: =CX$123*CX4*'TRADE ASSUMPTIONS'!$C5 -> 0 | CY134: =CY$123*CY4*'TRADE ASSUMPTIONS'!$C5 -> 0.001178509191 | CZ134: =CZ$123*CZ4*'TRADE ASSUMPTIONS'!$C5 -> 0 | DA134: =DA$123*DA4*'TRADE ASSUMPTIONS'!$C5 -> 0 | DB134: =DB$123*DB4*'TRADE ASSUMPTIONS'!$C5 -> 0 | DC134: =DC$123*DC4*'TRADE ASSUMPTIONS'!$C5 -> 0 | DD134: =DD$123*DD4*'TRADE ASSUMPTIONS'!D5 -> 0.5575589904 | DE134: 0 | DF134: 0 | DG134: 0 | DH134: 0 | DI134: 0 | DJ134: -0.2782038824 | DK134: 6.828566231 | DL134: 5.422225359 | DM134: =DM4*$DR134 -> 0.3070629742 | DN134: 0.3070629742 | DO134: 12.56131502 | DP134: 28.5662153 | DR134: 0.01604843556 | DU134: ='TRADE ASSUMPTIONS'!C5 -> 0.8 | DV134: Fish and other fishing products; aquaculture products; support services to fishing | EB134: 0.4503542875 | EC134: =DO134/DP134 -> 0.4397262601 | EE134: 0.7447035487 | EF134: 0.3138205663 | EG134: 0.3820648549 | EJ134: 0.02019144893 | EK134: 0.03648638897 | EM134: 03 | EN134: =DM134+DN134-EJ134 -> 0.5939344995
B135: Coal and lignite | C135: =C$123*C5*'TRADE ASSUMPTIONS'!$C6 -> 0 | D135: =D$123*D5*'TRADE ASSUMPTIONS'!$C6 -> 0 | E135: =E$123*E5*'TRADE ASSUMPTIONS'!$C6 -> 0 | F135: =F$123*F5*'TRADE ASSUMPTIONS'!$C6 -> 0 | G135: =G$123*G5*'TRADE ASSUMPTIONS'!$C6 -> 0 | H135: =H$123*H5*'TRADE ASSUMPTIONS'!$C6 -> 0 | I135: =I$123*I5*'TRADE ASSUMPTIONS'!$C6 -> 0 | J135: =J$123*J5*'TRADE ASSUMPTIONS'!$C6 -> 0 | K135: =K$123*K5*'TRADE ASSUMPTIONS'!$C6 -> 0 | L135: =L$123*L5*'TRADE ASSUMPTIONS'!$C6 -> 0 | M135: =M$123*M5*'TRADE ASSUMPTIONS'!$C6 -> 0 | N135: =N$123*N5*'TRADE ASSUMPTIONS'!$C6 -> 0 | O135: =O$123*O5*'TRADE ASSUMPTIONS'!$C6 -> 0 | P135: =P$123*P5*'TRADE ASSUMPTIONS'!$C6 -> 0 | Q135: =Q$123*Q5*'TRADE ASSUMPTIONS'!$C6 -> 0 | R135: =R$123*R5*'TRADE ASSUMPTIONS'!$C6 -> 0 | S135: =S$123*S5*'TRADE ASSUMPTIONS'!$C6 -> 0 | T135: =T$123*T5*'TRADE ASSUMPTIONS'!$C6 -> 0 | U135: =U$123*U5*'TRADE ASSUMPTIONS'!$C6 -> 0 | V135: =V$123*V5*'TRADE ASSUMPTIONS'!$C6 -> 0 | W135: =W$123*W5*'TRADE ASSUMPTIONS'!$C6 -> 0 | X135: =X$123*X5*'TRADE ASSUMPTIONS'!$C6 -> 0 | Y135: =Y$123*Y5*'TRADE ASSUMPTIONS'!$C6 -> 0 | Z135: =Z$123*Z5*'TRADE ASSUMPTIONS'!$C6 -> 0 | AA135: =AA$123*AA5*'TRADE ASSUMPTIONS'!$C6 -> 0 | AB135: =AB$123*AB5*'TRADE ASSUMPTIONS'!$C6 -> 0 | AC135: =AC$123*AC5*'TRADE ASSUMPTIONS'!$C6 -> 0 | AD135: =AD$123*AD5*'TRADE ASSUMPTIONS'!$C6 -> 0 | AE135: =AE$123*AE5*'TRADE ASSUMPTIONS'!$C6 -> 0 | AF135: =AF$123*AF5*'TRADE ASSUMPTIONS'!$C6 -> 0 | AG135: =AG$123*AG5*'TRADE ASSUMPTIONS'!$C6 -> 0 | AH135: =AH$123*AH5*'TRADE ASSUMPTIONS'!$C6 -> 0 | AI135: =AI$123*AI5*'TRADE ASSUMPTIONS'!$C6 -> 0 | AJ135: =AJ$123*AJ5*'TRADE ASSUMPTIONS'!$C6 -> 0 | AK135: =AK$123*AK5*'TRADE ASSUMPTIONS'!$C6 -> 0 | AL135: =AL$123*AL5*'TRADE ASSUMPTIONS'!$C6 -> 0 | AM135: =AM$123*AM5*'TRADE ASSUMPTIONS'!$C6 -> 0 | AN135: =AN$123*AN5*'TRADE ASSUMPTIONS'!$C6 -> 0 | AO135: =AO$123*AO5*'TRADE ASSUMPTIONS'!$C6 -> 0 | AP135: =AP$123*AP5*'TRADE ASSUMPTIONS'!$C6 -> 0 | AQ135: =AQ$123*AQ5*'TRADE ASSUMPTIONS'!$C6 -> 0 | AR135: =AR$123*AR5*'TRADE ASSUMPTIONS'!$C6 -> 0 | AS135: =AS$123*AS5*'TRADE ASSUMPTIONS'!$C6 -> 0 | AT135: =AT$123*AT5*'TRADE ASSUMPTIONS'!$C6 -> 0 | AU135: =AU$123*AU5*'TRADE ASSUMPTIONS'!$C6 -> 0 | AV135: =AV$123*AV5*'TRADE ASSUMPTIONS'!$C6 -> 0 | AW135: =AW$123*AW5*'TRADE ASSUMPTIONS'!$C6 -> 0 | AX135: =AX$123*AX5*'TRADE ASSUMPTIONS'!$C6 -> 0 | AY135: =AY$123*AY5*'TRADE ASSUMPTIONS'!$C6 -> 0 | AZ135: =AZ$123*AZ5*'TRADE ASSUMPTIONS'!$C6 -> 0 | BA135: =BA$123*BA5*'TRADE ASSUMPTIONS'!$C6 -> 0 | BB135: =BB$123*BB5*'TRADE ASSUMPTIONS'!$C6 -> 0 | BC135: =BC$123*BC5*'TRADE ASSUMPTIONS'!$C6 -> 0 | BD135: =BD$123*BD5*'TRADE ASSUMPTIONS'!$C6 -> 0 | BE135: =BE$123*BE5*'TRADE ASSUMPTIONS'!$C6 -> 0 | BF135: =BF$123*BF5*'TRADE ASSUMPTIONS'!$C6 -> 0 | BG135: =BG$123*BG5*'TRADE ASSUMPTIONS'!$C6 -> 0 | BH135: =BH$123*BH5*'TRADE ASSUMPTIONS'!$C6 -> 0 | BI135: =BI$123*BI5*'TRADE ASSUMPTIONS'!$C6 -> 0 | BJ135: =BJ$123*BJ5*'TRADE ASSUMPTIONS'!$C6 -> 0 | BK135: =BK$123*BK5*'TRADE ASSUMPTIONS'!$C6 -> 0 | BL135: =BL$123*BL5*'TRADE ASSUMPTIONS'!$C6 -> 0 | BM135: =BM$123*BM5*'TRADE ASSUMPTIONS'!$C6 -> 0 | BN135: =BN$123*BN5*'TRADE ASSUMPTIONS'!$C6 -> 0 | BO135: =BO$123*BO5*'TRADE ASSUMPTIONS'!$C6 -> 0 | BP135: =BP$123*BP5*'TRADE ASSUMPTIONS'!$C6 -> 0 | BQ135: =BQ$123*BQ5*'TRADE ASSUMPTIONS'!$C6 -> 0 | BR135: =BR$123*BR5*'TRADE ASSUMPTIONS'!$C6 -> 0 | BS135: =BS$123*BS5*'TRADE ASSUMPTIONS'!$C6 -> 0 | BT135: =BT$123*BT5*'TRADE ASSUMPTIONS'!$C6 -> 0 | BU135: =BU$123*BU5*'TRADE ASSUMPTIONS'!$C6 -> 0 | BV135: =BV$123*BV5*'TRADE ASSUMPTIONS'!$C6 -> 0 | BW135: =BW$123*BW5*'TRADE ASSUMPTIONS'!$C6 -> 0 | BX135: =BX$123*BX5*'TRADE ASSUMPTIONS'!$C6 -> 0 | BY135: =BY$123*BY5*'TRADE ASSUMPTIONS'!$C6 -> 0 | BZ135: =BZ$123*BZ5*'TRADE ASSUMPTIONS'!$C6 -> 0 | CA135: =CA$123*CA5*'TRADE ASSUMPTIONS'!$C6 -> 0 | CB135: =CB$123*CB5*'TRADE ASSUMPTIONS'!$C6 -> 0 | CC135: =CC$123*CC5*'TRADE ASSUMPTIONS'!$C6 -> 0 | CD135: =CD$123*CD5*'TRADE ASSUMPTIONS'!$C6 -> 0 | CE135: =CE$123*CE5*'TRADE ASSUMPTIONS'!$C6 -> 0 | CF135: =CF$123*CF5*'TRADE ASSUMPTIONS'!$C6 -> 0 | CG135: =CG$123*CG5*'TRADE ASSUMPTIONS'!$C6 -> 0 | CH135: =CH$123*CH5*'TRADE ASSUMPTIONS'!$C6 -> 0 | CI135: =CI$123*CI5*'TRADE ASSUMPTIONS'!$C6 -> 0 | CJ135: =CJ$123*CJ5*'TRADE ASSUMPTIONS'!$C6 -> 0 | CK135: =CK$123*CK5*'TRADE ASSUMPTIONS'!$C6 -> 0 | CL135: =CL$123*CL5*'TRADE ASSUMPTIONS'!$C6 -> 0 | CM135: =CM$123*CM5*'TRADE ASSUMPTIONS'!$C6 -> 0 | CN135: =CN$123*CN5*'TRADE ASSUMPTIONS'!$C6 -> 0 | CO135: =CO$123*CO5*'TRADE ASSUMPTIONS'!$C6 -> 0 | CP135: =CP$123*CP5*'TRADE ASSUMPTIONS'!$C6 -> 0 | CQ135: =CQ$123*CQ5*'TRADE ASSUMPTIONS'!$C6 -> 0 | CR135: =CR$123*CR5*'TRADE ASSUMPTIONS'!$C6 -> 0 | CS135: =CS$123*CS5*'TRADE ASSUMPTIONS'!$C6 -> 0 | CT135: =CT$123*CT5*'TRADE ASSUMPTIONS'!$C6 -> 0 | CU135: =CU$123*CU5*'TRADE ASSUMPTIONS'!$C6 -> 0 | CV135: =CV$123*CV5*'TRADE ASSUMPTIONS'!$C6 -> 0 | CW135: =CW$123*CW5*'TRADE ASSUMPTIONS'!$C6 -> 0 | CX135: =CX$123*CX5*'TRADE ASSUMPTIONS'!$C6 -> 0 | CY135: =CY$123*CY5*'TRADE ASSUMPTIONS'!$C6 -> 0 | CZ135: =CZ$123*CZ5*'TRADE ASSUMPTIONS'!$C6 -> 0 | DA135: =DA$123*DA5*'TRADE ASSUMPTIONS'!$C6 -> 0 | DB135: =DB$123*DB5*'TRADE ASSUMPTIONS'!$C6 -> 0 | DC135: =DC$123*DC5*'TRADE ASSUMPTIONS'!$C6 -> 0 | DD135: =DD$123*DD5*'TRADE ASSUMPTIONS'!D6 -> 0 | DE135: 0 | DF135: 0 | DG135: 0 | DH135: 0 | DI135: 0 | DJ135: 0 | DK135: 0 | DL135: 0 | DM135: =DM5*$DR135 -> 0 | DN135: 0 | DO135: 0 | DP135: 0 | DR135: 0 | DU135: ='TRADE ASSUMPTIONS'!C6 -> 0 | DV135: Coal and lignite | EE135: 0.3702459787 | EF135: 0.8691412749 | EG135: 0.01460198524 | EJ135: 0 | EK135: 0 | EM135: 05 | EN135: 0
B136: Extraction Of Crude Petroleum And Natural Gas & Mining Of Metal Ores | C136: =C$123*C6*'TRADE ASSUMPTIONS'!$C7 -> 0 | D136: =D$123*D6*'TRADE ASSUMPTIONS'!$C7 -> 0 | E136: =E$123*E6*'TRADE ASSUMPTIONS'!$C7 -> 0 | F136: =F$123*F6*'TRADE ASSUMPTIONS'!$C7 -> 0 | G136: =G$123*G6*'TRADE ASSUMPTIONS'!$C7 -> 0.0356753159 | H136: =H$123*H6*'TRADE ASSUMPTIONS'!$C7 -> 0 | I136: =I$123*I6*'TRADE ASSUMPTIONS'!$C7 -> 0.02482324529 | J136: =J$123*J6*'TRADE ASSUMPTIONS'!$C7 -> 0 | K136: =K$123*K6*'TRADE ASSUMPTIONS'!$C7 -> 0 | L136: =L$123*L6*'TRADE ASSUMPTIONS'!$C7 -> 0 | M136: =M$123*M6*'TRADE ASSUMPTIONS'!$C7 -> 0 | N136: =N$123*N6*'TRADE ASSUMPTIONS'!$C7 -> 0 | O136: =O$123*O6*'TRADE ASSUMPTIONS'!$C7 -> 0 | P136: =P$123*P6*'TRADE ASSUMPTIONS'!$C7 -> 0 | Q136: =Q$123*Q6*'TRADE ASSUMPTIONS'!$C7 -> 0 | R136: =R$123*R6*'TRADE ASSUMPTIONS'!$C7 -> 0 | S136: =S$123*S6*'TRADE ASSUMPTIONS'!$C7 -> 0 | T136: =T$123*T6*'TRADE ASSUMPTIONS'!$C7 -> 8.845667246e-07 | U136: =U$123*U6*'TRADE ASSUMPTIONS'!$C7 -> 0 | V136: =V$123*V6*'TRADE ASSUMPTIONS'!$C7 -> 0 | W136: =W$123*W6*'TRADE ASSUMPTIONS'!$C7 -> 0 | X136: =X$123*X6*'TRADE ASSUMPTIONS'!$C7 -> 1.755386327e-07 | Y136: =Y$123*Y6*'TRADE ASSUMPTIONS'!$C7 -> 0 | Z136: =Z$123*Z6*'TRADE ASSUMPTIONS'!$C7 -> 0.003882340457 | AA136: =AA$123*AA6*'TRADE ASSUMPTIONS'!$C7 -> 0.0001085773796 | AB136: =AB$123*AB6*'TRADE ASSUMPTIONS'!$C7 -> 6.502235319e-06 | AC136: =AC$123*AC6*'TRADE ASSUMPTIONS'!$C7 -> 0 | AD136: =AD$123*AD6*'TRADE ASSUMPTIONS'!$C7 -> 9.252674161e-06 | AE136: =AE$123*AE6*'TRADE ASSUMPTIONS'!$C7 -> 0 | AF136: =AF$123*AF6*'TRADE ASSUMPTIONS'!$C7 -> 2.771540181e-06 | AG136: =AG$123*AG6*'TRADE ASSUMPTIONS'!$C7 -> 2.950294337e-06 | AH136: =AH$123*AH6*'TRADE ASSUMPTIONS'!$C7 -> 2.654866965e-05 | AI136: =AI$123*AI6*'TRADE ASSUMPTIONS'!$C7 -> 0 | AJ136: =AJ$123*AJ6*'TRADE ASSUMPTIONS'!$C7 -> 0 | AK136: =AK$123*AK6*'TRADE ASSUMPTIONS'!$C7 -> 0 | AL136: =AL$123*AL6*'TRADE ASSUMPTIONS'!$C7 -> 1.691441693e-05 | AM136: =AM$123*AM6*'TRADE ASSUMPTIONS'!$C7 -> 0 | AN136: =AN$123*AN6*'TRADE ASSUMPTIONS'!$C7 -> 0 | AO136: =AO$123*AO6*'TRADE ASSUMPTIONS'!$C7 -> 0 | AP136: =AP$123*AP6*'TRADE ASSUMPTIONS'!$C7 -> 4.463251703e-06 | AQ136: =AQ$123*AQ6*'TRADE ASSUMPTIONS'!$C7 -> 5.923687613e-05 | AR136: =AR$123*AR6*'TRADE ASSUMPTIONS'!$C7 -> 0 | AS136: =AS$123*AS6*'TRADE ASSUMPTIONS'!$C7 -> 0 | AT136: =AT$123*AT6*'TRADE ASSUMPTIONS'!$C7 -> 0 | AU136: =AU$123*AU6*'TRADE ASSUMPTIONS'!$C7 -> 0 | AV136: =AV$123*AV6*'TRADE ASSUMPTIONS'!$C7 -> 0 | AW136: =AW$123*AW6*'TRADE ASSUMPTIONS'!$C7 -> 0 | AX136: =AX$123*AX6*'TRADE ASSUMPTIONS'!$C7 -> 0 | AY136: =AY$123*AY6*'TRADE ASSUMPTIONS'!$C7 -> 0 | AZ136: =AZ$123*AZ6*'TRADE ASSUMPTIONS'!$C7 -> 1.746706087e-06 | BA136: =BA$123*BA6*'TRADE ASSUMPTIONS'!$C7 -> 0.02458165109 | BB136: =BB$123*BB6*'TRADE ASSUMPTIONS'!$C7 -> 0.7574734511 | BC136: =BC$123*BC6*'TRADE ASSUMPTIONS'!$C7 -> 0 | BD136: =BD$123*BD6*'TRADE ASSUMPTIONS'!$C7 -> 0 | BE136: =BE$123*BE6*'TRADE ASSUMPTIONS'!$C7 -> 2.990464762e-05 | BF136: =BF$123*BF6*'TRADE ASSUMPTIONS'!$C7 -> 0 | BG136: =BG$123*BG6*'TRADE ASSUMPTIONS'!$C7 -> 0.02237508415 | BH136: =BH$123*BH6*'TRADE ASSUMPTIONS'!$C7 -> 0 | BI136: =BI$123*BI6*'TRADE ASSUMPTIONS'!$C7 -> 0.000182737196 | BJ136: =BJ$123*BJ6*'TRADE ASSUMPTIONS'!$C7 -> 0 | BK136: =BK$123*BK6*'TRADE ASSUMPTIONS'!$C7 -> 0 | BL136: =BL$123*BL6*'TRADE ASSUMPTIONS'!$C7 -> 0.007417428119 | BM136: =BM$123*BM6*'TRADE ASSUMPTIONS'!$C7 -> 4.64423833e-05 | BN136: =BN$123*BN6*'TRADE ASSUMPTIONS'!$C7 -> 0 | BO136: =BO$123*BO6*'TRADE ASSUMPTIONS'!$C7 -> 0 | BP136: =BP$123*BP6*'TRADE ASSUMPTIONS'!$C7 -> 0 | BQ136: =BQ$123*BQ6*'TRADE ASSUMPTIONS'!$C7 -> 0 | BR136: =BR$123*BR6*'TRADE ASSUMPTIONS'!$C7 -> 0.008476769033 | BS136: =BS$123*BS6*'TRADE ASSUMPTIONS'!$C7 -> 5.05684987e-05 | BT136: =BT$123*BT6*'TRADE ASSUMPTIONS'!$C7 -> 0 | BU136: =BU$123*BU6*'TRADE ASSUMPTIONS'!$C7 -> 0 | BV136: =BV$123*BV6*'TRADE ASSUMPTIONS'!$C7 -> 0.003586334407 | BW136: =BW$123*BW6*'TRADE ASSUMPTIONS'!$C7 -> 0.0001078938047 | BX136: =BX$123*BX6*'TRADE ASSUMPTIONS'!$C7 -> 0 | BY136: =BY$123*BY6*'TRADE ASSUMPTIONS'!$C7 -> 0 | BZ136: =BZ$123*BZ6*'TRADE ASSUMPTIONS'!$C7 -> 0 | CA136: =CA$123*CA6*'TRADE ASSUMPTIONS'!$C7 -> 0.0004554743376 | CB136: =CB$123*CB6*'TRADE ASSUMPTIONS'!$C7 -> 0 | CC136: =CC$123*CC6*'TRADE ASSUMPTIONS'!$C7 -> 0 | CD136: =CD$123*CD6*'TRADE ASSUMPTIONS'!$C7 -> 0.002054211973 | CE136: =CE$123*CE6*'TRADE ASSUMPTIONS'!$C7 -> 0.003164583024 | CF136: =CF$123*CF6*'TRADE ASSUMPTIONS'!$C7 -> 0 | CG136: =CG$123*CG6*'TRADE ASSUMPTIONS'!$C7 -> 0.008968639922 | CH136: =CH$123*CH6*'TRADE ASSUMPTIONS'!$C7 -> 0.0005874787522 | CI136: =CI$123*CI6*'TRADE ASSUMPTIONS'!$C7 -> 0 | CJ136: =CJ$123*CJ6*'TRADE ASSUMPTIONS'!$C7 -> 0.002225870427 | CK136: =CK$123*CK6*'TRADE ASSUMPTIONS'!$C7 -> 0 | CL136: =CL$123*CL6*'TRADE ASSUMPTIONS'!$C7 -> 0.005463802144 | CM136: =CM$123*CM6*'TRADE ASSUMPTIONS'!$C7 -> 0.003963975971 | CN136: =CN$123*CN6*'TRADE ASSUMPTIONS'!$C7 -> 0 | CO136: =CO$123*CO6*'TRADE ASSUMPTIONS'!$C7 -> 0.0001943272126 | CP136: =CP$123*CP6*'TRADE ASSUMPTIONS'!$C7 -> 0 | CQ136: =CQ$123*CQ6*'TRADE ASSUMPTIONS'!$C7 -> 0.003308957396 | CR136: =CR$123*CR6*'TRADE ASSUMPTIONS'!$C7 -> 0 | CS136: =CS$123*CS6*'TRADE ASSUMPTIONS'!$C7 -> 0 | CT136: =CT$123*CT6*'TRADE ASSUMPTIONS'!$C7 -> 0 | CU136: =CU$123*CU6*'TRADE ASSUMPTIONS'!$C7 -> 0 | CV136: =CV$123*CV6*'TRADE ASSUMPTIONS'!$C7 -> 0 | CW136: =CW$123*CW6*'TRADE ASSUMPTIONS'!$C7 -> 0 | CX136: =CX$123*CX6*'TRADE ASSUMPTIONS'!$C7 -> 0 | CY136: =CY$123*CY6*'TRADE ASSUMPTIONS'!$C7 -> 0 | CZ136: =CZ$123*CZ6*'TRADE ASSUMPTIONS'!$C7 -> 0 | DA136: =DA$123*DA6*'TRADE ASSUMPTIONS'!$C7 -> 0.0001989626913 | DB136: =DB$123*DB6*'TRADE ASSUMPTIONS'!$C7 -> 0 | DC136: =DC$123*DC6*'TRADE ASSUMPTIONS'!$C7 -> 0 | DD136: =DD$123*DD6*'TRADE ASSUMPTIONS'!D7 -> 0 | DE136: 0 | DF136: 0 | DG136: 0 | DH136: 0.1413787899 | DI136: 0 | DJ136: 0.001124881982 | DK136: 18.65018629 | DL136: 4.643726467 | DM136: =DM6*$DR136 -> 0 | DN136: 0.001243123951 | DO136: 11.49693567 | DP136: 35.85536877 | DR136: 0.001000652176 | DU136: ='TRADE ASSUMPTIONS'!C7 -> 0.02 | DV136: Extraction Of Crude Petroleum And Natural Gas & Mining Of Metal Ores | EB136: 0.6496978466 | EC136: 0.3206475365 | EE136: 0.481239771 | EF136: 0.672382224 | EG136: 0.1119235855 | EJ136: 0.0004501321276 | EK136: 0.001238079698 | EM136: 06&07 | EN136: 0.0007929918233
